Workbook

Sheet Лист1
B1: ОЧКИ = (17-"Место в дивизионе")*СТЕПЕНЬ(EXP(1);2*(4-"дивизион(1,2,3 или 4)")) | AA1: =IF([1]!Cell_Color(O4)=[1]!Cell_Color($A$4),1,IF([1]!Cell_Color(O4)=[1]!Cell_Color($A$5),2,IF([1]!Cell_Color(O4)=[1]!Cell_Color($A$6),3,IF([1]!Cell_Color(O4)=[1]!Cell_Color($A$7),3,IF([1]!Cell_Color(O4)=[1]!Cell_Color($A$8),4,IF([1]!Cell_Color(O4)=[1]!Cell_Color($A$9),4,0)))))) -> 1
AB2: Очки
D3: Место 3 сезона назад | E3: Прогресс за 3 сезона | F3: Место сезон назад | G3: Прогресс за сезон | H3: Место | J3: 4 | K3: =J3+1 -> 5 | L3: =K3+1 -> 6 | M3: 7 | N3: 8 | O3: 9 | P3: 10 | Q3: 11 | R3: 12 | S3: 13 | T3: 14 | U3: 15 | V3: 16 | W3: 17 | X3: Очки (10-14) | Y3: Очки (12-16) | Z3: Очки (13-17) | AB3: 9 | AC3: =AB3+1 -> 10 | AD3: =AC3+1 -> 11 | AE3: 12 | AF3: 13 | AG3: 14 | AH3: 15 | AI3: 16 | AJ3: 17
B4: 1 | C4: 1 | D4: 1 | F4: 1 | H4: 1 | I4: Гонвед | J4: 15 | K4: 2 | L4: 8 | M4: 1 | N4: 3 | O4: 1 | P4: 2 | Q4: 5 | R4: 1 | S4: 7 | T4: 2 | U4: 4 | V4: 1 | W4: 1 | X4: =SUM(AC4:AG4) -> 27433.15796 | Y4: =SUM(AE4:AI4) -> 28240.01554 | Z4: =SUM(AF4:AJ4) -> 28240.01554 | AB4: =(17-O4)*POWER(EXP(1),2*(4-IF([1]!Cell_Color(O4)=[1]!Cell_Color($A$4),1,IF([1]!Cell_Color(O4)=[1]!Cell_Color($A$5),2,IF([1]!Cell_Color(O4)=[1]!Cell_Color($A$6),3,IF([1]!Cell_Color(O4)=[1]!Cell_Color($A$7),3,IF([1]!Cell_Color(O4)=[1]!Cell_Color($A$8),4,IF([1]!Cell_Color(O4)=[1]!Cell_Color($A$9),4,0)))))))) -> 6454.860696 | AC4: =(17-P4)*POWER(EXP(1),2*(4-IF([1]!Cell_Color(P4)=[1]!Cell_Color($A$4),1,IF([1]!Cell_Color(P4)=[1]!Cell_Color($A$5),2,IF([1]!Cell_Color(P4)=[1]!Cell_Color($A$6),3,IF([1]!Cell_Color(P4)=[1]!Cell_Color($A$7),3,IF([1]!Cell_Color(P4)=[1]!Cell_Color($A$8),4,IF([1]!Cell_Color(P4)=[1]!Cell_Color($A$9),4,0)))))))) -> 6051.431902 | AD4: =(17-Q4)*POWER(EXP(1),2*(4-IF([1]!Cell_Color(Q4)=[1]!Cell_Color($A$4),1,IF([1]!Cell_Color(Q4)=[1]!Cell_Color($A$5),2,IF([1]!Cell_Color(Q4)=[1]!Cell_Color($A$6),3,IF([1]!Cell_Color(Q4)=[1]!Cell_Color($A$7),3,IF([1]!Cell_Color(Q4)=[1]!Cell_Color($A$8),4,IF([1]!Cell_Color(Q4)=[1]!Cell_Color($A$9),4,0)))))))) -> 4841.145522 | AE4: =(17-R4)*POWER(EXP(1),2*(4-IF([1]!Cell_Color(R4)=[1]!Cell_Color($A$4),1,IF([1]!Cell_Color(R4)=[1]!Cell_Color($A$5),2,IF([1]!Cell_Color(R4)=[1]!Cell_Color($A$6),3,IF([1]!Cell_Color(R4)=[1]!Cell_Color($A$7),3,IF([1]!Cell_Color(R4)=[1]!Cell_Color($A$8),4,IF([1]!Cell_Color(R4)=[1]!Cell_Color($A$9),4,0)))))))) -> 6454.860696 | AF4: =(17-S4)*POWER(EXP(1),2*(4-IF([1]!Cell_Color(S4)=[1]!Cell_Color($A$4),1,IF([1]!Cell_Color(S4)=[1]!Cell_Color($A$5),2,IF([1]!Cell_Color(S4)=[1]!Cell_Color($A$6),3,IF([1]!Cell_Color(S4)=[1]!Cell_Color($A$7),3,IF([1]!Cell_Color(S4)=[1]!Cell_Color($A$8),4,IF([1]!Cell_Color(S4)=[1]!Cell_Color($A$9),4,0)))))))) -> 4034.287935 | AG4: =(17-T4)*POWER(EXP(1),2*(4-IF([1]!Cell_Color(T4)=[1]!Cell_Color($A$4),1,IF([1]!Cell_Color(T4)=[1]!Cell_Color($A$5),2,IF([1]!Cell_Color(T4)=[1]!Cell_Color($A$6),3,IF([1]!Cell_Color(T4)=[1]!Cell_Color($A$7),3,IF([1]!Cell_Color(T4)=[1]!Cell_Color($A$8),4,IF([1]!Cell_Color(T4)=[1]!Cell_Color($A$9),4,0)))))))) -> 6051.431902 | AH4: =(17-U4)*POWER(EXP(1),2*(4-IF([1]!Cell_Color(U4)=[1]!Cell_Color($A$4),1,IF([1]!Cell_Color(U4)=[1]!Cell_Color($A$5),2,IF([1]!Cell_Color(U4)=[1]!Cell_Color($A$6),3,IF([1]!Cell_Color(U4)=[1]!Cell_Color($A$7),3,IF([1]!Cell_Color(U4)=[1]!Cell_Color($A$8),4,IF([1]!Cell_Color(U4)=[1]!Cell_Color($A$9),4,0)))))))) -> 5244.574315 | AI4: =(17-V4)*POWER(EXP(1),2*(4-IF([1]!Cell_Color(V4)=[1]!Cell_Color($A$4),1,IF([1]!Cell_Color(V4)=[1]!Cell_Color($A$5),2,IF([1]!Cell_Color(V4)=[1]!Cell_Color($A$6),3,IF([1]!Cell_Color(V4)=[1]!Cell_Color($A$7),3,IF([1]!Cell_Color(V4)=[1]!Cell_Color($A$8),4,IF([1]!Cell_Color(V4)=[1]!Cell_Color($A$9),4,0)))))))) -> 6454.860696 | AJ4: =(17-W4)*POWER(EXP(1),2*(4-IF([1]!Cell_Color(W4)=[1]!Cell_Color($A$4),1,IF([1]!Cell_Color(W4)=[1]!Cell_Color($A$5),2,IF([1]!Cell_Color(W4)=[1]!Cell_Color($A$6),3,IF([1]!Cell_Color(W4)=[1]!Cell_Color($A$7),3,IF([1]!Cell_Color(W4)=[1]!Cell_Color($A$8),4,IF([1]!Cell_Color(W4)=[1]!Cell_Color($A$9),4,0)))))))) -> 6454.860696
B5: 2 | C5: =C4+1 -> 2 | D5: 3 | E5: =D5-H5 -> 1 | F5: 3 | G5: =F5-H5 -> 1 | H5: =H4+1 -> 2 | I5: Варда СЕ | J5: 5 | K5: 5 | L5: 11 | M5: 8 | N5: 12 | O5: 11 | P5: 8 | Q5: 2 | R5: 7 | S5: 5 | T5: 1 | U5: 2 | V5: 7 | W5: 2 | X5: =SUM(AC5:AG5) -> 25012.5852 | Y5: =SUM(AE5:AI5) -> 25416.01399 | Z5: =SUM(AF5:AJ5) -> 27433.15796 | AB5: =(17-O5)*POWER(EXP(1),2*(4-IF([1]!Cell_Color(O5)=[1]!Cell_Color($A$4),1,IF([1]!Cell_Color(O5)=[1]!Cell_Color($A$5),2,IF([1]!Cell_Color(O5)=[1]!Cell_Color($A$6),3,IF([1]!Cell_Color(O5)=[1]!Cell_Color($A$7),3,IF([1]!Cell_Color(O5)=[1]!Cell_Color($A$8),4,IF([1]!Cell_Color(O5)=[1]!Cell_Color($A$9),4,0)))))))) -> 2420.572761 | AC5: =(17-P5)*POWER(EXP(1),2*(4-IF([1]!Cell_Color(P5)=[1]!Cell_Color($A$4),1,IF([1]!Cell_Color(P5)=[1]!Cell_Color($A$5),2,IF([1]!Cell_Color(P5)=[1]!Cell_Color($A$6),3,IF([1]!Cell_Color(P5)=[1]!Cell_Color($A$7),3,IF([1]!Cell_Color(P5)=[1]!Cell_Color($A$8),4,IF([1]!Cell_Color(P5)=[1]!Cell_Color($A$9),4,0)))))))) -> 3630.859141 | AD5: =(17-Q5)*POWER(EXP(1),2*(4-IF([1]!Cell_Color(Q5)=[1]!Cell_Color($A$4),1,IF([1]!Cell_Color(Q5)=[1]!Cell_Color($A$5),2,IF([1]!Cell_Color(Q5)=[1]!Cell_Color($A$6),3,IF([1]!Cell_Color(Q5)=[1]!Cell_Color($A$7),3,IF([1]!Cell_Color(Q5)=[1]!Cell_Color($A$8),4,IF([1]!Cell_Color(Q5)=[1]!Cell_Color($A$9),4,0)))))))) -> 6051.431902 | AE5: =(17-R5)*POWER(EXP(1),2*(4-IF([1]!Cell_Color(R5)=[1]!Cell_Color($A$4),1,IF([1]!Cell_Color(R5)=[1]!Cell_Color($A$5),2,IF([1]!Cell_Color(R5)=[1]!Cell_Color($A$6),3,IF([1]!Cell_Color(R5)=[1]!Cell_Color($A$7),3,IF([1]!Cell_Color(R5)=[1]!Cell_Color($A$8),4,IF([1]!Cell_Color(R5)=[1]!Cell_Color($A$9),4,0)))))))) -> 4034.287935 | AF5: =(17-S5)*POWER(EXP(1),2*(4-IF([1]!Cell_Color(S5)=[1]!Cell_Color($A$4),1,IF([1]!Cell_Color(S5)=[1]!Cell_Color($A$5),2,IF([1]!Cell_Color(S5)=[1]!Cell_Color($A$6),3,IF([1]!Cell_Color(S5)=[1]!Cell_Color($A$7),3,IF([1]!Cell_Color(S5)=[1]!Cell_Color($A$8),4,IF([1]!Cell_Color(S5)=[1]!Cell_Color($A$9),4,0)))))))) -> 4841.145522 | AG5: =(17-T5)*POWER(EXP(1),2*(4-IF([1]!Cell_Color(T5)=[1]!Cell_Color($A$4),1,IF([1]!Cell_Color(T5)=[1]!Cell_Color($A$5),2,IF([1]!Cell_Color(T5)=[1]!Cell_Color($A$6),3,IF([1]!Cell_Color(T5)=[1]!Cell_Color($A$7),3,IF([1]!Cell_Color(T5)=[1]!Cell_Color($A$8),4,IF([1]!Cell_Color(T5)=[1]!Cell_Color($A$9),4,0)))))))) -> 6454.860696 | AH5: =(17-U5)*POWER(EXP(1),2*(4-IF([1]!Cell_Color(U5)=[1]!Cell_Color($A$4),1,IF([1]!Cell_Color(U5)=[1]!Cell_Color($A$5),2,IF([1]!Cell_Color(U5)=[1]!Cell_Color($A$6),3,IF([1]!Cell_Color(U5)=[1]!Cell_Color($A$7),3,IF([1]!Cell_Color(U5)=[1]!Cell_Color($A$8),4,IF([1]!Cell_Color(U5)=[1]!Cell_Color($A$9),4,0)))))))) -> 6051.431902 | AI5: =(17-V5)*POWER(EXP(1),2*(4-IF([1]!Cell_Color(V5)=[1]!Cell_Color($A$4),1,IF([1]!Cell_Color(V5)=[1]!Cell_Color($A$5),2,IF([1]!Cell_Color(V5)=[1]!Cell_Color($A$6),3,IF([1]!Cell_Color(V5)=[1]!Cell_Color($A$7),3,IF([1]!Cell_Color(V5)=[1]!Cell_Color($A$8),4,IF([1]!Cell_Color(V5)=[1]!Cell_Color($A$9),4,0)))))))) -> 4034.287935 | AJ5: =(17-W5)*POWER(EXP(1),2*(4-IF([1]!Cell_Color(W5)=[1]!Cell_Color($A$4),1,IF([1]!Cell_Color(W5)=[1]!Cell_Color($A$5),2,IF([1]!Cell_Color(W5)=[1]!Cell_Color($A$6),3,IF([1]!Cell_Color(W5)=[1]!Cell_Color($A$7),3,IF([1]!Cell_Color(W5)=[1]!Cell_Color($A$8),4,IF([1]!Cell_Color(W5)=[1]!Cell_Color($A$9),4,0)))))))) -> 6051.431902
B6: 3-А | C6: =C5+1 -> 3 | D6: 10 | E6: =D6-H6 -> 7 | F6: 6 | G6: =F6-H6 -> 3 | H6: =H5+1 -> 3 | I6: Орошаза ФК | J6: 1 | K6: 3 | L6: 9 | M6: 11 | N6: 5 | O6: 6 | P6: 13 | Q6: 13 | R6: 3 | S6: 1 | T6: 5 | U6: 7 | V6: 4 | W6: 4 | X6: =SUM(AC6:AG6) -> 15287.81067 | Y6: =SUM(AE6:AI6) -> 21339.24257 | Z6: =SUM(AF6:AJ6) -> 25819.44278 | AB6: =(17-O6)*POWER(EXP(1),2*(4-IF([1]!Cell_Color(O6)=[1]!Cell_Color($A$4),1,IF([1]!Cell_Color(O6)=[1]!Cell_Color($A$5),2,IF([1]!Cell_Color(O6)=[1]!Cell_Color($A$6),3,IF([1]!Cell_Color(O6)=[1]!Cell_Color($A$7),3,IF([1]!Cell_Color(O6)=[1]!Cell_Color($A$8),4,IF([1]!Cell_Color(O6)=[1]!Cell_Color($A$9),4,0)))))))) -> 4437.716728 | AC6: =(17-P6)*POWER(EXP(1),2*(4-IF([1]!Cell_Color(P6)=[1]!Cell_Color($A$4),1,IF([1]!Cell_Color(P6)=[1]!Cell_Color($A$5),2,IF([1]!Cell_Color(P6)=[1]!Cell_Color($A$6),3,IF([1]!Cell_Color(P6)=[1]!Cell_Color($A$7),3,IF([1]!Cell_Color(P6)=[1]!Cell_Color($A$8),4,IF([1]!Cell_Color(P6)=[1]!Cell_Color($A$9),4,0)))))))) -> 1613.715174 | AD6: =(17-Q6)*POWER(EXP(1),2*(4-IF([1]!Cell_Color(Q6)=[1]!Cell_Color($A$4),1,IF([1]!Cell_Color(Q6)=[1]!Cell_Color($A$5),2,IF([1]!Cell_Color(Q6)=[1]!Cell_Color($A$6),3,IF([1]!Cell_Color(Q6)=[1]!Cell_Color($A$7),3,IF([1]!Cell_Color(Q6)=[1]!Cell_Color($A$8),4,IF([1]!Cell_Color(Q6)=[1]!Cell_Color($A$9),4,0)))))))) -> 1613.715174 | AE6: =(17-R6)*POWER(EXP(1),2*(4-IF([1]!Cell_Color(R6)=[1]!Cell_Color($A$4),1,IF([1]!Cell_Color(R6)=[1]!Cell_Color($A$5),2,IF([1]!Cell_Color(R6)=[1]!Cell_Color($A$6),3,IF([1]!Cell_Color(R6)=[1]!Cell_Color($A$7),3,IF([1]!Cell_Color(R6)=[1]!Cell_Color($A$8),4,IF([1]!Cell_Color(R6)=[1]!Cell_Color($A$9),4,0)))))))) -> 764.3741005 | AF6: =(17-S6)*POWER(EXP(1),2*(4-IF([1]!Cell_Color(S6)=[1]!Cell_Color($A$4),1,IF([1]!Cell_Color(S6)=[1]!Cell_Color($A$5),2,IF([1]!Cell_Color(S6)=[1]!Cell_Color($A$6),3,IF([1]!Cell_Color(S6)=[1]!Cell_Color($A$7),3,IF([1]!Cell_Color(S6)=[1]!Cell_Color($A$8),4,IF([1]!Cell_Color(S6)=[1]!Cell_Color($A$9),4,0)))))))) -> 6454.860696 | AG6: =(17-T6)*POWER(EXP(1),2*(4-IF([1]!Cell_Color(T6)=[1]!Cell_Color($A$4),1,IF([1]!Cell_Color(T6)=[1]!Cell_Color($A$5),2,IF([1]!Cell_Color(T6)=[1]!Cell_Color($A$6),3,IF([1]!Cell_Color(T6)=[1]!Cell_Color($A$7),3,IF([1]!Cell_Color(T6)=[1]!Cell_Color($A$8),4,IF([1]!Cell_Color(T6)=[1]!Cell_Color($A$9),4,0)))))))) -> 4841.145522 | AH6: =(17-U6)*POWER(EXP(1),2*(4-IF([1]!Cell_Color(U6)=[1]!Cell_Color($A$4),1,IF([1]!Cell_Color(U6)=[1]!Cell_Color($A$5),2,IF([1]!Cell_Color(U6)=[1]!Cell_Color($A$6),3,IF([1]!Cell_Color(U6)=[1]!Cell_Color($A$7),3,IF([1]!Cell_Color(U6)=[1]!Cell_Color($A$8),4,IF([1]!Cell_Color(U6)=[1]!Cell_Color($A$9),4,0)))))))) -> 4034.287935 | AI6: =(17-V6)*POWER(EXP(1),2*(4-IF([1]!Cell_Color(V6)=[1]!Cell_Color($A$4),1,IF([1]!Cell_Color(V6)=[1]!Cell_Color($A$5),2,IF([1]!Cell_Color(V6)=[1]!Cell_Color($A$6),3,IF([1]!Cell_Color(V6)=[1]!Cell_Color($A$7),3,IF([1]!Cell_Color(V6)=[1]!Cell_Color($A$8),4,IF([1]!Cell_Color(V6)=[1]!Cell_Color($A$9),4,0)))))))) -> 5244.574315 | AJ6: =(17-W6)*POWER(EXP(1),2*(4-IF([1]!Cell_Color(W6)=[1]!Cell_Color($A$4),1,IF([1]!Cell_Color(W6)=[1]!Cell_Color($A$5),2,IF([1]!Cell_Color(W6)=[1]!Cell_Color($A$6),3,IF([1]!Cell_Color(W6)=[1]!Cell_Color($A$7),3,IF([1]!Cell_Color(W6)=[1]!Cell_Color($A$8),4,IF([1]!Cell_Color(W6)=[1]!Cell_Color($A$9),4,0)))))))) -> 5244.574315
B7: 3-Б | C7: 4 | D7: 5 | E7: =D7-H7 -> 1 | F7: 2 | G7: =F7-H7 -> -2 | H7: 4 | I7: Вечеш ФК | J7: 1 | K7: 7 | L7: 4 | M7: 6 | N7: 8 | O7: 14 | P7: 1 | Q7: 6 | R7: 8 | S7: 3 | T7: 4 | U7: 1 | V7: 2 | W7: 11 | X7: =SUM(AC7:AG7) -> 19834.72369 | Y7: =SUM(AE7:AI7) -> 27029.72916 | Z7: =SUM(AF7:AJ7) -> 25819.44278 | AB7: =(17-O7)*POWER(EXP(1),2*(4-IF([1]!Cell_Color(O7)=[1]!Cell_Color($A$4),1,IF([1]!Cell_Color(O7)=[1]!Cell_Color($A$5),2,IF([1]!Cell_Color(O7)=[1]!Cell_Color($A$6),3,IF([1]!Cell_Color(O7)=[1]!Cell_Color($A$7),3,IF([1]!Cell_Color(O7)=[1]!Cell_Color($A$8),4,IF([1]!Cell_Color(O7)=[1]!Cell_Color($A$9),4,0)))))))) -> 1210.28638 | AC7: =(17-P7)*POWER(EXP(1),2*(4-IF([1]!Cell_Color(P7)=[1]!Cell_Color($A$4),1,IF([1]!Cell_Color(P7)=[1]!Cell_Color($A$5),2,IF([1]!Cell_Color(P7)=[1]!Cell_Color($A$6),3,IF([1]!Cell_Color(P7)=[1]!Cell_Color($A$7),3,IF([1]!Cell_Color(P7)=[1]!Cell_Color($A$8),4,IF([1]!Cell_Color(P7)=[1]!Cell_Color($A$9),4,0)))))))) -> 873.5704005 | AD7: =(17-Q7)*POWER(EXP(1),2*(4-IF([1]!Cell_Color(Q7)=[1]!Cell_Color($A$4),1,IF([1]!Cell_Color(Q7)=[1]!Cell_Color($A$5),2,IF([1]!Cell_Color(Q7)=[1]!Cell_Color($A$6),3,IF([1]!Cell_Color(Q7)=[1]!Cell_Color($A$7),3,IF([1]!Cell_Color(Q7)=[1]!Cell_Color($A$8),4,IF([1]!Cell_Color(Q7)=[1]!Cell_Color($A$9),4,0)))))))) -> 4437.716728 | AE7: =(17-R7)*POWER(EXP(1),2*(4-IF([1]!Cell_Color(R7)=[1]!Cell_Color($A$4),1,IF([1]!Cell_Color(R7)=[1]!Cell_Color($A$5),2,IF([1]!Cell_Color(R7)=[1]!Cell_Color($A$6),3,IF([1]!Cell_Color(R7)=[1]!Cell_Color($A$7),3,IF([1]!Cell_Color(R7)=[1]!Cell_Color($A$8),4,IF([1]!Cell_Color(R7)=[1]!Cell_Color($A$9),4,0)))))))) -> 3630.859141 | AF7: =(17-S7)*POWER(EXP(1),2*(4-IF([1]!Cell_Color(S7)=[1]!Cell_Color($A$4),1,IF([1]!Cell_Color(S7)=[1]!Cell_Color($A$5),2,IF([1]!Cell_Color(S7)=[1]!Cell_Color($A$6),3,IF([1]!Cell_Color(S7)=[1]!Cell_Color($A$7),3,IF([1]!Cell_Color(S7)=[1]!Cell_Color($A$8),4,IF([1]!Cell_Color(S7)=[1]!Cell_Color($A$9),4,0)))))))) -> 5648.003109 | AG7: =(17-T7)*POWER(EXP(1),2*(4-IF([1]!Cell_Color(T7)=[1]!Cell_Color($A$4),1,IF([1]!Cell_Color(T7)=[1]!Cell_Color($A$5),2,IF([1]!Cell_Color(T7)=[1]!Cell_Color($A$6),3,IF([1]!Cell_Color(T7)=[1]!Cell_Color($A$7),3,IF([1]!Cell_Color(T7)=[1]!Cell_Color($A$8),4,IF([1]!Cell_Color(T7)=[1]!Cell_Color($A$9),4,0)))))))) -> 5244.574315 | AH7: =(17-U7)*POWER(EXP(1),2*(4-IF([1]!Cell_Color(U7)=[1]!Cell_Color($A$4),1,IF([1]!Cell_Color(U7)=[1]!Cell_Color($A$5),2,IF([1]!Cell_Color(U7)=[1]!Cell_Color($A$6),3,IF([1]!Cell_Color(U7)=[1]!Cell_Color($A$7),3,IF([1]!Cell_Color(U7)=[1]!Cell_Color($A$8),4,IF([1]!Cell_Color(U7)=[1]!Cell_Color($A$9),4,0)))))))) -> 6454.860696 | AI7: =(17-V7)*POWER(EXP(1),2*(4-IF([1]!Cell_Color(V7)=[1]!Cell_Color($A$4),1,IF([1]!Cell_Color(V7)=[1]!Cell_Color($A$5),2,IF([1]!Cell_Color(V7)=[1]!Cell_Color($A$6),3,IF([1]!Cell_Color(V7)=[1]!Cell_Color($A$7),3,IF([1]!Cell_Color(V7)=[1]!Cell_Color($A$8),4,IF([1]!Cell_Color(V7)=[1]!Cell_Color($A$9),4,0)))))))) -> 6051.431902 | AJ7: =(17-W7)*POWER(EXP(1),2*(4-IF([1]!Cell_Color(W7)=[1]!Cell_Color($A$4),1,IF([1]!Cell_Color(W7)=[1]!Cell_Color($A$5),2,IF([1]!Cell_Color(W7)=[1]!Cell_Color($A$6),3,IF([1]!Cell_Color(W7)=[1]!Cell_Color($A$7),3,IF([1]!Cell_Color(W7)=[1]!Cell_Color($A$8),4,IF([1]!Cell_Color(W7)=[1]!Cell_Color($A$9),4,0)))))))) -> 2420.572761
B8: 4-А | C8: 5 | D8: 4 | E8: =D8-H8 -> -1 | F8: 4 | G8: =F8-H8 -> -1 | H8: 5 | I8: МТК | J8: 1 | K8: 2 | L8: 5 | M8: 3 | N8: 4 | O8: 3 | P8: 7 | Q8: 3 | R8: 6 | S8: 2 | T8: 10 | U8: 5 | V8: 3 | W8: 7 | X8: =SUM(AC8:AG8) -> 22995.44123 | Y8: =SUM(AE8:AI8) -> 23802.29882 | Z8: =SUM(AF8:AJ8) -> 23398.87002 | AB8: =(17-O8)*POWER(EXP(1),2*(4-IF([1]!Cell_Color(O8)=[1]!Cell_Color($A$4),1,IF([1]!Cell_Color(O8)=[1]!Cell_Color($A$5),2,IF([1]!Cell_Color(O8)=[1]!Cell_Color($A$6),3,IF([1]!Cell_Color(O8)=[1]!Cell_Color($A$7),3,IF([1]!Cell_Color(O8)=[1]!Cell_Color($A$8),4,IF([1]!Cell_Color(O8)=[1]!Cell_Color($A$9),4,0)))))))) -> 5648.003109 | AC8: =(17-P8)*POWER(EXP(1),2*(4-IF([1]!Cell_Color(P8)=[1]!Cell_Color($A$4),1,IF([1]!Cell_Color(P8)=[1]!Cell_Color($A$5),2,IF([1]!Cell_Color(P8)=[1]!Cell_Color($A$6),3,IF([1]!Cell_Color(P8)=[1]!Cell_Color($A$7),3,IF([1]!Cell_Color(P8)=[1]!Cell_Color($A$8),4,IF([1]!Cell_Color(P8)=[1]!Cell_Color($A$9),4,0)))))))) -> 4034.287935 | AD8: =(17-Q8)*POWER(EXP(1),2*(4-IF([1]!Cell_Color(Q8)=[1]!Cell_Color($A$4),1,IF([1]!Cell_Color(Q8)=[1]!Cell_Color($A$5),2,IF([1]!Cell_Color(Q8)=[1]!Cell_Color($A$6),3,IF([1]!Cell_Color(Q8)=[1]!Cell_Color($A$7),3,IF([1]!Cell_Color(Q8)=[1]!Cell_Color($A$8),4,IF([1]!Cell_Color(Q8)=[1]!Cell_Color($A$9),4,0)))))))) -> 5648.003109 | AE8: =(17-R8)*POWER(EXP(1),2*(4-IF([1]!Cell_Color(R8)=[1]!Cell_Color($A$4),1,IF([1]!Cell_Color(R8)=[1]!Cell_Color($A$5),2,IF([1]!Cell_Color(R8)=[1]!Cell_Color($A$6),3,IF([1]!Cell_Color(R8)=[1]!Cell_Color($A$7),3,IF([1]!Cell_Color(R8)=[1]!Cell_Color($A$8),4,IF([1]!Cell_Color(R8)=[1]!Cell_Color($A$9),4,0)))))))) -> 4437.716728 | AF8: =(17-S8)*POWER(EXP(1),2*(4-IF([1]!Cell_Color(S8)=[1]!Cell_Color($A$4),1,IF([1]!Cell_Color(S8)=[1]!Cell_Color($A$5),2,IF([1]!Cell_Color(S8)=[1]!Cell_Color($A$6),3,IF([1]!Cell_Color(S8)=[1]!Cell_Color($A$7),3,IF([1]!Cell_Color(S8)=[1]!Cell_Color($A$8),4,IF([1]!Cell_Color(S8)=[1]!Cell_Color($A$9),4,0)))))))) -> 6051.431902 | AG8: =(17-T8)*POWER(EXP(1),2*(4-IF([1]!Cell_Color(T8)=[1]!Cell_Color($A$4),1,IF([1]!Cell_Color(T8)=[1]!Cell_Color($A$5),2,IF([1]!Cell_Color(T8)=[1]!Cell_Color($A$6),3,IF([1]!Cell_Color(T8)=[1]!Cell_Color($A$7),3,IF([1]!Cell_Color(T8)=[1]!Cell_Color($A$8),4,IF([1]!Cell_Color(T8)=[1]!Cell_Color($A$9),4,0)))))))) -> 2824.001554 | AH8: =(17-U8)*POWER(EXP(1),2*(4-IF([1]!Cell_Color(U8)=[1]!Cell_Color($A$4),1,IF([1]!Cell_Color(U8)=[1]!Cell_Color($A$5),2,IF([1]!Cell_Color(U8)=[1]!Cell_Color($A$6),3,IF([1]!Cell_Color(U8)=[1]!Cell_Color($A$7),3,IF([1]!Cell_Color(U8)=[1]!Cell_Color($A$8),4,IF([1]!Cell_Color(U8)=[1]!Cell_Color($A$9),4,0)))))))) -> 4841.145522 | AI8: =(17-V8)*POWER(EXP(1),2*(4-IF([1]!Cell_Color(V8)=[1]!Cell_Color($A$4),1,IF([1]!Cell_Color(V8)=[1]!Cell_Color($A$5),2,IF([1]!Cell_Color(V8)=[1]!Cell_Color($A$6),3,IF([1]!Cell_Color(V8)=[1]!Cell_Color($A$7),3,IF([1]!Cell_Color(V8)=[1]!Cell_Color($A$8),4,IF([1]!Cell_Color(V8)=[1]!Cell_Color($A$9),4,0)))))))) -> 5648.003109 | AJ8: =(17-W8)*POWER(EXP(1),2*(4-IF([1]!Cell_Color(W8)=[1]!Cell_Color($A$4),1,IF([1]!Cell_Color(W8)=[1]!Cell_Color($A$5),2,IF([1]!Cell_Color(W8)=[1]!Cell_Color($A$6),3,IF([1]!Cell_Color(W8)=[1]!Cell_Color($A$7),3,IF([1]!Cell_Color(W8)=[1]!Cell_Color($A$8),4,IF([1]!Cell_Color(W8)=[1]!Cell_Color($A$9),4,0)))))))) -> 4034.287935
B9: 4-Б | C9: 6 | D9: 6 | F9: 5 | G9: =F9-H9 -> -1 | H9: 6 | I9: Комлой Баньяж СК | J9: 1 | K9: 5 | L9: 4 | M9: 1 | N9: 11 | O9: 4 | P9: 12 | Q9: 8 | R9: 4 | S9: 6 | T9: 7 | U9: 6 | V9: 5 | W9: 6 | X9: =SUM(AC9:AG9) -> 19364.58209 | Y9: =SUM(AE9:AI9) -> 22995.44123 | Z9: =SUM(AF9:AJ9) -> 22188.58364 | AB9: =(17-O9)*POWER(EXP(1),2*(4-IF([1]!Cell_Color(O9)=[1]!Cell_Color($A$4),1,IF([1]!Cell_Color(O9)=[1]!Cell_Color($A$5),2,IF([1]!Cell_Color(O9)=[1]!Cell_Color($A$6),3,IF([1]!Cell_Color(O9)=[1]!Cell_Color($A$7),3,IF([1]!Cell_Color(O9)=[1]!Cell_Color($A$8),4,IF([1]!Cell_Color(O9)=[1]!Cell_Color($A$9),4,0)))))))) -> 5244.574315 | AC9: =(17-P9)*POWER(EXP(1),2*(4-IF([1]!Cell_Color(P9)=[1]!Cell_Color($A$4),1,IF([1]!Cell_Color(P9)=[1]!Cell_Color($A$5),2,IF([1]!Cell_Color(P9)=[1]!Cell_Color($A$6),3,IF([1]!Cell_Color(P9)=[1]!Cell_Color($A$7),3,IF([1]!Cell_Color(P9)=[1]!Cell_Color($A$8),4,IF([1]!Cell_Color(P9)=[1]!Cell_Color($A$9),4,0)))))))) -> 2017.143967 | AD9: =(17-Q9)*POWER(EXP(1),2*(4-IF([1]!Cell_Color(Q9)=[1]!Cell_Color($A$4),1,IF([1]!Cell_Color(Q9)=[1]!Cell_Color($A$5),2,IF([1]!Cell_Color(Q9)=[1]!Cell_Color($A$6),3,IF([1]!Cell_Color(Q9)=[1]!Cell_Color($A$7),3,IF([1]!Cell_Color(Q9)=[1]!Cell_Color($A$8),4,IF([1]!Cell_Color(Q9)=[1]!Cell_Color($A$9),4,0)))))))) -> 3630.859141 | AE9: =(17-R9)*POWER(EXP(1),2*(4-IF([1]!Cell_Color(R9)=[1]!Cell_Color($A$4),1,IF([1]!Cell_Color(R9)=[1]!Cell_Color($A$5),2,IF([1]!Cell_Color(R9)=[1]!Cell_Color($A$6),3,IF([1]!Cell_Color(R9)=[1]!Cell_Color($A$7),3,IF([1]!Cell_Color(R9)=[1]!Cell_Color($A$8),4,IF([1]!Cell_Color(R9)=[1]!Cell_Color($A$9),4,0)))))))) -> 5244.574315 | AF9: =(17-S9)*POWER(EXP(1),2*(4-IF([1]!Cell_Color(S9)=[1]!Cell_Color($A$4),1,IF([1]!Cell_Color(S9)=[1]!Cell_Color($A$5),2,IF([1]!Cell_Color(S9)=[1]!Cell_Color($A$6),3,IF([1]!Cell_Color(S9)=[1]!Cell_Color($A$7),3,IF([1]!Cell_Color(S9)=[1]!Cell_Color($A$8),4,IF([1]!Cell_Color(S9)=[1]!Cell_Color($A$9),4,0)))))))) -> 4437.716728 | AG9: =(17-T9)*POWER(EXP(1),2*(4-IF([1]!Cell_Color(T9)=[1]!Cell_Color($A$4),1,IF([1]!Cell_Color(T9)=[1]!Cell_Color($A$5),2,IF([1]!Cell_Color(T9)=[1]!Cell_Color($A$6),3,IF([1]!Cell_Color(T9)=[1]!Cell_Color($A$7),3,IF([1]!Cell_Color(T9)=[1]!Cell_Color($A$8),4,IF([1]!Cell_Color(T9)=[1]!Cell_Color($A$9),4,0)))))))) -> 4034.287935 | AH9: =(17-U9)*POWER(EXP(1),2*(4-IF([1]!Cell_Color(U9)=[1]!Cell_Color($A$4),1,IF([1]!Cell_Color(U9)=[1]!Cell_Color($A$5),2,IF([1]!Cell_Color(U9)=[1]!Cell_Color($A$6),3,IF([1]!Cell_Color(U9)=[1]!Cell_Color($A$7),3,IF([1]!Cell_Color(U9)=[1]!Cell_Color($A$8),4,IF([1]!Cell_Color(U9)=[1]!Cell_Color($A$9),4,0)))))))) -> 4437.716728 | AI9: =(17-V9)*POWER(EXP(1),2*(4-IF([1]!Cell_Color(V9)=[1]!Cell_Color($A$4),1,IF([1]!Cell_Color(V9)=[1]!Cell_Color($A$5),2,IF([1]!Cell_Color(V9)=[1]!Cell_Color($A$6),3,IF([1]!Cell_Color(V9)=[1]!Cell_Color($A$7),3,IF([1]!Cell_Color(V9)=[1]!Cell_Color($A$8),4,IF([1]!Cell_Color(V9)=[1]!Cell_Color($A$9),4,0)))))))) -> 4841.145522 | AJ9: =(17-W9)*POWER(EXP(1),2*(4-IF([1]!Cell_Color(W9)=[1]!Cell_Color($A$4),1,IF([1]!Cell_Color(W9)=[1]!Cell_Color($A$5),2,IF([1]!Cell_Color(W9)=[1]!Cell_Color($A$6),3,IF([1]!Cell_Color(W9)=[1]!Cell_Color($A$7),3,IF([1]!Cell_Color(W9)=[1]!Cell_Color($A$8),4,IF([1]!Cell_Color(W9)=[1]!Cell_Color($A$9),4,0)))))))) -> 4437.716728
C10: 7 | D10: 13 | E10: =D10-H10 -> 6 | F10: 9 | G10: =F10-H10 -> 2 | H10: 7 | I10: Папай ФК | J10: 13 | K10: 13 | L10: 13 | M10: 2 | N10: 1 | O10: 3 | P10: 16 | Q10: 10 | R10: 2 | S10: 8 | T10: 6 | U10: 10 | V10: 6 | W10: 3 | X10: =SUM(AC10:AG10) -> 9673.163964 | Y10: =SUM(AE10:AI10) -> 16149.2664 | Z10: =SUM(AF10:AJ10) -> 20978.29726 | AB10: =(17-O10)*POWER(EXP(1),2*(4-IF([1]!Cell_Color(O10)=[1]!Cell_Color($A$4),1,IF([1]!Cell_Color(O10)=[1]!Cell_Color($A$5),2,IF([1]!Cell_Color(O10)=[1]!Cell_Color($A$6),3,IF([1]!Cell_Color(O10)=[1]!Cell_Color($A$7),3,IF([1]!Cell_Color(O10)=[1]!Cell_Color($A$8),4,IF([1]!Cell_Color(O10)=[1]!Cell_Color($A$9),4,0)))))))) -> 764.3741005 | AC10: =(17-P10)*POWER(EXP(1),2*(4-IF([1]!Cell_Color(P10)=[1]!Cell_Color($A$4),1,IF([1]!Cell_Color(P10)=[1]!Cell_Color($A$5),2,IF([1]!Cell_Color(P10)=[1]!Cell_Color($A$6),3,IF([1]!Cell_Color(P10)=[1]!Cell_Color($A$7),3,IF([1]!Cell_Color(P10)=[1]!Cell_Color($A$8),4,IF([1]!Cell_Color(P10)=[1]!Cell_Color($A$9),4,0)))))))) -> 403.4287935 | AD10: =(17-Q10)*POWER(EXP(1),2*(4-IF([1]!Cell_Color(Q10)=[1]!Cell_Color($A$4),1,IF([1]!Cell_Color(Q10)=[1]!Cell_Color($A$5),2,IF([1]!Cell_Color(Q10)=[1]!Cell_Color($A$6),3,IF([1]!Cell_Color(Q10)=[1]!Cell_Color($A$7),3,IF([1]!Cell_Color(Q10)=[1]!Cell_Color($A$8),4,IF([1]!Cell_Color(Q10)=[1]!Cell_Color($A$9),4,0)))))))) -> 382.1870502 | AE10: =(17-R10)*POWER(EXP(1),2*(4-IF([1]!Cell_Color(R10)=[1]!Cell_Color($A$4),1,IF([1]!Cell_Color(R10)=[1]!Cell_Color($A$5),2,IF([1]!Cell_Color(R10)=[1]!Cell_Color($A$6),3,IF([1]!Cell_Color(R10)=[1]!Cell_Color($A$7),3,IF([1]!Cell_Color(R10)=[1]!Cell_Color($A$8),4,IF([1]!Cell_Color(R10)=[1]!Cell_Color($A$9),4,0)))))))) -> 818.9722505 | AF10: =(17-S10)*POWER(EXP(1),2*(4-IF([1]!Cell_Color(S10)=[1]!Cell_Color($A$4),1,IF([1]!Cell_Color(S10)=[1]!Cell_Color($A$5),2,IF([1]!Cell_Color(S10)=[1]!Cell_Color($A$6),3,IF([1]!Cell_Color(S10)=[1]!Cell_Color($A$7),3,IF([1]!Cell_Color(S10)=[1]!Cell_Color($A$8),4,IF([1]!Cell_Color(S10)=[1]!Cell_Color($A$9),4,0)))))))) -> 3630.859141 | AG10: =(17-T10)*POWER(EXP(1),2*(4-IF([1]!Cell_Color(T10)=[1]!Cell_Color($A$4),1,IF([1]!Cell_Color(T10)=[1]!Cell_Color($A$5),2,IF([1]!Cell_Color(T10)=[1]!Cell_Color($A$6),3,IF([1]!Cell_Color(T10)=[1]!Cell_Color($A$7),3,IF([1]!Cell_Color(T10)=[1]!Cell_Color($A$8),4,IF([1]!Cell_Color(T10)=[1]!Cell_Color($A$9),4,0)))))))) -> 4437.716728 | AH10: =(17-U10)*POWER(EXP(1),2*(4-IF([1]!Cell_Color(U10)=[1]!Cell_Color($A$4),1,IF([1]!Cell_Color(U10)=[1]!Cell_Color($A$5),2,IF([1]!Cell_Color(U10)=[1]!Cell_Color($A$6),3,IF([1]!Cell_Color(U10)=[1]!Cell_Color($A$7),3,IF([1]!Cell_Color(U10)=[1]!Cell_Color($A$8),4,IF([1]!Cell_Color(U10)=[1]!Cell_Color($A$9),4,0)))))))) -> 2824.001554 | AI10: =(17-V10)*POWER(EXP(1),2*(4-IF([1]!Cell_Color(V10)=[1]!Cell_Color($A$4),1,IF([1]!Cell_Color(V10)=[1]!Cell_Color($A$5),2,IF([1]!Cell_Color(V10)=[1]!Cell_Color($A$6),3,IF([1]!Cell_Color(V10)=[1]!Cell_Color($A$7),3,IF([1]!Cell_Color(V10)=[1]!Cell_Color($A$8),4,IF([1]!Cell_Color(V10)=[1]!Cell_Color($A$9),4,0)))))))) -> 4437.716728 | AJ10: =(17-W10)*POWER(EXP(1),2*(4-IF([1]!Cell_Color(W10)=[1]!Cell_Color($A$4),1,IF([1]!Cell_Color(W10)=[1]!Cell_Color($A$5),2,IF([1]!Cell_Color(W10)=[1]!Cell_Color($A$6),3,IF([1]!Cell_Color(W10)=[1]!Cell_Color($A$7),3,IF([1]!Cell_Color(W10)=[1]!Cell_Color($A$8),4,IF([1]!Cell_Color(W10)=[1]!Cell_Color($A$9),4,0)))))))) -> 5648.003109
C11: 8 | D11: 7 | E11: -1 | F11: 8 | H11: 8 | I11: Надьканизша ФК | J11: 5 | K11: 10 | L11: 2 | M11: 16 | N11: 8 | O11: 1 | P11: 5 | Q11: 11 | R11: 11 | S11: 10 | T11: 3 | U11: 3 | V11: 10 | W11: 9 | X11: =SUM(AC11:AG11) -> 18154.29571 | Y11: =SUM(AE11:AI11) -> 19364.58209 | Z11: =SUM(AF11:AJ11) -> 20171.43967 | AB11: =(17-O11)*POWER(EXP(1),2*(4-IF([1]!Cell_Color(O11)=[1]!Cell_Color($A$4),1,IF([1]!Cell_Color(O11)=[1]!Cell_Color($A$5),2,IF([1]!Cell_Color(O11)=[1]!Cell_Color($A$6),3,IF([1]!Cell_Color(O11)=[1]!Cell_Color($A$7),3,IF([1]!Cell_Color(O11)=[1]!Cell_Color($A$8),4,IF([1]!Cell_Color(O11)=[1]!Cell_Color($A$9),4,0)))))))) -> 873.5704005 | AC11: =(17-P11)*POWER(EXP(1),2*(4-IF([1]!Cell_Color(P11)=[1]!Cell_Color($A$4),1,IF([1]!Cell_Color(P11)=[1]!Cell_Color($A$5),2,IF([1]!Cell_Color(P11)=[1]!Cell_Color($A$6),3,IF([1]!Cell_Color(P11)=[1]!Cell_Color($A$7),3,IF([1]!Cell_Color(P11)=[1]!Cell_Color($A$8),4,IF([1]!Cell_Color(P11)=[1]!Cell_Color($A$9),4,0)))))))) -> 4841.145522 | AD11: =(17-Q11)*POWER(EXP(1),2*(4-IF([1]!Cell_Color(Q11)=[1]!Cell_Color($A$4),1,IF([1]!Cell_Color(Q11)=[1]!Cell_Color($A$5),2,IF([1]!Cell_Color(Q11)=[1]!Cell_Color($A$6),3,IF([1]!Cell_Color(Q11)=[1]!Cell_Color($A$7),3,IF([1]!Cell_Color(Q11)=[1]!Cell_Color($A$8),4,IF([1]!Cell_Color(Q11)=[1]!Cell_Color($A$9),4,0)))))))) -> 2420.572761 | AE11: =(17-R11)*POWER(EXP(1),2*(4-IF([1]!Cell_Color(R11)=[1]!Cell_Color($A$4),1,IF([1]!Cell_Color(R11)=[1]!Cell_Color($A$5),2,IF([1]!Cell_Color(R11)=[1]!Cell_Color($A$6),3,IF([1]!Cell_Color(R11)=[1]!Cell_Color($A$7),3,IF([1]!Cell_Color(R11)=[1]!Cell_Color($A$8),4,IF([1]!Cell_Color(R11)=[1]!Cell_Color($A$9),4,0)))))))) -> 2420.572761 | AF11: =(17-S11)*POWER(EXP(1),2*(4-IF([1]!Cell_Color(S11)=[1]!Cell_Color($A$4),1,IF([1]!Cell_Color(S11)=[1]!Cell_Color($A$5),2,IF([1]!Cell_Color(S11)=[1]!Cell_Color($A$6),3,IF([1]!Cell_Color(S11)=[1]!Cell_Color($A$7),3,IF([1]!Cell_Color(S11)=[1]!Cell_Color($A$8),4,IF([1]!Cell_Color(S11)=[1]!Cell_Color($A$9),4,0)))))))) -> 2824.001554 | AG11: =(17-T11)*POWER(EXP(1),2*(4-IF([1]!Cell_Color(T11)=[1]!Cell_Color($A$4),1,IF([1]!Cell_Color(T11)=[1]!Cell_Color($A$5),2,IF([1]!Cell_Color(T11)=[1]!Cell_Color($A$6),3,IF([1]!Cell_Color(T11)=[1]!Cell_Color($A$7),3,IF([1]!Cell_Color(T11)=[1]!Cell_Color($A$8),4,IF([1]!Cell_Color(T11)=[1]!Cell_Color($A$9),4,0)))))))) -> 5648.003109 | AH11: =(17-U11)*POWER(EXP(1),2*(4-IF([1]!Cell_Color(U11)=[1]!Cell_Color($A$4),1,IF([1]!Cell_Color(U11)=[1]!Cell_Color($A$5),2,IF([1]!Cell_Color(U11)=[1]!Cell_Color($A$6),3,IF([1]!Cell_Color(U11)=[1]!Cell_Color($A$7),3,IF([1]!Cell_Color(U11)=[1]!Cell_Color($A$8),4,IF([1]!Cell_Color(U11)=[1]!Cell_Color($A$9),4,0)))))))) -> 5648.003109 | AI11: =(17-V11)*POWER(EXP(1),2*(4-IF([1]!Cell_Color(V11)=[1]!Cell_Color($A$4),1,IF([1]!Cell_Color(V11)=[1]!Cell_Color($A$5),2,IF([1]!Cell_Color(V11)=[1]!Cell_Color($A$6),3,IF([1]!Cell_Color(V11)=[1]!Cell_Color($A$7),3,IF([1]!Cell_Color(V11)=[1]!Cell_Color($A$8),4,IF([1]!Cell_Color(V11)=[1]!Cell_Color($A$9),4,0)))))))) -> 2824.001554 | AJ11: =(17-W11)*POWER(EXP(1),2*(4-IF([1]!Cell_Color(W11)=[1]!Cell_Color($A$4),1,IF([1]!Cell_Color(W11)=[1]!Cell_Color($A$5),2,IF([1]!Cell_Color(W11)=[1]!Cell_Color($A$6),3,IF([1]!Cell_Color(W11)=[1]!Cell_Color($A$7),3,IF([1]!Cell_Color(W11)=[1]!Cell_Color($A$8),4,IF([1]!Cell_Color(W11)=[1]!Cell_Color($A$9),4,0)))))))) -> 3227.430348
C12: 9 | D12: 2 | E12: -7 | F12: 7 | G12: =F12-H12 -> -2 | H12: 9 | I12: Залаэгерсеги | J12: 3 | K12: 1 | L12: 1 | M12: 2 | N12: 1 | O12: 2 | P12: 1 | Q12: 1 | R12: 2 | S12: 4 | T12: 11 | U12: 8 | V12: 11 | W12: 15 | X12: =SUM(AC12:AG12) -> 26626.30037 | Y12: =SUM(AE12:AI12) -> 19768.01088 | Z12: =SUM(AF12:AJ12) -> 14523.43657 | AB12: =(17-O12)*POWER(EXP(1),2*(4-IF([1]!Cell_Color(O12)=[1]!Cell_Color($A$4),1,IF([1]!Cell_Color(O12)=[1]!Cell_Color($A$5),2,IF([1]!Cell_Color(O12)=[1]!Cell_Color($A$6),3,IF([1]!Cell_Color(O12)=[1]!Cell_Color($A$7),3,IF([1]!Cell_Color(O12)=[1]!Cell_Color($A$8),4,IF([1]!Cell_Color(O12)=[1]!Cell_Color($A$9),4,0)))))))) -> 6051.431902 | AC12: =(17-P12)*POWER(EXP(1),2*(4-IF([1]!Cell_Color(P12)=[1]!Cell_Color($A$4),1,IF([1]!Cell_Color(P12)=[1]!Cell_Color($A$5),2,IF([1]!Cell_Color(P12)=[1]!Cell_Color($A$6),3,IF([1]!Cell_Color(P12)=[1]!Cell_Color($A$7),3,IF([1]!Cell_Color(P12)=[1]!Cell_Color($A$8),4,IF([1]!Cell_Color(P12)=[1]!Cell_Color($A$9),4,0)))))))) -> 6454.860696 | AD12: =(17-Q12)*POWER(EXP(1),2*(4-IF([1]!Cell_Color(Q12)=[1]!Cell_Color($A$4),1,IF([1]!Cell_Color(Q12)=[1]!Cell_Color($A$5),2,IF([1]!Cell_Color(Q12)=[1]!Cell_Color($A$6),3,IF([1]!Cell_Color(Q12)=[1]!Cell_Color($A$7),3,IF([1]!Cell_Color(Q12)=[1]!Cell_Color($A$8),4,IF([1]!Cell_Color(Q12)=[1]!Cell_Color($A$9),4,0)))))))) -> 6454.860696 | AE12: =(17-R12)*POWER(EXP(1),2*(4-IF([1]!Cell_Color(R12)=[1]!Cell_Color($A$4),1,IF([1]!Cell_Color(R12)=[1]!Cell_Color($A$5),2,IF([1]!Cell_Color(R12)=[1]!Cell_Color($A$6),3,IF([1]!Cell_Color(R12)=[1]!Cell_Color($A$7),3,IF([1]!Cell_Color(R12)=[1]!Cell_Color($A$8),4,IF([1]!Cell_Color(R12)=[1]!Cell_Color($A$9),4,0)))))))) -> 6051.431902 | AF12: =(17-S12)*POWER(EXP(1),2*(4-IF([1]!Cell_Color(S12)=[1]!Cell_Color($A$4),1,IF([1]!Cell_Color(S12)=[1]!Cell_Color($A$5),2,IF([1]!Cell_Color(S12)=[1]!Cell_Color($A$6),3,IF([1]!Cell_Color(S12)=[1]!Cell_Color($A$7),3,IF([1]!Cell_Color(S12)=[1]!Cell_Color($A$8),4,IF([1]!Cell_Color(S12)=[1]!Cell_Color($A$9),4,0)))))))) -> 5244.574315 | AG12: =(17-T12)*POWER(EXP(1),2*(4-IF([1]!Cell_Color(T12)=[1]!Cell_Color($A$4),1,IF([1]!Cell_Color(T12)=[1]!Cell_Color($A$5),2,IF([1]!Cell_Color(T12)=[1]!Cell_Color($A$6),3,IF([1]!Cell_Color(T12)=[1]!Cell_Color($A$7),3,IF([1]!Cell_Color(T12)=[1]!Cell_Color($A$8),4,IF([1]!Cell_Color(T12)=[1]!Cell_Color($A$9),4,0)))))))) -> 2420.572761 | AH12: =(17-U12)*POWER(EXP(1),2*(4-IF([1]!Cell_Color(U12)=[1]!Cell_Color($A$4),1,IF([1]!Cell_Color(U12)=[1]!Cell_Color($A$5),2,IF([1]!Cell_Color(U12)=[1]!Cell_Color($A$6),3,IF([1]!Cell_Color(U12)=[1]!Cell_Color($A$7),3,IF([1]!Cell_Color(U12)=[1]!Cell_Color($A$8),4,IF([1]!Cell_Color(U12)=[1]!Cell_Color($A$9),4,0)))))))) -> 3630.859141 | AI12: =(17-V12)*POWER(EXP(1),2*(4-IF([1]!Cell_Color(V12)=[1]!Cell_Color($A$4),1,IF([1]!Cell_Color(V12)=[1]!Cell_Color($A$5),2,IF([1]!Cell_Color(V12)=[1]!Cell_Color($A$6),3,IF([1]!Cell_Color(V12)=[1]!Cell_Color($A$7),3,IF([1]!Cell_Color(V12)=[1]!Cell_Color($A$8),4,IF([1]!Cell_Color(V12)=[1]!Cell_Color($A$9),4,0)))))))) -> 2420.572761 | AJ12: =(17-W12)*POWER(EXP(1),2*(4-IF([1]!Cell_Color(W12)=[1]!Cell_Color($A$4),1,IF([1]!Cell_Color(W12)=[1]!Cell_Color($A$5),2,IF([1]!Cell_Color(W12)=[1]!Cell_Color($A$6),3,IF([1]!Cell_Color(W12)=[1]!Cell_Color($A$7),3,IF([1]!Cell_Color(W12)=[1]!Cell_Color($A$8),4,IF([1]!Cell_Color(W12)=[1]!Cell_Color($A$9),4,0)))))))) -> 806.857587
C13: 10 | D13: 21 | E13: 11 | F13: 11 | G13: =F13-H13 -> 1 | H13: 10 | I13: Балатонлелль | J13: 2 | K13: 14 | L13: 11 | M13: 9 | N13: 6 | O13: 4 | P13: 4 | Q13: 4 | R13: 14 | S13: 4 | T13: 3 | U13: 9 | V13: 8 | W13: 5 | X13: =SUM(AC13:AG13) -> 4103.988332 | Y13: =SUM(AE13:AI13) -> 9542.725921 | Z13: =SUM(AF13:AJ13) -> 13173.58506 | AB13: =(17-O13)*POWER(EXP(1),2*(4-IF([1]!Cell_Color(O13)=[1]!Cell_Color($A$4),1,IF([1]!Cell_Color(O13)=[1]!Cell_Color($A$5),2,IF([1]!Cell_Color(O13)=[1]!Cell_Color($A$6),3,IF([1]!Cell_Color(O13)=[1]!Cell_Color($A$7),3,IF([1]!Cell_Color(O13)=[1]!Cell_Color($A$8),4,IF([1]!Cell_Color(O13)=[1]!Cell_Color($A$9),4,0)))))))) -> 709.7759504 | AC13: =(17-P13)*POWER(EXP(1),2*(4-IF([1]!Cell_Color(P13)=[1]!Cell_Color($A$4),1,IF([1]!Cell_Color(P13)=[1]!Cell_Color($A$5),2,IF([1]!Cell_Color(P13)=[1]!Cell_Color($A$6),3,IF([1]!Cell_Color(P13)=[1]!Cell_Color($A$7),3,IF([1]!Cell_Color(P13)=[1]!Cell_Color($A$8),4,IF([1]!Cell_Color(P13)=[1]!Cell_Color($A$9),4,0)))))))) -> 709.7759504 | AD13: =(17-Q13)*POWER(EXP(1),2*(4-IF([1]!Cell_Color(Q13)=[1]!Cell_Color($A$4),1,IF([1]!Cell_Color(Q13)=[1]!Cell_Color($A$5),2,IF([1]!Cell_Color(Q13)=[1]!Cell_Color($A$6),3,IF([1]!Cell_Color(Q13)=[1]!Cell_Color($A$7),3,IF([1]!Cell_Color(Q13)=[1]!Cell_Color($A$8),4,IF([1]!Cell_Color(Q13)=[1]!Cell_Color($A$9),4,0)))))))) -> 709.7759504 | AE13: =(17-R13)*POWER(EXP(1),2*(4-IF([1]!Cell_Color(R13)=[1]!Cell_Color($A$4),1,IF([1]!Cell_Color(R13)=[1]!Cell_Color($A$5),2,IF([1]!Cell_Color(R13)=[1]!Cell_Color($A$6),3,IF([1]!Cell_Color(R13)=[1]!Cell_Color($A$7),3,IF([1]!Cell_Color(R13)=[1]!Cell_Color($A$8),4,IF([1]!Cell_Color(R13)=[1]!Cell_Color($A$9),4,0)))))))) -> 1210.28638 | AF13: =(17-S13)*POWER(EXP(1),2*(4-IF([1]!Cell_Color(S13)=[1]!Cell_Color($A$4),1,IF([1]!Cell_Color(S13)=[1]!Cell_Color($A$5),2,IF([1]!Cell_Color(S13)=[1]!Cell_Color($A$6),3,IF([1]!Cell_Color(S13)=[1]!Cell_Color($A$7),3,IF([1]!Cell_Color(S13)=[1]!Cell_Color($A$8),4,IF([1]!Cell_Color(S13)=[1]!Cell_Color($A$9),4,0)))))))) -> 709.7759504 | AG13: =(17-T13)*POWER(EXP(1),2*(4-IF([1]!Cell_Color(T13)=[1]!Cell_Color($A$4),1,IF([1]!Cell_Color(T13)=[1]!Cell_Color($A$5),2,IF([1]!Cell_Color(T13)=[1]!Cell_Color($A$6),3,IF([1]!Cell_Color(T13)=[1]!Cell_Color($A$7),3,IF([1]!Cell_Color(T13)=[1]!Cell_Color($A$8),4,IF([1]!Cell_Color(T13)=[1]!Cell_Color($A$9),4,0)))))))) -> 764.3741005 | AH13: =(17-U13)*POWER(EXP(1),2*(4-IF([1]!Cell_Color(U13)=[1]!Cell_Color($A$4),1,IF([1]!Cell_Color(U13)=[1]!Cell_Color($A$5),2,IF([1]!Cell_Color(U13)=[1]!Cell_Color($A$6),3,IF([1]!Cell_Color(U13)=[1]!Cell_Color($A$7),3,IF([1]!Cell_Color(U13)=[1]!Cell_Color($A$8),4,IF([1]!Cell_Color(U13)=[1]!Cell_Color($A$9),4,0)))))))) -> 3227.430348 | AI13: =(17-V13)*POWER(EXP(1),2*(4-IF([1]!Cell_Color(V13)=[1]!Cell_Color($A$4),1,IF([1]!Cell_Color(V13)=[1]!Cell_Color($A$5),2,IF([1]!Cell_Color(V13)=[1]!Cell_Color($A$6),3,IF([1]!Cell_Color(V13)=[1]!Cell_Color($A$7),3,IF([1]!Cell_Color(V13)=[1]!Cell_Color($A$8),4,IF([1]!Cell_Color(V13)=[1]!Cell_Color($A$9),4,0)))))))) -> 3630.859141 | AJ13: =(17-W13)*POWER(EXP(1),2*(4-IF([1]!Cell_Color(W13)=[1]!Cell_Color($A$4),1,IF([1]!Cell_Color(W13)=[1]!Cell_Color($A$5),2,IF([1]!Cell_Color(W13)=[1]!Cell_Color($A$6),3,IF([1]!Cell_Color(W13)=[1]!Cell_Color($A$7),3,IF([1]!Cell_Color(W13)=[1]!Cell_Color($A$8),4,IF([1]!Cell_Color(W13)=[1]!Cell_Color($A$9),4,0)))))))) -> 4841.145522
C14: 11 | D14: 25 | E14: 14 | F14: 21 | G14: =F14-H14 -> 10 | H14: 11 | I14: Сегед | J14: 3 | K14: 2 | L14: 3 | M14: 14 | N14: 5 | O14: 3 | P14: 5 | Q14: 1 | R14: 6 | S14: 6 | T14: 2 | U14: 13 | V14: 3 | W14: 8 | X14: =SUM(AC14:AG14) -> 2227.025122 | Y14: =SUM(AE14:AI14) -> 4398.220826 | Z14: =SUM(AF14:AJ14) -> 7428.500317 | AB14: =(17-O14)*POWER(EXP(1),2*(4-IF([1]!Cell_Color(O14)=[1]!Cell_Color($A$4),1,IF([1]!Cell_Color(O14)=[1]!Cell_Color($A$5),2,IF([1]!Cell_Color(O14)=[1]!Cell_Color($A$6),3,IF([1]!Cell_Color(O14)=[1]!Cell_Color($A$7),3,IF([1]!Cell_Color(O14)=[1]!Cell_Color($A$8),4,IF([1]!Cell_Color(O14)=[1]!Cell_Color($A$9),4,0)))))))) -> 103.4467854 | AC14: =(17-P14)*POWER(EXP(1),2*(4-IF([1]!Cell_Color(P14)=[1]!Cell_Color($A$4),1,IF([1]!Cell_Color(P14)=[1]!Cell_Color($A$5),2,IF([1]!Cell_Color(P14)=[1]!Cell_Color($A$6),3,IF([1]!Cell_Color(P14)=[1]!Cell_Color($A$7),3,IF([1]!Cell_Color(P14)=[1]!Cell_Color($A$8),4,IF([1]!Cell_Color(P14)=[1]!Cell_Color($A$9),4,0)))))))) -> 88.66867319 | AD14: =(17-Q14)*POWER(EXP(1),2*(4-IF([1]!Cell_Color(Q14)=[1]!Cell_Color($A$4),1,IF([1]!Cell_Color(Q14)=[1]!Cell_Color($A$5),2,IF([1]!Cell_Color(Q14)=[1]!Cell_Color($A$6),3,IF([1]!Cell_Color(Q14)=[1]!Cell_Color($A$7),3,IF([1]!Cell_Color(Q14)=[1]!Cell_Color($A$8),4,IF([1]!Cell_Color(Q14)=[1]!Cell_Color($A$9),4,0)))))))) -> 118.2248976 | AE14: =(17-R14)*POWER(EXP(1),2*(4-IF([1]!Cell_Color(R14)=[1]!Cell_Color($A$4),1,IF([1]!Cell_Color(R14)=[1]!Cell_Color($A$5),2,IF([1]!Cell_Color(R14)=[1]!Cell_Color($A$6),3,IF([1]!Cell_Color(R14)=[1]!Cell_Color($A$7),3,IF([1]!Cell_Color(R14)=[1]!Cell_Color($A$8),4,IF([1]!Cell_Color(R14)=[1]!Cell_Color($A$9),4,0)))))))) -> 600.5796504 | AF14: =(17-S14)*POWER(EXP(1),2*(4-IF([1]!Cell_Color(S14)=[1]!Cell_Color($A$4),1,IF([1]!Cell_Color(S14)=[1]!Cell_Color($A$5),2,IF([1]!Cell_Color(S14)=[1]!Cell_Color($A$6),3,IF([1]!Cell_Color(S14)=[1]!Cell_Color($A$7),3,IF([1]!Cell_Color(S14)=[1]!Cell_Color($A$8),4,IF([1]!Cell_Color(S14)=[1]!Cell_Color($A$9),4,0)))))))) -> 600.5796504 | AG14: =(17-T14)*POWER(EXP(1),2*(4-IF([1]!Cell_Color(T14)=[1]!Cell_Color($A$4),1,IF([1]!Cell_Color(T14)=[1]!Cell_Color($A$5),2,IF([1]!Cell_Color(T14)=[1]!Cell_Color($A$6),3,IF([1]!Cell_Color(T14)=[1]!Cell_Color($A$7),3,IF([1]!Cell_Color(T14)=[1]!Cell_Color($A$8),4,IF([1]!Cell_Color(T14)=[1]!Cell_Color($A$9),4,0)))))))) -> 818.9722505 | AH14: =(17-U14)*POWER(EXP(1),2*(4-IF([1]!Cell_Color(U14)=[1]!Cell_Color($A$4),1,IF([1]!Cell_Color(U14)=[1]!Cell_Color($A$5),2,IF([1]!Cell_Color(U14)=[1]!Cell_Color($A$6),3,IF([1]!Cell_Color(U14)=[1]!Cell_Color($A$7),3,IF([1]!Cell_Color(U14)=[1]!Cell_Color($A$8),4,IF([1]!Cell_Color(U14)=[1]!Cell_Color($A$9),4,0)))))))) -> 1613.715174 | AI14: =(17-V14)*POWER(EXP(1),2*(4-IF([1]!Cell_Color(V14)=[1]!Cell_Color($A$4),1,IF([1]!Cell_Color(V14)=[1]!Cell_Color($A$5),2,IF([1]!Cell_Color(V14)=[1]!Cell_Color($A$6),3,IF([1]!Cell_Color(V14)=[1]!Cell_Color($A$7),3,IF([1]!Cell_Color(V14)=[1]!Cell_Color($A$8),4,IF([1]!Cell_Color(V14)=[1]!Cell_Color($A$9),4,0)))))))) -> 764.3741005 | AJ14: =(17-W14)*POWER(EXP(1),2*(4-IF([1]!Cell_Color(W14)=[1]!Cell_Color($A$4),1,IF([1]!Cell_Color(W14)=[1]!Cell_Color($A$5),2,IF([1]!Cell_Color(W14)=[1]!Cell_Color($A$6),3,IF([1]!Cell_Color(W14)=[1]!Cell_Color($A$7),3,IF([1]!Cell_Color(W14)=[1]!Cell_Color($A$8),4,IF([1]!Cell_Color(W14)=[1]!Cell_Color($A$9),4,0)))))))) -> 3630.859141
C15: 12 | D15: 14 | E15: 2 | F15: 12 | H15: 12 | I15: Боли | J15: 14 | K15: 7 | L15: 4 | M15: 3 | N15: 1 | O15: 5 | P15: 3 | Q15: 2 | R15: 12 | S15: 11 | T15: 12 | U15: 14 | V15: 14 | W15: 12 | X15: =SUM(AC15:AG15) -> 8038.207047 | Y15: =SUM(AE15:AI15) -> 8875.433457 | Z15: =SUM(AF15:AJ15) -> 7131.28024 | AB15: =(17-O15)*POWER(EXP(1),2*(4-IF([1]!Cell_Color(O15)=[1]!Cell_Color($A$4),1,IF([1]!Cell_Color(O15)=[1]!Cell_Color($A$5),2,IF([1]!Cell_Color(O15)=[1]!Cell_Color($A$6),3,IF([1]!Cell_Color(O15)=[1]!Cell_Color($A$7),3,IF([1]!Cell_Color(O15)=[1]!Cell_Color($A$8),4,IF([1]!Cell_Color(O15)=[1]!Cell_Color($A$9),4,0)))))))) -> 655.1778004 | AC15: =(17-P15)*POWER(EXP(1),2*(4-IF([1]!Cell_Color(P15)=[1]!Cell_Color($A$4),1,IF([1]!Cell_Color(P15)=[1]!Cell_Color($A$5),2,IF([1]!Cell_Color(P15)=[1]!Cell_Color($A$6),3,IF([1]!Cell_Color(P15)=[1]!Cell_Color($A$7),3,IF([1]!Cell_Color(P15)=[1]!Cell_Color($A$8),4,IF([1]!Cell_Color(P15)=[1]!Cell_Color($A$9),4,0)))))))) -> 764.3741005 | AD15: =(17-Q15)*POWER(EXP(1),2*(4-IF([1]!Cell_Color(Q15)=[1]!Cell_Color($A$4),1,IF([1]!Cell_Color(Q15)=[1]!Cell_Color($A$5),2,IF([1]!Cell_Color(Q15)=[1]!Cell_Color($A$6),3,IF([1]!Cell_Color(Q15)=[1]!Cell_Color($A$7),3,IF([1]!Cell_Color(Q15)=[1]!Cell_Color($A$8),4,IF([1]!Cell_Color(Q15)=[1]!Cell_Color($A$9),4,0)))))))) -> 818.9722505 | AE15: =(17-R15)*POWER(EXP(1),2*(4-IF([1]!Cell_Color(R15)=[1]!Cell_Color($A$4),1,IF([1]!Cell_Color(R15)=[1]!Cell_Color($A$5),2,IF([1]!Cell_Color(R15)=[1]!Cell_Color($A$6),3,IF([1]!Cell_Color(R15)=[1]!Cell_Color($A$7),3,IF([1]!Cell_Color(R15)=[1]!Cell_Color($A$8),4,IF([1]!Cell_Color(R15)=[1]!Cell_Color($A$9),4,0)))))))) -> 2017.143967 | AF15: =(17-S15)*POWER(EXP(1),2*(4-IF([1]!Cell_Color(S15)=[1]!Cell_Color($A$4),1,IF([1]!Cell_Color(S15)=[1]!Cell_Color($A$5),2,IF([1]!Cell_Color(S15)=[1]!Cell_Color($A$6),3,IF([1]!Cell_Color(S15)=[1]!Cell_Color($A$7),3,IF([1]!Cell_Color(S15)=[1]!Cell_Color($A$8),4,IF([1]!Cell_Color(S15)=[1]!Cell_Color($A$9),4,0)))))))) -> 2420.572761 | AG15: =(17-T15)*POWER(EXP(1),2*(4-IF([1]!Cell_Color(T15)=[1]!Cell_Color($A$4),1,IF([1]!Cell_Color(T15)=[1]!Cell_Color($A$5),2,IF([1]!Cell_Color(T15)=[1]!Cell_Color($A$6),3,IF([1]!Cell_Color(T15)=[1]!Cell_Color($A$7),3,IF([1]!Cell_Color(T15)=[1]!Cell_Color($A$8),4,IF([1]!Cell_Color(T15)=[1]!Cell_Color($A$9),4,0)))))))) -> 2017.143967 | AH15: =(17-U15)*POWER(EXP(1),2*(4-IF([1]!Cell_Color(U15)=[1]!Cell_Color($A$4),1,IF([1]!Cell_Color(U15)=[1]!Cell_Color($A$5),2,IF([1]!Cell_Color(U15)=[1]!Cell_Color($A$6),3,IF([1]!Cell_Color(U15)=[1]!Cell_Color($A$7),3,IF([1]!Cell_Color(U15)=[1]!Cell_Color($A$8),4,IF([1]!Cell_Color(U15)=[1]!Cell_Color($A$9),4,0)))))))) -> 1210.28638 | AI15: =(17-V15)*POWER(EXP(1),2*(4-IF([1]!Cell_Color(V15)=[1]!Cell_Color($A$4),1,IF([1]!Cell_Color(V15)=[1]!Cell_Color($A$5),2,IF([1]!Cell_Color(V15)=[1]!Cell_Color($A$6),3,IF([1]!Cell_Color(V15)=[1]!Cell_Color($A$7),3,IF([1]!Cell_Color(V15)=[1]!Cell_Color($A$8),4,IF([1]!Cell_Color(V15)=[1]!Cell_Color($A$9),4,0)))))))) -> 1210.28638 | AJ15: =(17-W15)*POWER(EXP(1),2*(4-IF([1]!Cell_Color(W15)=[1]!Cell_Color($A$4),1,IF([1]!Cell_Color(W15)=[1]!Cell_Color($A$5),2,IF([1]!Cell_Color(W15)=[1]!Cell_Color($A$6),3,IF([1]!Cell_Color(W15)=[1]!Cell_Color($A$7),3,IF([1]!Cell_Color(W15)=[1]!Cell_Color($A$8),4,IF([1]!Cell_Color(W15)=[1]!Cell_Color($A$9),4,0)))))))) -> 272.9907502
C16: 13 | D16: 8 | E16: -5 | F16: 10 | G16: -3 | H16: 13 | I16: Дьери ЭТО | J16: 10 | K16: 6 | L16: 13 | M16: 13 | N16: 7 | O16: 10 | P16: 9 | Q16: 10 | R16: 5 | S16: 9 | T16: 13 | U16: 3 | V16: 7 | W16: 5 | X16: =SUM(AC16:AG16) -> 15733.72295 | Y16: =SUM(AE16:AI16) -> 10992.64664 | Z16: =SUM(AF16:AJ16) -> 6806.678923 | AB16: =(17-O16)*POWER(EXP(1),2*(4-IF([1]!Cell_Color(O16)=[1]!Cell_Color($A$4),1,IF([1]!Cell_Color(O16)=[1]!Cell_Color($A$5),2,IF([1]!Cell_Color(O16)=[1]!Cell_Color($A$6),3,IF([1]!Cell_Color(O16)=[1]!Cell_Color($A$7),3,IF([1]!Cell_Color(O16)=[1]!Cell_Color($A$8),4,IF([1]!Cell_Color(O16)=[1]!Cell_Color($A$9),4,0)))))))) -> 2824.001554 | AC16: =(17-P16)*POWER(EXP(1),2*(4-IF([1]!Cell_Color(P16)=[1]!Cell_Color($A$4),1,IF([1]!Cell_Color(P16)=[1]!Cell_Color($A$5),2,IF([1]!Cell_Color(P16)=[1]!Cell_Color($A$6),3,IF([1]!Cell_Color(P16)=[1]!Cell_Color($A$7),3,IF([1]!Cell_Color(P16)=[1]!Cell_Color($A$8),4,IF([1]!Cell_Color(P16)=[1]!Cell_Color($A$9),4,0)))))))) -> 3227.430348 | AD16: =(17-Q16)*POWER(EXP(1),2*(4-IF([1]!Cell_Color(Q16)=[1]!Cell_Color($A$4),1,IF([1]!Cell_Color(Q16)=[1]!Cell_Color($A$5),2,IF([1]!Cell_Color(Q16)=[1]!Cell_Color($A$6),3,IF([1]!Cell_Color(Q16)=[1]!Cell_Color($A$7),3,IF([1]!Cell_Color(Q16)=[1]!Cell_Color($A$8),4,IF([1]!Cell_Color(Q16)=[1]!Cell_Color($A$9),4,0)))))))) -> 2824.001554 | AE16: =(17-R16)*POWER(EXP(1),2*(4-IF([1]!Cell_Color(R16)=[1]!Cell_Color($A$4),1,IF([1]!Cell_Color(R16)=[1]!Cell_Color($A$5),2,IF([1]!Cell_Color(R16)=[1]!Cell_Color($A$6),3,IF([1]!Cell_Color(R16)=[1]!Cell_Color($A$7),3,IF([1]!Cell_Color(R16)=[1]!Cell_Color($A$8),4,IF([1]!Cell_Color(R16)=[1]!Cell_Color($A$9),4,0)))))))) -> 4841.145522 | AF16: =(17-S16)*POWER(EXP(1),2*(4-IF([1]!Cell_Color(S16)=[1]!Cell_Color($A$4),1,IF([1]!Cell_Color(S16)=[1]!Cell_Color($A$5),2,IF([1]!Cell_Color(S16)=[1]!Cell_Color($A$6),3,IF([1]!Cell_Color(S16)=[1]!Cell_Color($A$7),3,IF([1]!Cell_Color(S16)=[1]!Cell_Color($A$8),4,IF([1]!Cell_Color(S16)=[1]!Cell_Color($A$9),4,0)))))))) -> 3227.430348 | AG16: =(17-T16)*POWER(EXP(1),2*(4-IF([1]!Cell_Color(T16)=[1]!Cell_Color($A$4),1,IF([1]!Cell_Color(T16)=[1]!Cell_Color($A$5),2,IF([1]!Cell_Color(T16)=[1]!Cell_Color($A$6),3,IF([1]!Cell_Color(T16)=[1]!Cell_Color($A$7),3,IF([1]!Cell_Color(T16)=[1]!Cell_Color($A$8),4,IF([1]!Cell_Color(T16)=[1]!Cell_Color($A$9),4,0)))))))) -> 1613.715174 | AH16: =(17-U16)*POWER(EXP(1),2*(4-IF([1]!Cell_Color(U16)=[1]!Cell_Color($A$4),1,IF([1]!Cell_Color(U16)=[1]!Cell_Color($A$5),2,IF([1]!Cell_Color(U16)=[1]!Cell_Color($A$6),3,IF([1]!Cell_Color(U16)=[1]!Cell_Color($A$7),3,IF([1]!Cell_Color(U16)=[1]!Cell_Color($A$8),4,IF([1]!Cell_Color(U16)=[1]!Cell_Color($A$9),4,0)))))))) -> 764.3741005 | AI16: =(17-V16)*POWER(EXP(1),2*(4-IF([1]!Cell_Color(V16)=[1]!Cell_Color($A$4),1,IF([1]!Cell_Color(V16)=[1]!Cell_Color($A$5),2,IF([1]!Cell_Color(V16)=[1]!Cell_Color($A$6),3,IF([1]!Cell_Color(V16)=[1]!Cell_Color($A$7),3,IF([1]!Cell_Color(V16)=[1]!Cell_Color($A$8),4,IF([1]!Cell_Color(V16)=[1]!Cell_Color($A$9),4,0)))))))) -> 545.9815003 | AJ16: =(17-W16)*POWER(EXP(1),2*(4-IF([1]!Cell_Color(W16)=[1]!Cell_Color($A$4),1,IF([1]!Cell_Color(W16)=[1]!Cell_Color($A$5),2,IF([1]!Cell_Color(W16)=[1]!Cell_Color($A$6),3,IF([1]!Cell_Color(W16)=[1]!Cell_Color($A$7),3,IF([1]!Cell_Color(W16)=[1]!Cell_Color($A$8),4,IF([1]!Cell_Color(W16)=[1]!Cell_Color($A$9),4,0)))))))) -> 655.1778004
C17: 14 | D17: 16 | E17: 2 | F17: 13 | G17: -1 | H17: 14 | I17: МАВ | J17: 4 | K17: 6 | L17: 9 | M17: 8 | N17: 13 | O17: 12 | P17: 2 | Q17: 14 | R17: 15 | S17: 1 | T17: 9 | U17: 12 | V17: 16 | W17: 14 | X17: =SUM(AC17:AG17) -> 6937.116966 | Y17: =SUM(AE17:AI17) -> 7328.431096 | Z17: =SUM(AF17:AJ17) -> 6685.36796 | AB17: =(17-O17)*POWER(EXP(1),2*(4-IF([1]!Cell_Color(O17)=[1]!Cell_Color($A$4),1,IF([1]!Cell_Color(O17)=[1]!Cell_Color($A$5),2,IF([1]!Cell_Color(O17)=[1]!Cell_Color($A$6),3,IF([1]!Cell_Color(O17)=[1]!Cell_Color($A$7),3,IF([1]!Cell_Color(O17)=[1]!Cell_Color($A$8),4,IF([1]!Cell_Color(O17)=[1]!Cell_Color($A$9),4,0)))))))) -> 272.9907502 | AC17: =(17-P17)*POWER(EXP(1),2*(4-IF([1]!Cell_Color(P17)=[1]!Cell_Color($A$4),1,IF([1]!Cell_Color(P17)=[1]!Cell_Color($A$5),2,IF([1]!Cell_Color(P17)=[1]!Cell_Color($A$6),3,IF([1]!Cell_Color(P17)=[1]!Cell_Color($A$7),3,IF([1]!Cell_Color(P17)=[1]!Cell_Color($A$8),4,IF([1]!Cell_Color(P17)=[1]!Cell_Color($A$9),4,0)))))))) -> 818.9722505 | AD17: =(17-Q17)*POWER(EXP(1),2*(4-IF([1]!Cell_Color(Q17)=[1]!Cell_Color($A$4),1,IF([1]!Cell_Color(Q17)=[1]!Cell_Color($A$5),2,IF([1]!Cell_Color(Q17)=[1]!Cell_Color($A$6),3,IF([1]!Cell_Color(Q17)=[1]!Cell_Color($A$7),3,IF([1]!Cell_Color(Q17)=[1]!Cell_Color($A$8),4,IF([1]!Cell_Color(Q17)=[1]!Cell_Color($A$9),4,0)))))))) -> 1210.28638 | AE17: =(17-R17)*POWER(EXP(1),2*(4-IF([1]!Cell_Color(R17)=[1]!Cell_Color($A$4),1,IF([1]!Cell_Color(R17)=[1]!Cell_Color($A$5),2,IF([1]!Cell_Color(R17)=[1]!Cell_Color($A$6),3,IF([1]!Cell_Color(R17)=[1]!Cell_Color($A$7),3,IF([1]!Cell_Color(R17)=[1]!Cell_Color($A$8),4,IF([1]!Cell_Color(R17)=[1]!Cell_Color($A$9),4,0)))))))) -> 806.857587 | AF17: =(17-S17)*POWER(EXP(1),2*(4-IF([1]!Cell_Color(S17)=[1]!Cell_Color($A$4),1,IF([1]!Cell_Color(S17)=[1]!Cell_Color($A$5),2,IF([1]!Cell_Color(S17)=[1]!Cell_Color($A$6),3,IF([1]!Cell_Color(S17)=[1]!Cell_Color($A$7),3,IF([1]!Cell_Color(S17)=[1]!Cell_Color($A$8),4,IF([1]!Cell_Color(S17)=[1]!Cell_Color($A$9),4,0)))))))) -> 873.5704005 | AG17: =(17-T17)*POWER(EXP(1),2*(4-IF([1]!Cell_Color(T17)=[1]!Cell_Color($A$4),1,IF([1]!Cell_Color(T17)=[1]!Cell_Color($A$5),2,IF([1]!Cell_Color(T17)=[1]!Cell_Color($A$6),3,IF([1]!Cell_Color(T17)=[1]!Cell_Color($A$7),3,IF([1]!Cell_Color(T17)=[1]!Cell_Color($A$8),4,IF([1]!Cell_Color(T17)=[1]!Cell_Color($A$9),4,0)))))))) -> 3227.430348 | AH17: =(17-U17)*POWER(EXP(1),2*(4-IF([1]!Cell_Color(U17)=[1]!Cell_Color($A$4),1,IF([1]!Cell_Color(U17)=[1]!Cell_Color($A$5),2,IF([1]!Cell_Color(U17)=[1]!Cell_Color($A$6),3,IF([1]!Cell_Color(U17)=[1]!Cell_Color($A$7),3,IF([1]!Cell_Color(U17)=[1]!Cell_Color($A$8),4,IF([1]!Cell_Color(U17)=[1]!Cell_Color($A$9),4,0)))))))) -> 2017.143967 | AI17: =(17-V17)*POWER(EXP(1),2*(4-IF([1]!Cell_Color(V17)=[1]!Cell_Color($A$4),1,IF([1]!Cell_Color(V17)=[1]!Cell_Color($A$5),2,IF([1]!Cell_Color(V17)=[1]!Cell_Color($A$6),3,IF([1]!Cell_Color(V17)=[1]!Cell_Color($A$7),3,IF([1]!Cell_Color(V17)=[1]!Cell_Color($A$8),4,IF([1]!Cell_Color(V17)=[1]!Cell_Color($A$9),4,0)))))))) -> 403.4287935 | AJ17: =(17-W17)*POWER(EXP(1),2*(4-IF([1]!Cell_Color(W17)=[1]!Cell_Color($A$4),1,IF([1]!Cell_Color(W17)=[1]!Cell_Color($A$5),2,IF([1]!Cell_Color(W17)=[1]!Cell_Color($A$6),3,IF([1]!Cell_Color(W17)=[1]!Cell_Color($A$7),3,IF([1]!Cell_Color(W17)=[1]!Cell_Color($A$8),4,IF([1]!Cell_Color(W17)=[1]!Cell_Color($A$9),4,0)))))))) -> 163.7944501
C18: 15 | D18: 26 | E18: 11 | F18: 18 | G18: 3 | H18: 15 | I18: Мошонмадьяровари ТЭ | J18: 16 | K18: 3 | L18: 14 | M18: 6 | N18: 11 | O18: 11 | P18: 5 | Q18: 15 | R18: 1 | S18: 11 | T18: 6 | U18: 1 | V18: 9 | W18: 13 | X18: =SUM(AC18:AG18) -> 1810.767549 | Y18: =SUM(AE18:AI18) -> 5147.394197 | Z18: =SUM(AF18:AJ18) -> 6642.884473 | AB18: =(17-O18)*POWER(EXP(1),2*(4-IF([1]!Cell_Color(O18)=[1]!Cell_Color($A$4),1,IF([1]!Cell_Color(O18)=[1]!Cell_Color($A$5),2,IF([1]!Cell_Color(O18)=[1]!Cell_Color($A$6),3,IF([1]!Cell_Color(O18)=[1]!Cell_Color($A$7),3,IF([1]!Cell_Color(O18)=[1]!Cell_Color($A$8),4,IF([1]!Cell_Color(O18)=[1]!Cell_Color($A$9),4,0)))))))) -> 327.5889002 | AC18: =(17-P18)*POWER(EXP(1),2*(4-IF([1]!Cell_Color(P18)=[1]!Cell_Color($A$4),1,IF([1]!Cell_Color(P18)=[1]!Cell_Color($A$5),2,IF([1]!Cell_Color(P18)=[1]!Cell_Color($A$6),3,IF([1]!Cell_Color(P18)=[1]!Cell_Color($A$7),3,IF([1]!Cell_Color(P18)=[1]!Cell_Color($A$8),4,IF([1]!Cell_Color(P18)=[1]!Cell_Color($A$9),4,0)))))))) -> 655.1778004 | AD18: =(17-Q18)*POWER(EXP(1),2*(4-IF([1]!Cell_Color(Q18)=[1]!Cell_Color($A$4),1,IF([1]!Cell_Color(Q18)=[1]!Cell_Color($A$5),2,IF([1]!Cell_Color(Q18)=[1]!Cell_Color($A$6),3,IF([1]!Cell_Color(Q18)=[1]!Cell_Color($A$7),3,IF([1]!Cell_Color(Q18)=[1]!Cell_Color($A$8),4,IF([1]!Cell_Color(Q18)=[1]!Cell_Color($A$9),4,0)))))))) -> 109.1963001 | AE18: =(17-R18)*POWER(EXP(1),2*(4-IF([1]!Cell_Color(R18)=[1]!Cell_Color($A$4),1,IF([1]!Cell_Color(R18)=[1]!Cell_Color($A$5),2,IF([1]!Cell_Color(R18)=[1]!Cell_Color($A$6),3,IF([1]!Cell_Color(R18)=[1]!Cell_Color($A$7),3,IF([1]!Cell_Color(R18)=[1]!Cell_Color($A$8),4,IF([1]!Cell_Color(R18)=[1]!Cell_Color($A$9),4,0)))))))) -> 118.2248976 | AF18: =(17-S18)*POWER(EXP(1),2*(4-IF([1]!Cell_Color(S18)=[1]!Cell_Color($A$4),1,IF([1]!Cell_Color(S18)=[1]!Cell_Color($A$5),2,IF([1]!Cell_Color(S18)=[1]!Cell_Color($A$6),3,IF([1]!Cell_Color(S18)=[1]!Cell_Color($A$7),3,IF([1]!Cell_Color(S18)=[1]!Cell_Color($A$8),4,IF([1]!Cell_Color(S18)=[1]!Cell_Color($A$9),4,0)))))))) -> 327.5889002 | AG18: =(17-T18)*POWER(EXP(1),2*(4-IF([1]!Cell_Color(T18)=[1]!Cell_Color($A$4),1,IF([1]!Cell_Color(T18)=[1]!Cell_Color($A$5),2,IF([1]!Cell_Color(T18)=[1]!Cell_Color($A$6),3,IF([1]!Cell_Color(T18)=[1]!Cell_Color($A$7),3,IF([1]!Cell_Color(T18)=[1]!Cell_Color($A$8),4,IF([1]!Cell_Color(T18)=[1]!Cell_Color($A$9),4,0)))))))) -> 600.5796504 | AH18: =(17-U18)*POWER(EXP(1),2*(4-IF([1]!Cell_Color(U18)=[1]!Cell_Color($A$4),1,IF([1]!Cell_Color(U18)=[1]!Cell_Color($A$5),2,IF([1]!Cell_Color(U18)=[1]!Cell_Color($A$6),3,IF([1]!Cell_Color(U18)=[1]!Cell_Color($A$7),3,IF([1]!Cell_Color(U18)=[1]!Cell_Color($A$8),4,IF([1]!Cell_Color(U18)=[1]!Cell_Color($A$9),4,0)))))))) -> 873.5704005 | AI18: =(17-V18)*POWER(EXP(1),2*(4-IF([1]!Cell_Color(V18)=[1]!Cell_Color($A$4),1,IF([1]!Cell_Color(V18)=[1]!Cell_Color($A$5),2,IF([1]!Cell_Color(V18)=[1]!Cell_Color($A$6),3,IF([1]!Cell_Color(V18)=[1]!Cell_Color($A$7),3,IF([1]!Cell_Color(V18)=[1]!Cell_Color($A$8),4,IF([1]!Cell_Color(V18)=[1]!Cell_Color($A$9),4,0)))))))) -> 3227.430348 | AJ18: =(17-W18)*POWER(EXP(1),2*(4-IF([1]!Cell_Color(W18)=[1]!Cell_Color($A$4),1,IF([1]!Cell_Color(W18)=[1]!Cell_Color($A$5),2,IF([1]!Cell_Color(W18)=[1]!Cell_Color($A$6),3,IF([1]!Cell_Color(W18)=[1]!Cell_Color($A$7),3,IF([1]!Cell_Color(W18)=[1]!Cell_Color($A$8),4,IF([1]!Cell_Color(W18)=[1]!Cell_Color($A$9),4,0)))))))) -> 1613.715174
C19: 16 | D19: 18 | E19: 2 | F19: 17 | G19: 1 | H19: 16 | I19: ФК Айка | J19: 9 | K19: 7 | L19: 1 | M19: 14 | N19: 15 | O19: 10 | P19: 7 | Q19: 8 | R19: 10 | S19: 2 | T19: 8 | U19: 16 | V19: 14 | W19: 3 | X19: =SUM(AC19:AG19) -> 5869.383293 | Y19: =SUM(AE19:AI19) -> 5399.241686 | Z19: =SUM(AF19:AJ19) -> 5120.501421 | AB19: =(17-O19)*POWER(EXP(1),2*(4-IF([1]!Cell_Color(O19)=[1]!Cell_Color($A$4),1,IF([1]!Cell_Color(O19)=[1]!Cell_Color($A$5),2,IF([1]!Cell_Color(O19)=[1]!Cell_Color($A$6),3,IF([1]!Cell_Color(O19)=[1]!Cell_Color($A$7),3,IF([1]!Cell_Color(O19)=[1]!Cell_Color($A$8),4,IF([1]!Cell_Color(O19)=[1]!Cell_Color($A$9),4,0)))))))) -> 382.1870502 | AC19: =(17-P19)*POWER(EXP(1),2*(4-IF([1]!Cell_Color(P19)=[1]!Cell_Color($A$4),1,IF([1]!Cell_Color(P19)=[1]!Cell_Color($A$5),2,IF([1]!Cell_Color(P19)=[1]!Cell_Color($A$6),3,IF([1]!Cell_Color(P19)=[1]!Cell_Color($A$7),3,IF([1]!Cell_Color(P19)=[1]!Cell_Color($A$8),4,IF([1]!Cell_Color(P19)=[1]!Cell_Color($A$9),4,0)))))))) -> 545.9815003 | AD19: =(17-Q19)*POWER(EXP(1),2*(4-IF([1]!Cell_Color(Q19)=[1]!Cell_Color($A$4),1,IF([1]!Cell_Color(Q19)=[1]!Cell_Color($A$5),2,IF([1]!Cell_Color(Q19)=[1]!Cell_Color($A$6),3,IF([1]!Cell_Color(Q19)=[1]!Cell_Color($A$7),3,IF([1]!Cell_Color(Q19)=[1]!Cell_Color($A$8),4,IF([1]!Cell_Color(Q19)=[1]!Cell_Color($A$9),4,0)))))))) -> 491.3833503 | AE19: =(17-R19)*POWER(EXP(1),2*(4-IF([1]!Cell_Color(R19)=[1]!Cell_Color($A$4),1,IF([1]!Cell_Color(R19)=[1]!Cell_Color($A$5),2,IF([1]!Cell_Color(R19)=[1]!Cell_Color($A$6),3,IF([1]!Cell_Color(R19)=[1]!Cell_Color($A$7),3,IF([1]!Cell_Color(R19)=[1]!Cell_Color($A$8),4,IF([1]!Cell_Color(R19)=[1]!Cell_Color($A$9),4,0)))))))) -> 382.1870502 | AF19: =(17-S19)*POWER(EXP(1),2*(4-IF([1]!Cell_Color(S19)=[1]!Cell_Color($A$4),1,IF([1]!Cell_Color(S19)=[1]!Cell_Color($A$5),2,IF([1]!Cell_Color(S19)=[1]!Cell_Color($A$6),3,IF([1]!Cell_Color(S19)=[1]!Cell_Color($A$7),3,IF([1]!Cell_Color(S19)=[1]!Cell_Color($A$8),4,IF([1]!Cell_Color(S19)=[1]!Cell_Color($A$9),4,0)))))))) -> 818.9722505 | AG19: =(17-T19)*POWER(EXP(1),2*(4-IF([1]!Cell_Color(T19)=[1]!Cell_Color($A$4),1,IF([1]!Cell_Color(T19)=[1]!Cell_Color($A$5),2,IF([1]!Cell_Color(T19)=[1]!Cell_Color($A$6),3,IF([1]!Cell_Color(T19)=[1]!Cell_Color($A$7),3,IF([1]!Cell_Color(T19)=[1]!Cell_Color($A$8),4,IF([1]!Cell_Color(T19)=[1]!Cell_Color($A$9),4,0)))))))) -> 3630.859141 | AH19: =(17-U19)*POWER(EXP(1),2*(4-IF([1]!Cell_Color(U19)=[1]!Cell_Color($A$4),1,IF([1]!Cell_Color(U19)=[1]!Cell_Color($A$5),2,IF([1]!Cell_Color(U19)=[1]!Cell_Color($A$6),3,IF([1]!Cell_Color(U19)=[1]!Cell_Color($A$7),3,IF([1]!Cell_Color(U19)=[1]!Cell_Color($A$8),4,IF([1]!Cell_Color(U19)=[1]!Cell_Color($A$9),4,0)))))))) -> 403.4287935 | AI19: =(17-V19)*POWER(EXP(1),2*(4-IF([1]!Cell_Color(V19)=[1]!Cell_Color($A$4),1,IF([1]!Cell_Color(V19)=[1]!Cell_Color($A$5),2,IF([1]!Cell_Color(V19)=[1]!Cell_Color($A$6),3,IF([1]!Cell_Color(V19)=[1]!Cell_Color($A$7),3,IF([1]!Cell_Color(V19)=[1]!Cell_Color($A$8),4,IF([1]!Cell_Color(V19)=[1]!Cell_Color($A$9),4,0)))))))) -> 163.7944501 | AJ19: =(17-W19)*POWER(EXP(1),2*(4-IF([1]!Cell_Color(W19)=[1]!Cell_Color($A$4),1,IF([1]!Cell_Color(W19)=[1]!Cell_Color($A$5),2,IF([1]!Cell_Color(W19)=[1]!Cell_Color($A$6),3,IF([1]!Cell_Color(W19)=[1]!Cell_Color($A$7),3,IF([1]!Cell_Color(W19)=[1]!Cell_Color($A$8),4,IF([1]!Cell_Color(W19)=[1]!Cell_Color($A$9),4,0)))))))) -> 103.4467854
C20: 17 | D20: 17 | F20: 14 | G20: -3 | H20: 17 | I20: Ломбард | J20: 6 | K20: 4 | L20: 15 | M20: 13 | N20: 12 | O20: 15 | P20: 2 | Q20: 1 | R20: 9 | S20: 14 | T20: 1 | U20: 15 | V20: 2 | W20: 14 | X20: =SUM(AC20:AG20) -> 6295.693371 | Y20: =SUM(AE20:AI20) -> 6937.116966 | Z20: =SUM(AF20:AJ20) -> 4919.972999 | AB20: =(17-O20)*POWER(EXP(1),2*(4-IF([1]!Cell_Color(O20)=[1]!Cell_Color($A$4),1,IF([1]!Cell_Color(O20)=[1]!Cell_Color($A$5),2,IF([1]!Cell_Color(O20)=[1]!Cell_Color($A$6),3,IF([1]!Cell_Color(O20)=[1]!Cell_Color($A$7),3,IF([1]!Cell_Color(O20)=[1]!Cell_Color($A$8),4,IF([1]!Cell_Color(O20)=[1]!Cell_Color($A$9),4,0)))))))) -> 109.1963001 | AC20: =(17-P20)*POWER(EXP(1),2*(4-IF([1]!Cell_Color(P20)=[1]!Cell_Color($A$4),1,IF([1]!Cell_Color(P20)=[1]!Cell_Color($A$5),2,IF([1]!Cell_Color(P20)=[1]!Cell_Color($A$6),3,IF([1]!Cell_Color(P20)=[1]!Cell_Color($A$7),3,IF([1]!Cell_Color(P20)=[1]!Cell_Color($A$8),4,IF([1]!Cell_Color(P20)=[1]!Cell_Color($A$9),4,0)))))))) -> 110.8358415 | AD20: =(17-Q20)*POWER(EXP(1),2*(4-IF([1]!Cell_Color(Q20)=[1]!Cell_Color($A$4),1,IF([1]!Cell_Color(Q20)=[1]!Cell_Color($A$5),2,IF([1]!Cell_Color(Q20)=[1]!Cell_Color($A$6),3,IF([1]!Cell_Color(Q20)=[1]!Cell_Color($A$7),3,IF([1]!Cell_Color(Q20)=[1]!Cell_Color($A$8),4,IF([1]!Cell_Color(Q20)=[1]!Cell_Color($A$9),4,0)))))))) -> 873.5704005 | AE20: =(17-R20)*POWER(EXP(1),2*(4-IF([1]!Cell_Color(R20)=[1]!Cell_Color($A$4),1,IF([1]!Cell_Color(R20)=[1]!Cell_Color($A$5),2,IF([1]!Cell_Color(R20)=[1]!Cell_Color($A$6),3,IF([1]!Cell_Color(R20)=[1]!Cell_Color($A$7),3,IF([1]!Cell_Color(R20)=[1]!Cell_Color($A$8),4,IF([1]!Cell_Color(R20)=[1]!Cell_Color($A$9),4,0)))))))) -> 3227.430348 | AF20: =(17-S20)*POWER(EXP(1),2*(4-IF([1]!Cell_Color(S20)=[1]!Cell_Color($A$4),1,IF([1]!Cell_Color(S20)=[1]!Cell_Color($A$5),2,IF([1]!Cell_Color(S20)=[1]!Cell_Color($A$6),3,IF([1]!Cell_Color(S20)=[1]!Cell_Color($A$7),3,IF([1]!Cell_Color(S20)=[1]!Cell_Color($A$8),4,IF([1]!Cell_Color(S20)=[1]!Cell_Color($A$9),4,0)))))))) -> 1210.28638 | AG20: =(17-T20)*POWER(EXP(1),2*(4-IF([1]!Cell_Color(T20)=[1]!Cell_Color($A$4),1,IF([1]!Cell_Color(T20)=[1]!Cell_Color($A$5),2,IF([1]!Cell_Color(T20)=[1]!Cell_Color($A$6),3,IF([1]!Cell_Color(T20)=[1]!Cell_Color($A$7),3,IF([1]!Cell_Color(T20)=[1]!Cell_Color($A$8),4,IF([1]!Cell_Color(T20)=[1]!Cell_Color($A$9),4,0)))))))) -> 873.5704005 | AH20: =(17-U20)*POWER(EXP(1),2*(4-IF([1]!Cell_Color(U20)=[1]!Cell_Color($A$4),1,IF([1]!Cell_Color(U20)=[1]!Cell_Color($A$5),2,IF([1]!Cell_Color(U20)=[1]!Cell_Color($A$6),3,IF([1]!Cell_Color(U20)=[1]!Cell_Color($A$7),3,IF([1]!Cell_Color(U20)=[1]!Cell_Color($A$8),4,IF([1]!Cell_Color(U20)=[1]!Cell_Color($A$9),4,0)))))))) -> 806.857587 | AI20: =(17-V20)*POWER(EXP(1),2*(4-IF([1]!Cell_Color(V20)=[1]!Cell_Color($A$4),1,IF([1]!Cell_Color(V20)=[1]!Cell_Color($A$5),2,IF([1]!Cell_Color(V20)=[1]!Cell_Color($A$6),3,IF([1]!Cell_Color(V20)=[1]!Cell_Color($A$7),3,IF([1]!Cell_Color(V20)=[1]!Cell_Color($A$8),4,IF([1]!Cell_Color(V20)=[1]!Cell_Color($A$9),4,0)))))))) -> 818.9722505 | AJ20: =(17-W20)*POWER(EXP(1),2*(4-IF([1]!Cell_Color(W20)=[1]!Cell_Color($A$4),1,IF([1]!Cell_Color(W20)=[1]!Cell_Color($A$5),2,IF([1]!Cell_Color(W20)=[1]!Cell_Color($A$6),3,IF([1]!Cell_Color(W20)=[1]!Cell_Color($A$7),3,IF([1]!Cell_Color(W20)=[1]!Cell_Color($A$8),4,IF([1]!Cell_Color(W20)=[1]!Cell_Color($A$9),4,0)))))))) -> 1210.28638
C21: 18 | D21: 22 | E21: 4 | F21: 19 | G21: 1 | H21: 18 | I21: Балатон | J21: 10 | K21: 13 | L21: 10 | M21: 3 | N21: 4 | O21: 2 | P21: 15 | Q21: 5 | R21: 5 | S21: 12 | T21: 4 | U21: 11 | V21: 15 | W21: 7 | X21: =SUM(AC21:AG21) -> 3099.979888 | Y21: =SUM(AE21:AI21) -> 4865.374849 | Z21: =SUM(AF21:AJ21) -> 4756.178549 | AB21: =(17-O21)*POWER(EXP(1),2*(4-IF([1]!Cell_Color(O21)=[1]!Cell_Color($A$4),1,IF([1]!Cell_Color(O21)=[1]!Cell_Color($A$5),2,IF([1]!Cell_Color(O21)=[1]!Cell_Color($A$6),3,IF([1]!Cell_Color(O21)=[1]!Cell_Color($A$7),3,IF([1]!Cell_Color(O21)=[1]!Cell_Color($A$8),4,IF([1]!Cell_Color(O21)=[1]!Cell_Color($A$9),4,0)))))))) -> 818.9722505 | AC21: =(17-P21)*POWER(EXP(1),2*(4-IF([1]!Cell_Color(P21)=[1]!Cell_Color($A$4),1,IF([1]!Cell_Color(P21)=[1]!Cell_Color($A$5),2,IF([1]!Cell_Color(P21)=[1]!Cell_Color($A$6),3,IF([1]!Cell_Color(P21)=[1]!Cell_Color($A$7),3,IF([1]!Cell_Color(P21)=[1]!Cell_Color($A$8),4,IF([1]!Cell_Color(P21)=[1]!Cell_Color($A$9),4,0)))))))) -> 806.857587 | AD21: =(17-Q21)*POWER(EXP(1),2*(4-IF([1]!Cell_Color(Q21)=[1]!Cell_Color($A$4),1,IF([1]!Cell_Color(Q21)=[1]!Cell_Color($A$5),2,IF([1]!Cell_Color(Q21)=[1]!Cell_Color($A$6),3,IF([1]!Cell_Color(Q21)=[1]!Cell_Color($A$7),3,IF([1]!Cell_Color(Q21)=[1]!Cell_Color($A$8),4,IF([1]!Cell_Color(Q21)=[1]!Cell_Color($A$9),4,0)))))))) -> 655.1778004 | AE21: =(17-R21)*POWER(EXP(1),2*(4-IF([1]!Cell_Color(R21)=[1]!Cell_Color($A$4),1,IF([1]!Cell_Color(R21)=[1]!Cell_Color($A$5),2,IF([1]!Cell_Color(R21)=[1]!Cell_Color($A$6),3,IF([1]!Cell_Color(R21)=[1]!Cell_Color($A$7),3,IF([1]!Cell_Color(R21)=[1]!Cell_Color($A$8),4,IF([1]!Cell_Color(R21)=[1]!Cell_Color($A$9),4,0)))))))) -> 655.1778004 | AF21: =(17-S21)*POWER(EXP(1),2*(4-IF([1]!Cell_Color(S21)=[1]!Cell_Color($A$4),1,IF([1]!Cell_Color(S21)=[1]!Cell_Color($A$5),2,IF([1]!Cell_Color(S21)=[1]!Cell_Color($A$6),3,IF([1]!Cell_Color(S21)=[1]!Cell_Color($A$7),3,IF([1]!Cell_Color(S21)=[1]!Cell_Color($A$8),4,IF([1]!Cell_Color(S21)=[1]!Cell_Color($A$9),4,0)))))))) -> 272.9907502 | AG21: =(17-T21)*POWER(EXP(1),2*(4-IF([1]!Cell_Color(T21)=[1]!Cell_Color($A$4),1,IF([1]!Cell_Color(T21)=[1]!Cell_Color($A$5),2,IF([1]!Cell_Color(T21)=[1]!Cell_Color($A$6),3,IF([1]!Cell_Color(T21)=[1]!Cell_Color($A$7),3,IF([1]!Cell_Color(T21)=[1]!Cell_Color($A$8),4,IF([1]!Cell_Color(T21)=[1]!Cell_Color($A$9),4,0)))))))) -> 709.7759504 | AH21: =(17-U21)*POWER(EXP(1),2*(4-IF([1]!Cell_Color(U21)=[1]!Cell_Color($A$4),1,IF([1]!Cell_Color(U21)=[1]!Cell_Color($A$5),2,IF([1]!Cell_Color(U21)=[1]!Cell_Color($A$6),3,IF([1]!Cell_Color(U21)=[1]!Cell_Color($A$7),3,IF([1]!Cell_Color(U21)=[1]!Cell_Color($A$8),4,IF([1]!Cell_Color(U21)=[1]!Cell_Color($A$9),4,0)))))))) -> 2420.572761 | AI21: =(17-V21)*POWER(EXP(1),2*(4-IF([1]!Cell_Color(V21)=[1]!Cell_Color($A$4),1,IF([1]!Cell_Color(V21)=[1]!Cell_Color($A$5),2,IF([1]!Cell_Color(V21)=[1]!Cell_Color($A$6),3,IF([1]!Cell_Color(V21)=[1]!Cell_Color($A$7),3,IF([1]!Cell_Color(V21)=[1]!Cell_Color($A$8),4,IF([1]!Cell_Color(V21)=[1]!Cell_Color($A$9),4,0)))))))) -> 806.857587 | AJ21: =(17-W21)*POWER(EXP(1),2*(4-IF([1]!Cell_Color(W21)=[1]!Cell_Color($A$4),1,IF([1]!Cell_Color(W21)=[1]!Cell_Color($A$5),2,IF([1]!Cell_Color(W21)=[1]!Cell_Color($A$6),3,IF([1]!Cell_Color(W21)=[1]!Cell_Color($A$7),3,IF([1]!Cell_Color(W21)=[1]!Cell_Color($A$8),4,IF([1]!Cell_Color(W21)=[1]!Cell_Color($A$9),4,0)))))))) -> 545.9815003
C22: 19 | D22: 12 | E22: -7 | F22: 15 | G22: -4 | H22: 19 | I22: Бекешчаба | J22: 6 | K22: 10 | L22: 12 | M22: 10 | N22: 10 | O22: 12 | P22: 6 | Q22: 12 | R22: 10 | S22: 12 | T22: 14 | U22: 5 | V22: 13 | W22: 1 | X22: =SUM(AC22:AG22) -> 12506.2926 | Y22: =SUM(AE22:AI22) -> 6925.002303 | Z22: =SUM(AF22:AJ22) -> 4219.225646 | AB22: =(17-O22)*POWER(EXP(1),2*(4-IF([1]!Cell_Color(O22)=[1]!Cell_Color($A$4),1,IF([1]!Cell_Color(O22)=[1]!Cell_Color($A$5),2,IF([1]!Cell_Color(O22)=[1]!Cell_Color($A$6),3,IF([1]!Cell_Color(O22)=[1]!Cell_Color($A$7),3,IF([1]!Cell_Color(O22)=[1]!Cell_Color($A$8),4,IF([1]!Cell_Color(O22)=[1]!Cell_Color($A$9),4,0)))))))) -> 2017.143967 | AC22: =(17-P22)*POWER(EXP(1),2*(4-IF([1]!Cell_Color(P22)=[1]!Cell_Color($A$4),1,IF([1]!Cell_Color(P22)=[1]!Cell_Color($A$5),2,IF([1]!Cell_Color(P22)=[1]!Cell_Color($A$6),3,IF([1]!Cell_Color(P22)=[1]!Cell_Color($A$7),3,IF([1]!Cell_Color(P22)=[1]!Cell_Color($A$8),4,IF([1]!Cell_Color(P22)=[1]!Cell_Color($A$9),4,0)))))))) -> 4437.716728 | AD22: =(17-Q22)*POWER(EXP(1),2*(4-IF([1]!Cell_Color(Q22)=[1]!Cell_Color($A$4),1,IF([1]!Cell_Color(Q22)=[1]!Cell_Color($A$5),2,IF([1]!Cell_Color(Q22)=[1]!Cell_Color($A$6),3,IF([1]!Cell_Color(Q22)=[1]!Cell_Color($A$7),3,IF([1]!Cell_Color(Q22)=[1]!Cell_Color($A$8),4,IF([1]!Cell_Color(Q22)=[1]!Cell_Color($A$9),4,0)))))))) -> 2017.143967 | AE22: =(17-R22)*POWER(EXP(1),2*(4-IF([1]!Cell_Color(R22)=[1]!Cell_Color($A$4),1,IF([1]!Cell_Color(R22)=[1]!Cell_Color($A$5),2,IF([1]!Cell_Color(R22)=[1]!Cell_Color($A$6),3,IF([1]!Cell_Color(R22)=[1]!Cell_Color($A$7),3,IF([1]!Cell_Color(R22)=[1]!Cell_Color($A$8),4,IF([1]!Cell_Color(R22)=[1]!Cell_Color($A$9),4,0)))))))) -> 2824.001554 | AF22: =(17-S22)*POWER(EXP(1),2*(4-IF([1]!Cell_Color(S22)=[1]!Cell_Color($A$4),1,IF([1]!Cell_Color(S22)=[1]!Cell_Color($A$5),2,IF([1]!Cell_Color(S22)=[1]!Cell_Color($A$6),3,IF([1]!Cell_Color(S22)=[1]!Cell_Color($A$7),3,IF([1]!Cell_Color(S22)=[1]!Cell_Color($A$8),4,IF([1]!Cell_Color(S22)=[1]!Cell_Color($A$9),4,0)))))))) -> 2017.143967 | AG22: =(17-T22)*POWER(EXP(1),2*(4-IF([1]!Cell_Color(T22)=[1]!Cell_Color($A$4),1,IF([1]!Cell_Color(T22)=[1]!Cell_Color($A$5),2,IF([1]!Cell_Color(T22)=[1]!Cell_Color($A$6),3,IF([1]!Cell_Color(T22)=[1]!Cell_Color($A$7),3,IF([1]!Cell_Color(T22)=[1]!Cell_Color($A$8),4,IF([1]!Cell_Color(T22)=[1]!Cell_Color($A$9),4,0)))))))) -> 1210.28638 | AH22: =(17-U22)*POWER(EXP(1),2*(4-IF([1]!Cell_Color(U22)=[1]!Cell_Color($A$4),1,IF([1]!Cell_Color(U22)=[1]!Cell_Color($A$5),2,IF([1]!Cell_Color(U22)=[1]!Cell_Color($A$6),3,IF([1]!Cell_Color(U22)=[1]!Cell_Color($A$7),3,IF([1]!Cell_Color(U22)=[1]!Cell_Color($A$8),4,IF([1]!Cell_Color(U22)=[1]!Cell_Color($A$9),4,0)))))))) -> 655.1778004 | AI22: =(17-V22)*POWER(EXP(1),2*(4-IF([1]!Cell_Color(V22)=[1]!Cell_Color($A$4),1,IF([1]!Cell_Color(V22)=[1]!Cell_Color($A$5),2,IF([1]!Cell_Color(V22)=[1]!Cell_Color($A$6),3,IF([1]!Cell_Color(V22)=[1]!Cell_Color($A$7),3,IF([1]!Cell_Color(V22)=[1]!Cell_Color($A$8),4,IF([1]!Cell_Color(V22)=[1]!Cell_Color($A$9),4,0)))))))) -> 218.3926001 | AJ22: =(17-W22)*POWER(EXP(1),2*(4-IF([1]!Cell_Color(W22)=[1]!Cell_Color($A$4),1,IF([1]!Cell_Color(W22)=[1]!Cell_Color($A$5),2,IF([1]!Cell_Color(W22)=[1]!Cell_Color($A$6),3,IF([1]!Cell_Color(W22)=[1]!Cell_Color($A$7),3,IF([1]!Cell_Color(W22)=[1]!Cell_Color($A$8),4,IF([1]!Cell_Color(W22)=[1]!Cell_Color($A$9),4,0)))))))) -> 118.2248976
C23: 20 | D23: 28 | E23: 8 | F23: 22 | G23: 2 | H23: 20 | I23: Кишкунхалаш ФК | J23: 2 | K23: 12 | L23: 5 | M23: 12 | N23: 10 | O23: 9 | P23: 11 | Q23: 12 | R23: 13 | S23: 10 | T23: 11 | U23: 2 | V23: 13 | W23: 3 | X23: =SUM(AC23:AG23) -> 1528.748201 | Y23: =SUM(AE23:AI23) -> 3360.855975 | Z23: =SUM(AF23:AJ23) -> 3906.837475 | AB23: =(17-O23)*POWER(EXP(1),2*(4-IF([1]!Cell_Color(O23)=[1]!Cell_Color($A$4),1,IF([1]!Cell_Color(O23)=[1]!Cell_Color($A$5),2,IF([1]!Cell_Color(O23)=[1]!Cell_Color($A$6),3,IF([1]!Cell_Color(O23)=[1]!Cell_Color($A$7),3,IF([1]!Cell_Color(O23)=[1]!Cell_Color($A$8),4,IF([1]!Cell_Color(O23)=[1]!Cell_Color($A$9),4,0)))))))) -> 436.7852003 | AC23: =(17-P23)*POWER(EXP(1),2*(4-IF([1]!Cell_Color(P23)=[1]!Cell_Color($A$4),1,IF([1]!Cell_Color(P23)=[1]!Cell_Color($A$5),2,IF([1]!Cell_Color(P23)=[1]!Cell_Color($A$6),3,IF([1]!Cell_Color(P23)=[1]!Cell_Color($A$7),3,IF([1]!Cell_Color(P23)=[1]!Cell_Color($A$8),4,IF([1]!Cell_Color(P23)=[1]!Cell_Color($A$9),4,0)))))))) -> 327.5889002 | AD23: =(17-Q23)*POWER(EXP(1),2*(4-IF([1]!Cell_Color(Q23)=[1]!Cell_Color($A$4),1,IF([1]!Cell_Color(Q23)=[1]!Cell_Color($A$5),2,IF([1]!Cell_Color(Q23)=[1]!Cell_Color($A$6),3,IF([1]!Cell_Color(Q23)=[1]!Cell_Color($A$7),3,IF([1]!Cell_Color(Q23)=[1]!Cell_Color($A$8),4,IF([1]!Cell_Color(Q23)=[1]!Cell_Color($A$9),4,0)))))))) -> 272.9907502 | AE23: =(17-R23)*POWER(EXP(1),2*(4-IF([1]!Cell_Color(R23)=[1]!Cell_Color($A$4),1,IF([1]!Cell_Color(R23)=[1]!Cell_Color($A$5),2,IF([1]!Cell_Color(R23)=[1]!Cell_Color($A$6),3,IF([1]!Cell_Color(R23)=[1]!Cell_Color($A$7),3,IF([1]!Cell_Color(R23)=[1]!Cell_Color($A$8),4,IF([1]!Cell_Color(R23)=[1]!Cell_Color($A$9),4,0)))))))) -> 218.3926001 | AF23: =(17-S23)*POWER(EXP(1),2*(4-IF([1]!Cell_Color(S23)=[1]!Cell_Color($A$4),1,IF([1]!Cell_Color(S23)=[1]!Cell_Color($A$5),2,IF([1]!Cell_Color(S23)=[1]!Cell_Color($A$6),3,IF([1]!Cell_Color(S23)=[1]!Cell_Color($A$7),3,IF([1]!Cell_Color(S23)=[1]!Cell_Color($A$8),4,IF([1]!Cell_Color(S23)=[1]!Cell_Color($A$9),4,0)))))))) -> 382.1870502 | AG23: =(17-T23)*POWER(EXP(1),2*(4-IF([1]!Cell_Color(T23)=[1]!Cell_Color($A$4),1,IF([1]!Cell_Color(T23)=[1]!Cell_Color($A$5),2,IF([1]!Cell_Color(T23)=[1]!Cell_Color($A$6),3,IF([1]!Cell_Color(T23)=[1]!Cell_Color($A$7),3,IF([1]!Cell_Color(T23)=[1]!Cell_Color($A$8),4,IF([1]!Cell_Color(T23)=[1]!Cell_Color($A$9),4,0)))))))) -> 327.5889002 | AH23: =(17-U23)*POWER(EXP(1),2*(4-IF([1]!Cell_Color(U23)=[1]!Cell_Color($A$4),1,IF([1]!Cell_Color(U23)=[1]!Cell_Color($A$5),2,IF([1]!Cell_Color(U23)=[1]!Cell_Color($A$6),3,IF([1]!Cell_Color(U23)=[1]!Cell_Color($A$7),3,IF([1]!Cell_Color(U23)=[1]!Cell_Color($A$8),4,IF([1]!Cell_Color(U23)=[1]!Cell_Color($A$9),4,0)))))))) -> 818.9722505 | AI23: =(17-V23)*POWER(EXP(1),2*(4-IF([1]!Cell_Color(V23)=[1]!Cell_Color($A$4),1,IF([1]!Cell_Color(V23)=[1]!Cell_Color($A$5),2,IF([1]!Cell_Color(V23)=[1]!Cell_Color($A$6),3,IF([1]!Cell_Color(V23)=[1]!Cell_Color($A$7),3,IF([1]!Cell_Color(V23)=[1]!Cell_Color($A$8),4,IF([1]!Cell_Color(V23)=[1]!Cell_Color($A$9),4,0)))))))) -> 1613.715174 | AJ23: =(17-W23)*POWER(EXP(1),2*(4-IF([1]!Cell_Color(W23)=[1]!Cell_Color($A$4),1,IF([1]!Cell_Color(W23)=[1]!Cell_Color($A$5),2,IF([1]!Cell_Color(W23)=[1]!Cell_Color($A$6),3,IF([1]!Cell_Color(W23)=[1]!Cell_Color($A$7),3,IF([1]!Cell_Color(W23)=[1]!Cell_Color($A$8),4,IF([1]!Cell_Color(W23)=[1]!Cell_Color($A$9),4,0)))))))) -> 764.3741005
C24: 21 | D24: 33 | E24: 12 | F24: 33 | G24: 12 | H24: 21 | I24: Капошвар РФК | J24: 14 | K24: 1 | L24: 7 | M24: 4 | N24: 14 | O24: 6 | P24: 8 | Q24: 14 | R24: 13 | S24: 1 | T24: 2 | U24: 1 | V24: 4 | W24: 10 | X24: =SUM(AC24:AG24) -> 811.5698663 | Y24: =SUM(AE24:AI24) -> 984.3929139 | Z24: =SUM(AF24:AJ24) -> 3778.838244 | AB24: =(17-O24)*POWER(EXP(1),2*(4-IF([1]!Cell_Color(O24)=[1]!Cell_Color($A$4),1,IF([1]!Cell_Color(O24)=[1]!Cell_Color($A$5),2,IF([1]!Cell_Color(O24)=[1]!Cell_Color($A$6),3,IF([1]!Cell_Color(O24)=[1]!Cell_Color($A$7),3,IF([1]!Cell_Color(O24)=[1]!Cell_Color($A$8),4,IF([1]!Cell_Color(O24)=[1]!Cell_Color($A$9),4,0)))))))) -> 600.5796504 | AC24: =(17-P24)*POWER(EXP(1),2*(4-IF([1]!Cell_Color(P24)=[1]!Cell_Color($A$4),1,IF([1]!Cell_Color(P24)=[1]!Cell_Color($A$5),2,IF([1]!Cell_Color(P24)=[1]!Cell_Color($A$6),3,IF([1]!Cell_Color(P24)=[1]!Cell_Color($A$7),3,IF([1]!Cell_Color(P24)=[1]!Cell_Color($A$8),4,IF([1]!Cell_Color(P24)=[1]!Cell_Color($A$9),4,0)))))))) -> 491.3833503 | AD24: =(17-Q24)*POWER(EXP(1),2*(4-IF([1]!Cell_Color(Q24)=[1]!Cell_Color($A$4),1,IF([1]!Cell_Color(Q24)=[1]!Cell_Color($A$5),2,IF([1]!Cell_Color(Q24)=[1]!Cell_Color($A$6),3,IF([1]!Cell_Color(Q24)=[1]!Cell_Color($A$7),3,IF([1]!Cell_Color(Q24)=[1]!Cell_Color($A$8),4,IF([1]!Cell_Color(Q24)=[1]!Cell_Color($A$9),4,0)))))))) -> 163.7944501 | AE24: =(17-R24)*POWER(EXP(1),2*(4-IF([1]!Cell_Color(R24)=[1]!Cell_Color($A$4),1,IF([1]!Cell_Color(R24)=[1]!Cell_Color($A$5),2,IF([1]!Cell_Color(R24)=[1]!Cell_Color($A$6),3,IF([1]!Cell_Color(R24)=[1]!Cell_Color($A$7),3,IF([1]!Cell_Color(R24)=[1]!Cell_Color($A$8),4,IF([1]!Cell_Color(R24)=[1]!Cell_Color($A$9),4,0)))))))) -> 29.5562244 | AF24: =(17-S24)*POWER(EXP(1),2*(4-IF([1]!Cell_Color(S24)=[1]!Cell_Color($A$4),1,IF([1]!Cell_Color(S24)=[1]!Cell_Color($A$5),2,IF([1]!Cell_Color(S24)=[1]!Cell_Color($A$6),3,IF([1]!Cell_Color(S24)=[1]!Cell_Color($A$7),3,IF([1]!Cell_Color(S24)=[1]!Cell_Color($A$8),4,IF([1]!Cell_Color(S24)=[1]!Cell_Color($A$9),4,0)))))))) -> 16 | AG24: =(17-T24)*POWER(EXP(1),2*(4-IF([1]!Cell_Color(T24)=[1]!Cell_Color($A$4),1,IF([1]!Cell_Color(T24)=[1]!Cell_Color($A$5),2,IF([1]!Cell_Color(T24)=[1]!Cell_Color($A$6),3,IF([1]!Cell_Color(T24)=[1]!Cell_Color($A$7),3,IF([1]!Cell_Color(T24)=[1]!Cell_Color($A$8),4,IF([1]!Cell_Color(T24)=[1]!Cell_Color($A$9),4,0)))))))) -> 110.8358415 | AH24: =(17-U24)*POWER(EXP(1),2*(4-IF([1]!Cell_Color(U24)=[1]!Cell_Color($A$4),1,IF([1]!Cell_Color(U24)=[1]!Cell_Color($A$5),2,IF([1]!Cell_Color(U24)=[1]!Cell_Color($A$6),3,IF([1]!Cell_Color(U24)=[1]!Cell_Color($A$7),3,IF([1]!Cell_Color(U24)=[1]!Cell_Color($A$8),4,IF([1]!Cell_Color(U24)=[1]!Cell_Color($A$9),4,0)))))))) -> 118.2248976 | AI24: =(17-V24)*POWER(EXP(1),2*(4-IF([1]!Cell_Color(V24)=[1]!Cell_Color($A$4),1,IF([1]!Cell_Color(V24)=[1]!Cell_Color($A$5),2,IF([1]!Cell_Color(V24)=[1]!Cell_Color($A$6),3,IF([1]!Cell_Color(V24)=[1]!Cell_Color($A$7),3,IF([1]!Cell_Color(V24)=[1]!Cell_Color($A$8),4,IF([1]!Cell_Color(V24)=[1]!Cell_Color($A$9),4,0)))))))) -> 709.7759504 | AJ24: =(17-W24)*POWER(EXP(1),2*(4-IF([1]!Cell_Color(W24)=[1]!Cell_Color($A$4),1,IF([1]!Cell_Color(W24)=[1]!Cell_Color($A$5),2,IF([1]!Cell_Color(W24)=[1]!Cell_Color($A$6),3,IF([1]!Cell_Color(W24)=[1]!Cell_Color($A$7),3,IF([1]!Cell_Color(W24)=[1]!Cell_Color($A$8),4,IF([1]!Cell_Color(W24)=[1]!Cell_Color($A$9),4,0)))))))) -> 2824.001554
C25: 22 | D25: 11 | E25: -11 | F25: 20 | G25: -2 | H25: 22 | I25: Дунайварош | J25: 4 | K25: 4 | L25: 2 | M25: 5 | N25: 9 | O25: 9 | P25: 4 | Q25: 7 | R25: 13 | S25: 13 | T25: 15 | U25: 10 | V25: 9 | W25: 9 | X25: =SUM(AC25:AG25) -> 13313.15019 | Y25: =SUM(AE25:AI25) -> 4853.260185 | Z25: =SUM(AF25:AJ25) -> 3676.330212 | AB25: =(17-O25)*POWER(EXP(1),2*(4-IF([1]!Cell_Color(O25)=[1]!Cell_Color($A$4),1,IF([1]!Cell_Color(O25)=[1]!Cell_Color($A$5),2,IF([1]!Cell_Color(O25)=[1]!Cell_Color($A$6),3,IF([1]!Cell_Color(O25)=[1]!Cell_Color($A$7),3,IF([1]!Cell_Color(O25)=[1]!Cell_Color($A$8),4,IF([1]!Cell_Color(O25)=[1]!Cell_Color($A$9),4,0)))))))) -> 3227.430348 | AC25: =(17-P25)*POWER(EXP(1),2*(4-IF([1]!Cell_Color(P25)=[1]!Cell_Color($A$4),1,IF([1]!Cell_Color(P25)=[1]!Cell_Color($A$5),2,IF([1]!Cell_Color(P25)=[1]!Cell_Color($A$6),3,IF([1]!Cell_Color(P25)=[1]!Cell_Color($A$7),3,IF([1]!Cell_Color(P25)=[1]!Cell_Color($A$8),4,IF([1]!Cell_Color(P25)=[1]!Cell_Color($A$9),4,0)))))))) -> 5244.574315 | AD25: =(17-Q25)*POWER(EXP(1),2*(4-IF([1]!Cell_Color(Q25)=[1]!Cell_Color($A$4),1,IF([1]!Cell_Color(Q25)=[1]!Cell_Color($A$5),2,IF([1]!Cell_Color(Q25)=[1]!Cell_Color($A$6),3,IF([1]!Cell_Color(Q25)=[1]!Cell_Color($A$7),3,IF([1]!Cell_Color(Q25)=[1]!Cell_Color($A$8),4,IF([1]!Cell_Color(Q25)=[1]!Cell_Color($A$9),4,0)))))))) -> 4034.287935 | AE25: =(17-R25)*POWER(EXP(1),2*(4-IF([1]!Cell_Color(R25)=[1]!Cell_Color($A$4),1,IF([1]!Cell_Color(R25)=[1]!Cell_Color($A$5),2,IF([1]!Cell_Color(R25)=[1]!Cell_Color($A$6),3,IF([1]!Cell_Color(R25)=[1]!Cell_Color($A$7),3,IF([1]!Cell_Color(R25)=[1]!Cell_Color($A$8),4,IF([1]!Cell_Color(R25)=[1]!Cell_Color($A$9),4,0)))))))) -> 1613.715174 | AF25: =(17-S25)*POWER(EXP(1),2*(4-IF([1]!Cell_Color(S25)=[1]!Cell_Color($A$4),1,IF([1]!Cell_Color(S25)=[1]!Cell_Color($A$5),2,IF([1]!Cell_Color(S25)=[1]!Cell_Color($A$6),3,IF([1]!Cell_Color(S25)=[1]!Cell_Color($A$7),3,IF([1]!Cell_Color(S25)=[1]!Cell_Color($A$8),4,IF([1]!Cell_Color(S25)=[1]!Cell_Color($A$9),4,0)))))))) -> 1613.715174 | AG25: =(17-T25)*POWER(EXP(1),2*(4-IF([1]!Cell_Color(T25)=[1]!Cell_Color($A$4),1,IF([1]!Cell_Color(T25)=[1]!Cell_Color($A$5),2,IF([1]!Cell_Color(T25)=[1]!Cell_Color($A$6),3,IF([1]!Cell_Color(T25)=[1]!Cell_Color($A$7),3,IF([1]!Cell_Color(T25)=[1]!Cell_Color($A$8),4,IF([1]!Cell_Color(T25)=[1]!Cell_Color($A$9),4,0)))))))) -> 806.857587 | AH25: =(17-U25)*POWER(EXP(1),2*(4-IF([1]!Cell_Color(U25)=[1]!Cell_Color($A$4),1,IF([1]!Cell_Color(U25)=[1]!Cell_Color($A$5),2,IF([1]!Cell_Color(U25)=[1]!Cell_Color($A$6),3,IF([1]!Cell_Color(U25)=[1]!Cell_Color($A$7),3,IF([1]!Cell_Color(U25)=[1]!Cell_Color($A$8),4,IF([1]!Cell_Color(U25)=[1]!Cell_Color($A$9),4,0)))))))) -> 382.1870502 | AI25: =(17-V25)*POWER(EXP(1),2*(4-IF([1]!Cell_Color(V25)=[1]!Cell_Color($A$4),1,IF([1]!Cell_Color(V25)=[1]!Cell_Color($A$5),2,IF([1]!Cell_Color(V25)=[1]!Cell_Color($A$6),3,IF([1]!Cell_Color(V25)=[1]!Cell_Color($A$7),3,IF([1]!Cell_Color(V25)=[1]!Cell_Color($A$8),4,IF([1]!Cell_Color(V25)=[1]!Cell_Color($A$9),4,0)))))))) -> 436.7852003 | AJ25: =(17-W25)*POWER(EXP(1),2*(4-IF([1]!Cell_Color(W25)=[1]!Cell_Color($A$4),1,IF([1]!Cell_Color(W25)=[1]!Cell_Color($A$5),2,IF([1]!Cell_Color(W25)=[1]!Cell_Color($A$6),3,IF([1]!Cell_Color(W25)=[1]!Cell_Color($A$7),3,IF([1]!Cell_Color(W25)=[1]!Cell_Color($A$8),4,IF([1]!Cell_Color(W25)=[1]!Cell_Color($A$9),4,0)))))))) -> 436.7852003
C26: 23 | D26: 19 | E26: -4 | F26: 26 | G26: 3 | H26: 23 | I26: Тиса | J26: 7 | K26: 8 | L26: 3 | M26: 12 | N26: 6 | O26: 13 | P26: 10 | Q26: 15 | R26: 8 | S26: 8 | T26: 15 | U26: 1 | V26: 1 | W26: 12 | X26: =SUM(AC26:AG26) -> 4722.822142 | Y26: =SUM(AE26:AI26) -> 2083.758299 | Z26: =SUM(AF26:AJ26) -> 3609.518916 | AB26: =(17-O26)*POWER(EXP(1),2*(4-IF([1]!Cell_Color(O26)=[1]!Cell_Color($A$4),1,IF([1]!Cell_Color(O26)=[1]!Cell_Color($A$5),2,IF([1]!Cell_Color(O26)=[1]!Cell_Color($A$6),3,IF([1]!Cell_Color(O26)=[1]!Cell_Color($A$7),3,IF([1]!Cell_Color(O26)=[1]!Cell_Color($A$8),4,IF([1]!Cell_Color(O26)=[1]!Cell_Color($A$9),4,0)))))))) -> 1613.715174 | AC26: =(17-P26)*POWER(EXP(1),2*(4-IF([1]!Cell_Color(P26)=[1]!Cell_Color($A$4),1,IF([1]!Cell_Color(P26)=[1]!Cell_Color($A$5),2,IF([1]!Cell_Color(P26)=[1]!Cell_Color($A$6),3,IF([1]!Cell_Color(P26)=[1]!Cell_Color($A$7),3,IF([1]!Cell_Color(P26)=[1]!Cell_Color($A$8),4,IF([1]!Cell_Color(P26)=[1]!Cell_Color($A$9),4,0)))))))) -> 2824.001554 | AD26: =(17-Q26)*POWER(EXP(1),2*(4-IF([1]!Cell_Color(Q26)=[1]!Cell_Color($A$4),1,IF([1]!Cell_Color(Q26)=[1]!Cell_Color($A$5),2,IF([1]!Cell_Color(Q26)=[1]!Cell_Color($A$6),3,IF([1]!Cell_Color(Q26)=[1]!Cell_Color($A$7),3,IF([1]!Cell_Color(Q26)=[1]!Cell_Color($A$8),4,IF([1]!Cell_Color(Q26)=[1]!Cell_Color($A$9),4,0)))))))) -> 806.857587 | AE26: =(17-R26)*POWER(EXP(1),2*(4-IF([1]!Cell_Color(R26)=[1]!Cell_Color($A$4),1,IF([1]!Cell_Color(R26)=[1]!Cell_Color($A$5),2,IF([1]!Cell_Color(R26)=[1]!Cell_Color($A$6),3,IF([1]!Cell_Color(R26)=[1]!Cell_Color($A$7),3,IF([1]!Cell_Color(R26)=[1]!Cell_Color($A$8),4,IF([1]!Cell_Color(R26)=[1]!Cell_Color($A$9),4,0)))))))) -> 491.3833503 | AF26: =(17-S26)*POWER(EXP(1),2*(4-IF([1]!Cell_Color(S26)=[1]!Cell_Color($A$4),1,IF([1]!Cell_Color(S26)=[1]!Cell_Color($A$5),2,IF([1]!Cell_Color(S26)=[1]!Cell_Color($A$6),3,IF([1]!Cell_Color(S26)=[1]!Cell_Color($A$7),3,IF([1]!Cell_Color(S26)=[1]!Cell_Color($A$8),4,IF([1]!Cell_Color(S26)=[1]!Cell_Color($A$9),4,0)))))))) -> 491.3833503 | AG26: =(17-T26)*POWER(EXP(1),2*(4-IF([1]!Cell_Color(T26)=[1]!Cell_Color($A$4),1,IF([1]!Cell_Color(T26)=[1]!Cell_Color($A$5),2,IF([1]!Cell_Color(T26)=[1]!Cell_Color($A$6),3,IF([1]!Cell_Color(T26)=[1]!Cell_Color($A$7),3,IF([1]!Cell_Color(T26)=[1]!Cell_Color($A$8),4,IF([1]!Cell_Color(T26)=[1]!Cell_Color($A$9),4,0)))))))) -> 109.1963001 | AH26: =(17-U26)*POWER(EXP(1),2*(4-IF([1]!Cell_Color(U26)=[1]!Cell_Color($A$4),1,IF([1]!Cell_Color(U26)=[1]!Cell_Color($A$5),2,IF([1]!Cell_Color(U26)=[1]!Cell_Color($A$6),3,IF([1]!Cell_Color(U26)=[1]!Cell_Color($A$7),3,IF([1]!Cell_Color(U26)=[1]!Cell_Color($A$8),4,IF([1]!Cell_Color(U26)=[1]!Cell_Color($A$9),4,0)))))))) -> 118.2248976 | AI26: =(17-V26)*POWER(EXP(1),2*(4-IF([1]!Cell_Color(V26)=[1]!Cell_Color($A$4),1,IF([1]!Cell_Color(V26)=[1]!Cell_Color($A$5),2,IF([1]!Cell_Color(V26)=[1]!Cell_Color($A$6),3,IF([1]!Cell_Color(V26)=[1]!Cell_Color($A$7),3,IF([1]!Cell_Color(V26)=[1]!Cell_Color($A$8),4,IF([1]!Cell_Color(V26)=[1]!Cell_Color($A$9),4,0)))))))) -> 873.5704005 | AJ26: =(17-W26)*POWER(EXP(1),2*(4-IF([1]!Cell_Color(W26)=[1]!Cell_Color($A$4),1,IF([1]!Cell_Color(W26)=[1]!Cell_Color($A$5),2,IF([1]!Cell_Color(W26)=[1]!Cell_Color($A$6),3,IF([1]!Cell_Color(W26)=[1]!Cell_Color($A$7),3,IF([1]!Cell_Color(W26)=[1]!Cell_Color($A$8),4,IF([1]!Cell_Color(W26)=[1]!Cell_Color($A$9),4,0)))))))) -> 2017.143967
C27: 24 | D27: 15 | E27: -9 | F27: 23 | G27: -1 | H27: 24 | I27: Спартакус | J27: 2 | K27: 3 | L27: 3 | M27: 7 | N27: 2 | O27: 5 | P27: 14 | Q27: 4 | R27: 16 | S27: 15 | T27: 1 | U27: 4 | V27: 12 | W27: 16 | X27: =SUM(AC27:AG27) -> 7085.710687 | Y27: =SUM(AE27:AI27) -> 3357.769909 | Z27: =SUM(AF27:AJ27) -> 3357.769909 | AB27: =(17-O27)*POWER(EXP(1),2*(4-IF([1]!Cell_Color(O27)=[1]!Cell_Color($A$4),1,IF([1]!Cell_Color(O27)=[1]!Cell_Color($A$5),2,IF([1]!Cell_Color(O27)=[1]!Cell_Color($A$6),3,IF([1]!Cell_Color(O27)=[1]!Cell_Color($A$7),3,IF([1]!Cell_Color(O27)=[1]!Cell_Color($A$8),4,IF([1]!Cell_Color(O27)=[1]!Cell_Color($A$9),4,0)))))))) -> 4841.145522 | AC27: =(17-P27)*POWER(EXP(1),2*(4-IF([1]!Cell_Color(P27)=[1]!Cell_Color($A$4),1,IF([1]!Cell_Color(P27)=[1]!Cell_Color($A$5),2,IF([1]!Cell_Color(P27)=[1]!Cell_Color($A$6),3,IF([1]!Cell_Color(P27)=[1]!Cell_Color($A$7),3,IF([1]!Cell_Color(P27)=[1]!Cell_Color($A$8),4,IF([1]!Cell_Color(P27)=[1]!Cell_Color($A$9),4,0)))))))) -> 1210.28638 | AD27: =(17-Q27)*POWER(EXP(1),2*(4-IF([1]!Cell_Color(Q27)=[1]!Cell_Color($A$4),1,IF([1]!Cell_Color(Q27)=[1]!Cell_Color($A$5),2,IF([1]!Cell_Color(Q27)=[1]!Cell_Color($A$6),3,IF([1]!Cell_Color(Q27)=[1]!Cell_Color($A$7),3,IF([1]!Cell_Color(Q27)=[1]!Cell_Color($A$8),4,IF([1]!Cell_Color(Q27)=[1]!Cell_Color($A$9),4,0)))))))) -> 5244.574315 | AE27: =(17-R27)*POWER(EXP(1),2*(4-IF([1]!Cell_Color(R27)=[1]!Cell_Color($A$4),1,IF([1]!Cell_Color(R27)=[1]!Cell_Color($A$5),2,IF([1]!Cell_Color(R27)=[1]!Cell_Color($A$6),3,IF([1]!Cell_Color(R27)=[1]!Cell_Color($A$7),3,IF([1]!Cell_Color(R27)=[1]!Cell_Color($A$8),4,IF([1]!Cell_Color(R27)=[1]!Cell_Color($A$9),4,0)))))))) -> 403.4287935 | AF27: =(17-S27)*POWER(EXP(1),2*(4-IF([1]!Cell_Color(S27)=[1]!Cell_Color($A$4),1,IF([1]!Cell_Color(S27)=[1]!Cell_Color($A$5),2,IF([1]!Cell_Color(S27)=[1]!Cell_Color($A$6),3,IF([1]!Cell_Color(S27)=[1]!Cell_Color($A$7),3,IF([1]!Cell_Color(S27)=[1]!Cell_Color($A$8),4,IF([1]!Cell_Color(S27)=[1]!Cell_Color($A$9),4,0)))))))) -> 109.1963001 | AG27: =(17-T27)*POWER(EXP(1),2*(4-IF([1]!Cell_Color(T27)=[1]!Cell_Color($A$4),1,IF([1]!Cell_Color(T27)=[1]!Cell_Color($A$5),2,IF([1]!Cell_Color(T27)=[1]!Cell_Color($A$6),3,IF([1]!Cell_Color(T27)=[1]!Cell_Color($A$7),3,IF([1]!Cell_Color(T27)=[1]!Cell_Color($A$8),4,IF([1]!Cell_Color(T27)=[1]!Cell_Color($A$9),4,0)))))))) -> 118.2248976 | AH27: =(17-U27)*POWER(EXP(1),2*(4-IF([1]!Cell_Color(U27)=[1]!Cell_Color($A$4),1,IF([1]!Cell_Color(U27)=[1]!Cell_Color($A$5),2,IF([1]!Cell_Color(U27)=[1]!Cell_Color($A$6),3,IF([1]!Cell_Color(U27)=[1]!Cell_Color($A$7),3,IF([1]!Cell_Color(U27)=[1]!Cell_Color($A$8),4,IF([1]!Cell_Color(U27)=[1]!Cell_Color($A$9),4,0)))))))) -> 709.7759504 | AI27: =(17-V27)*POWER(EXP(1),2*(4-IF([1]!Cell_Color(V27)=[1]!Cell_Color($A$4),1,IF([1]!Cell_Color(V27)=[1]!Cell_Color($A$5),2,IF([1]!Cell_Color(V27)=[1]!Cell_Color($A$6),3,IF([1]!Cell_Color(V27)=[1]!Cell_Color($A$7),3,IF([1]!Cell_Color(V27)=[1]!Cell_Color($A$8),4,IF([1]!Cell_Color(V27)=[1]!Cell_Color($A$9),4,0)))))))) -> 2017.143967 | AJ27: =(17-W27)*POWER(EXP(1),2*(4-IF([1]!Cell_Color(W27)=[1]!Cell_Color($A$4),1,IF([1]!Cell_Color(W27)=[1]!Cell_Color($A$5),2,IF([1]!Cell_Color(W27)=[1]!Cell_Color($A$6),3,IF([1]!Cell_Color(W27)=[1]!Cell_Color($A$7),3,IF([1]!Cell_Color(W27)=[1]!Cell_Color($A$8),4,IF([1]!Cell_Color(W27)=[1]!Cell_Color($A$9),4,0)))))))) -> 403.4287935
C28: 25 | D28: 23 | E28: -2 | F28: 24 | G28: -1 | H28: 25 | I28: Мако ФК | J28: 3 | K28: 12 | L28: 10 | M28: 15 | N28: 3 | O28: 15 | P28: 12 | Q28: 6 | R28: 1 | S28: 15 | T28: 9 | U28: 7 | V28: 6 | W28: 1 | X28: =SUM(AC28:AG28) -> 2990.783588 | Y28: =SUM(AE28:AI28) -> 3263.774338 | Z28: =SUM(AF28:AJ28) -> 3263.774338 | AB28: =(17-O28)*POWER(EXP(1),2*(4-IF([1]!Cell_Color(O28)=[1]!Cell_Color($A$4),1,IF([1]!Cell_Color(O28)=[1]!Cell_Color($A$5),2,IF([1]!Cell_Color(O28)=[1]!Cell_Color($A$6),3,IF([1]!Cell_Color(O28)=[1]!Cell_Color($A$7),3,IF([1]!Cell_Color(O28)=[1]!Cell_Color($A$8),4,IF([1]!Cell_Color(O28)=[1]!Cell_Color($A$9),4,0)))))))) -> 806.857587 | AC28: =(17-P28)*POWER(EXP(1),2*(4-IF([1]!Cell_Color(P28)=[1]!Cell_Color($A$4),1,IF([1]!Cell_Color(P28)=[1]!Cell_Color($A$5),2,IF([1]!Cell_Color(P28)=[1]!Cell_Color($A$6),3,IF([1]!Cell_Color(P28)=[1]!Cell_Color($A$7),3,IF([1]!Cell_Color(P28)=[1]!Cell_Color($A$8),4,IF([1]!Cell_Color(P28)=[1]!Cell_Color($A$9),4,0)))))))) -> 272.9907502 | AD28: =(17-Q28)*POWER(EXP(1),2*(4-IF([1]!Cell_Color(Q28)=[1]!Cell_Color($A$4),1,IF([1]!Cell_Color(Q28)=[1]!Cell_Color($A$5),2,IF([1]!Cell_Color(Q28)=[1]!Cell_Color($A$6),3,IF([1]!Cell_Color(Q28)=[1]!Cell_Color($A$7),3,IF([1]!Cell_Color(Q28)=[1]!Cell_Color($A$8),4,IF([1]!Cell_Color(Q28)=[1]!Cell_Color($A$9),4,0)))))))) -> 600.5796504 | AE28: =(17-R28)*POWER(EXP(1),2*(4-IF([1]!Cell_Color(R28)=[1]!Cell_Color($A$4),1,IF([1]!Cell_Color(R28)=[1]!Cell_Color($A$5),2,IF([1]!Cell_Color(R28)=[1]!Cell_Color($A$6),3,IF([1]!Cell_Color(R28)=[1]!Cell_Color($A$7),3,IF([1]!Cell_Color(R28)=[1]!Cell_Color($A$8),4,IF([1]!Cell_Color(R28)=[1]!Cell_Color($A$9),4,0)))))))) -> 873.5704005 | AF28: =(17-S28)*POWER(EXP(1),2*(4-IF([1]!Cell_Color(S28)=[1]!Cell_Color($A$4),1,IF([1]!Cell_Color(S28)=[1]!Cell_Color($A$5),2,IF([1]!Cell_Color(S28)=[1]!Cell_Color($A$6),3,IF([1]!Cell_Color(S28)=[1]!Cell_Color($A$7),3,IF([1]!Cell_Color(S28)=[1]!Cell_Color($A$8),4,IF([1]!Cell_Color(S28)=[1]!Cell_Color($A$9),4,0)))))))) -> 806.857587 | AG28: =(17-T28)*POWER(EXP(1),2*(4-IF([1]!Cell_Color(T28)=[1]!Cell_Color($A$4),1,IF([1]!Cell_Color(T28)=[1]!Cell_Color($A$5),2,IF([1]!Cell_Color(T28)=[1]!Cell_Color($A$6),3,IF([1]!Cell_Color(T28)=[1]!Cell_Color($A$7),3,IF([1]!Cell_Color(T28)=[1]!Cell_Color($A$8),4,IF([1]!Cell_Color(T28)=[1]!Cell_Color($A$9),4,0)))))))) -> 436.7852003 | AH28: =(17-U28)*POWER(EXP(1),2*(4-IF([1]!Cell_Color(U28)=[1]!Cell_Color($A$4),1,IF([1]!Cell_Color(U28)=[1]!Cell_Color($A$5),2,IF([1]!Cell_Color(U28)=[1]!Cell_Color($A$6),3,IF([1]!Cell_Color(U28)=[1]!Cell_Color($A$7),3,IF([1]!Cell_Color(U28)=[1]!Cell_Color($A$8),4,IF([1]!Cell_Color(U28)=[1]!Cell_Color($A$9),4,0)))))))) -> 545.9815003 | AI28: =(17-V28)*POWER(EXP(1),2*(4-IF([1]!Cell_Color(V28)=[1]!Cell_Color($A$4),1,IF([1]!Cell_Color(V28)=[1]!Cell_Color($A$5),2,IF([1]!Cell_Color(V28)=[1]!Cell_Color($A$6),3,IF([1]!Cell_Color(V28)=[1]!Cell_Color($A$7),3,IF([1]!Cell_Color(V28)=[1]!Cell_Color($A$8),4,IF([1]!Cell_Color(V28)=[1]!Cell_Color($A$9),4,0)))))))) -> 600.5796504 | AJ28: =(17-W28)*POWER(EXP(1),2*(4-IF([1]!Cell_Color(W28)=[1]!Cell_Color($A$4),1,IF([1]!Cell_Color(W28)=[1]!Cell_Color($A$5),2,IF([1]!Cell_Color(W28)=[1]!Cell_Color($A$6),3,IF([1]!Cell_Color(W28)=[1]!Cell_Color($A$7),3,IF([1]!Cell_Color(W28)=[1]!Cell_Color($A$8),4,IF([1]!Cell_Color(W28)=[1]!Cell_Color($A$9),4,0)))))))) -> 873.5704005
C29: 26 | D29: 24 | E29: -2 | F29: 25 | G29: -1 | H29: 26 | I29: Пенцугьор | J29: 2 | K29: 11 | L29: 6 | M29: 2 | N29: 16 | O29: 7 | P29: 6 | Q29: 3 | R29: 7 | S29: 7 | T29: 8 | U29: 6 | V29: 5 | W29: 11 | X29: =SUM(AC29:AG29) -> 2948.300102 | Y29: =SUM(AE29:AI29) -> 2839.103802 | Z29: =SUM(AF29:AJ29) -> 2620.711202 | AB29: =(17-O29)*POWER(EXP(1),2*(4-IF([1]!Cell_Color(O29)=[1]!Cell_Color($A$4),1,IF([1]!Cell_Color(O29)=[1]!Cell_Color($A$5),2,IF([1]!Cell_Color(O29)=[1]!Cell_Color($A$6),3,IF([1]!Cell_Color(O29)=[1]!Cell_Color($A$7),3,IF([1]!Cell_Color(O29)=[1]!Cell_Color($A$8),4,IF([1]!Cell_Color(O29)=[1]!Cell_Color($A$9),4,0)))))))) -> 545.9815003 | AC29: =(17-P29)*POWER(EXP(1),2*(4-IF([1]!Cell_Color(P29)=[1]!Cell_Color($A$4),1,IF([1]!Cell_Color(P29)=[1]!Cell_Color($A$5),2,IF([1]!Cell_Color(P29)=[1]!Cell_Color($A$6),3,IF([1]!Cell_Color(P29)=[1]!Cell_Color($A$7),3,IF([1]!Cell_Color(P29)=[1]!Cell_Color($A$8),4,IF([1]!Cell_Color(P29)=[1]!Cell_Color($A$9),4,0)))))))) -> 600.5796504 | AD29: =(17-Q29)*POWER(EXP(1),2*(4-IF([1]!Cell_Color(Q29)=[1]!Cell_Color($A$4),1,IF([1]!Cell_Color(Q29)=[1]!Cell_Color($A$5),2,IF([1]!Cell_Color(Q29)=[1]!Cell_Color($A$6),3,IF([1]!Cell_Color(Q29)=[1]!Cell_Color($A$7),3,IF([1]!Cell_Color(Q29)=[1]!Cell_Color($A$8),4,IF([1]!Cell_Color(Q29)=[1]!Cell_Color($A$9),4,0)))))))) -> 764.3741005 | AE29: =(17-R29)*POWER(EXP(1),2*(4-IF([1]!Cell_Color(R29)=[1]!Cell_Color($A$4),1,IF([1]!Cell_Color(R29)=[1]!Cell_Color($A$5),2,IF([1]!Cell_Color(R29)=[1]!Cell_Color($A$6),3,IF([1]!Cell_Color(R29)=[1]!Cell_Color($A$7),3,IF([1]!Cell_Color(R29)=[1]!Cell_Color($A$8),4,IF([1]!Cell_Color(R29)=[1]!Cell_Color($A$9),4,0)))))))) -> 545.9815003 | AF29: =(17-S29)*POWER(EXP(1),2*(4-IF([1]!Cell_Color(S29)=[1]!Cell_Color($A$4),1,IF([1]!Cell_Color(S29)=[1]!Cell_Color($A$5),2,IF([1]!Cell_Color(S29)=[1]!Cell_Color($A$6),3,IF([1]!Cell_Color(S29)=[1]!Cell_Color($A$7),3,IF([1]!Cell_Color(S29)=[1]!Cell_Color($A$8),4,IF([1]!Cell_Color(S29)=[1]!Cell_Color($A$9),4,0)))))))) -> 545.9815003 | AG29: =(17-T29)*POWER(EXP(1),2*(4-IF([1]!Cell_Color(T29)=[1]!Cell_Color($A$4),1,IF([1]!Cell_Color(T29)=[1]!Cell_Color($A$5),2,IF([1]!Cell_Color(T29)=[1]!Cell_Color($A$6),3,IF([1]!Cell_Color(T29)=[1]!Cell_Color($A$7),3,IF([1]!Cell_Color(T29)=[1]!Cell_Color($A$8),4,IF([1]!Cell_Color(T29)=[1]!Cell_Color($A$9),4,0)))))))) -> 491.3833503 | AH29: =(17-U29)*POWER(EXP(1),2*(4-IF([1]!Cell_Color(U29)=[1]!Cell_Color($A$4),1,IF([1]!Cell_Color(U29)=[1]!Cell_Color($A$5),2,IF([1]!Cell_Color(U29)=[1]!Cell_Color($A$6),3,IF([1]!Cell_Color(U29)=[1]!Cell_Color($A$7),3,IF([1]!Cell_Color(U29)=[1]!Cell_Color($A$8),4,IF([1]!Cell_Color(U29)=[1]!Cell_Color($A$9),4,0)))))))) -> 600.5796504 | AI29: =(17-V29)*POWER(EXP(1),2*(4-IF([1]!Cell_Color(V29)=[1]!Cell_Color($A$4),1,IF([1]!Cell_Color(V29)=[1]!Cell_Color($A$5),2,IF([1]!Cell_Color(V29)=[1]!Cell_Color($A$6),3,IF([1]!Cell_Color(V29)=[1]!Cell_Color($A$7),3,IF([1]!Cell_Color(V29)=[1]!Cell_Color($A$8),4,IF([1]!Cell_Color(V29)=[1]!Cell_Color($A$9),4,0)))))))) -> 655.1778004 | AJ29: =(17-W29)*POWER(EXP(1),2*(4-IF([1]!Cell_Color(W29)=[1]!Cell_Color($A$4),1,IF([1]!Cell_Color(W29)=[1]!Cell_Color($A$5),2,IF([1]!Cell_Color(W29)=[1]!Cell_Color($A$6),3,IF([1]!Cell_Color(W29)=[1]!Cell_Color($A$7),3,IF([1]!Cell_Color(W29)=[1]!Cell_Color($A$8),4,IF([1]!Cell_Color(W29)=[1]!Cell_Color($A$9),4,0)))))))) -> 327.5889002
C30: 27 | D30: 30 | E30: 3 | F30: 28 | G30: 1 | H30: 27 | I30: Тура Вароши СК | L30: 4 | M30: 8 | N30: 7 | O30: 3 | P30: 13 | Q30: 6 | R30: 3 | S30: 5 | T30: 12 | U30: 11 | V30: 8 | W30: 8 | X30: =SUM(AC30:AG30) -> 1142.451177 | Y30: =SUM(AE30:AI30) -> 1850.587586 | Z30: =SUM(AF30:AJ30) -> 2238.524151 | AB30: =(17-O30)*POWER(EXP(1),2*(4-IF([1]!Cell_Color(O30)=[1]!Cell_Color($A$4),1,IF([1]!Cell_Color(O30)=[1]!Cell_Color($A$5),2,IF([1]!Cell_Color(O30)=[1]!Cell_Color($A$6),3,IF([1]!Cell_Color(O30)=[1]!Cell_Color($A$7),3,IF([1]!Cell_Color(O30)=[1]!Cell_Color($A$8),4,IF([1]!Cell_Color(O30)=[1]!Cell_Color($A$9),4,0)))))))) -> 14 | AC30: =(17-P30)*POWER(EXP(1),2*(4-IF([1]!Cell_Color(P30)=[1]!Cell_Color($A$4),1,IF([1]!Cell_Color(P30)=[1]!Cell_Color($A$5),2,IF([1]!Cell_Color(P30)=[1]!Cell_Color($A$6),3,IF([1]!Cell_Color(P30)=[1]!Cell_Color($A$7),3,IF([1]!Cell_Color(P30)=[1]!Cell_Color($A$8),4,IF([1]!Cell_Color(P30)=[1]!Cell_Color($A$9),4,0)))))))) -> 29.5562244 | AD30: =(17-Q30)*POWER(EXP(1),2*(4-IF([1]!Cell_Color(Q30)=[1]!Cell_Color($A$4),1,IF([1]!Cell_Color(Q30)=[1]!Cell_Color($A$5),2,IF([1]!Cell_Color(Q30)=[1]!Cell_Color($A$6),3,IF([1]!Cell_Color(Q30)=[1]!Cell_Color($A$7),3,IF([1]!Cell_Color(Q30)=[1]!Cell_Color($A$8),4,IF([1]!Cell_Color(Q30)=[1]!Cell_Color($A$9),4,0)))))))) -> 81.27961709 | AE30: =(17-R30)*POWER(EXP(1),2*(4-IF([1]!Cell_Color(R30)=[1]!Cell_Color($A$4),1,IF([1]!Cell_Color(R30)=[1]!Cell_Color($A$5),2,IF([1]!Cell_Color(R30)=[1]!Cell_Color($A$6),3,IF([1]!Cell_Color(R30)=[1]!Cell_Color($A$7),3,IF([1]!Cell_Color(R30)=[1]!Cell_Color($A$8),4,IF([1]!Cell_Color(R30)=[1]!Cell_Color($A$9),4,0)))))))) -> 103.4467854 | AF30: =(17-S30)*POWER(EXP(1),2*(4-IF([1]!Cell_Color(S30)=[1]!Cell_Color($A$4),1,IF([1]!Cell_Color(S30)=[1]!Cell_Color($A$5),2,IF([1]!Cell_Color(S30)=[1]!Cell_Color($A$6),3,IF([1]!Cell_Color(S30)=[1]!Cell_Color($A$7),3,IF([1]!Cell_Color(S30)=[1]!Cell_Color($A$8),4,IF([1]!Cell_Color(S30)=[1]!Cell_Color($A$9),4,0)))))))) -> 655.1778004 | AG30: =(17-T30)*POWER(EXP(1),2*(4-IF([1]!Cell_Color(T30)=[1]!Cell_Color($A$4),1,IF([1]!Cell_Color(T30)=[1]!Cell_Color($A$5),2,IF([1]!Cell_Color(T30)=[1]!Cell_Color($A$6),3,IF([1]!Cell_Color(T30)=[1]!Cell_Color($A$7),3,IF([1]!Cell_Color(T30)=[1]!Cell_Color($A$8),4,IF([1]!Cell_Color(T30)=[1]!Cell_Color($A$9),4,0)))))))) -> 272.9907502 | AH30: =(17-U30)*POWER(EXP(1),2*(4-IF([1]!Cell_Color(U30)=[1]!Cell_Color($A$4),1,IF([1]!Cell_Color(U30)=[1]!Cell_Color($A$5),2,IF([1]!Cell_Color(U30)=[1]!Cell_Color($A$6),3,IF([1]!Cell_Color(U30)=[1]!Cell_Color($A$7),3,IF([1]!Cell_Color(U30)=[1]!Cell_Color($A$8),4,IF([1]!Cell_Color(U30)=[1]!Cell_Color($A$9),4,0)))))))) -> 327.5889002 | AI30: =(17-V30)*POWER(EXP(1),2*(4-IF([1]!Cell_Color(V30)=[1]!Cell_Color($A$4),1,IF([1]!Cell_Color(V30)=[1]!Cell_Color($A$5),2,IF([1]!Cell_Color(V30)=[1]!Cell_Color($A$6),3,IF([1]!Cell_Color(V30)=[1]!Cell_Color($A$7),3,IF([1]!Cell_Color(V30)=[1]!Cell_Color($A$8),4,IF([1]!Cell_Color(V30)=[1]!Cell_Color($A$9),4,0)))))))) -> 491.3833503 | AJ30: =(17-W30)*POWER(EXP(1),2*(4-IF([1]!Cell_Color(W30)=[1]!Cell_Color($A$4),1,IF([1]!Cell_Color(W30)=[1]!Cell_Color($A$5),2,IF([1]!Cell_Color(W30)=[1]!Cell_Color($A$6),3,IF([1]!Cell_Color(W30)=[1]!Cell_Color($A$7),3,IF([1]!Cell_Color(W30)=[1]!Cell_Color($A$8),4,IF([1]!Cell_Color(W30)=[1]!Cell_Color($A$9),4,0)))))))) -> 491.3833503
C31: 28 | D31: 9 | E31: -19 | F31: 16 | G31: -12 | H31: 28 | I31: БКВ Элёре | J31: 11 | K31: 8 | L31: 6 | M31: 9 | N31: 13 | O31: 8 | P31: 3 | Q31: 9 | R31: 3 | S31: 16 | T31: 5 | U31: 15 | V31: 3 | W31: 2 | X31: =SUM(AC31:AG31) -> 15582.04316 | Y31: =SUM(AE31:AI31) -> 6919.252788 | Z31: =SUM(AF31:AJ31) -> 2090.22193 | AB31: =(17-O31)*POWER(EXP(1),2*(4-IF([1]!Cell_Color(O31)=[1]!Cell_Color($A$4),1,IF([1]!Cell_Color(O31)=[1]!Cell_Color($A$5),2,IF([1]!Cell_Color(O31)=[1]!Cell_Color($A$6),3,IF([1]!Cell_Color(O31)=[1]!Cell_Color($A$7),3,IF([1]!Cell_Color(O31)=[1]!Cell_Color($A$8),4,IF([1]!Cell_Color(O31)=[1]!Cell_Color($A$9),4,0)))))))) -> 3630.859141 | AC31: =(17-P31)*POWER(EXP(1),2*(4-IF([1]!Cell_Color(P31)=[1]!Cell_Color($A$4),1,IF([1]!Cell_Color(P31)=[1]!Cell_Color($A$5),2,IF([1]!Cell_Color(P31)=[1]!Cell_Color($A$6),3,IF([1]!Cell_Color(P31)=[1]!Cell_Color($A$7),3,IF([1]!Cell_Color(P31)=[1]!Cell_Color($A$8),4,IF([1]!Cell_Color(P31)=[1]!Cell_Color($A$9),4,0)))))))) -> 5648.003109 | AD31: =(17-Q31)*POWER(EXP(1),2*(4-IF([1]!Cell_Color(Q31)=[1]!Cell_Color($A$4),1,IF([1]!Cell_Color(Q31)=[1]!Cell_Color($A$5),2,IF([1]!Cell_Color(Q31)=[1]!Cell_Color($A$6),3,IF([1]!Cell_Color(Q31)=[1]!Cell_Color($A$7),3,IF([1]!Cell_Color(Q31)=[1]!Cell_Color($A$8),4,IF([1]!Cell_Color(Q31)=[1]!Cell_Color($A$9),4,0)))))))) -> 3227.430348 | AE31: =(17-R31)*POWER(EXP(1),2*(4-IF([1]!Cell_Color(R31)=[1]!Cell_Color($A$4),1,IF([1]!Cell_Color(R31)=[1]!Cell_Color($A$5),2,IF([1]!Cell_Color(R31)=[1]!Cell_Color($A$6),3,IF([1]!Cell_Color(R31)=[1]!Cell_Color($A$7),3,IF([1]!Cell_Color(R31)=[1]!Cell_Color($A$8),4,IF([1]!Cell_Color(R31)=[1]!Cell_Color($A$9),4,0)))))))) -> 5648.003109 | AF31: =(17-S31)*POWER(EXP(1),2*(4-IF([1]!Cell_Color(S31)=[1]!Cell_Color($A$4),1,IF([1]!Cell_Color(S31)=[1]!Cell_Color($A$5),2,IF([1]!Cell_Color(S31)=[1]!Cell_Color($A$6),3,IF([1]!Cell_Color(S31)=[1]!Cell_Color($A$7),3,IF([1]!Cell_Color(S31)=[1]!Cell_Color($A$8),4,IF([1]!Cell_Color(S31)=[1]!Cell_Color($A$9),4,0)))))))) -> 403.4287935 | AG31: =(17-T31)*POWER(EXP(1),2*(4-IF([1]!Cell_Color(T31)=[1]!Cell_Color($A$4),1,IF([1]!Cell_Color(T31)=[1]!Cell_Color($A$5),2,IF([1]!Cell_Color(T31)=[1]!Cell_Color($A$6),3,IF([1]!Cell_Color(T31)=[1]!Cell_Color($A$7),3,IF([1]!Cell_Color(T31)=[1]!Cell_Color($A$8),4,IF([1]!Cell_Color(T31)=[1]!Cell_Color($A$9),4,0)))))))) -> 655.1778004 | AH31: =(17-U31)*POWER(EXP(1),2*(4-IF([1]!Cell_Color(U31)=[1]!Cell_Color($A$4),1,IF([1]!Cell_Color(U31)=[1]!Cell_Color($A$5),2,IF([1]!Cell_Color(U31)=[1]!Cell_Color($A$6),3,IF([1]!Cell_Color(U31)=[1]!Cell_Color($A$7),3,IF([1]!Cell_Color(U31)=[1]!Cell_Color($A$8),4,IF([1]!Cell_Color(U31)=[1]!Cell_Color($A$9),4,0)))))))) -> 109.1963001 | AI31: =(17-V31)*POWER(EXP(1),2*(4-IF([1]!Cell_Color(V31)=[1]!Cell_Color($A$4),1,IF([1]!Cell_Color(V31)=[1]!Cell_Color($A$5),2,IF([1]!Cell_Color(V31)=[1]!Cell_Color($A$6),3,IF([1]!Cell_Color(V31)=[1]!Cell_Color($A$7),3,IF([1]!Cell_Color(V31)=[1]!Cell_Color($A$8),4,IF([1]!Cell_Color(V31)=[1]!Cell_Color($A$9),4,0)))))))) -> 103.4467854 | AJ31: =(17-W31)*POWER(EXP(1),2*(4-IF([1]!Cell_Color(W31)=[1]!Cell_Color($A$4),1,IF([1]!Cell_Color(W31)=[1]!Cell_Color($A$5),2,IF([1]!Cell_Color(W31)=[1]!Cell_Color($A$6),3,IF([1]!Cell_Color(W31)=[1]!Cell_Color($A$7),3,IF([1]!Cell_Color(W31)=[1]!Cell_Color($A$8),4,IF([1]!Cell_Color(W31)=[1]!Cell_Color($A$9),4,0)))))))) -> 818.9722505
C32: 29 | D32: 20 | E32: -9 | F32: 27 | G32: -2 | H32: 29 | I32: Дунаканьяр | J32: 7 | K32: 15 | L32: 7 | M32: 10 | N32: 1 | O32: 7 | P32: 11 | Q32: 16 | R32: 4 | S32: 3 | T32: 16 | U32: 14 | V32: 14 | W32: 2 | X32: =SUM(AC32:AG32) -> 4701.580399 | Y32: =SUM(AE32:AI32) -> 2063.540463 | Z32: =SUM(AF32:AJ32) -> 1368.764512 | AB32: =(17-O32)*POWER(EXP(1),2*(4-IF([1]!Cell_Color(O32)=[1]!Cell_Color($A$4),1,IF([1]!Cell_Color(O32)=[1]!Cell_Color($A$5),2,IF([1]!Cell_Color(O32)=[1]!Cell_Color($A$6),3,IF([1]!Cell_Color(O32)=[1]!Cell_Color($A$7),3,IF([1]!Cell_Color(O32)=[1]!Cell_Color($A$8),4,IF([1]!Cell_Color(O32)=[1]!Cell_Color($A$9),4,0)))))))) -> 4034.287935 | AC32: =(17-P32)*POWER(EXP(1),2*(4-IF([1]!Cell_Color(P32)=[1]!Cell_Color($A$4),1,IF([1]!Cell_Color(P32)=[1]!Cell_Color($A$5),2,IF([1]!Cell_Color(P32)=[1]!Cell_Color($A$6),3,IF([1]!Cell_Color(P32)=[1]!Cell_Color($A$7),3,IF([1]!Cell_Color(P32)=[1]!Cell_Color($A$8),4,IF([1]!Cell_Color(P32)=[1]!Cell_Color($A$9),4,0)))))))) -> 2420.572761 | AD32: =(17-Q32)*POWER(EXP(1),2*(4-IF([1]!Cell_Color(Q32)=[1]!Cell_Color($A$4),1,IF([1]!Cell_Color(Q32)=[1]!Cell_Color($A$5),2,IF([1]!Cell_Color(Q32)=[1]!Cell_Color($A$6),3,IF([1]!Cell_Color(Q32)=[1]!Cell_Color($A$7),3,IF([1]!Cell_Color(Q32)=[1]!Cell_Color($A$8),4,IF([1]!Cell_Color(Q32)=[1]!Cell_Color($A$9),4,0)))))))) -> 403.4287935 | AE32: =(17-R32)*POWER(EXP(1),2*(4-IF([1]!Cell_Color(R32)=[1]!Cell_Color($A$4),1,IF([1]!Cell_Color(R32)=[1]!Cell_Color($A$5),2,IF([1]!Cell_Color(R32)=[1]!Cell_Color($A$6),3,IF([1]!Cell_Color(R32)=[1]!Cell_Color($A$7),3,IF([1]!Cell_Color(R32)=[1]!Cell_Color($A$8),4,IF([1]!Cell_Color(R32)=[1]!Cell_Color($A$9),4,0)))))))) -> 709.7759504 | AF32: =(17-S32)*POWER(EXP(1),2*(4-IF([1]!Cell_Color(S32)=[1]!Cell_Color($A$4),1,IF([1]!Cell_Color(S32)=[1]!Cell_Color($A$5),2,IF([1]!Cell_Color(S32)=[1]!Cell_Color($A$6),3,IF([1]!Cell_Color(S32)=[1]!Cell_Color($A$7),3,IF([1]!Cell_Color(S32)=[1]!Cell_Color($A$8),4,IF([1]!Cell_Color(S32)=[1]!Cell_Color($A$9),4,0)))))))) -> 764.3741005 | AG32: =(17-T32)*POWER(EXP(1),2*(4-IF([1]!Cell_Color(T32)=[1]!Cell_Color($A$4),1,IF([1]!Cell_Color(T32)=[1]!Cell_Color($A$5),2,IF([1]!Cell_Color(T32)=[1]!Cell_Color($A$6),3,IF([1]!Cell_Color(T32)=[1]!Cell_Color($A$7),3,IF([1]!Cell_Color(T32)=[1]!Cell_Color($A$8),4,IF([1]!Cell_Color(T32)=[1]!Cell_Color($A$9),4,0)))))))) -> 403.4287935 | AH32: =(17-U32)*POWER(EXP(1),2*(4-IF([1]!Cell_Color(U32)=[1]!Cell_Color($A$4),1,IF([1]!Cell_Color(U32)=[1]!Cell_Color($A$5),2,IF([1]!Cell_Color(U32)=[1]!Cell_Color($A$6),3,IF([1]!Cell_Color(U32)=[1]!Cell_Color($A$7),3,IF([1]!Cell_Color(U32)=[1]!Cell_Color($A$8),4,IF([1]!Cell_Color(U32)=[1]!Cell_Color($A$9),4,0)))))))) -> 163.7944501 | AI32: =(17-V32)*POWER(EXP(1),2*(4-IF([1]!Cell_Color(V32)=[1]!Cell_Color($A$4),1,IF([1]!Cell_Color(V32)=[1]!Cell_Color($A$5),2,IF([1]!Cell_Color(V32)=[1]!Cell_Color($A$6),3,IF([1]!Cell_Color(V32)=[1]!Cell_Color($A$7),3,IF([1]!Cell_Color(V32)=[1]!Cell_Color($A$8),4,IF([1]!Cell_Color(V32)=[1]!Cell_Color($A$9),4,0)))))))) -> 22.1671683 | AJ32: =(17-W32)*POWER(EXP(1),2*(4-IF([1]!Cell_Color(W32)=[1]!Cell_Color($A$4),1,IF([1]!Cell_Color(W32)=[1]!Cell_Color($A$5),2,IF([1]!Cell_Color(W32)=[1]!Cell_Color($A$6),3,IF([1]!Cell_Color(W32)=[1]!Cell_Color($A$7),3,IF([1]!Cell_Color(W32)=[1]!Cell_Color($A$8),4,IF([1]!Cell_Color(W32)=[1]!Cell_Color($A$9),4,0)))))))) -> 15
C33: 30 | D33: 31 | E33: 1 | F33: 29 | G33: -1 | H33: 30 | I33: Балашшадьярмат | J33: 10 | K33: 5 | L33: 5 | M33: 4 | N33: 4 | O33: 16 | P33: 2 | Q33: 3 | R33: 3 | S33: 1 | T33: 7 | U33: 12 | V33: 12 | W33: 15 | X33: =SUM(AC33:AG33) -> 981.9358102 | Y33: =SUM(AE33:AI33) -> 1313.634684 | Z33: =SUM(AF33:AJ33) -> 1319.384198 | AB33: =(17-O33)*POWER(EXP(1),2*(4-IF([1]!Cell_Color(O33)=[1]!Cell_Color($A$4),1,IF([1]!Cell_Color(O33)=[1]!Cell_Color($A$5),2,IF([1]!Cell_Color(O33)=[1]!Cell_Color($A$6),3,IF([1]!Cell_Color(O33)=[1]!Cell_Color($A$7),3,IF([1]!Cell_Color(O33)=[1]!Cell_Color($A$8),4,IF([1]!Cell_Color(O33)=[1]!Cell_Color($A$9),4,0)))))))) -> 54.59815003 | AC33: =(17-P33)*POWER(EXP(1),2*(4-IF([1]!Cell_Color(P33)=[1]!Cell_Color($A$4),1,IF([1]!Cell_Color(P33)=[1]!Cell_Color($A$5),2,IF([1]!Cell_Color(P33)=[1]!Cell_Color($A$6),3,IF([1]!Cell_Color(P33)=[1]!Cell_Color($A$7),3,IF([1]!Cell_Color(P33)=[1]!Cell_Color($A$8),4,IF([1]!Cell_Color(P33)=[1]!Cell_Color($A$9),4,0)))))))) -> 110.8358415 | AD33: =(17-Q33)*POWER(EXP(1),2*(4-IF([1]!Cell_Color(Q33)=[1]!Cell_Color($A$4),1,IF([1]!Cell_Color(Q33)=[1]!Cell_Color($A$5),2,IF([1]!Cell_Color(Q33)=[1]!Cell_Color($A$6),3,IF([1]!Cell_Color(Q33)=[1]!Cell_Color($A$7),3,IF([1]!Cell_Color(Q33)=[1]!Cell_Color($A$8),4,IF([1]!Cell_Color(Q33)=[1]!Cell_Color($A$9),4,0)))))))) -> 103.4467854 | AE33: =(17-R33)*POWER(EXP(1),2*(4-IF([1]!Cell_Color(R33)=[1]!Cell_Color($A$4),1,IF([1]!Cell_Color(R33)=[1]!Cell_Color($A$5),2,IF([1]!Cell_Color(R33)=[1]!Cell_Color($A$6),3,IF([1]!Cell_Color(R33)=[1]!Cell_Color($A$7),3,IF([1]!Cell_Color(R33)=[1]!Cell_Color($A$8),4,IF([1]!Cell_Color(R33)=[1]!Cell_Color($A$9),4,0)))))))) -> 103.4467854 | AF33: =(17-S33)*POWER(EXP(1),2*(4-IF([1]!Cell_Color(S33)=[1]!Cell_Color($A$4),1,IF([1]!Cell_Color(S33)=[1]!Cell_Color($A$5),2,IF([1]!Cell_Color(S33)=[1]!Cell_Color($A$6),3,IF([1]!Cell_Color(S33)=[1]!Cell_Color($A$7),3,IF([1]!Cell_Color(S33)=[1]!Cell_Color($A$8),4,IF([1]!Cell_Color(S33)=[1]!Cell_Color($A$9),4,0)))))))) -> 118.2248976 | AG33: =(17-T33)*POWER(EXP(1),2*(4-IF([1]!Cell_Color(T33)=[1]!Cell_Color($A$4),1,IF([1]!Cell_Color(T33)=[1]!Cell_Color($A$5),2,IF([1]!Cell_Color(T33)=[1]!Cell_Color($A$6),3,IF([1]!Cell_Color(T33)=[1]!Cell_Color($A$7),3,IF([1]!Cell_Color(T33)=[1]!Cell_Color($A$8),4,IF([1]!Cell_Color(T33)=[1]!Cell_Color($A$9),4,0)))))))) -> 545.9815003 | AH33: =(17-U33)*POWER(EXP(1),2*(4-IF([1]!Cell_Color(U33)=[1]!Cell_Color($A$4),1,IF([1]!Cell_Color(U33)=[1]!Cell_Color($A$5),2,IF([1]!Cell_Color(U33)=[1]!Cell_Color($A$6),3,IF([1]!Cell_Color(U33)=[1]!Cell_Color($A$7),3,IF([1]!Cell_Color(U33)=[1]!Cell_Color($A$8),4,IF([1]!Cell_Color(U33)=[1]!Cell_Color($A$9),4,0)))))))) -> 272.9907502 | AI33: =(17-V33)*POWER(EXP(1),2*(4-IF([1]!Cell_Color(V33)=[1]!Cell_Color($A$4),1,IF([1]!Cell_Color(V33)=[1]!Cell_Color($A$5),2,IF([1]!Cell_Color(V33)=[1]!Cell_Color($A$6),3,IF([1]!Cell_Color(V33)=[1]!Cell_Color($A$7),3,IF([1]!Cell_Color(V33)=[1]!Cell_Color($A$8),4,IF([1]!Cell_Color(V33)=[1]!Cell_Color($A$9),4,0)))))))) -> 272.9907502 | AJ33: =(17-W33)*POWER(EXP(1),2*(4-IF([1]!Cell_Color(W33)=[1]!Cell_Color($A$4),1,IF([1]!Cell_Color(W33)=[1]!Cell_Color($A$5),2,IF([1]!Cell_Color(W33)=[1]!Cell_Color($A$6),3,IF([1]!Cell_Color(W33)=[1]!Cell_Color($A$7),3,IF([1]!Cell_Color(W33)=[1]!Cell_Color($A$8),4,IF([1]!Cell_Color(W33)=[1]!Cell_Color($A$9),4,0)))))))) -> 109.1963001
C34: 31 | D34: 38 | E34: 7 | F34: 31 | H34: 31 | I34: Татай Гонвед АК | J34: 3 | K34: 5 | L34: 6 | M34: 5 | N34: 2 | O34: 1 | P34: 15 | Q34: 2 | R34: 4 | S34: 2 | T34: 1 | U34: 9 | V34: 10 | W34: 13 | X34: =SUM(AC34:AG34) -> 545.1506099 | Y34: =SUM(AE34:AI34) -> 1144.090719 | Z34: =SUM(AF34:AJ34) -> 1266.42559 | AB34: =(17-O34)*POWER(EXP(1),2*(4-IF([1]!Cell_Color(O34)=[1]!Cell_Color($A$4),1,IF([1]!Cell_Color(O34)=[1]!Cell_Color($A$5),2,IF([1]!Cell_Color(O34)=[1]!Cell_Color($A$6),3,IF([1]!Cell_Color(O34)=[1]!Cell_Color($A$7),3,IF([1]!Cell_Color(O34)=[1]!Cell_Color($A$8),4,IF([1]!Cell_Color(O34)=[1]!Cell_Color($A$9),4,0)))))))) -> 118.2248976 | AC34: =(17-P34)*POWER(EXP(1),2*(4-IF([1]!Cell_Color(P34)=[1]!Cell_Color($A$4),1,IF([1]!Cell_Color(P34)=[1]!Cell_Color($A$5),2,IF([1]!Cell_Color(P34)=[1]!Cell_Color($A$6),3,IF([1]!Cell_Color(P34)=[1]!Cell_Color($A$7),3,IF([1]!Cell_Color(P34)=[1]!Cell_Color($A$8),4,IF([1]!Cell_Color(P34)=[1]!Cell_Color($A$9),4,0)))))))) -> 109.1963001 | AD34: =(17-Q34)*POWER(EXP(1),2*(4-IF([1]!Cell_Color(Q34)=[1]!Cell_Color($A$4),1,IF([1]!Cell_Color(Q34)=[1]!Cell_Color($A$5),2,IF([1]!Cell_Color(Q34)=[1]!Cell_Color($A$6),3,IF([1]!Cell_Color(Q34)=[1]!Cell_Color($A$7),3,IF([1]!Cell_Color(Q34)=[1]!Cell_Color($A$8),4,IF([1]!Cell_Color(Q34)=[1]!Cell_Color($A$9),4,0)))))))) -> 110.8358415 | AE34: =(17-R34)*POWER(EXP(1),2*(4-IF([1]!Cell_Color(R34)=[1]!Cell_Color($A$4),1,IF([1]!Cell_Color(R34)=[1]!Cell_Color($A$5),2,IF([1]!Cell_Color(R34)=[1]!Cell_Color($A$6),3,IF([1]!Cell_Color(R34)=[1]!Cell_Color($A$7),3,IF([1]!Cell_Color(R34)=[1]!Cell_Color($A$8),4,IF([1]!Cell_Color(R34)=[1]!Cell_Color($A$9),4,0)))))))) -> 96.05772929 | AF34: =(17-S34)*POWER(EXP(1),2*(4-IF([1]!Cell_Color(S34)=[1]!Cell_Color($A$4),1,IF([1]!Cell_Color(S34)=[1]!Cell_Color($A$5),2,IF([1]!Cell_Color(S34)=[1]!Cell_Color($A$6),3,IF([1]!Cell_Color(S34)=[1]!Cell_Color($A$7),3,IF([1]!Cell_Color(S34)=[1]!Cell_Color($A$8),4,IF([1]!Cell_Color(S34)=[1]!Cell_Color($A$9),4,0)))))))) -> 110.8358415 | AG34: =(17-T34)*POWER(EXP(1),2*(4-IF([1]!Cell_Color(T34)=[1]!Cell_Color($A$4),1,IF([1]!Cell_Color(T34)=[1]!Cell_Color($A$5),2,IF([1]!Cell_Color(T34)=[1]!Cell_Color($A$6),3,IF([1]!Cell_Color(T34)=[1]!Cell_Color($A$7),3,IF([1]!Cell_Color(T34)=[1]!Cell_Color($A$8),4,IF([1]!Cell_Color(T34)=[1]!Cell_Color($A$9),4,0)))))))) -> 118.2248976 | AH34: =(17-U34)*POWER(EXP(1),2*(4-IF([1]!Cell_Color(U34)=[1]!Cell_Color($A$4),1,IF([1]!Cell_Color(U34)=[1]!Cell_Color($A$5),2,IF([1]!Cell_Color(U34)=[1]!Cell_Color($A$6),3,IF([1]!Cell_Color(U34)=[1]!Cell_Color($A$7),3,IF([1]!Cell_Color(U34)=[1]!Cell_Color($A$8),4,IF([1]!Cell_Color(U34)=[1]!Cell_Color($A$9),4,0)))))))) -> 436.7852003 | AI34: =(17-V34)*POWER(EXP(1),2*(4-IF([1]!Cell_Color(V34)=[1]!Cell_Color($A$4),1,IF([1]!Cell_Color(V34)=[1]!Cell_Color($A$5),2,IF([1]!Cell_Color(V34)=[1]!Cell_Color($A$6),3,IF([1]!Cell_Color(V34)=[1]!Cell_Color($A$7),3,IF([1]!Cell_Color(V34)=[1]!Cell_Color($A$8),4,IF([1]!Cell_Color(V34)=[1]!Cell_Color($A$9),4,0)))))))) -> 382.1870502 | AJ34: =(17-W34)*POWER(EXP(1),2*(4-IF([1]!Cell_Color(W34)=[1]!Cell_Color($A$4),1,IF([1]!Cell_Color(W34)=[1]!Cell_Color($A$5),2,IF([1]!Cell_Color(W34)=[1]!Cell_Color($A$6),3,IF([1]!Cell_Color(W34)=[1]!Cell_Color($A$7),3,IF([1]!Cell_Color(W34)=[1]!Cell_Color($A$8),4,IF([1]!Cell_Color(W34)=[1]!Cell_Color($A$9),4,0)))))))) -> 218.3926001
C35: 32 | D35: 37 | E35: 5 | F35: 34 | G35: 2 | H35: 32 | I35: Уйпешт | J35: 12 | K35: 16 | L35: 2 | M35: 6 | N35: 3 | O35: 3 | P35: 3 | Q35: 5 | R35: 2 | S35: 1 | T35: 14 | U35: 13 | V35: 1 | W35: 6 | X35: =SUM(AC35:AG35) -> 584.9706477 | Y35: =SUM(AE35:AI35) -> 729.4726869 | Z35: =SUM(AF35:AJ35) -> 1219.216496 | AB35: =(17-O35)*POWER(EXP(1),2*(4-IF([1]!Cell_Color(O35)=[1]!Cell_Color($A$4),1,IF([1]!Cell_Color(O35)=[1]!Cell_Color($A$5),2,IF([1]!Cell_Color(O35)=[1]!Cell_Color($A$6),3,IF([1]!Cell_Color(O35)=[1]!Cell_Color($A$7),3,IF([1]!Cell_Color(O35)=[1]!Cell_Color($A$8),4,IF([1]!Cell_Color(O35)=[1]!Cell_Color($A$9),4,0)))))))) -> 103.4467854 | AC35: =(17-P35)*POWER(EXP(1),2*(4-IF([1]!Cell_Color(P35)=[1]!Cell_Color($A$4),1,IF([1]!Cell_Color(P35)=[1]!Cell_Color($A$5),2,IF([1]!Cell_Color(P35)=[1]!Cell_Color($A$6),3,IF([1]!Cell_Color(P35)=[1]!Cell_Color($A$7),3,IF([1]!Cell_Color(P35)=[1]!Cell_Color($A$8),4,IF([1]!Cell_Color(P35)=[1]!Cell_Color($A$9),4,0)))))))) -> 103.4467854 | AD35: =(17-Q35)*POWER(EXP(1),2*(4-IF([1]!Cell_Color(Q35)=[1]!Cell_Color($A$4),1,IF([1]!Cell_Color(Q35)=[1]!Cell_Color($A$5),2,IF([1]!Cell_Color(Q35)=[1]!Cell_Color($A$6),3,IF([1]!Cell_Color(Q35)=[1]!Cell_Color($A$7),3,IF([1]!Cell_Color(Q35)=[1]!Cell_Color($A$8),4,IF([1]!Cell_Color(Q35)=[1]!Cell_Color($A$9),4,0)))))))) -> 88.66867319 | AE35: =(17-R35)*POWER(EXP(1),2*(4-IF([1]!Cell_Color(R35)=[1]!Cell_Color($A$4),1,IF([1]!Cell_Color(R35)=[1]!Cell_Color($A$5),2,IF([1]!Cell_Color(R35)=[1]!Cell_Color($A$6),3,IF([1]!Cell_Color(R35)=[1]!Cell_Color($A$7),3,IF([1]!Cell_Color(R35)=[1]!Cell_Color($A$8),4,IF([1]!Cell_Color(R35)=[1]!Cell_Color($A$9),4,0)))))))) -> 110.8358415 | AF35: =(17-S35)*POWER(EXP(1),2*(4-IF([1]!Cell_Color(S35)=[1]!Cell_Color($A$4),1,IF([1]!Cell_Color(S35)=[1]!Cell_Color($A$5),2,IF([1]!Cell_Color(S35)=[1]!Cell_Color($A$6),3,IF([1]!Cell_Color(S35)=[1]!Cell_Color($A$7),3,IF([1]!Cell_Color(S35)=[1]!Cell_Color($A$8),4,IF([1]!Cell_Color(S35)=[1]!Cell_Color($A$9),4,0)))))))) -> 118.2248976 | AG35: =(17-T35)*POWER(EXP(1),2*(4-IF([1]!Cell_Color(T35)=[1]!Cell_Color($A$4),1,IF([1]!Cell_Color(T35)=[1]!Cell_Color($A$5),2,IF([1]!Cell_Color(T35)=[1]!Cell_Color($A$6),3,IF([1]!Cell_Color(T35)=[1]!Cell_Color($A$7),3,IF([1]!Cell_Color(T35)=[1]!Cell_Color($A$8),4,IF([1]!Cell_Color(T35)=[1]!Cell_Color($A$9),4,0)))))))) -> 163.7944501 | AH35: =(17-U35)*POWER(EXP(1),2*(4-IF([1]!Cell_Color(U35)=[1]!Cell_Color($A$4),1,IF([1]!Cell_Color(U35)=[1]!Cell_Color($A$5),2,IF([1]!Cell_Color(U35)=[1]!Cell_Color($A$6),3,IF([1]!Cell_Color(U35)=[1]!Cell_Color($A$7),3,IF([1]!Cell_Color(U35)=[1]!Cell_Color($A$8),4,IF([1]!Cell_Color(U35)=[1]!Cell_Color($A$9),4,0)))))))) -> 218.3926001 | AI35: =(17-V35)*POWER(EXP(1),2*(4-IF([1]!Cell_Color(V35)=[1]!Cell_Color($A$4),1,IF([1]!Cell_Color(V35)=[1]!Cell_Color($A$5),2,IF([1]!Cell_Color(V35)=[1]!Cell_Color($A$6),3,IF([1]!Cell_Color(V35)=[1]!Cell_Color($A$7),3,IF([1]!Cell_Color(V35)=[1]!Cell_Color($A$8),4,IF([1]!Cell_Color(V35)=[1]!Cell_Color($A$9),4,0)))))))) -> 118.2248976 | AJ35: =(17-W35)*POWER(EXP(1),2*(4-IF([1]!Cell_Color(W35)=[1]!Cell_Color($A$4),1,IF([1]!Cell_Color(W35)=[1]!Cell_Color($A$5),2,IF([1]!Cell_Color(W35)=[1]!Cell_Color($A$6),3,IF([1]!Cell_Color(W35)=[1]!Cell_Color($A$7),3,IF([1]!Cell_Color(W35)=[1]!Cell_Color($A$8),4,IF([1]!Cell_Color(W35)=[1]!Cell_Color($A$9),4,0)))))))) -> 600.5796504
C36: 33 | D36: 49 | E36: 16 | F36: 39 | G36: 6 | H36: 33 | I36: Федьвернёк НКСЕ | L36: 6 | M36: 10 | N36: 8 | O36: 12 | P36: 3 | Q36: 11 | R36: 7 | S36: 11 | T36: 3 | U36: 2 | V36: 1 | W36: 4 | X36: =SUM(AC36:AG36) -> 280.0060196 | Y36: =SUM(AE36:AI36) -> 450.732422 | Z36: =SUM(AF36:AJ36) -> 1086.617811 | AB36: =(17-O36)*POWER(EXP(1),2*(4-IF([1]!Cell_Color(O36)=[1]!Cell_Color($A$4),1,IF([1]!Cell_Color(O36)=[1]!Cell_Color($A$5),2,IF([1]!Cell_Color(O36)=[1]!Cell_Color($A$6),3,IF([1]!Cell_Color(O36)=[1]!Cell_Color($A$7),3,IF([1]!Cell_Color(O36)=[1]!Cell_Color($A$8),4,IF([1]!Cell_Color(O36)=[1]!Cell_Color($A$9),4,0)))))))) -> 5 | AC36: =(17-P36)*POWER(EXP(1),2*(4-IF([1]!Cell_Color(P36)=[1]!Cell_Color($A$4),1,IF([1]!Cell_Color(P36)=[1]!Cell_Color($A$5),2,IF([1]!Cell_Color(P36)=[1]!Cell_Color($A$6),3,IF([1]!Cell_Color(P36)=[1]!Cell_Color($A$7),3,IF([1]!Cell_Color(P36)=[1]!Cell_Color($A$8),4,IF([1]!Cell_Color(P36)=[1]!Cell_Color($A$9),4,0)))))))) -> 14 | AD36: =(17-Q36)*POWER(EXP(1),2*(4-IF([1]!Cell_Color(Q36)=[1]!Cell_Color($A$4),1,IF([1]!Cell_Color(Q36)=[1]!Cell_Color($A$5),2,IF([1]!Cell_Color(Q36)=[1]!Cell_Color($A$6),3,IF([1]!Cell_Color(Q36)=[1]!Cell_Color($A$7),3,IF([1]!Cell_Color(Q36)=[1]!Cell_Color($A$8),4,IF([1]!Cell_Color(Q36)=[1]!Cell_Color($A$9),4,0)))))))) -> 44.33433659 | AE36: =(17-R36)*POWER(EXP(1),2*(4-IF([1]!Cell_Color(R36)=[1]!Cell_Color($A$4),1,IF([1]!Cell_Color(R36)=[1]!Cell_Color($A$5),2,IF([1]!Cell_Color(R36)=[1]!Cell_Color($A$6),3,IF([1]!Cell_Color(R36)=[1]!Cell_Color($A$7),3,IF([1]!Cell_Color(R36)=[1]!Cell_Color($A$8),4,IF([1]!Cell_Color(R36)=[1]!Cell_Color($A$9),4,0)))))))) -> 73.89056099 | AF36: =(17-S36)*POWER(EXP(1),2*(4-IF([1]!Cell_Color(S36)=[1]!Cell_Color($A$4),1,IF([1]!Cell_Color(S36)=[1]!Cell_Color($A$5),2,IF([1]!Cell_Color(S36)=[1]!Cell_Color($A$6),3,IF([1]!Cell_Color(S36)=[1]!Cell_Color($A$7),3,IF([1]!Cell_Color(S36)=[1]!Cell_Color($A$8),4,IF([1]!Cell_Color(S36)=[1]!Cell_Color($A$9),4,0)))))))) -> 44.33433659 | AG36: =(17-T36)*POWER(EXP(1),2*(4-IF([1]!Cell_Color(T36)=[1]!Cell_Color($A$4),1,IF([1]!Cell_Color(T36)=[1]!Cell_Color($A$5),2,IF([1]!Cell_Color(T36)=[1]!Cell_Color($A$6),3,IF([1]!Cell_Color(T36)=[1]!Cell_Color($A$7),3,IF([1]!Cell_Color(T36)=[1]!Cell_Color($A$8),4,IF([1]!Cell_Color(T36)=[1]!Cell_Color($A$9),4,0)))))))) -> 103.4467854 | AH36: =(17-U36)*POWER(EXP(1),2*(4-IF([1]!Cell_Color(U36)=[1]!Cell_Color($A$4),1,IF([1]!Cell_Color(U36)=[1]!Cell_Color($A$5),2,IF([1]!Cell_Color(U36)=[1]!Cell_Color($A$6),3,IF([1]!Cell_Color(U36)=[1]!Cell_Color($A$7),3,IF([1]!Cell_Color(U36)=[1]!Cell_Color($A$8),4,IF([1]!Cell_Color(U36)=[1]!Cell_Color($A$9),4,0)))))))) -> 110.8358415 | AI36: =(17-V36)*POWER(EXP(1),2*(4-IF([1]!Cell_Color(V36)=[1]!Cell_Color($A$4),1,IF([1]!Cell_Color(V36)=[1]!Cell_Color($A$5),2,IF([1]!Cell_Color(V36)=[1]!Cell_Color($A$6),3,IF([1]!Cell_Color(V36)=[1]!Cell_Color($A$7),3,IF([1]!Cell_Color(V36)=[1]!Cell_Color($A$8),4,IF([1]!Cell_Color(V36)=[1]!Cell_Color($A$9),4,0)))))))) -> 118.2248976 | AJ36: =(17-W36)*POWER(EXP(1),2*(4-IF([1]!Cell_Color(W36)=[1]!Cell_Color($A$4),1,IF([1]!Cell_Color(W36)=[1]!Cell_Color($A$5),2,IF([1]!Cell_Color(W36)=[1]!Cell_Color($A$6),3,IF([1]!Cell_Color(W36)=[1]!Cell_Color($A$7),3,IF([1]!Cell_Color(W36)=[1]!Cell_Color($A$8),4,IF([1]!Cell_Color(W36)=[1]!Cell_Color($A$9),4,0)))))))) -> 709.7759504
C37: 34 | D37: 45 | E37: 11 | F37: 32 | G37: -2 | H37: 34 | I37: Иклад ФК | L37: 2 | M37: 16 | N37: 4 | O37: 5 | P37: 1 | Q37: 10 | R37: 11 | S37: 2 | T37: 4 | U37: 8 | V37: 11 | W37: 16 | X37: =SUM(AC37:AG37) -> 318.9513001 | Y37: =SUM(AE37:AI37) -> 1070.200158 | Z37: =SUM(AF37:AJ37) -> 1080.463971 | AB37: =(17-O37)*POWER(EXP(1),2*(4-IF([1]!Cell_Color(O37)=[1]!Cell_Color($A$4),1,IF([1]!Cell_Color(O37)=[1]!Cell_Color($A$5),2,IF([1]!Cell_Color(O37)=[1]!Cell_Color($A$6),3,IF([1]!Cell_Color(O37)=[1]!Cell_Color($A$7),3,IF([1]!Cell_Color(O37)=[1]!Cell_Color($A$8),4,IF([1]!Cell_Color(O37)=[1]!Cell_Color($A$9),4,0)))))))) -> 12 | AC37: =(17-P37)*POWER(EXP(1),2*(4-IF([1]!Cell_Color(P37)=[1]!Cell_Color($A$4),1,IF([1]!Cell_Color(P37)=[1]!Cell_Color($A$5),2,IF([1]!Cell_Color(P37)=[1]!Cell_Color($A$6),3,IF([1]!Cell_Color(P37)=[1]!Cell_Color($A$7),3,IF([1]!Cell_Color(P37)=[1]!Cell_Color($A$8),4,IF([1]!Cell_Color(P37)=[1]!Cell_Color($A$9),4,0)))))))) -> 16 | AD37: =(17-Q37)*POWER(EXP(1),2*(4-IF([1]!Cell_Color(Q37)=[1]!Cell_Color($A$4),1,IF([1]!Cell_Color(Q37)=[1]!Cell_Color($A$5),2,IF([1]!Cell_Color(Q37)=[1]!Cell_Color($A$6),3,IF([1]!Cell_Color(Q37)=[1]!Cell_Color($A$7),3,IF([1]!Cell_Color(Q37)=[1]!Cell_Color($A$8),4,IF([1]!Cell_Color(Q37)=[1]!Cell_Color($A$9),4,0)))))))) -> 51.72339269 | AE37: =(17-R37)*POWER(EXP(1),2*(4-IF([1]!Cell_Color(R37)=[1]!Cell_Color($A$4),1,IF([1]!Cell_Color(R37)=[1]!Cell_Color($A$5),2,IF([1]!Cell_Color(R37)=[1]!Cell_Color($A$6),3,IF([1]!Cell_Color(R37)=[1]!Cell_Color($A$7),3,IF([1]!Cell_Color(R37)=[1]!Cell_Color($A$8),4,IF([1]!Cell_Color(R37)=[1]!Cell_Color($A$9),4,0)))))))) -> 44.33433659 | AF37: =(17-S37)*POWER(EXP(1),2*(4-IF([1]!Cell_Color(S37)=[1]!Cell_Color($A$4),1,IF([1]!Cell_Color(S37)=[1]!Cell_Color($A$5),2,IF([1]!Cell_Color(S37)=[1]!Cell_Color($A$6),3,IF([1]!Cell_Color(S37)=[1]!Cell_Color($A$7),3,IF([1]!Cell_Color(S37)=[1]!Cell_Color($A$8),4,IF([1]!Cell_Color(S37)=[1]!Cell_Color($A$9),4,0)))))))) -> 110.8358415 | AG37: =(17-T37)*POWER(EXP(1),2*(4-IF([1]!Cell_Color(T37)=[1]!Cell_Color($A$4),1,IF([1]!Cell_Color(T37)=[1]!Cell_Color($A$5),2,IF([1]!Cell_Color(T37)=[1]!Cell_Color($A$6),3,IF([1]!Cell_Color(T37)=[1]!Cell_Color($A$7),3,IF([1]!Cell_Color(T37)=[1]!Cell_Color($A$8),4,IF([1]!Cell_Color(T37)=[1]!Cell_Color($A$9),4,0)))))))) -> 96.05772929 | AH37: =(17-U37)*POWER(EXP(1),2*(4-IF([1]!Cell_Color(U37)=[1]!Cell_Color($A$4),1,IF([1]!Cell_Color(U37)=[1]!Cell_Color($A$5),2,IF([1]!Cell_Color(U37)=[1]!Cell_Color($A$6),3,IF([1]!Cell_Color(U37)=[1]!Cell_Color($A$7),3,IF([1]!Cell_Color(U37)=[1]!Cell_Color($A$8),4,IF([1]!Cell_Color(U37)=[1]!Cell_Color($A$9),4,0)))))))) -> 491.3833503 | AI37: =(17-V37)*POWER(EXP(1),2*(4-IF([1]!Cell_Color(V37)=[1]!Cell_Color($A$4),1,IF([1]!Cell_Color(V37)=[1]!Cell_Color($A$5),2,IF([1]!Cell_Color(V37)=[1]!Cell_Color($A$6),3,IF([1]!Cell_Color(V37)=[1]!Cell_Color($A$7),3,IF([1]!Cell_Color(V37)=[1]!Cell_Color($A$8),4,IF([1]!Cell_Color(V37)=[1]!Cell_Color($A$9),4,0)))))))) -> 327.5889002 | AJ37: =(17-W37)*POWER(EXP(1),2*(4-IF([1]!Cell_Color(W37)=[1]!Cell_Color($A$4),1,IF([1]!Cell_Color(W37)=[1]!Cell_Color($A$5),2,IF([1]!Cell_Color(W37)=[1]!Cell_Color($A$6),3,IF([1]!Cell_Color(W37)=[1]!Cell_Color($A$7),3,IF([1]!Cell_Color(W37)=[1]!Cell_Color($A$8),4,IF([1]!Cell_Color(W37)=[1]!Cell_Color($A$9),4,0)))))))) -> 54.59815003
C38: 35 | D38: 27 | E38: -8 | F38: 30 | G38: -5 | H38: 35 | I38: Шарвар ФК | J38: 11 | K38: 6 | L38: 2 | M38: 1 | N38: 14 | O38: 1 | P38: 13 | Q38: 9 | R38: 9 | S38: 9 | T38: 13 | U38: 3 | V38: 15 | W38: 14 | X38: =SUM(AC38:AG38) -> 1747.140801 | Y38: =SUM(AE38:AI38) -> 1304.606086 | Z38: =SUM(AF38:AJ38) -> 889.9880541 | AB38: =(17-O38)*POWER(EXP(1),2*(4-IF([1]!Cell_Color(O38)=[1]!Cell_Color($A$4),1,IF([1]!Cell_Color(O38)=[1]!Cell_Color($A$5),2,IF([1]!Cell_Color(O38)=[1]!Cell_Color($A$6),3,IF([1]!Cell_Color(O38)=[1]!Cell_Color($A$7),3,IF([1]!Cell_Color(O38)=[1]!Cell_Color($A$8),4,IF([1]!Cell_Color(O38)=[1]!Cell_Color($A$9),4,0)))))))) -> 118.2248976 | AC38: =(17-P38)*POWER(EXP(1),2*(4-IF([1]!Cell_Color(P38)=[1]!Cell_Color($A$4),1,IF([1]!Cell_Color(P38)=[1]!Cell_Color($A$5),2,IF([1]!Cell_Color(P38)=[1]!Cell_Color($A$6),3,IF([1]!Cell_Color(P38)=[1]!Cell_Color($A$7),3,IF([1]!Cell_Color(P38)=[1]!Cell_Color($A$8),4,IF([1]!Cell_Color(P38)=[1]!Cell_Color($A$9),4,0)))))))) -> 218.3926001 | AD38: =(17-Q38)*POWER(EXP(1),2*(4-IF([1]!Cell_Color(Q38)=[1]!Cell_Color($A$4),1,IF([1]!Cell_Color(Q38)=[1]!Cell_Color($A$5),2,IF([1]!Cell_Color(Q38)=[1]!Cell_Color($A$6),3,IF([1]!Cell_Color(Q38)=[1]!Cell_Color($A$7),3,IF([1]!Cell_Color(Q38)=[1]!Cell_Color($A$8),4,IF([1]!Cell_Color(Q38)=[1]!Cell_Color($A$9),4,0)))))))) -> 436.7852003 | AE38: =(17-R38)*POWER(EXP(1),2*(4-IF([1]!Cell_Color(R38)=[1]!Cell_Color($A$4),1,IF([1]!Cell_Color(R38)=[1]!Cell_Color($A$5),2,IF([1]!Cell_Color(R38)=[1]!Cell_Color($A$6),3,IF([1]!Cell_Color(R38)=[1]!Cell_Color($A$7),3,IF([1]!Cell_Color(R38)=[1]!Cell_Color($A$8),4,IF([1]!Cell_Color(R38)=[1]!Cell_Color($A$9),4,0)))))))) -> 436.7852003 | AF38: =(17-S38)*POWER(EXP(1),2*(4-IF([1]!Cell_Color(S38)=[1]!Cell_Color($A$4),1,IF([1]!Cell_Color(S38)=[1]!Cell_Color($A$5),2,IF([1]!Cell_Color(S38)=[1]!Cell_Color($A$6),3,IF([1]!Cell_Color(S38)=[1]!Cell_Color($A$7),3,IF([1]!Cell_Color(S38)=[1]!Cell_Color($A$8),4,IF([1]!Cell_Color(S38)=[1]!Cell_Color($A$9),4,0)))))))) -> 436.7852003 | AG38: =(17-T38)*POWER(EXP(1),2*(4-IF([1]!Cell_Color(T38)=[1]!Cell_Color($A$4),1,IF([1]!Cell_Color(T38)=[1]!Cell_Color($A$5),2,IF([1]!Cell_Color(T38)=[1]!Cell_Color($A$6),3,IF([1]!Cell_Color(T38)=[1]!Cell_Color($A$7),3,IF([1]!Cell_Color(T38)=[1]!Cell_Color($A$8),4,IF([1]!Cell_Color(T38)=[1]!Cell_Color($A$9),4,0)))))))) -> 218.3926001 | AH38: =(17-U38)*POWER(EXP(1),2*(4-IF([1]!Cell_Color(U38)=[1]!Cell_Color($A$4),1,IF([1]!Cell_Color(U38)=[1]!Cell_Color($A$5),2,IF([1]!Cell_Color(U38)=[1]!Cell_Color($A$6),3,IF([1]!Cell_Color(U38)=[1]!Cell_Color($A$7),3,IF([1]!Cell_Color(U38)=[1]!Cell_Color($A$8),4,IF([1]!Cell_Color(U38)=[1]!Cell_Color($A$9),4,0)))))))) -> 103.4467854 | AI38: =(17-V38)*POWER(EXP(1),2*(4-IF([1]!Cell_Color(V38)=[1]!Cell_Color($A$4),1,IF([1]!Cell_Color(V38)=[1]!Cell_Color($A$5),2,IF([1]!Cell_Color(V38)=[1]!Cell_Color($A$6),3,IF([1]!Cell_Color(V38)=[1]!Cell_Color($A$7),3,IF([1]!Cell_Color(V38)=[1]!Cell_Color($A$8),4,IF([1]!Cell_Color(V38)=[1]!Cell_Color($A$9),4,0)))))))) -> 109.1963001 | AJ38: =(17-W38)*POWER(EXP(1),2*(4-IF([1]!Cell_Color(W38)=[1]!Cell_Color($A$4),1,IF([1]!Cell_Color(W38)=[1]!Cell_Color($A$5),2,IF([1]!Cell_Color(W38)=[1]!Cell_Color($A$6),3,IF([1]!Cell_Color(W38)=[1]!Cell_Color($A$7),3,IF([1]!Cell_Color(W38)=[1]!Cell_Color($A$8),4,IF([1]!Cell_Color(W38)=[1]!Cell_Color($A$9),4,0)))))))) -> 22.1671683
C39: 36 | D39: 61 | E39: 25 | F39: 51 | G39: 15 | H39: 36 | I39: Тапиусеч ФК | L39: 12 | M39: 4 | N39: 12 | O39: 11 | P39: 10 | Q39: 16 | R39: 3 | S39: 3 | T39: 7 | U39: 10 | V39: 3 | W39: 10 | X39: =SUM(AC39:AG39) -> 161.0030098 | Y39: =SUM(AE39:AI39) -> 257.0607391 | Z39: =SUM(AF39:AJ39) -> 625.2477893 | AB39: =(17-O39)*POWER(EXP(1),2*(4-IF([1]!Cell_Color(O39)=[1]!Cell_Color($A$4),1,IF([1]!Cell_Color(O39)=[1]!Cell_Color($A$5),2,IF([1]!Cell_Color(O39)=[1]!Cell_Color($A$6),3,IF([1]!Cell_Color(O39)=[1]!Cell_Color($A$7),3,IF([1]!Cell_Color(O39)=[1]!Cell_Color($A$8),4,IF([1]!Cell_Color(O39)=[1]!Cell_Color($A$9),4,0)))))))) -> 44.33433659 | AC39: =(17-P39)*POWER(EXP(1),2*(4-IF([1]!Cell_Color(P39)=[1]!Cell_Color($A$4),1,IF([1]!Cell_Color(P39)=[1]!Cell_Color($A$5),2,IF([1]!Cell_Color(P39)=[1]!Cell_Color($A$6),3,IF([1]!Cell_Color(P39)=[1]!Cell_Color($A$7),3,IF([1]!Cell_Color(P39)=[1]!Cell_Color($A$8),4,IF([1]!Cell_Color(P39)=[1]!Cell_Color($A$9),4,0)))))))) -> 51.72339269 | AD39: =(17-Q39)*POWER(EXP(1),2*(4-IF([1]!Cell_Color(Q39)=[1]!Cell_Color($A$4),1,IF([1]!Cell_Color(Q39)=[1]!Cell_Color($A$5),2,IF([1]!Cell_Color(Q39)=[1]!Cell_Color($A$6),3,IF([1]!Cell_Color(Q39)=[1]!Cell_Color($A$7),3,IF([1]!Cell_Color(Q39)=[1]!Cell_Color($A$8),4,IF([1]!Cell_Color(Q39)=[1]!Cell_Color($A$9),4,0)))))))) -> 7.389056099 | AE39: =(17-R39)*POWER(EXP(1),2*(4-IF([1]!Cell_Color(R39)=[1]!Cell_Color($A$4),1,IF([1]!Cell_Color(R39)=[1]!Cell_Color($A$5),2,IF([1]!Cell_Color(R39)=[1]!Cell_Color($A$6),3,IF([1]!Cell_Color(R39)=[1]!Cell_Color($A$7),3,IF([1]!Cell_Color(R39)=[1]!Cell_Color($A$8),4,IF([1]!Cell_Color(R39)=[1]!Cell_Color($A$9),4,0)))))))) -> 14 | AF39: =(17-S39)*POWER(EXP(1),2*(4-IF([1]!Cell_Color(S39)=[1]!Cell_Color($A$4),1,IF([1]!Cell_Color(S39)=[1]!Cell_Color($A$5),2,IF([1]!Cell_Color(S39)=[1]!Cell_Color($A$6),3,IF([1]!Cell_Color(S39)=[1]!Cell_Color($A$7),3,IF([1]!Cell_Color(S39)=[1]!Cell_Color($A$8),4,IF([1]!Cell_Color(S39)=[1]!Cell_Color($A$9),4,0)))))))) -> 14 | AG39: =(17-T39)*POWER(EXP(1),2*(4-IF([1]!Cell_Color(T39)=[1]!Cell_Color($A$4),1,IF([1]!Cell_Color(T39)=[1]!Cell_Color($A$5),2,IF([1]!Cell_Color(T39)=[1]!Cell_Color($A$6),3,IF([1]!Cell_Color(T39)=[1]!Cell_Color($A$7),3,IF([1]!Cell_Color(T39)=[1]!Cell_Color($A$8),4,IF([1]!Cell_Color(T39)=[1]!Cell_Color($A$9),4,0)))))))) -> 73.89056099 | AH39: =(17-U39)*POWER(EXP(1),2*(4-IF([1]!Cell_Color(U39)=[1]!Cell_Color($A$4),1,IF([1]!Cell_Color(U39)=[1]!Cell_Color($A$5),2,IF([1]!Cell_Color(U39)=[1]!Cell_Color($A$6),3,IF([1]!Cell_Color(U39)=[1]!Cell_Color($A$7),3,IF([1]!Cell_Color(U39)=[1]!Cell_Color($A$8),4,IF([1]!Cell_Color(U39)=[1]!Cell_Color($A$9),4,0)))))))) -> 51.72339269 | AI39: =(17-V39)*POWER(EXP(1),2*(4-IF([1]!Cell_Color(V39)=[1]!Cell_Color($A$4),1,IF([1]!Cell_Color(V39)=[1]!Cell_Color($A$5),2,IF([1]!Cell_Color(V39)=[1]!Cell_Color($A$6),3,IF([1]!Cell_Color(V39)=[1]!Cell_Color($A$7),3,IF([1]!Cell_Color(V39)=[1]!Cell_Color($A$8),4,IF([1]!Cell_Color(V39)=[1]!Cell_Color($A$9),4,0)))))))) -> 103.4467854 | AJ39: =(17-W39)*POWER(EXP(1),2*(4-IF([1]!Cell_Color(W39)=[1]!Cell_Color($A$4),1,IF([1]!Cell_Color(W39)=[1]!Cell_Color($A$5),2,IF([1]!Cell_Color(W39)=[1]!Cell_Color($A$6),3,IF([1]!Cell_Color(W39)=[1]!Cell_Color($A$7),3,IF([1]!Cell_Color(W39)=[1]!Cell_Color($A$8),4,IF([1]!Cell_Color(W39)=[1]!Cell_Color($A$9),4,0)))))))) -> 382.1870502
C40: 37 | D40: 35 | E40: -2 | F40: 35 | G40: -2 | H40: 37 | I40: Пакши | J40: 6 | K40: 2 | L40: 1 | M40: 7 | N40: 15 | O40: 4 | P40: 8 | Q40: 7 | R40: 5 | S40: 4 | T40: 10 | U40: 16 | V40: 11 | W40: 13 | X40: =SUM(AC40:AG40) -> 707.3055186 | Y40: =SUM(AE40:AI40) -> 665.8459393 | Z40: =SUM(AF40:AJ40) -> 606.7334905 | AB40: =(17-O40)*POWER(EXP(1),2*(4-IF([1]!Cell_Color(O40)=[1]!Cell_Color($A$4),1,IF([1]!Cell_Color(O40)=[1]!Cell_Color($A$5),2,IF([1]!Cell_Color(O40)=[1]!Cell_Color($A$6),3,IF([1]!Cell_Color(O40)=[1]!Cell_Color($A$7),3,IF([1]!Cell_Color(O40)=[1]!Cell_Color($A$8),4,IF([1]!Cell_Color(O40)=[1]!Cell_Color($A$9),4,0)))))))) -> 96.05772929 | AC40: =(17-P40)*POWER(EXP(1),2*(4-IF([1]!Cell_Color(P40)=[1]!Cell_Color($A$4),1,IF([1]!Cell_Color(P40)=[1]!Cell_Color($A$5),2,IF([1]!Cell_Color(P40)=[1]!Cell_Color($A$6),3,IF([1]!Cell_Color(P40)=[1]!Cell_Color($A$7),3,IF([1]!Cell_Color(P40)=[1]!Cell_Color($A$8),4,IF([1]!Cell_Color(P40)=[1]!Cell_Color($A$9),4,0)))))))) -> 66.50150489 | AD40: =(17-Q40)*POWER(EXP(1),2*(4-IF([1]!Cell_Color(Q40)=[1]!Cell_Color($A$4),1,IF([1]!Cell_Color(Q40)=[1]!Cell_Color($A$5),2,IF([1]!Cell_Color(Q40)=[1]!Cell_Color($A$6),3,IF([1]!Cell_Color(Q40)=[1]!Cell_Color($A$7),3,IF([1]!Cell_Color(Q40)=[1]!Cell_Color($A$8),4,IF([1]!Cell_Color(Q40)=[1]!Cell_Color($A$9),4,0)))))))) -> 73.89056099 | AE40: =(17-R40)*POWER(EXP(1),2*(4-IF([1]!Cell_Color(R40)=[1]!Cell_Color($A$4),1,IF([1]!Cell_Color(R40)=[1]!Cell_Color($A$5),2,IF([1]!Cell_Color(R40)=[1]!Cell_Color($A$6),3,IF([1]!Cell_Color(R40)=[1]!Cell_Color($A$7),3,IF([1]!Cell_Color(R40)=[1]!Cell_Color($A$8),4,IF([1]!Cell_Color(R40)=[1]!Cell_Color($A$9),4,0)))))))) -> 88.66867319 | AF40: =(17-S40)*POWER(EXP(1),2*(4-IF([1]!Cell_Color(S40)=[1]!Cell_Color($A$4),1,IF([1]!Cell_Color(S40)=[1]!Cell_Color($A$5),2,IF([1]!Cell_Color(S40)=[1]!Cell_Color($A$6),3,IF([1]!Cell_Color(S40)=[1]!Cell_Color($A$7),3,IF([1]!Cell_Color(S40)=[1]!Cell_Color($A$8),4,IF([1]!Cell_Color(S40)=[1]!Cell_Color($A$9),4,0)))))))) -> 96.05772929 | AG40: =(17-T40)*POWER(EXP(1),2*(4-IF([1]!Cell_Color(T40)=[1]!Cell_Color($A$4),1,IF([1]!Cell_Color(T40)=[1]!Cell_Color($A$5),2,IF([1]!Cell_Color(T40)=[1]!Cell_Color($A$6),3,IF([1]!Cell_Color(T40)=[1]!Cell_Color($A$7),3,IF([1]!Cell_Color(T40)=[1]!Cell_Color($A$8),4,IF([1]!Cell_Color(T40)=[1]!Cell_Color($A$9),4,0)))))))) -> 382.1870502 | AH40: =(17-U40)*POWER(EXP(1),2*(4-IF([1]!Cell_Color(U40)=[1]!Cell_Color($A$4),1,IF([1]!Cell_Color(U40)=[1]!Cell_Color($A$5),2,IF([1]!Cell_Color(U40)=[1]!Cell_Color($A$6),3,IF([1]!Cell_Color(U40)=[1]!Cell_Color($A$7),3,IF([1]!Cell_Color(U40)=[1]!Cell_Color($A$8),4,IF([1]!Cell_Color(U40)=[1]!Cell_Color($A$9),4,0)))))))) -> 54.59815003 | AI40: =(17-V40)*POWER(EXP(1),2*(4-IF([1]!Cell_Color(V40)=[1]!Cell_Color($A$4),1,IF([1]!Cell_Color(V40)=[1]!Cell_Color($A$5),2,IF([1]!Cell_Color(V40)=[1]!Cell_Color($A$6),3,IF([1]!Cell_Color(V40)=[1]!Cell_Color($A$7),3,IF([1]!Cell_Color(V40)=[1]!Cell_Color($A$8),4,IF([1]!Cell_Color(V40)=[1]!Cell_Color($A$9),4,0)))))))) -> 44.33433659 | AJ40: =(17-W40)*POWER(EXP(1),2*(4-IF([1]!Cell_Color(W40)=[1]!Cell_Color($A$4),1,IF([1]!Cell_Color(W40)=[1]!Cell_Color($A$5),2,IF([1]!Cell_Color(W40)=[1]!Cell_Color($A$6),3,IF([1]!Cell_Color(W40)=[1]!Cell_Color($A$7),3,IF([1]!Cell_Color(W40)=[1]!Cell_Color($A$8),4,IF([1]!Cell_Color(W40)=[1]!Cell_Color($A$9),4,0)))))))) -> 29.5562244
C41: 38 | D41: 51 | E41: 13 | F41: 40 | G41: 2 | H41: 38 | I41: Кока Кёжёги СК | L41: 1 | M41: 12 | N41: 10 | O41: 13 | P41: 4 | Q41: 2 | R41: 6 | S41: 4 | T41: 8 | U41: 6 | V41: 2 | W41: 2 | X41: =SUM(AC41:AG41) -> 271.8388513 | Y41: =SUM(AE41:AI41) -> 435.9543098 | Z41: =SUM(AF41:AJ41) -> 465.5105342 | AB41: =(17-O41)*POWER(EXP(1),2*(4-IF([1]!Cell_Color(O41)=[1]!Cell_Color($A$4),1,IF([1]!Cell_Color(O41)=[1]!Cell_Color($A$5),2,IF([1]!Cell_Color(O41)=[1]!Cell_Color($A$6),3,IF([1]!Cell_Color(O41)=[1]!Cell_Color($A$7),3,IF([1]!Cell_Color(O41)=[1]!Cell_Color($A$8),4,IF([1]!Cell_Color(O41)=[1]!Cell_Color($A$9),4,0)))))))) -> 29.5562244 | AC41: =(17-P41)*POWER(EXP(1),2*(4-IF([1]!Cell_Color(P41)=[1]!Cell_Color($A$4),1,IF([1]!Cell_Color(P41)=[1]!Cell_Color($A$5),2,IF([1]!Cell_Color(P41)=[1]!Cell_Color($A$6),3,IF([1]!Cell_Color(P41)=[1]!Cell_Color($A$7),3,IF([1]!Cell_Color(P41)=[1]!Cell_Color($A$8),4,IF([1]!Cell_Color(P41)=[1]!Cell_Color($A$9),4,0)))))))) -> 13 | AD41: =(17-Q41)*POWER(EXP(1),2*(4-IF([1]!Cell_Color(Q41)=[1]!Cell_Color($A$4),1,IF([1]!Cell_Color(Q41)=[1]!Cell_Color($A$5),2,IF([1]!Cell_Color(Q41)=[1]!Cell_Color($A$6),3,IF([1]!Cell_Color(Q41)=[1]!Cell_Color($A$7),3,IF([1]!Cell_Color(Q41)=[1]!Cell_Color($A$8),4,IF([1]!Cell_Color(Q41)=[1]!Cell_Color($A$9),4,0)))))))) -> 15 | AE41: =(17-R41)*POWER(EXP(1),2*(4-IF([1]!Cell_Color(R41)=[1]!Cell_Color($A$4),1,IF([1]!Cell_Color(R41)=[1]!Cell_Color($A$5),2,IF([1]!Cell_Color(R41)=[1]!Cell_Color($A$6),3,IF([1]!Cell_Color(R41)=[1]!Cell_Color($A$7),3,IF([1]!Cell_Color(R41)=[1]!Cell_Color($A$8),4,IF([1]!Cell_Color(R41)=[1]!Cell_Color($A$9),4,0)))))))) -> 81.27961709 | AF41: =(17-S41)*POWER(EXP(1),2*(4-IF([1]!Cell_Color(S41)=[1]!Cell_Color($A$4),1,IF([1]!Cell_Color(S41)=[1]!Cell_Color($A$5),2,IF([1]!Cell_Color(S41)=[1]!Cell_Color($A$6),3,IF([1]!Cell_Color(S41)=[1]!Cell_Color($A$7),3,IF([1]!Cell_Color(S41)=[1]!Cell_Color($A$8),4,IF([1]!Cell_Color(S41)=[1]!Cell_Color($A$9),4,0)))))))) -> 96.05772929 | AG41: =(17-T41)*POWER(EXP(1),2*(4-IF([1]!Cell_Color(T41)=[1]!Cell_Color($A$4),1,IF([1]!Cell_Color(T41)=[1]!Cell_Color($A$5),2,IF([1]!Cell_Color(T41)=[1]!Cell_Color($A$6),3,IF([1]!Cell_Color(T41)=[1]!Cell_Color($A$7),3,IF([1]!Cell_Color(T41)=[1]!Cell_Color($A$8),4,IF([1]!Cell_Color(T41)=[1]!Cell_Color($A$9),4,0)))))))) -> 66.50150489 | AH41: =(17-U41)*POWER(EXP(1),2*(4-IF([1]!Cell_Color(U41)=[1]!Cell_Color($A$4),1,IF([1]!Cell_Color(U41)=[1]!Cell_Color($A$5),2,IF([1]!Cell_Color(U41)=[1]!Cell_Color($A$6),3,IF([1]!Cell_Color(U41)=[1]!Cell_Color($A$7),3,IF([1]!Cell_Color(U41)=[1]!Cell_Color($A$8),4,IF([1]!Cell_Color(U41)=[1]!Cell_Color($A$9),4,0)))))))) -> 81.27961709 | AI41: =(17-V41)*POWER(EXP(1),2*(4-IF([1]!Cell_Color(V41)=[1]!Cell_Color($A$4),1,IF([1]!Cell_Color(V41)=[1]!Cell_Color($A$5),2,IF([1]!Cell_Color(V41)=[1]!Cell_Color($A$6),3,IF([1]!Cell_Color(V41)=[1]!Cell_Color($A$7),3,IF([1]!Cell_Color(V41)=[1]!Cell_Color($A$8),4,IF([1]!Cell_Color(V41)=[1]!Cell_Color($A$9),4,0)))))))) -> 110.8358415 | AJ41: =(17-W41)*POWER(EXP(1),2*(4-IF([1]!Cell_Color(W41)=[1]!Cell_Color($A$4),1,IF([1]!Cell_Color(W41)=[1]!Cell_Color($A$5),2,IF([1]!Cell_Color(W41)=[1]!Cell_Color($A$6),3,IF([1]!Cell_Color(W41)=[1]!Cell_Color($A$7),3,IF([1]!Cell_Color(W41)=[1]!Cell_Color($A$8),4,IF([1]!Cell_Color(W41)=[1]!Cell_Color($A$9),4,0)))))))) -> 110.8358415
C42: 39 | D42: 39 | F42: 38 | G42: -1 | H42: 39 | I42: Алап КСЕ | L42: 3 | M42: 10 | N42: 8 | O42: 13 | P42: 6 | Q42: 2 | R42: 14 | S42: 7 | T42: 5 | U42: 4 | V42: 6 | W42: 4 | X42: =SUM(AC42:AG42) -> 518.4691428 | Y42: =SUM(AE42:AI42) -> 503.6910307 | Z42: =SUM(AF42:AJ42) -> 435.9543098 | AB42: =(17-O42)*POWER(EXP(1),2*(4-IF([1]!Cell_Color(O42)=[1]!Cell_Color($A$4),1,IF([1]!Cell_Color(O42)=[1]!Cell_Color($A$5),2,IF([1]!Cell_Color(O42)=[1]!Cell_Color($A$6),3,IF([1]!Cell_Color(O42)=[1]!Cell_Color($A$7),3,IF([1]!Cell_Color(O42)=[1]!Cell_Color($A$8),4,IF([1]!Cell_Color(O42)=[1]!Cell_Color($A$9),4,0)))))))) -> 29.5562244 | AC42: =(17-P42)*POWER(EXP(1),2*(4-IF([1]!Cell_Color(P42)=[1]!Cell_Color($A$4),1,IF([1]!Cell_Color(P42)=[1]!Cell_Color($A$5),2,IF([1]!Cell_Color(P42)=[1]!Cell_Color($A$6),3,IF([1]!Cell_Color(P42)=[1]!Cell_Color($A$7),3,IF([1]!Cell_Color(P42)=[1]!Cell_Color($A$8),4,IF([1]!Cell_Color(P42)=[1]!Cell_Color($A$9),4,0)))))))) -> 81.27961709 | AD42: =(17-Q42)*POWER(EXP(1),2*(4-IF([1]!Cell_Color(Q42)=[1]!Cell_Color($A$4),1,IF([1]!Cell_Color(Q42)=[1]!Cell_Color($A$5),2,IF([1]!Cell_Color(Q42)=[1]!Cell_Color($A$6),3,IF([1]!Cell_Color(Q42)=[1]!Cell_Color($A$7),3,IF([1]!Cell_Color(Q42)=[1]!Cell_Color($A$8),4,IF([1]!Cell_Color(Q42)=[1]!Cell_Color($A$9),4,0)))))))) -> 110.8358415 | AE42: =(17-R42)*POWER(EXP(1),2*(4-IF([1]!Cell_Color(R42)=[1]!Cell_Color($A$4),1,IF([1]!Cell_Color(R42)=[1]!Cell_Color($A$5),2,IF([1]!Cell_Color(R42)=[1]!Cell_Color($A$6),3,IF([1]!Cell_Color(R42)=[1]!Cell_Color($A$7),3,IF([1]!Cell_Color(R42)=[1]!Cell_Color($A$8),4,IF([1]!Cell_Color(R42)=[1]!Cell_Color($A$9),4,0)))))))) -> 163.7944501 | AF42: =(17-S42)*POWER(EXP(1),2*(4-IF([1]!Cell_Color(S42)=[1]!Cell_Color($A$4),1,IF([1]!Cell_Color(S42)=[1]!Cell_Color($A$5),2,IF([1]!Cell_Color(S42)=[1]!Cell_Color($A$6),3,IF([1]!Cell_Color(S42)=[1]!Cell_Color($A$7),3,IF([1]!Cell_Color(S42)=[1]!Cell_Color($A$8),4,IF([1]!Cell_Color(S42)=[1]!Cell_Color($A$9),4,0)))))))) -> 73.89056099 | AG42: =(17-T42)*POWER(EXP(1),2*(4-IF([1]!Cell_Color(T42)=[1]!Cell_Color($A$4),1,IF([1]!Cell_Color(T42)=[1]!Cell_Color($A$5),2,IF([1]!Cell_Color(T42)=[1]!Cell_Color($A$6),3,IF([1]!Cell_Color(T42)=[1]!Cell_Color($A$7),3,IF([1]!Cell_Color(T42)=[1]!Cell_Color($A$8),4,IF([1]!Cell_Color(T42)=[1]!Cell_Color($A$9),4,0)))))))) -> 88.66867319 | AH42: =(17-U42)*POWER(EXP(1),2*(4-IF([1]!Cell_Color(U42)=[1]!Cell_Color($A$4),1,IF([1]!Cell_Color(U42)=[1]!Cell_Color($A$5),2,IF([1]!Cell_Color(U42)=[1]!Cell_Color($A$6),3,IF([1]!Cell_Color(U42)=[1]!Cell_Color($A$7),3,IF([1]!Cell_Color(U42)=[1]!Cell_Color($A$8),4,IF([1]!Cell_Color(U42)=[1]!Cell_Color($A$9),4,0)))))))) -> 96.05772929 | AI42: =(17-V42)*POWER(EXP(1),2*(4-IF([1]!Cell_Color(V42)=[1]!Cell_Color($A$4),1,IF([1]!Cell_Color(V42)=[1]!Cell_Color($A$5),2,IF([1]!Cell_Color(V42)=[1]!Cell_Color($A$6),3,IF([1]!Cell_Color(V42)=[1]!Cell_Color($A$7),3,IF([1]!Cell_Color(V42)=[1]!Cell_Color($A$8),4,IF([1]!Cell_Color(V42)=[1]!Cell_Color($A$9),4,0)))))))) -> 81.27961709 | AJ42: =(17-W42)*POWER(EXP(1),2*(4-IF([1]!Cell_Color(W42)=[1]!Cell_Color($A$4),1,IF([1]!Cell_Color(W42)=[1]!Cell_Color($A$5),2,IF([1]!Cell_Color(W42)=[1]!Cell_Color($A$6),3,IF([1]!Cell_Color(W42)=[1]!Cell_Color($A$7),3,IF([1]!Cell_Color(W42)=[1]!Cell_Color($A$8),4,IF([1]!Cell_Color(W42)=[1]!Cell_Color($A$9),4,0)))))))) -> 96.05772929
C43: 40 | D43: 52 | E43: 12 | F43: 41 | G43: 1 | H43: 40 | I43: Шорокшар СК | L43: 8 | M43: 2 | N43: 11 | O43: 14 | P43: 3 | Q43: 12 | R43: 7 | S43: 7 | T43: 10 | U43: 4 | V43: 4 | W43: 2 | X43: =SUM(AC43:AG43) -> 250.4497952 | Y43: =SUM(AE43:AI43) -> 391.6199732 | Z43: =SUM(AF43:AJ43) -> 428.5652537 | AB43: =(17-O43)*POWER(EXP(1),2*(4-IF([1]!Cell_Color(O43)=[1]!Cell_Color($A$4),1,IF([1]!Cell_Color(O43)=[1]!Cell_Color($A$5),2,IF([1]!Cell_Color(O43)=[1]!Cell_Color($A$6),3,IF([1]!Cell_Color(O43)=[1]!Cell_Color($A$7),3,IF([1]!Cell_Color(O43)=[1]!Cell_Color($A$8),4,IF([1]!Cell_Color(O43)=[1]!Cell_Color($A$9),4,0)))))))) -> 22.1671683 | AC43: =(17-P43)*POWER(EXP(1),2*(4-IF([1]!Cell_Color(P43)=[1]!Cell_Color($A$4),1,IF([1]!Cell_Color(P43)=[1]!Cell_Color($A$5),2,IF([1]!Cell_Color(P43)=[1]!Cell_Color($A$6),3,IF([1]!Cell_Color(P43)=[1]!Cell_Color($A$7),3,IF([1]!Cell_Color(P43)=[1]!Cell_Color($A$8),4,IF([1]!Cell_Color(P43)=[1]!Cell_Color($A$9),4,0)))))))) -> 14 | AD43: =(17-Q43)*POWER(EXP(1),2*(4-IF([1]!Cell_Color(Q43)=[1]!Cell_Color($A$4),1,IF([1]!Cell_Color(Q43)=[1]!Cell_Color($A$5),2,IF([1]!Cell_Color(Q43)=[1]!Cell_Color($A$6),3,IF([1]!Cell_Color(Q43)=[1]!Cell_Color($A$7),3,IF([1]!Cell_Color(Q43)=[1]!Cell_Color($A$8),4,IF([1]!Cell_Color(Q43)=[1]!Cell_Color($A$9),4,0)))))))) -> 36.94528049 | AE43: =(17-R43)*POWER(EXP(1),2*(4-IF([1]!Cell_Color(R43)=[1]!Cell_Color($A$4),1,IF([1]!Cell_Color(R43)=[1]!Cell_Color($A$5),2,IF([1]!Cell_Color(R43)=[1]!Cell_Color($A$6),3,IF([1]!Cell_Color(R43)=[1]!Cell_Color($A$7),3,IF([1]!Cell_Color(R43)=[1]!Cell_Color($A$8),4,IF([1]!Cell_Color(R43)=[1]!Cell_Color($A$9),4,0)))))))) -> 73.89056099 | AF43: =(17-S43)*POWER(EXP(1),2*(4-IF([1]!Cell_Color(S43)=[1]!Cell_Color($A$4),1,IF([1]!Cell_Color(S43)=[1]!Cell_Color($A$5),2,IF([1]!Cell_Color(S43)=[1]!Cell_Color($A$6),3,IF([1]!Cell_Color(S43)=[1]!Cell_Color($A$7),3,IF([1]!Cell_Color(S43)=[1]!Cell_Color($A$8),4,IF([1]!Cell_Color(S43)=[1]!Cell_Color($A$9),4,0)))))))) -> 73.89056099 | AG43: =(17-T43)*POWER(EXP(1),2*(4-IF([1]!Cell_Color(T43)=[1]!Cell_Color($A$4),1,IF([1]!Cell_Color(T43)=[1]!Cell_Color($A$5),2,IF([1]!Cell_Color(T43)=[1]!Cell_Color($A$6),3,IF([1]!Cell_Color(T43)=[1]!Cell_Color($A$7),3,IF([1]!Cell_Color(T43)=[1]!Cell_Color($A$8),4,IF([1]!Cell_Color(T43)=[1]!Cell_Color($A$9),4,0)))))))) -> 51.72339269 | AH43: =(17-U43)*POWER(EXP(1),2*(4-IF([1]!Cell_Color(U43)=[1]!Cell_Color($A$4),1,IF([1]!Cell_Color(U43)=[1]!Cell_Color($A$5),2,IF([1]!Cell_Color(U43)=[1]!Cell_Color($A$6),3,IF([1]!Cell_Color(U43)=[1]!Cell_Color($A$7),3,IF([1]!Cell_Color(U43)=[1]!Cell_Color($A$8),4,IF([1]!Cell_Color(U43)=[1]!Cell_Color($A$9),4,0)))))))) -> 96.05772929 | AI43: =(17-V43)*POWER(EXP(1),2*(4-IF([1]!Cell_Color(V43)=[1]!Cell_Color($A$4),1,IF([1]!Cell_Color(V43)=[1]!Cell_Color($A$5),2,IF([1]!Cell_Color(V43)=[1]!Cell_Color($A$6),3,IF([1]!Cell_Color(V43)=[1]!Cell_Color($A$7),3,IF([1]!Cell_Color(V43)=[1]!Cell_Color($A$8),4,IF([1]!Cell_Color(V43)=[1]!Cell_Color($A$9),4,0)))))))) -> 96.05772929 | AJ43: =(17-W43)*POWER(EXP(1),2*(4-IF([1]!Cell_Color(W43)=[1]!Cell_Color($A$4),1,IF([1]!Cell_Color(W43)=[1]!Cell_Color($A$5),2,IF([1]!Cell_Color(W43)=[1]!Cell_Color($A$6),3,IF([1]!Cell_Color(W43)=[1]!Cell_Color($A$7),3,IF([1]!Cell_Color(W43)=[1]!Cell_Color($A$8),4,IF([1]!Cell_Color(W43)=[1]!Cell_Color($A$9),4,0)))))))) -> 110.8358415
C44: 41 | D44: 55 | E44: 14 | F44: 44 | G44: 3 | H44: 41 | I44: Надьката СЕ | L44: 5 | M44: 9 | N44: 12 | O44: 11 | P44: 12 | Q44: 3 | R44: 4 | S44: 6 | T44: 4 | U44: 7 | V44: 8 | W44: 5 | X44: =SUM(AC44:AG44) -> 209.3373464 | Y44: =SUM(AE44:AI44) -> 330.7294123 | Z44: =SUM(AF44:AJ44) -> 406.3980854 | AB44: =(17-O44)*POWER(EXP(1),2*(4-IF([1]!Cell_Color(O44)=[1]!Cell_Color($A$4),1,IF([1]!Cell_Color(O44)=[1]!Cell_Color($A$5),2,IF([1]!Cell_Color(O44)=[1]!Cell_Color($A$6),3,IF([1]!Cell_Color(O44)=[1]!Cell_Color($A$7),3,IF([1]!Cell_Color(O44)=[1]!Cell_Color($A$8),4,IF([1]!Cell_Color(O44)=[1]!Cell_Color($A$9),4,0)))))))) -> 6 | AC44: =(17-P44)*POWER(EXP(1),2*(4-IF([1]!Cell_Color(P44)=[1]!Cell_Color($A$4),1,IF([1]!Cell_Color(P44)=[1]!Cell_Color($A$5),2,IF([1]!Cell_Color(P44)=[1]!Cell_Color($A$6),3,IF([1]!Cell_Color(P44)=[1]!Cell_Color($A$7),3,IF([1]!Cell_Color(P44)=[1]!Cell_Color($A$8),4,IF([1]!Cell_Color(P44)=[1]!Cell_Color($A$9),4,0)))))))) -> 5 | AD44: =(17-Q44)*POWER(EXP(1),2*(4-IF([1]!Cell_Color(Q44)=[1]!Cell_Color($A$4),1,IF([1]!Cell_Color(Q44)=[1]!Cell_Color($A$5),2,IF([1]!Cell_Color(Q44)=[1]!Cell_Color($A$6),3,IF([1]!Cell_Color(Q44)=[1]!Cell_Color($A$7),3,IF([1]!Cell_Color(Q44)=[1]!Cell_Color($A$8),4,IF([1]!Cell_Color(Q44)=[1]!Cell_Color($A$9),4,0)))))))) -> 14 | AE44: =(17-R44)*POWER(EXP(1),2*(4-IF([1]!Cell_Color(R44)=[1]!Cell_Color($A$4),1,IF([1]!Cell_Color(R44)=[1]!Cell_Color($A$5),2,IF([1]!Cell_Color(R44)=[1]!Cell_Color($A$6),3,IF([1]!Cell_Color(R44)=[1]!Cell_Color($A$7),3,IF([1]!Cell_Color(R44)=[1]!Cell_Color($A$8),4,IF([1]!Cell_Color(R44)=[1]!Cell_Color($A$9),4,0)))))))) -> 13 | AF44: =(17-S44)*POWER(EXP(1),2*(4-IF([1]!Cell_Color(S44)=[1]!Cell_Color($A$4),1,IF([1]!Cell_Color(S44)=[1]!Cell_Color($A$5),2,IF([1]!Cell_Color(S44)=[1]!Cell_Color($A$6),3,IF([1]!Cell_Color(S44)=[1]!Cell_Color($A$7),3,IF([1]!Cell_Color(S44)=[1]!Cell_Color($A$8),4,IF([1]!Cell_Color(S44)=[1]!Cell_Color($A$9),4,0)))))))) -> 81.27961709 | AG44: =(17-T44)*POWER(EXP(1),2*(4-IF([1]!Cell_Color(T44)=[1]!Cell_Color($A$4),1,IF([1]!Cell_Color(T44)=[1]!Cell_Color($A$5),2,IF([1]!Cell_Color(T44)=[1]!Cell_Color($A$6),3,IF([1]!Cell_Color(T44)=[1]!Cell_Color($A$7),3,IF([1]!Cell_Color(T44)=[1]!Cell_Color($A$8),4,IF([1]!Cell_Color(T44)=[1]!Cell_Color($A$9),4,0)))))))) -> 96.05772929 | AH44: =(17-U44)*POWER(EXP(1),2*(4-IF([1]!Cell_Color(U44)=[1]!Cell_Color($A$4),1,IF([1]!Cell_Color(U44)=[1]!Cell_Color($A$5),2,IF([1]!Cell_Color(U44)=[1]!Cell_Color($A$6),3,IF([1]!Cell_Color(U44)=[1]!Cell_Color($A$7),3,IF([1]!Cell_Color(U44)=[1]!Cell_Color($A$8),4,IF([1]!Cell_Color(U44)=[1]!Cell_Color($A$9),4,0)))))))) -> 73.89056099 | AI44: =(17-V44)*POWER(EXP(1),2*(4-IF([1]!Cell_Color(V44)=[1]!Cell_Color($A$4),1,IF([1]!Cell_Color(V44)=[1]!Cell_Color($A$5),2,IF([1]!Cell_Color(V44)=[1]!Cell_Color($A$6),3,IF([1]!Cell_Color(V44)=[1]!Cell_Color($A$7),3,IF([1]!Cell_Color(V44)=[1]!Cell_Color($A$8),4,IF([1]!Cell_Color(V44)=[1]!Cell_Color($A$9),4,0)))))))) -> 66.50150489 | AJ44: =(17-W44)*POWER(EXP(1),2*(4-IF([1]!Cell_Color(W44)=[1]!Cell_Color($A$4),1,IF([1]!Cell_Color(W44)=[1]!Cell_Color($A$5),2,IF([1]!Cell_Color(W44)=[1]!Cell_Color($A$6),3,IF([1]!Cell_Color(W44)=[1]!Cell_Color($A$7),3,IF([1]!Cell_Color(W44)=[1]!Cell_Color($A$8),4,IF([1]!Cell_Color(W44)=[1]!Cell_Color($A$9),4,0)))))))) -> 88.66867319
C45: 42 | D45: 43 | E45: 1 | F45: 43 | G45: 1 | H45: 42 | I45: Вашаш СК | J45: 15 | K45: 4 | L45: 4 | M45: 11 | N45: 4 | O45: 10 | P45: 11 | Q45: 5 | R45: 9 | S45: 5 | T45: 9 | U45: 12 | V45: 5 | W45: 3 | X45: =SUM(AC45:AG45) -> 339.8965806 | Y45: =SUM(AE45:AI45) -> 332.5075245 | Z45: =SUM(AF45:AJ45) -> 376.841861 | AB45: =(17-O45)*POWER(EXP(1),2*(4-IF([1]!Cell_Color(O45)=[1]!Cell_Color($A$4),1,IF([1]!Cell_Color(O45)=[1]!Cell_Color($A$5),2,IF([1]!Cell_Color(O45)=[1]!Cell_Color($A$6),3,IF([1]!Cell_Color(O45)=[1]!Cell_Color($A$7),3,IF([1]!Cell_Color(O45)=[1]!Cell_Color($A$8),4,IF([1]!Cell_Color(O45)=[1]!Cell_Color($A$9),4,0)))))))) -> 51.72339269 | AC45: =(17-P45)*POWER(EXP(1),2*(4-IF([1]!Cell_Color(P45)=[1]!Cell_Color($A$4),1,IF([1]!Cell_Color(P45)=[1]!Cell_Color($A$5),2,IF([1]!Cell_Color(P45)=[1]!Cell_Color($A$6),3,IF([1]!Cell_Color(P45)=[1]!Cell_Color($A$7),3,IF([1]!Cell_Color(P45)=[1]!Cell_Color($A$8),4,IF([1]!Cell_Color(P45)=[1]!Cell_Color($A$9),4,0)))))))) -> 44.33433659 | AD45: =(17-Q45)*POWER(EXP(1),2*(4-IF([1]!Cell_Color(Q45)=[1]!Cell_Color($A$4),1,IF([1]!Cell_Color(Q45)=[1]!Cell_Color($A$5),2,IF([1]!Cell_Color(Q45)=[1]!Cell_Color($A$6),3,IF([1]!Cell_Color(Q45)=[1]!Cell_Color($A$7),3,IF([1]!Cell_Color(Q45)=[1]!Cell_Color($A$8),4,IF([1]!Cell_Color(Q45)=[1]!Cell_Color($A$9),4,0)))))))) -> 88.66867319 | AE45: =(17-R45)*POWER(EXP(1),2*(4-IF([1]!Cell_Color(R45)=[1]!Cell_Color($A$4),1,IF([1]!Cell_Color(R45)=[1]!Cell_Color($A$5),2,IF([1]!Cell_Color(R45)=[1]!Cell_Color($A$6),3,IF([1]!Cell_Color(R45)=[1]!Cell_Color($A$7),3,IF([1]!Cell_Color(R45)=[1]!Cell_Color($A$8),4,IF([1]!Cell_Color(R45)=[1]!Cell_Color($A$9),4,0)))))))) -> 59.11244879 | AF45: =(17-S45)*POWER(EXP(1),2*(4-IF([1]!Cell_Color(S45)=[1]!Cell_Color($A$4),1,IF([1]!Cell_Color(S45)=[1]!Cell_Color($A$5),2,IF([1]!Cell_Color(S45)=[1]!Cell_Color($A$6),3,IF([1]!Cell_Color(S45)=[1]!Cell_Color($A$7),3,IF([1]!Cell_Color(S45)=[1]!Cell_Color($A$8),4,IF([1]!Cell_Color(S45)=[1]!Cell_Color($A$9),4,0)))))))) -> 88.66867319 | AG45: =(17-T45)*POWER(EXP(1),2*(4-IF([1]!Cell_Color(T45)=[1]!Cell_Color($A$4),1,IF([1]!Cell_Color(T45)=[1]!Cell_Color($A$5),2,IF([1]!Cell_Color(T45)=[1]!Cell_Color($A$6),3,IF([1]!Cell_Color(T45)=[1]!Cell_Color($A$7),3,IF([1]!Cell_Color(T45)=[1]!Cell_Color($A$8),4,IF([1]!Cell_Color(T45)=[1]!Cell_Color($A$9),4,0)))))))) -> 59.11244879 | AH45: =(17-U45)*POWER(EXP(1),2*(4-IF([1]!Cell_Color(U45)=[1]!Cell_Color($A$4),1,IF([1]!Cell_Color(U45)=[1]!Cell_Color($A$5),2,IF([1]!Cell_Color(U45)=[1]!Cell_Color($A$6),3,IF([1]!Cell_Color(U45)=[1]!Cell_Color($A$7),3,IF([1]!Cell_Color(U45)=[1]!Cell_Color($A$8),4,IF([1]!Cell_Color(U45)=[1]!Cell_Color($A$9),4,0)))))))) -> 36.94528049 | AI45: =(17-V45)*POWER(EXP(1),2*(4-IF([1]!Cell_Color(V45)=[1]!Cell_Color($A$4),1,IF([1]!Cell_Color(V45)=[1]!Cell_Color($A$5),2,IF([1]!Cell_Color(V45)=[1]!Cell_Color($A$6),3,IF([1]!Cell_Color(V45)=[1]!Cell_Color($A$7),3,IF([1]!Cell_Color(V45)=[1]!Cell_Color($A$8),4,IF([1]!Cell_Color(V45)=[1]!Cell_Color($A$9),4,0)))))))) -> 88.66867319 | AJ45: =(17-W45)*POWER(EXP(1),2*(4-IF([1]!Cell_Color(W45)=[1]!Cell_Color($A$4),1,IF([1]!Cell_Color(W45)=[1]!Cell_Color($A$5),2,IF([1]!Cell_Color(W45)=[1]!Cell_Color($A$6),3,IF([1]!Cell_Color(W45)=[1]!Cell_Color($A$7),3,IF([1]!Cell_Color(W45)=[1]!Cell_Color($A$8),4,IF([1]!Cell_Color(W45)=[1]!Cell_Color($A$9),4,0)))))))) -> 103.4467854
C46: 43 | D46: 68 | E46: 25 | F46: 48 | G46: 5 | H46: 43 | I46: Дьюла Термал ФК | J46: 9 | K46: 12 | L46: 9 | M46: 9 | N46: 6 | O46: 16 | P46: 16 | Q46: 6 | R46: 5 | S46: 1 | T46: 6 | U46: 9 | V46: 4 | W46: 5 | X46: =SUM(AC46:AG46) -> 121.2796171 | Y46: =SUM(AE46:AI46) -> 264.4497952 | Z46: =SUM(AF46:AJ46) -> 341.1184684 | AB46: =(17-O46)*POWER(EXP(1),2*(4-IF([1]!Cell_Color(O46)=[1]!Cell_Color($A$4),1,IF([1]!Cell_Color(O46)=[1]!Cell_Color($A$5),2,IF([1]!Cell_Color(O46)=[1]!Cell_Color($A$6),3,IF([1]!Cell_Color(O46)=[1]!Cell_Color($A$7),3,IF([1]!Cell_Color(O46)=[1]!Cell_Color($A$8),4,IF([1]!Cell_Color(O46)=[1]!Cell_Color($A$9),4,0)))))))) -> 7.389056099 | AC46: =(17-P46)*POWER(EXP(1),2*(4-IF([1]!Cell_Color(P46)=[1]!Cell_Color($A$4),1,IF([1]!Cell_Color(P46)=[1]!Cell_Color($A$5),2,IF([1]!Cell_Color(P46)=[1]!Cell_Color($A$6),3,IF([1]!Cell_Color(P46)=[1]!Cell_Color($A$7),3,IF([1]!Cell_Color(P46)=[1]!Cell_Color($A$8),4,IF([1]!Cell_Color(P46)=[1]!Cell_Color($A$9),4,0)))))))) -> 1 | AD46: =(17-Q46)*POWER(EXP(1),2*(4-IF([1]!Cell_Color(Q46)=[1]!Cell_Color($A$4),1,IF([1]!Cell_Color(Q46)=[1]!Cell_Color($A$5),2,IF([1]!Cell_Color(Q46)=[1]!Cell_Color($A$6),3,IF([1]!Cell_Color(Q46)=[1]!Cell_Color($A$7),3,IF([1]!Cell_Color(Q46)=[1]!Cell_Color($A$8),4,IF([1]!Cell_Color(Q46)=[1]!Cell_Color($A$9),4,0)))))))) -> 11 | AE46: =(17-R46)*POWER(EXP(1),2*(4-IF([1]!Cell_Color(R46)=[1]!Cell_Color($A$4),1,IF([1]!Cell_Color(R46)=[1]!Cell_Color($A$5),2,IF([1]!Cell_Color(R46)=[1]!Cell_Color($A$6),3,IF([1]!Cell_Color(R46)=[1]!Cell_Color($A$7),3,IF([1]!Cell_Color(R46)=[1]!Cell_Color($A$8),4,IF([1]!Cell_Color(R46)=[1]!Cell_Color($A$9),4,0)))))))) -> 12 | AF46: =(17-S46)*POWER(EXP(1),2*(4-IF([1]!Cell_Color(S46)=[1]!Cell_Color($A$4),1,IF([1]!Cell_Color(S46)=[1]!Cell_Color($A$5),2,IF([1]!Cell_Color(S46)=[1]!Cell_Color($A$6),3,IF([1]!Cell_Color(S46)=[1]!Cell_Color($A$7),3,IF([1]!Cell_Color(S46)=[1]!Cell_Color($A$8),4,IF([1]!Cell_Color(S46)=[1]!Cell_Color($A$9),4,0)))))))) -> 16 | AG46: =(17-T46)*POWER(EXP(1),2*(4-IF([1]!Cell_Color(T46)=[1]!Cell_Color($A$4),1,IF([1]!Cell_Color(T46)=[1]!Cell_Color($A$5),2,IF([1]!Cell_Color(T46)=[1]!Cell_Color($A$6),3,IF([1]!Cell_Color(T46)=[1]!Cell_Color($A$7),3,IF([1]!Cell_Color(T46)=[1]!Cell_Color($A$8),4,IF([1]!Cell_Color(T46)=[1]!Cell_Color($A$9),4,0)))))))) -> 81.27961709 | AH46: =(17-U46)*POWER(EXP(1),2*(4-IF([1]!Cell_Color(U46)=[1]!Cell_Color($A$4),1,IF([1]!Cell_Color(U46)=[1]!Cell_Color($A$5),2,IF([1]!Cell_Color(U46)=[1]!Cell_Color($A$6),3,IF([1]!Cell_Color(U46)=[1]!Cell_Color($A$7),3,IF([1]!Cell_Color(U46)=[1]!Cell_Color($A$8),4,IF([1]!Cell_Color(U46)=[1]!Cell_Color($A$9),4,0)))))))) -> 59.11244879 | AI46: =(17-V46)*POWER(EXP(1),2*(4-IF([1]!Cell_Color(V46)=[1]!Cell_Color($A$4),1,IF([1]!Cell_Color(V46)=[1]!Cell_Color($A$5),2,IF([1]!Cell_Color(V46)=[1]!Cell_Color($A$6),3,IF([1]!Cell_Color(V46)=[1]!Cell_Color($A$7),3,IF([1]!Cell_Color(V46)=[1]!Cell_Color($A$8),4,IF([1]!Cell_Color(V46)=[1]!Cell_Color($A$9),4,0)))))))) -> 96.05772929 | AJ46: =(17-W46)*POWER(EXP(1),2*(4-IF([1]!Cell_Color(W46)=[1]!Cell_Color($A$4),1,IF([1]!Cell_Color(W46)=[1]!Cell_Color($A$5),2,IF([1]!Cell_Color(W46)=[1]!Cell_Color($A$6),3,IF([1]!Cell_Color(W46)=[1]!Cell_Color($A$7),3,IF([1]!Cell_Color(W46)=[1]!Cell_Color($A$8),4,IF([1]!Cell_Color(W46)=[1]!Cell_Color($A$9),4,0)))))))) -> 88.66867319
C47: 44 | D47: 60 | E47: 16 | F47: 46 | G47: 2 | H47: 44 | I47: Солошкерт Надьред СК | L47: 13 | M47: 14 | N47: 10 | O47: 6 | P47: 4 | Q47: 2 | R47: 15 | S47: 2 | T47: 3 | U47: 2 | V47: 10 | W47: 9 | X47: =SUM(AC47:AG47) -> 161.2248976 | Y47: =SUM(AE47:AI47) -> 295.7841318 | Z47: =SUM(AF47:AJ47) -> 340.1184684 | AB47: =(17-O47)*POWER(EXP(1),2*(4-IF([1]!Cell_Color(O47)=[1]!Cell_Color($A$4),1,IF([1]!Cell_Color(O47)=[1]!Cell_Color($A$5),2,IF([1]!Cell_Color(O47)=[1]!Cell_Color($A$6),3,IF([1]!Cell_Color(O47)=[1]!Cell_Color($A$7),3,IF([1]!Cell_Color(O47)=[1]!Cell_Color($A$8),4,IF([1]!Cell_Color(O47)=[1]!Cell_Color($A$9),4,0)))))))) -> 11 | AC47: =(17-P47)*POWER(EXP(1),2*(4-IF([1]!Cell_Color(P47)=[1]!Cell_Color($A$4),1,IF([1]!Cell_Color(P47)=[1]!Cell_Color($A$5),2,IF([1]!Cell_Color(P47)=[1]!Cell_Color($A$6),3,IF([1]!Cell_Color(P47)=[1]!Cell_Color($A$7),3,IF([1]!Cell_Color(P47)=[1]!Cell_Color($A$8),4,IF([1]!Cell_Color(P47)=[1]!Cell_Color($A$9),4,0)))))))) -> 13 | AD47: =(17-Q47)*POWER(EXP(1),2*(4-IF([1]!Cell_Color(Q47)=[1]!Cell_Color($A$4),1,IF([1]!Cell_Color(Q47)=[1]!Cell_Color($A$5),2,IF([1]!Cell_Color(Q47)=[1]!Cell_Color($A$6),3,IF([1]!Cell_Color(Q47)=[1]!Cell_Color($A$7),3,IF([1]!Cell_Color(Q47)=[1]!Cell_Color($A$8),4,IF([1]!Cell_Color(Q47)=[1]!Cell_Color($A$9),4,0)))))))) -> 15 | AE47: =(17-R47)*POWER(EXP(1),2*(4-IF([1]!Cell_Color(R47)=[1]!Cell_Color($A$4),1,IF([1]!Cell_Color(R47)=[1]!Cell_Color($A$5),2,IF([1]!Cell_Color(R47)=[1]!Cell_Color($A$6),3,IF([1]!Cell_Color(R47)=[1]!Cell_Color($A$7),3,IF([1]!Cell_Color(R47)=[1]!Cell_Color($A$8),4,IF([1]!Cell_Color(R47)=[1]!Cell_Color($A$9),4,0)))))))) -> 14.7781122 | AF47: =(17-S47)*POWER(EXP(1),2*(4-IF([1]!Cell_Color(S47)=[1]!Cell_Color($A$4),1,IF([1]!Cell_Color(S47)=[1]!Cell_Color($A$5),2,IF([1]!Cell_Color(S47)=[1]!Cell_Color($A$6),3,IF([1]!Cell_Color(S47)=[1]!Cell_Color($A$7),3,IF([1]!Cell_Color(S47)=[1]!Cell_Color($A$8),4,IF([1]!Cell_Color(S47)=[1]!Cell_Color($A$9),4,0)))))))) -> 15 | AG47: =(17-T47)*POWER(EXP(1),2*(4-IF([1]!Cell_Color(T47)=[1]!Cell_Color($A$4),1,IF([1]!Cell_Color(T47)=[1]!Cell_Color($A$5),2,IF([1]!Cell_Color(T47)=[1]!Cell_Color($A$6),3,IF([1]!Cell_Color(T47)=[1]!Cell_Color($A$7),3,IF([1]!Cell_Color(T47)=[1]!Cell_Color($A$8),4,IF([1]!Cell_Color(T47)=[1]!Cell_Color($A$9),4,0)))))))) -> 103.4467854 | AH47: =(17-U47)*POWER(EXP(1),2*(4-IF([1]!Cell_Color(U47)=[1]!Cell_Color($A$4),1,IF([1]!Cell_Color(U47)=[1]!Cell_Color($A$5),2,IF([1]!Cell_Color(U47)=[1]!Cell_Color($A$6),3,IF([1]!Cell_Color(U47)=[1]!Cell_Color($A$7),3,IF([1]!Cell_Color(U47)=[1]!Cell_Color($A$8),4,IF([1]!Cell_Color(U47)=[1]!Cell_Color($A$9),4,0)))))))) -> 110.8358415 | AI47: =(17-V47)*POWER(EXP(1),2*(4-IF([1]!Cell_Color(V47)=[1]!Cell_Color($A$4),1,IF([1]!Cell_Color(V47)=[1]!Cell_Color($A$5),2,IF([1]!Cell_Color(V47)=[1]!Cell_Color($A$6),3,IF([1]!Cell_Color(V47)=[1]!Cell_Color($A$7),3,IF([1]!Cell_Color(V47)=[1]!Cell_Color($A$8),4,IF([1]!Cell_Color(V47)=[1]!Cell_Color($A$9),4,0)))))))) -> 51.72339269 | AJ47: =(17-W47)*POWER(EXP(1),2*(4-IF([1]!Cell_Color(W47)=[1]!Cell_Color($A$4),1,IF([1]!Cell_Color(W47)=[1]!Cell_Color($A$5),2,IF([1]!Cell_Color(W47)=[1]!Cell_Color($A$6),3,IF([1]!Cell_Color(W47)=[1]!Cell_Color($A$7),3,IF([1]!Cell_Color(W47)=[1]!Cell_Color($A$8),4,IF([1]!Cell_Color(W47)=[1]!Cell_Color($A$9),4,0)))))))) -> 59.11244879
C48: 45 | D48: 67 | E48: 22 | F48: 47 | G48: 2 | H48: 45 | I48: Буч КСК | L48: 4 | M48: 12 | N48: 15 | O48: 16 | P48: 6 | Q48: 1 | R48: 10 | S48: 13 | T48: 2 | U48: 5 | V48: 6 | W48: 1 | X48: =SUM(AC48:AG48) -> 123.2796171 | Y48: =SUM(AE48:AI48) -> 266.2279074 | Z48: =SUM(AF48:AJ48) -> 332.7294123 | AB48: =(17-O48)*POWER(EXP(1),2*(4-IF([1]!Cell_Color(O48)=[1]!Cell_Color($A$4),1,IF([1]!Cell_Color(O48)=[1]!Cell_Color($A$5),2,IF([1]!Cell_Color(O48)=[1]!Cell_Color($A$6),3,IF([1]!Cell_Color(O48)=[1]!Cell_Color($A$7),3,IF([1]!Cell_Color(O48)=[1]!Cell_Color($A$8),4,IF([1]!Cell_Color(O48)=[1]!Cell_Color($A$9),4,0)))))))) -> 1 | AC48: =(17-P48)*POWER(EXP(1),2*(4-IF([1]!Cell_Color(P48)=[1]!Cell_Color($A$4),1,IF([1]!Cell_Color(P48)=[1]!Cell_Color($A$5),2,IF([1]!Cell_Color(P48)=[1]!Cell_Color($A$6),3,IF([1]!Cell_Color(P48)=[1]!Cell_Color($A$7),3,IF([1]!Cell_Color(P48)=[1]!Cell_Color($A$8),4,IF([1]!Cell_Color(P48)=[1]!Cell_Color($A$9),4,0)))))))) -> 11 | AD48: =(17-Q48)*POWER(EXP(1),2*(4-IF([1]!Cell_Color(Q48)=[1]!Cell_Color($A$4),1,IF([1]!Cell_Color(Q48)=[1]!Cell_Color($A$5),2,IF([1]!Cell_Color(Q48)=[1]!Cell_Color($A$6),3,IF([1]!Cell_Color(Q48)=[1]!Cell_Color($A$7),3,IF([1]!Cell_Color(Q48)=[1]!Cell_Color($A$8),4,IF([1]!Cell_Color(Q48)=[1]!Cell_Color($A$9),4,0)))))))) -> 16 | AE48: =(17-R48)*POWER(EXP(1),2*(4-IF([1]!Cell_Color(R48)=[1]!Cell_Color($A$4),1,IF([1]!Cell_Color(R48)=[1]!Cell_Color($A$5),2,IF([1]!Cell_Color(R48)=[1]!Cell_Color($A$6),3,IF([1]!Cell_Color(R48)=[1]!Cell_Color($A$7),3,IF([1]!Cell_Color(R48)=[1]!Cell_Color($A$8),4,IF([1]!Cell_Color(R48)=[1]!Cell_Color($A$9),4,0)))))))) -> 51.72339269 | AF48: =(17-S48)*POWER(EXP(1),2*(4-IF([1]!Cell_Color(S48)=[1]!Cell_Color($A$4),1,IF([1]!Cell_Color(S48)=[1]!Cell_Color($A$5),2,IF([1]!Cell_Color(S48)=[1]!Cell_Color($A$6),3,IF([1]!Cell_Color(S48)=[1]!Cell_Color($A$7),3,IF([1]!Cell_Color(S48)=[1]!Cell_Color($A$8),4,IF([1]!Cell_Color(S48)=[1]!Cell_Color($A$9),4,0)))))))) -> 29.5562244 | AG48: =(17-T48)*POWER(EXP(1),2*(4-IF([1]!Cell_Color(T48)=[1]!Cell_Color($A$4),1,IF([1]!Cell_Color(T48)=[1]!Cell_Color($A$5),2,IF([1]!Cell_Color(T48)=[1]!Cell_Color($A$6),3,IF([1]!Cell_Color(T48)=[1]!Cell_Color($A$7),3,IF([1]!Cell_Color(T48)=[1]!Cell_Color($A$8),4,IF([1]!Cell_Color(T48)=[1]!Cell_Color($A$9),4,0)))))))) -> 15 | AH48: =(17-U48)*POWER(EXP(1),2*(4-IF([1]!Cell_Color(U48)=[1]!Cell_Color($A$4),1,IF([1]!Cell_Color(U48)=[1]!Cell_Color($A$5),2,IF([1]!Cell_Color(U48)=[1]!Cell_Color($A$6),3,IF([1]!Cell_Color(U48)=[1]!Cell_Color($A$7),3,IF([1]!Cell_Color(U48)=[1]!Cell_Color($A$8),4,IF([1]!Cell_Color(U48)=[1]!Cell_Color($A$9),4,0)))))))) -> 88.66867319 | AI48: =(17-V48)*POWER(EXP(1),2*(4-IF([1]!Cell_Color(V48)=[1]!Cell_Color($A$4),1,IF([1]!Cell_Color(V48)=[1]!Cell_Color($A$5),2,IF([1]!Cell_Color(V48)=[1]!Cell_Color($A$6),3,IF([1]!Cell_Color(V48)=[1]!Cell_Color($A$7),3,IF([1]!Cell_Color(V48)=[1]!Cell_Color($A$8),4,IF([1]!Cell_Color(V48)=[1]!Cell_Color($A$9),4,0)))))))) -> 81.27961709 | AJ48: =(17-W48)*POWER(EXP(1),2*(4-IF([1]!Cell_Color(W48)=[1]!Cell_Color($A$4),1,IF([1]!Cell_Color(W48)=[1]!Cell_Color($A$5),2,IF([1]!Cell_Color(W48)=[1]!Cell_Color($A$6),3,IF([1]!Cell_Color(W48)=[1]!Cell_Color($A$7),3,IF([1]!Cell_Color(W48)=[1]!Cell_Color($A$8),4,IF([1]!Cell_Color(W48)=[1]!Cell_Color($A$9),4,0)))))))) -> 118.2248976
C49: 46 | D49: 47 | E49: 1 | F49: 45 | G49: -1 | H49: 46 | I49: Путнок | J49: 5 | K49: 1 | L49: 12 | M49: 15 | N49: 2 | O49: 5 | P49: 1 | Q49: 16 | R49: 12 | S49: 10 | T49: 11 | U49: 8 | V49: 2 | W49: 9 | X49: =SUM(AC49:AG49) -> 305.8260574 | Y49: =SUM(AE49:AI49) -> 310.3403562 | Z49: =SUM(AF49:AJ49) -> 332.5075245 | AB49: =(17-O49)*POWER(EXP(1),2*(4-IF([1]!Cell_Color(O49)=[1]!Cell_Color($A$4),1,IF([1]!Cell_Color(O49)=[1]!Cell_Color($A$5),2,IF([1]!Cell_Color(O49)=[1]!Cell_Color($A$6),3,IF([1]!Cell_Color(O49)=[1]!Cell_Color($A$7),3,IF([1]!Cell_Color(O49)=[1]!Cell_Color($A$8),4,IF([1]!Cell_Color(O49)=[1]!Cell_Color($A$9),4,0)))))))) -> 88.66867319 | AC49: =(17-P49)*POWER(EXP(1),2*(4-IF([1]!Cell_Color(P49)=[1]!Cell_Color($A$4),1,IF([1]!Cell_Color(P49)=[1]!Cell_Color($A$5),2,IF([1]!Cell_Color(P49)=[1]!Cell_Color($A$6),3,IF([1]!Cell_Color(P49)=[1]!Cell_Color($A$7),3,IF([1]!Cell_Color(P49)=[1]!Cell_Color($A$8),4,IF([1]!Cell_Color(P49)=[1]!Cell_Color($A$9),4,0)))))))) -> 118.2248976 | AD49: =(17-Q49)*POWER(EXP(1),2*(4-IF([1]!Cell_Color(Q49)=[1]!Cell_Color($A$4),1,IF([1]!Cell_Color(Q49)=[1]!Cell_Color($A$5),2,IF([1]!Cell_Color(Q49)=[1]!Cell_Color($A$6),3,IF([1]!Cell_Color(Q49)=[1]!Cell_Color($A$7),3,IF([1]!Cell_Color(Q49)=[1]!Cell_Color($A$8),4,IF([1]!Cell_Color(Q49)=[1]!Cell_Color($A$9),4,0)))))))) -> 54.59815003 | AE49: =(17-R49)*POWER(EXP(1),2*(4-IF([1]!Cell_Color(R49)=[1]!Cell_Color($A$4),1,IF([1]!Cell_Color(R49)=[1]!Cell_Color($A$5),2,IF([1]!Cell_Color(R49)=[1]!Cell_Color($A$6),3,IF([1]!Cell_Color(R49)=[1]!Cell_Color($A$7),3,IF([1]!Cell_Color(R49)=[1]!Cell_Color($A$8),4,IF([1]!Cell_Color(R49)=[1]!Cell_Color($A$9),4,0)))))))) -> 36.94528049 | AF49: =(17-S49)*POWER(EXP(1),2*(4-IF([1]!Cell_Color(S49)=[1]!Cell_Color($A$4),1,IF([1]!Cell_Color(S49)=[1]!Cell_Color($A$5),2,IF([1]!Cell_Color(S49)=[1]!Cell_Color($A$6),3,IF([1]!Cell_Color(S49)=[1]!Cell_Color($A$7),3,IF([1]!Cell_Color(S49)=[1]!Cell_Color($A$8),4,IF([1]!Cell_Color(S49)=[1]!Cell_Color($A$9),4,0)))))))) -> 51.72339269 | AG49: =(17-T49)*POWER(EXP(1),2*(4-IF([1]!Cell_Color(T49)=[1]!Cell_Color($A$4),1,IF([1]!Cell_Color(T49)=[1]!Cell_Color($A$5),2,IF([1]!Cell_Color(T49)=[1]!Cell_Color($A$6),3,IF([1]!Cell_Color(T49)=[1]!Cell_Color($A$7),3,IF([1]!Cell_Color(T49)=[1]!Cell_Color($A$8),4,IF([1]!Cell_Color(T49)=[1]!Cell_Color($A$9),4,0)))))))) -> 44.33433659 | AH49: =(17-U49)*POWER(EXP(1),2*(4-IF([1]!Cell_Color(U49)=[1]!Cell_Color($A$4),1,IF([1]!Cell_Color(U49)=[1]!Cell_Color($A$5),2,IF([1]!Cell_Color(U49)=[1]!Cell_Color($A$6),3,IF([1]!Cell_Color(U49)=[1]!Cell_Color($A$7),3,IF([1]!Cell_Color(U49)=[1]!Cell_Color($A$8),4,IF([1]!Cell_Color(U49)=[1]!Cell_Color($A$9),4,0)))))))) -> 66.50150489 | AI49: =(17-V49)*POWER(EXP(1),2*(4-IF([1]!Cell_Color(V49)=[1]!Cell_Color($A$4),1,IF([1]!Cell_Color(V49)=[1]!Cell_Color($A$5),2,IF([1]!Cell_Color(V49)=[1]!Cell_Color($A$6),3,IF([1]!Cell_Color(V49)=[1]!Cell_Color($A$7),3,IF([1]!Cell_Color(V49)=[1]!Cell_Color($A$8),4,IF([1]!Cell_Color(V49)=[1]!Cell_Color($A$9),4,0)))))))) -> 110.8358415 | AJ49: =(17-W49)*POWER(EXP(1),2*(4-IF([1]!Cell_Color(W49)=[1]!Cell_Color($A$4),1,IF([1]!Cell_Color(W49)=[1]!Cell_Color($A$5),2,IF([1]!Cell_Color(W49)=[1]!Cell_Color($A$6),3,IF([1]!Cell_Color(W49)=[1]!Cell_Color($A$7),3,IF([1]!Cell_Color(W49)=[1]!Cell_Color($A$8),4,IF([1]!Cell_Color(W49)=[1]!Cell_Color($A$9),4,0)))))))) -> 59.11244879
C50: 47 | D50: 29 | E50: -18 | F50: 37 | G50: -10 | H50: 47 | I50: Печи МФК | J50: 16 | K50: 14 | L50: 1 | M50: 11 | N50: 5 | O50: 14 | P50: 9 | Q50: 7 | R50: 12 | S50: 13 | T50: 16 | U50: 13 | V50: 2 | W50: 16 | X50: =SUM(AC50:AG50) -> 1528.748201 | Y50: =SUM(AE50:AI50) -> 590.5377247 | Z50: =SUM(AF50:AJ50) -> 324.9360307 | AB50: =(17-O50)*POWER(EXP(1),2*(4-IF([1]!Cell_Color(O50)=[1]!Cell_Color($A$4),1,IF([1]!Cell_Color(O50)=[1]!Cell_Color($A$5),2,IF([1]!Cell_Color(O50)=[1]!Cell_Color($A$6),3,IF([1]!Cell_Color(O50)=[1]!Cell_Color($A$7),3,IF([1]!Cell_Color(O50)=[1]!Cell_Color($A$8),4,IF([1]!Cell_Color(O50)=[1]!Cell_Color($A$9),4,0)))))))) -> 163.7944501 | AC50: =(17-P50)*POWER(EXP(1),2*(4-IF([1]!Cell_Color(P50)=[1]!Cell_Color($A$4),1,IF([1]!Cell_Color(P50)=[1]!Cell_Color($A$5),2,IF([1]!Cell_Color(P50)=[1]!Cell_Color($A$6),3,IF([1]!Cell_Color(P50)=[1]!Cell_Color($A$7),3,IF([1]!Cell_Color(P50)=[1]!Cell_Color($A$8),4,IF([1]!Cell_Color(P50)=[1]!Cell_Color($A$9),4,0)))))))) -> 436.7852003 | AD50: =(17-Q50)*POWER(EXP(1),2*(4-IF([1]!Cell_Color(Q50)=[1]!Cell_Color($A$4),1,IF([1]!Cell_Color(Q50)=[1]!Cell_Color($A$5),2,IF([1]!Cell_Color(Q50)=[1]!Cell_Color($A$6),3,IF([1]!Cell_Color(Q50)=[1]!Cell_Color($A$7),3,IF([1]!Cell_Color(Q50)=[1]!Cell_Color($A$8),4,IF([1]!Cell_Color(Q50)=[1]!Cell_Color($A$9),4,0)))))))) -> 545.9815003 | AE50: =(17-R50)*POWER(EXP(1),2*(4-IF([1]!Cell_Color(R50)=[1]!Cell_Color($A$4),1,IF([1]!Cell_Color(R50)=[1]!Cell_Color($A$5),2,IF([1]!Cell_Color(R50)=[1]!Cell_Color($A$6),3,IF([1]!Cell_Color(R50)=[1]!Cell_Color($A$7),3,IF([1]!Cell_Color(R50)=[1]!Cell_Color($A$8),4,IF([1]!Cell_Color(R50)=[1]!Cell_Color($A$9),4,0)))))))) -> 272.9907502 | AF50: =(17-S50)*POWER(EXP(1),2*(4-IF([1]!Cell_Color(S50)=[1]!Cell_Color($A$4),1,IF([1]!Cell_Color(S50)=[1]!Cell_Color($A$5),2,IF([1]!Cell_Color(S50)=[1]!Cell_Color($A$6),3,IF([1]!Cell_Color(S50)=[1]!Cell_Color($A$7),3,IF([1]!Cell_Color(S50)=[1]!Cell_Color($A$8),4,IF([1]!Cell_Color(S50)=[1]!Cell_Color($A$9),4,0)))))))) -> 218.3926001 | AG50: =(17-T50)*POWER(EXP(1),2*(4-IF([1]!Cell_Color(T50)=[1]!Cell_Color($A$4),1,IF([1]!Cell_Color(T50)=[1]!Cell_Color($A$5),2,IF([1]!Cell_Color(T50)=[1]!Cell_Color($A$6),3,IF([1]!Cell_Color(T50)=[1]!Cell_Color($A$7),3,IF([1]!Cell_Color(T50)=[1]!Cell_Color($A$8),4,IF([1]!Cell_Color(T50)=[1]!Cell_Color($A$9),4,0)))))))) -> 54.59815003 | AH50: =(17-U50)*POWER(EXP(1),2*(4-IF([1]!Cell_Color(U50)=[1]!Cell_Color($A$4),1,IF([1]!Cell_Color(U50)=[1]!Cell_Color($A$5),2,IF([1]!Cell_Color(U50)=[1]!Cell_Color($A$6),3,IF([1]!Cell_Color(U50)=[1]!Cell_Color($A$7),3,IF([1]!Cell_Color(U50)=[1]!Cell_Color($A$8),4,IF([1]!Cell_Color(U50)=[1]!Cell_Color($A$9),4,0)))))))) -> 29.5562244 | AI50: =(17-V50)*POWER(EXP(1),2*(4-IF([1]!Cell_Color(V50)=[1]!Cell_Color($A$4),1,IF([1]!Cell_Color(V50)=[1]!Cell_Color($A$5),2,IF([1]!Cell_Color(V50)=[1]!Cell_Color($A$6),3,IF([1]!Cell_Color(V50)=[1]!Cell_Color($A$7),3,IF([1]!Cell_Color(V50)=[1]!Cell_Color($A$8),4,IF([1]!Cell_Color(V50)=[1]!Cell_Color($A$9),4,0)))))))) -> 15 | AJ50: =(17-W50)*POWER(EXP(1),2*(4-IF([1]!Cell_Color(W50)=[1]!Cell_Color($A$4),1,IF([1]!Cell_Color(W50)=[1]!Cell_Color($A$5),2,IF([1]!Cell_Color(W50)=[1]!Cell_Color($A$6),3,IF([1]!Cell_Color(W50)=[1]!Cell_Color($A$7),3,IF([1]!Cell_Color(W50)=[1]!Cell_Color($A$8),4,IF([1]!Cell_Color(W50)=[1]!Cell_Color($A$9),4,0)))))))) -> 7.389056099
C51: 48 | D51: 34 | E51: -14 | F51: 36 | G51: -12 | H51: 48 | I51: Дебрецен | J51: 12 | K51: 11 | L51: 14 | M51: 5 | N51: 2 | O51: 16 | P51: 14 | Q51: 1 | R51: 11 | S51: 14 | T51: 14 | U51: 1 | V51: 7 | W51: 12 | X51: =SUM(AC51:AG51) -> 795.5698663 | Y51: =SUM(AE51:AI51) -> 603.4410796 | Z51: =SUM(AF51:AJ51) -> 312.7974599 | AB51: =(17-O51)*POWER(EXP(1),2*(4-IF([1]!Cell_Color(O51)=[1]!Cell_Color($A$4),1,IF([1]!Cell_Color(O51)=[1]!Cell_Color($A$5),2,IF([1]!Cell_Color(O51)=[1]!Cell_Color($A$6),3,IF([1]!Cell_Color(O51)=[1]!Cell_Color($A$7),3,IF([1]!Cell_Color(O51)=[1]!Cell_Color($A$8),4,IF([1]!Cell_Color(O51)=[1]!Cell_Color($A$9),4,0)))))))) -> 403.4287935 | AC51: =(17-P51)*POWER(EXP(1),2*(4-IF([1]!Cell_Color(P51)=[1]!Cell_Color($A$4),1,IF([1]!Cell_Color(P51)=[1]!Cell_Color($A$5),2,IF([1]!Cell_Color(P51)=[1]!Cell_Color($A$6),3,IF([1]!Cell_Color(P51)=[1]!Cell_Color($A$7),3,IF([1]!Cell_Color(P51)=[1]!Cell_Color($A$8),4,IF([1]!Cell_Color(P51)=[1]!Cell_Color($A$9),4,0)))))))) -> 163.7944501 | AD51: =(17-Q51)*POWER(EXP(1),2*(4-IF([1]!Cell_Color(Q51)=[1]!Cell_Color($A$4),1,IF([1]!Cell_Color(Q51)=[1]!Cell_Color($A$5),2,IF([1]!Cell_Color(Q51)=[1]!Cell_Color($A$6),3,IF([1]!Cell_Color(Q51)=[1]!Cell_Color($A$7),3,IF([1]!Cell_Color(Q51)=[1]!Cell_Color($A$8),4,IF([1]!Cell_Color(Q51)=[1]!Cell_Color($A$9),4,0)))))))) -> 118.2248976 | AE51: =(17-R51)*POWER(EXP(1),2*(4-IF([1]!Cell_Color(R51)=[1]!Cell_Color($A$4),1,IF([1]!Cell_Color(R51)=[1]!Cell_Color($A$5),2,IF([1]!Cell_Color(R51)=[1]!Cell_Color($A$6),3,IF([1]!Cell_Color(R51)=[1]!Cell_Color($A$7),3,IF([1]!Cell_Color(R51)=[1]!Cell_Color($A$8),4,IF([1]!Cell_Color(R51)=[1]!Cell_Color($A$9),4,0)))))))) -> 327.5889002 | AF51: =(17-S51)*POWER(EXP(1),2*(4-IF([1]!Cell_Color(S51)=[1]!Cell_Color($A$4),1,IF([1]!Cell_Color(S51)=[1]!Cell_Color($A$5),2,IF([1]!Cell_Color(S51)=[1]!Cell_Color($A$6),3,IF([1]!Cell_Color(S51)=[1]!Cell_Color($A$7),3,IF([1]!Cell_Color(S51)=[1]!Cell_Color($A$8),4,IF([1]!Cell_Color(S51)=[1]!Cell_Color($A$9),4,0)))))))) -> 163.7944501 | AG51: =(17-T51)*POWER(EXP(1),2*(4-IF([1]!Cell_Color(T51)=[1]!Cell_Color($A$4),1,IF([1]!Cell_Color(T51)=[1]!Cell_Color($A$5),2,IF([1]!Cell_Color(T51)=[1]!Cell_Color($A$6),3,IF([1]!Cell_Color(T51)=[1]!Cell_Color($A$7),3,IF([1]!Cell_Color(T51)=[1]!Cell_Color($A$8),4,IF([1]!Cell_Color(T51)=[1]!Cell_Color($A$9),4,0)))))))) -> 22.1671683 | AH51: =(17-U51)*POWER(EXP(1),2*(4-IF([1]!Cell_Color(U51)=[1]!Cell_Color($A$4),1,IF([1]!Cell_Color(U51)=[1]!Cell_Color($A$5),2,IF([1]!Cell_Color(U51)=[1]!Cell_Color($A$6),3,IF([1]!Cell_Color(U51)=[1]!Cell_Color($A$7),3,IF([1]!Cell_Color(U51)=[1]!Cell_Color($A$8),4,IF([1]!Cell_Color(U51)=[1]!Cell_Color($A$9),4,0)))))))) -> 16 | AI51: =(17-V51)*POWER(EXP(1),2*(4-IF([1]!Cell_Color(V51)=[1]!Cell_Color($A$4),1,IF([1]!Cell_Color(V51)=[1]!Cell_Color($A$5),2,IF([1]!Cell_Color(V51)=[1]!Cell_Color($A$6),3,IF([1]!Cell_Color(V51)=[1]!Cell_Color($A$7),3,IF([1]!Cell_Color(V51)=[1]!Cell_Color($A$8),4,IF([1]!Cell_Color(V51)=[1]!Cell_Color($A$9),4,0)))))))) -> 73.89056099 | AJ51: =(17-W51)*POWER(EXP(1),2*(4-IF([1]!Cell_Color(W51)=[1]!Cell_Color($A$4),1,IF([1]!Cell_Color(W51)=[1]!Cell_Color($A$5),2,IF([1]!Cell_Color(W51)=[1]!Cell_Color($A$6),3,IF([1]!Cell_Color(W51)=[1]!Cell_Color($A$7),3,IF([1]!Cell_Color(W51)=[1]!Cell_Color($A$8),4,IF([1]!Cell_Color(W51)=[1]!Cell_Color($A$9),4,0)))))))) -> 36.94528049
C52: 49 | D52: 63 | E52: 14 | F52: 49 | H52: 49 | I52: Тёрёкбалинт ТК | L52: 9 | M52: 8 | N52: 15 | O52: 15 | P52: 7 | Q52: 9 | R52: 2 | S52: 13 | T52: 6 | U52: 6 | V52: 10 | W52: 8 | X52: =SUM(AC52:AG52) -> 143.8358415 | Y52: =SUM(AE52:AI52) -> 258.8388513 | Z52: =SUM(AF52:AJ52) -> 310.3403562 | AB52: =(17-O52)*POWER(EXP(1),2*(4-IF([1]!Cell_Color(O52)=[1]!Cell_Color($A$4),1,IF([1]!Cell_Color(O52)=[1]!Cell_Color($A$5),2,IF([1]!Cell_Color(O52)=[1]!Cell_Color($A$6),3,IF([1]!Cell_Color(O52)=[1]!Cell_Color($A$7),3,IF([1]!Cell_Color(O52)=[1]!Cell_Color($A$8),4,IF([1]!Cell_Color(O52)=[1]!Cell_Color($A$9),4,0)))))))) -> 2 | AC52: =(17-P52)*POWER(EXP(1),2*(4-IF([1]!Cell_Color(P52)=[1]!Cell_Color($A$4),1,IF([1]!Cell_Color(P52)=[1]!Cell_Color($A$5),2,IF([1]!Cell_Color(P52)=[1]!Cell_Color($A$6),3,IF([1]!Cell_Color(P52)=[1]!Cell_Color($A$7),3,IF([1]!Cell_Color(P52)=[1]!Cell_Color($A$8),4,IF([1]!Cell_Color(P52)=[1]!Cell_Color($A$9),4,0)))))))) -> 10 | AD52: =(17-Q52)*POWER(EXP(1),2*(4-IF([1]!Cell_Color(Q52)=[1]!Cell_Color($A$4),1,IF([1]!Cell_Color(Q52)=[1]!Cell_Color($A$5),2,IF([1]!Cell_Color(Q52)=[1]!Cell_Color($A$6),3,IF([1]!Cell_Color(Q52)=[1]!Cell_Color($A$7),3,IF([1]!Cell_Color(Q52)=[1]!Cell_Color($A$8),4,IF([1]!Cell_Color(Q52)=[1]!Cell_Color($A$9),4,0)))))))) -> 8 | AE52: =(17-R52)*POWER(EXP(1),2*(4-IF([1]!Cell_Color(R52)=[1]!Cell_Color($A$4),1,IF([1]!Cell_Color(R52)=[1]!Cell_Color($A$5),2,IF([1]!Cell_Color(R52)=[1]!Cell_Color($A$6),3,IF([1]!Cell_Color(R52)=[1]!Cell_Color($A$7),3,IF([1]!Cell_Color(R52)=[1]!Cell_Color($A$8),4,IF([1]!Cell_Color(R52)=[1]!Cell_Color($A$9),4,0)))))))) -> 15 | AF52: =(17-S52)*POWER(EXP(1),2*(4-IF([1]!Cell_Color(S52)=[1]!Cell_Color($A$4),1,IF([1]!Cell_Color(S52)=[1]!Cell_Color($A$5),2,IF([1]!Cell_Color(S52)=[1]!Cell_Color($A$6),3,IF([1]!Cell_Color(S52)=[1]!Cell_Color($A$7),3,IF([1]!Cell_Color(S52)=[1]!Cell_Color($A$8),4,IF([1]!Cell_Color(S52)=[1]!Cell_Color($A$9),4,0)))))))) -> 29.5562244 | AG52: =(17-T52)*POWER(EXP(1),2*(4-IF([1]!Cell_Color(T52)=[1]!Cell_Color($A$4),1,IF([1]!Cell_Color(T52)=[1]!Cell_Color($A$5),2,IF([1]!Cell_Color(T52)=[1]!Cell_Color($A$6),3,IF([1]!Cell_Color(T52)=[1]!Cell_Color($A$7),3,IF([1]!Cell_Color(T52)=[1]!Cell_Color($A$8),4,IF([1]!Cell_Color(T52)=[1]!Cell_Color($A$9),4,0)))))))) -> 81.27961709 | AH52: =(17-U52)*POWER(EXP(1),2*(4-IF([1]!Cell_Color(U52)=[1]!Cell_Color($A$4),1,IF([1]!Cell_Color(U52)=[1]!Cell_Color($A$5),2,IF([1]!Cell_Color(U52)=[1]!Cell_Color($A$6),3,IF([1]!Cell_Color(U52)=[1]!Cell_Color($A$7),3,IF([1]!Cell_Color(U52)=[1]!Cell_Color($A$8),4,IF([1]!Cell_Color(U52)=[1]!Cell_Color($A$9),4,0)))))))) -> 81.27961709 | AI52: =(17-V52)*POWER(EXP(1),2*(4-IF([1]!Cell_Color(V52)=[1]!Cell_Color($A$4),1,IF([1]!Cell_Color(V52)=[1]!Cell_Color($A$5),2,IF([1]!Cell_Color(V52)=[1]!Cell_Color($A$6),3,IF([1]!Cell_Color(V52)=[1]!Cell_Color($A$7),3,IF([1]!Cell_Color(V52)=[1]!Cell_Color($A$8),4,IF([1]!Cell_Color(V52)=[1]!Cell_Color($A$9),4,0)))))))) -> 51.72339269 | AJ52: =(17-W52)*POWER(EXP(1),2*(4-IF([1]!Cell_Color(W52)=[1]!Cell_Color($A$4),1,IF([1]!Cell_Color(W52)=[1]!Cell_Color($A$5),2,IF([1]!Cell_Color(W52)=[1]!Cell_Color($A$6),3,IF([1]!Cell_Color(W52)=[1]!Cell_Color($A$7),3,IF([1]!Cell_Color(W52)=[1]!Cell_Color($A$8),4,IF([1]!Cell_Color(W52)=[1]!Cell_Color($A$9),4,0)))))))) -> 66.50150489
C53: 50 | D53: 32 | E53: -18 | F53: 42 | G53: -8 | H53: 50 | I53: БВСК-Зугло | J53: 6 | K53: 4 | L53: 8 | M53: 2 | N53: 9 | O53: 8 | P53: 10 | Q53: 13 | R53: 1 | S53: 16 | T53: 5 | U53: 5 | V53: 14 | W53: 4 | X53: =SUM(AC53:AG53) -> 862.0713712 | Y53: =SUM(AE53:AI53) -> 372.3275623 | Z53: =SUM(AF53:AJ53) -> 267.1026647 | AB53: =(17-O53)*POWER(EXP(1),2*(4-IF([1]!Cell_Color(O53)=[1]!Cell_Color($A$4),1,IF([1]!Cell_Color(O53)=[1]!Cell_Color($A$5),2,IF([1]!Cell_Color(O53)=[1]!Cell_Color($A$6),3,IF([1]!Cell_Color(O53)=[1]!Cell_Color($A$7),3,IF([1]!Cell_Color(O53)=[1]!Cell_Color($A$8),4,IF([1]!Cell_Color(O53)=[1]!Cell_Color($A$9),4,0)))))))) -> 491.3833503 | AC53: =(17-P53)*POWER(EXP(1),2*(4-IF([1]!Cell_Color(P53)=[1]!Cell_Color($A$4),1,IF([1]!Cell_Color(P53)=[1]!Cell_Color($A$5),2,IF([1]!Cell_Color(P53)=[1]!Cell_Color($A$6),3,IF([1]!Cell_Color(P53)=[1]!Cell_Color($A$7),3,IF([1]!Cell_Color(P53)=[1]!Cell_Color($A$8),4,IF([1]!Cell_Color(P53)=[1]!Cell_Color($A$9),4,0)))))))) -> 382.1870502 | AD53: =(17-Q53)*POWER(EXP(1),2*(4-IF([1]!Cell_Color(Q53)=[1]!Cell_Color($A$4),1,IF([1]!Cell_Color(Q53)=[1]!Cell_Color($A$5),2,IF([1]!Cell_Color(Q53)=[1]!Cell_Color($A$6),3,IF([1]!Cell_Color(Q53)=[1]!Cell_Color($A$7),3,IF([1]!Cell_Color(Q53)=[1]!Cell_Color($A$8),4,IF([1]!Cell_Color(Q53)=[1]!Cell_Color($A$9),4,0)))))))) -> 218.3926001 | AE53: =(17-R53)*POWER(EXP(1),2*(4-IF([1]!Cell_Color(R53)=[1]!Cell_Color($A$4),1,IF([1]!Cell_Color(R53)=[1]!Cell_Color($A$5),2,IF([1]!Cell_Color(R53)=[1]!Cell_Color($A$6),3,IF([1]!Cell_Color(R53)=[1]!Cell_Color($A$7),3,IF([1]!Cell_Color(R53)=[1]!Cell_Color($A$8),4,IF([1]!Cell_Color(R53)=[1]!Cell_Color($A$9),4,0)))))))) -> 118.2248976 | AF53: =(17-S53)*POWER(EXP(1),2*(4-IF([1]!Cell_Color(S53)=[1]!Cell_Color($A$4),1,IF([1]!Cell_Color(S53)=[1]!Cell_Color($A$5),2,IF([1]!Cell_Color(S53)=[1]!Cell_Color($A$6),3,IF([1]!Cell_Color(S53)=[1]!Cell_Color($A$7),3,IF([1]!Cell_Color(S53)=[1]!Cell_Color($A$8),4,IF([1]!Cell_Color(S53)=[1]!Cell_Color($A$9),4,0)))))))) -> 54.59815003 | AG53: =(17-T53)*POWER(EXP(1),2*(4-IF([1]!Cell_Color(T53)=[1]!Cell_Color($A$4),1,IF([1]!Cell_Color(T53)=[1]!Cell_Color($A$5),2,IF([1]!Cell_Color(T53)=[1]!Cell_Color($A$6),3,IF([1]!Cell_Color(T53)=[1]!Cell_Color($A$7),3,IF([1]!Cell_Color(T53)=[1]!Cell_Color($A$8),4,IF([1]!Cell_Color(T53)=[1]!Cell_Color($A$9),4,0)))))))) -> 88.66867319 | AH53: =(17-U53)*POWER(EXP(1),2*(4-IF([1]!Cell_Color(U53)=[1]!Cell_Color($A$4),1,IF([1]!Cell_Color(U53)=[1]!Cell_Color($A$5),2,IF([1]!Cell_Color(U53)=[1]!Cell_Color($A$6),3,IF([1]!Cell_Color(U53)=[1]!Cell_Color($A$7),3,IF([1]!Cell_Color(U53)=[1]!Cell_Color($A$8),4,IF([1]!Cell_Color(U53)=[1]!Cell_Color($A$9),4,0)))))))) -> 88.66867319 | AI53: =(17-V53)*POWER(EXP(1),2*(4-IF([1]!Cell_Color(V53)=[1]!Cell_Color($A$4),1,IF([1]!Cell_Color(V53)=[1]!Cell_Color($A$5),2,IF([1]!Cell_Color(V53)=[1]!Cell_Color($A$6),3,IF([1]!Cell_Color(V53)=[1]!Cell_Color($A$7),3,IF([1]!Cell_Color(V53)=[1]!Cell_Color($A$8),4,IF([1]!Cell_Color(V53)=[1]!Cell_Color($A$9),4,0)))))))) -> 22.1671683 | AJ53: =(17-W53)*POWER(EXP(1),2*(4-IF([1]!Cell_Color(W53)=[1]!Cell_Color($A$4),1,IF([1]!Cell_Color(W53)=[1]!Cell_Color($A$5),2,IF([1]!Cell_Color(W53)=[1]!Cell_Color($A$6),3,IF([1]!Cell_Color(W53)=[1]!Cell_Color($A$7),3,IF([1]!Cell_Color(W53)=[1]!Cell_Color($A$8),4,IF([1]!Cell_Color(W53)=[1]!Cell_Color($A$9),4,0)))))))) -> 13
C54: 51 | D54: 70 | E54: 19 | F54: 54 | G54: 3 | H54: 51 | I54: Гевиц ФК | J54: 13 | K54: 12 | L54: 9 | M54: 9 | N54: 10 | O54: 12 | P54: 16 | Q54: 11 | R54: 6 | S54: 4 | T54: 9 | U54: 8 | V54: 7 | W54: 13 | X54: =SUM(AC54:AG54) -> 96.50150489 | Y54: =SUM(AE54:AI54) -> 223.5045147 | Z54: =SUM(AF54:AJ54) -> 242.0607391 | AB54: =(17-O54)*POWER(EXP(1),2*(4-IF([1]!Cell_Color(O54)=[1]!Cell_Color($A$4),1,IF([1]!Cell_Color(O54)=[1]!Cell_Color($A$5),2,IF([1]!Cell_Color(O54)=[1]!Cell_Color($A$6),3,IF([1]!Cell_Color(O54)=[1]!Cell_Color($A$7),3,IF([1]!Cell_Color(O54)=[1]!Cell_Color($A$8),4,IF([1]!Cell_Color(O54)=[1]!Cell_Color($A$9),4,0)))))))) -> 36.94528049 | AC54: =(17-P54)*POWER(EXP(1),2*(4-IF([1]!Cell_Color(P54)=[1]!Cell_Color($A$4),1,IF([1]!Cell_Color(P54)=[1]!Cell_Color($A$5),2,IF([1]!Cell_Color(P54)=[1]!Cell_Color($A$6),3,IF([1]!Cell_Color(P54)=[1]!Cell_Color($A$7),3,IF([1]!Cell_Color(P54)=[1]!Cell_Color($A$8),4,IF([1]!Cell_Color(P54)=[1]!Cell_Color($A$9),4,0)))))))) -> 7.389056099 | AD54: =(17-Q54)*POWER(EXP(1),2*(4-IF([1]!Cell_Color(Q54)=[1]!Cell_Color($A$4),1,IF([1]!Cell_Color(Q54)=[1]!Cell_Color($A$5),2,IF([1]!Cell_Color(Q54)=[1]!Cell_Color($A$6),3,IF([1]!Cell_Color(Q54)=[1]!Cell_Color($A$7),3,IF([1]!Cell_Color(Q54)=[1]!Cell_Color($A$8),4,IF([1]!Cell_Color(Q54)=[1]!Cell_Color($A$9),4,0)))))))) -> 6 | AE54: =(17-R54)*POWER(EXP(1),2*(4-IF([1]!Cell_Color(R54)=[1]!Cell_Color($A$4),1,IF([1]!Cell_Color(R54)=[1]!Cell_Color($A$5),2,IF([1]!Cell_Color(R54)=[1]!Cell_Color($A$6),3,IF([1]!Cell_Color(R54)=[1]!Cell_Color($A$7),3,IF([1]!Cell_Color(R54)=[1]!Cell_Color($A$8),4,IF([1]!Cell_Color(R54)=[1]!Cell_Color($A$9),4,0)))))))) -> 11 | AF54: =(17-S54)*POWER(EXP(1),2*(4-IF([1]!Cell_Color(S54)=[1]!Cell_Color($A$4),1,IF([1]!Cell_Color(S54)=[1]!Cell_Color($A$5),2,IF([1]!Cell_Color(S54)=[1]!Cell_Color($A$6),3,IF([1]!Cell_Color(S54)=[1]!Cell_Color($A$7),3,IF([1]!Cell_Color(S54)=[1]!Cell_Color($A$8),4,IF([1]!Cell_Color(S54)=[1]!Cell_Color($A$9),4,0)))))))) -> 13 | AG54: =(17-T54)*POWER(EXP(1),2*(4-IF([1]!Cell_Color(T54)=[1]!Cell_Color($A$4),1,IF([1]!Cell_Color(T54)=[1]!Cell_Color($A$5),2,IF([1]!Cell_Color(T54)=[1]!Cell_Color($A$6),3,IF([1]!Cell_Color(T54)=[1]!Cell_Color($A$7),3,IF([1]!Cell_Color(T54)=[1]!Cell_Color($A$8),4,IF([1]!Cell_Color(T54)=[1]!Cell_Color($A$9),4,0)))))))) -> 59.11244879 | AH54: =(17-U54)*POWER(EXP(1),2*(4-IF([1]!Cell_Color(U54)=[1]!Cell_Color($A$4),1,IF([1]!Cell_Color(U54)=[1]!Cell_Color($A$5),2,IF([1]!Cell_Color(U54)=[1]!Cell_Color($A$6),3,IF([1]!Cell_Color(U54)=[1]!Cell_Color($A$7),3,IF([1]!Cell_Color(U54)=[1]!Cell_Color($A$8),4,IF([1]!Cell_Color(U54)=[1]!Cell_Color($A$9),4,0)))))))) -> 66.50150489 | AI54: =(17-V54)*POWER(EXP(1),2*(4-IF([1]!Cell_Color(V54)=[1]!Cell_Color($A$4),1,IF([1]!Cell_Color(V54)=[1]!Cell_Color($A$5),2,IF([1]!Cell_Color(V54)=[1]!Cell_Color($A$6),3,IF([1]!Cell_Color(V54)=[1]!Cell_Color($A$7),3,IF([1]!Cell_Color(V54)=[1]!Cell_Color($A$8),4,IF([1]!Cell_Color(V54)=[1]!Cell_Color($A$9),4,0)))))))) -> 73.89056099 | AJ54: =(17-W54)*POWER(EXP(1),2*(4-IF([1]!Cell_Color(W54)=[1]!Cell_Color($A$4),1,IF([1]!Cell_Color(W54)=[1]!Cell_Color($A$5),2,IF([1]!Cell_Color(W54)=[1]!Cell_Color($A$6),3,IF([1]!Cell_Color(W54)=[1]!Cell_Color($A$7),3,IF([1]!Cell_Color(W54)=[1]!Cell_Color($A$8),4,IF([1]!Cell_Color(W54)=[1]!Cell_Color($A$9),4,0)))))))) -> 29.5562244
C55: 52 | D55: 62 | E55: 10 | F55: 56 | G55: 4 | H55: 52 | I55: Шальготарьян БТК | J55: 7 | K55: 13 | L55: 16 | M55: 5 | N55: 3 | O55: 1 | P55: 7 | Q55: 12 | R55: 15 | S55: 7 | T55: 4 | U55: 7 | V55: 5 | W55: 10 | X55: =SUM(AC55:AG55) -> 148.6139537 | Y55: =SUM(AE55:AI55) -> 200.3373464 | Z55: =SUM(AF55:AJ55) -> 237.2826269 | AB55: =(17-O55)*POWER(EXP(1),2*(4-IF([1]!Cell_Color(O55)=[1]!Cell_Color($A$4),1,IF([1]!Cell_Color(O55)=[1]!Cell_Color($A$5),2,IF([1]!Cell_Color(O55)=[1]!Cell_Color($A$6),3,IF([1]!Cell_Color(O55)=[1]!Cell_Color($A$7),3,IF([1]!Cell_Color(O55)=[1]!Cell_Color($A$8),4,IF([1]!Cell_Color(O55)=[1]!Cell_Color($A$9),4,0)))))))) -> 16 | AC55: =(17-P55)*POWER(EXP(1),2*(4-IF([1]!Cell_Color(P55)=[1]!Cell_Color($A$4),1,IF([1]!Cell_Color(P55)=[1]!Cell_Color($A$5),2,IF([1]!Cell_Color(P55)=[1]!Cell_Color($A$6),3,IF([1]!Cell_Color(P55)=[1]!Cell_Color($A$7),3,IF([1]!Cell_Color(P55)=[1]!Cell_Color($A$8),4,IF([1]!Cell_Color(P55)=[1]!Cell_Color($A$9),4,0)))))))) -> 73.89056099 | AD55: =(17-Q55)*POWER(EXP(1),2*(4-IF([1]!Cell_Color(Q55)=[1]!Cell_Color($A$4),1,IF([1]!Cell_Color(Q55)=[1]!Cell_Color($A$5),2,IF([1]!Cell_Color(Q55)=[1]!Cell_Color($A$6),3,IF([1]!Cell_Color(Q55)=[1]!Cell_Color($A$7),3,IF([1]!Cell_Color(Q55)=[1]!Cell_Color($A$8),4,IF([1]!Cell_Color(Q55)=[1]!Cell_Color($A$9),4,0)))))))) -> 36.94528049 | AE55: =(17-R55)*POWER(EXP(1),2*(4-IF([1]!Cell_Color(R55)=[1]!Cell_Color($A$4),1,IF([1]!Cell_Color(R55)=[1]!Cell_Color($A$5),2,IF([1]!Cell_Color(R55)=[1]!Cell_Color($A$6),3,IF([1]!Cell_Color(R55)=[1]!Cell_Color($A$7),3,IF([1]!Cell_Color(R55)=[1]!Cell_Color($A$8),4,IF([1]!Cell_Color(R55)=[1]!Cell_Color($A$9),4,0)))))))) -> 14.7781122 | AF55: =(17-S55)*POWER(EXP(1),2*(4-IF([1]!Cell_Color(S55)=[1]!Cell_Color($A$4),1,IF([1]!Cell_Color(S55)=[1]!Cell_Color($A$5),2,IF([1]!Cell_Color(S55)=[1]!Cell_Color($A$6),3,IF([1]!Cell_Color(S55)=[1]!Cell_Color($A$7),3,IF([1]!Cell_Color(S55)=[1]!Cell_Color($A$8),4,IF([1]!Cell_Color(S55)=[1]!Cell_Color($A$9),4,0)))))))) -> 10 | AG55: =(17-T55)*POWER(EXP(1),2*(4-IF([1]!Cell_Color(T55)=[1]!Cell_Color($A$4),1,IF([1]!Cell_Color(T55)=[1]!Cell_Color($A$5),2,IF([1]!Cell_Color(T55)=[1]!Cell_Color($A$6),3,IF([1]!Cell_Color(T55)=[1]!Cell_Color($A$7),3,IF([1]!Cell_Color(T55)=[1]!Cell_Color($A$8),4,IF([1]!Cell_Color(T55)=[1]!Cell_Color($A$9),4,0)))))))) -> 13 | AH55: =(17-U55)*POWER(EXP(1),2*(4-IF([1]!Cell_Color(U55)=[1]!Cell_Color($A$4),1,IF([1]!Cell_Color(U55)=[1]!Cell_Color($A$5),2,IF([1]!Cell_Color(U55)=[1]!Cell_Color($A$6),3,IF([1]!Cell_Color(U55)=[1]!Cell_Color($A$7),3,IF([1]!Cell_Color(U55)=[1]!Cell_Color($A$8),4,IF([1]!Cell_Color(U55)=[1]!Cell_Color($A$9),4,0)))))))) -> 73.89056099 | AI55: =(17-V55)*POWER(EXP(1),2*(4-IF([1]!Cell_Color(V55)=[1]!Cell_Color($A$4),1,IF([1]!Cell_Color(V55)=[1]!Cell_Color($A$5),2,IF([1]!Cell_Color(V55)=[1]!Cell_Color($A$6),3,IF([1]!Cell_Color(V55)=[1]!Cell_Color($A$7),3,IF([1]!Cell_Color(V55)=[1]!Cell_Color($A$8),4,IF([1]!Cell_Color(V55)=[1]!Cell_Color($A$9),4,0)))))))) -> 88.66867319 | AJ55: =(17-W55)*POWER(EXP(1),2*(4-IF([1]!Cell_Color(W55)=[1]!Cell_Color($A$4),1,IF([1]!Cell_Color(W55)=[1]!Cell_Color($A$5),2,IF([1]!Cell_Color(W55)=[1]!Cell_Color($A$6),3,IF([1]!Cell_Color(W55)=[1]!Cell_Color($A$7),3,IF([1]!Cell_Color(W55)=[1]!Cell_Color($A$8),4,IF([1]!Cell_Color(W55)=[1]!Cell_Color($A$9),4,0)))))))) -> 51.72339269
C56: 53 | D56: 65 | E56: 12 | F56: 58 | G56: 5 | H56: 53 | I56: МТК Дунахарести | L56: 8 | M56: 2 | N56: 15 | O56: 6 | P56: 5 | Q56: 6 | R56: 4 | S56: 9 | T56: 12 | U56: 12 | V56: 12 | W56: 8 | X56: =SUM(AC56:AG56) -> 132.0577293 | Y56: =SUM(AE56:AI56) -> 182.9482903 | Z56: =SUM(AF56:AJ56) -> 236.4497952 | AB56: =(17-O56)*POWER(EXP(1),2*(4-IF([1]!Cell_Color(O56)=[1]!Cell_Color($A$4),1,IF([1]!Cell_Color(O56)=[1]!Cell_Color($A$5),2,IF([1]!Cell_Color(O56)=[1]!Cell_Color($A$6),3,IF([1]!Cell_Color(O56)=[1]!Cell_Color($A$7),3,IF([1]!Cell_Color(O56)=[1]!Cell_Color($A$8),4,IF([1]!Cell_Color(O56)=[1]!Cell_Color($A$9),4,0)))))))) -> 11 | AC56: =(17-P56)*POWER(EXP(1),2*(4-IF([1]!Cell_Color(P56)=[1]!Cell_Color($A$4),1,IF([1]!Cell_Color(P56)=[1]!Cell_Color($A$5),2,IF([1]!Cell_Color(P56)=[1]!Cell_Color($A$6),3,IF([1]!Cell_Color(P56)=[1]!Cell_Color($A$7),3,IF([1]!Cell_Color(P56)=[1]!Cell_Color($A$8),4,IF([1]!Cell_Color(P56)=[1]!Cell_Color($A$9),4,0)))))))) -> 12 | AD56: =(17-Q56)*POWER(EXP(1),2*(4-IF([1]!Cell_Color(Q56)=[1]!Cell_Color($A$4),1,IF([1]!Cell_Color(Q56)=[1]!Cell_Color($A$5),2,IF([1]!Cell_Color(Q56)=[1]!Cell_Color($A$6),3,IF([1]!Cell_Color(Q56)=[1]!Cell_Color($A$7),3,IF([1]!Cell_Color(Q56)=[1]!Cell_Color($A$8),4,IF([1]!Cell_Color(Q56)=[1]!Cell_Color($A$9),4,0)))))))) -> 11 | AE56: =(17-R56)*POWER(EXP(1),2*(4-IF([1]!Cell_Color(R56)=[1]!Cell_Color($A$4),1,IF([1]!Cell_Color(R56)=[1]!Cell_Color($A$5),2,IF([1]!Cell_Color(R56)=[1]!Cell_Color($A$6),3,IF([1]!Cell_Color(R56)=[1]!Cell_Color($A$7),3,IF([1]!Cell_Color(R56)=[1]!Cell_Color($A$8),4,IF([1]!Cell_Color(R56)=[1]!Cell_Color($A$9),4,0)))))))) -> 13 | AF56: =(17-S56)*POWER(EXP(1),2*(4-IF([1]!Cell_Color(S56)=[1]!Cell_Color($A$4),1,IF([1]!Cell_Color(S56)=[1]!Cell_Color($A$5),2,IF([1]!Cell_Color(S56)=[1]!Cell_Color($A$6),3,IF([1]!Cell_Color(S56)=[1]!Cell_Color($A$7),3,IF([1]!Cell_Color(S56)=[1]!Cell_Color($A$8),4,IF([1]!Cell_Color(S56)=[1]!Cell_Color($A$9),4,0)))))))) -> 59.11244879 | AG56: =(17-T56)*POWER(EXP(1),2*(4-IF([1]!Cell_Color(T56)=[1]!Cell_Color($A$4),1,IF([1]!Cell_Color(T56)=[1]!Cell_Color($A$5),2,IF([1]!Cell_Color(T56)=[1]!Cell_Color($A$6),3,IF([1]!Cell_Color(T56)=[1]!Cell_Color($A$7),3,IF([1]!Cell_Color(T56)=[1]!Cell_Color($A$8),4,IF([1]!Cell_Color(T56)=[1]!Cell_Color($A$9),4,0)))))))) -> 36.94528049 | AH56: =(17-U56)*POWER(EXP(1),2*(4-IF([1]!Cell_Color(U56)=[1]!Cell_Color($A$4),1,IF([1]!Cell_Color(U56)=[1]!Cell_Color($A$5),2,IF([1]!Cell_Color(U56)=[1]!Cell_Color($A$6),3,IF([1]!Cell_Color(U56)=[1]!Cell_Color($A$7),3,IF([1]!Cell_Color(U56)=[1]!Cell_Color($A$8),4,IF([1]!Cell_Color(U56)=[1]!Cell_Color($A$9),4,0)))))))) -> 36.94528049 | AI56: =(17-V56)*POWER(EXP(1),2*(4-IF([1]!Cell_Color(V56)=[1]!Cell_Color($A$4),1,IF([1]!Cell_Color(V56)=[1]!Cell_Color($A$5),2,IF([1]!Cell_Color(V56)=[1]!Cell_Color($A$6),3,IF([1]!Cell_Color(V56)=[1]!Cell_Color($A$7),3,IF([1]!Cell_Color(V56)=[1]!Cell_Color($A$8),4,IF([1]!Cell_Color(V56)=[1]!Cell_Color($A$9),4,0)))))))) -> 36.94528049 | AJ56: =(17-W56)*POWER(EXP(1),2*(4-IF([1]!Cell_Color(W56)=[1]!Cell_Color($A$4),1,IF([1]!Cell_Color(W56)=[1]!Cell_Color($A$5),2,IF([1]!Cell_Color(W56)=[1]!Cell_Color($A$6),3,IF([1]!Cell_Color(W56)=[1]!Cell_Color($A$7),3,IF([1]!Cell_Color(W56)=[1]!Cell_Color($A$8),4,IF([1]!Cell_Color(W56)=[1]!Cell_Color($A$9),4,0)))))))) -> 66.50150489
C57: 54 | D57: 77 | E57: 23 | F57: 57 | G57: 3 | H57: 54 | I57: ПФК Шорокшар | L57: 9 | M57: 6 | N57: 10 | O57: 10 | P57: 11 | Q57: 5 | R57: 8 | S57: 10 | T57: 1 | U57: 3 | V57: 16 | W57: 10 | X57: =SUM(AC57:AG57) -> 50 | Y57: =SUM(AE57:AI57) -> 190.0449354 | Z57: =SUM(AF57:AJ57) -> 232.7683281 | AB57: =(17-O57)*POWER(EXP(1),2*(4-IF([1]!Cell_Color(O57)=[1]!Cell_Color($A$4),1,IF([1]!Cell_Color(O57)=[1]!Cell_Color($A$5),2,IF([1]!Cell_Color(O57)=[1]!Cell_Color($A$6),3,IF([1]!Cell_Color(O57)=[1]!Cell_Color($A$7),3,IF([1]!Cell_Color(O57)=[1]!Cell_Color($A$8),4,IF([1]!Cell_Color(O57)=[1]!Cell_Color($A$9),4,0)))))))) -> 7 | AC57: =(17-P57)*POWER(EXP(1),2*(4-IF([1]!Cell_Color(P57)=[1]!Cell_Color($A$4),1,IF([1]!Cell_Color(P57)=[1]!Cell_Color($A$5),2,IF([1]!Cell_Color(P57)=[1]!Cell_Color($A$6),3,IF([1]!Cell_Color(P57)=[1]!Cell_Color($A$7),3,IF([1]!Cell_Color(P57)=[1]!Cell_Color($A$8),4,IF([1]!Cell_Color(P57)=[1]!Cell_Color($A$9),4,0)))))))) -> 6 | AD57: =(17-Q57)*POWER(EXP(1),2*(4-IF([1]!Cell_Color(Q57)=[1]!Cell_Color($A$4),1,IF([1]!Cell_Color(Q57)=[1]!Cell_Color($A$5),2,IF([1]!Cell_Color(Q57)=[1]!Cell_Color($A$6),3,IF([1]!Cell_Color(Q57)=[1]!Cell_Color($A$7),3,IF([1]!Cell_Color(Q57)=[1]!Cell_Color($A$8),4,IF([1]!Cell_Color(Q57)=[1]!Cell_Color($A$9),4,0)))))))) -> 12 | AE57: =(17-R57)*POWER(EXP(1),2*(4-IF([1]!Cell_Color(R57)=[1]!Cell_Color($A$4),1,IF([1]!Cell_Color(R57)=[1]!Cell_Color($A$5),2,IF([1]!Cell_Color(R57)=[1]!Cell_Color($A$6),3,IF([1]!Cell_Color(R57)=[1]!Cell_Color($A$7),3,IF([1]!Cell_Color(R57)=[1]!Cell_Color($A$8),4,IF([1]!Cell_Color(R57)=[1]!Cell_Color($A$9),4,0)))))))) -> 9 | AF57: =(17-S57)*POWER(EXP(1),2*(4-IF([1]!Cell_Color(S57)=[1]!Cell_Color($A$4),1,IF([1]!Cell_Color(S57)=[1]!Cell_Color($A$5),2,IF([1]!Cell_Color(S57)=[1]!Cell_Color($A$6),3,IF([1]!Cell_Color(S57)=[1]!Cell_Color($A$7),3,IF([1]!Cell_Color(S57)=[1]!Cell_Color($A$8),4,IF([1]!Cell_Color(S57)=[1]!Cell_Color($A$9),4,0)))))))) -> 7 | AG57: =(17-T57)*POWER(EXP(1),2*(4-IF([1]!Cell_Color(T57)=[1]!Cell_Color($A$4),1,IF([1]!Cell_Color(T57)=[1]!Cell_Color($A$5),2,IF([1]!Cell_Color(T57)=[1]!Cell_Color($A$6),3,IF([1]!Cell_Color(T57)=[1]!Cell_Color($A$7),3,IF([1]!Cell_Color(T57)=[1]!Cell_Color($A$8),4,IF([1]!Cell_Color(T57)=[1]!Cell_Color($A$9),4,0)))))))) -> 16 | AH57: =(17-U57)*POWER(EXP(1),2*(4-IF([1]!Cell_Color(U57)=[1]!Cell_Color($A$4),1,IF([1]!Cell_Color(U57)=[1]!Cell_Color($A$5),2,IF([1]!Cell_Color(U57)=[1]!Cell_Color($A$6),3,IF([1]!Cell_Color(U57)=[1]!Cell_Color($A$7),3,IF([1]!Cell_Color(U57)=[1]!Cell_Color($A$8),4,IF([1]!Cell_Color(U57)=[1]!Cell_Color($A$9),4,0)))))))) -> 103.4467854 | AI57: =(17-V57)*POWER(EXP(1),2*(4-IF([1]!Cell_Color(V57)=[1]!Cell_Color($A$4),1,IF([1]!Cell_Color(V57)=[1]!Cell_Color($A$5),2,IF([1]!Cell_Color(V57)=[1]!Cell_Color($A$6),3,IF([1]!Cell_Color(V57)=[1]!Cell_Color($A$7),3,IF([1]!Cell_Color(V57)=[1]!Cell_Color($A$8),4,IF([1]!Cell_Color(V57)=[1]!Cell_Color($A$9),4,0)))))))) -> 54.59815003 | AJ57: =(17-W57)*POWER(EXP(1),2*(4-IF([1]!Cell_Color(W57)=[1]!Cell_Color($A$4),1,IF([1]!Cell_Color(W57)=[1]!Cell_Color($A$5),2,IF([1]!Cell_Color(W57)=[1]!Cell_Color($A$6),3,IF([1]!Cell_Color(W57)=[1]!Cell_Color($A$7),3,IF([1]!Cell_Color(W57)=[1]!Cell_Color($A$8),4,IF([1]!Cell_Color(W57)=[1]!Cell_Color($A$9),4,0)))))))) -> 51.72339269
C58: 55 | D58: 69 | E58: 14 | F58: 62 | G58: 7 | H58: 55 | I58: Дороги ФК | L58: 1 | M58: 14 | N58: 9 | O58: 11 | P58: 1 | Q58: 14 | R58: 2 | S58: 12 | T58: 13 | U58: 2 | V58: 8 | W58: 6 | X58: =SUM(AC58:AG58) -> 119.6686732 | Y58: =SUM(AE58:AI58) -> 163.0030098 | Z58: =SUM(AF58:AJ58) -> 229.2826269 | AB58: =(17-O58)*POWER(EXP(1),2*(4-IF([1]!Cell_Color(O58)=[1]!Cell_Color($A$4),1,IF([1]!Cell_Color(O58)=[1]!Cell_Color($A$5),2,IF([1]!Cell_Color(O58)=[1]!Cell_Color($A$6),3,IF([1]!Cell_Color(O58)=[1]!Cell_Color($A$7),3,IF([1]!Cell_Color(O58)=[1]!Cell_Color($A$8),4,IF([1]!Cell_Color(O58)=[1]!Cell_Color($A$9),4,0)))))))) -> 6 | AC58: =(17-P58)*POWER(EXP(1),2*(4-IF([1]!Cell_Color(P58)=[1]!Cell_Color($A$4),1,IF([1]!Cell_Color(P58)=[1]!Cell_Color($A$5),2,IF([1]!Cell_Color(P58)=[1]!Cell_Color($A$6),3,IF([1]!Cell_Color(P58)=[1]!Cell_Color($A$7),3,IF([1]!Cell_Color(P58)=[1]!Cell_Color($A$8),4,IF([1]!Cell_Color(P58)=[1]!Cell_Color($A$9),4,0)))))))) -> 16 | AD58: =(17-Q58)*POWER(EXP(1),2*(4-IF([1]!Cell_Color(Q58)=[1]!Cell_Color($A$4),1,IF([1]!Cell_Color(Q58)=[1]!Cell_Color($A$5),2,IF([1]!Cell_Color(Q58)=[1]!Cell_Color($A$6),3,IF([1]!Cell_Color(Q58)=[1]!Cell_Color($A$7),3,IF([1]!Cell_Color(Q58)=[1]!Cell_Color($A$8),4,IF([1]!Cell_Color(Q58)=[1]!Cell_Color($A$9),4,0)))))))) -> 22.1671683 | AE58: =(17-R58)*POWER(EXP(1),2*(4-IF([1]!Cell_Color(R58)=[1]!Cell_Color($A$4),1,IF([1]!Cell_Color(R58)=[1]!Cell_Color($A$5),2,IF([1]!Cell_Color(R58)=[1]!Cell_Color($A$6),3,IF([1]!Cell_Color(R58)=[1]!Cell_Color($A$7),3,IF([1]!Cell_Color(R58)=[1]!Cell_Color($A$8),4,IF([1]!Cell_Color(R58)=[1]!Cell_Color($A$9),4,0)))))))) -> 15 | AF58: =(17-S58)*POWER(EXP(1),2*(4-IF([1]!Cell_Color(S58)=[1]!Cell_Color($A$4),1,IF([1]!Cell_Color(S58)=[1]!Cell_Color($A$5),2,IF([1]!Cell_Color(S58)=[1]!Cell_Color($A$6),3,IF([1]!Cell_Color(S58)=[1]!Cell_Color($A$7),3,IF([1]!Cell_Color(S58)=[1]!Cell_Color($A$8),4,IF([1]!Cell_Color(S58)=[1]!Cell_Color($A$9),4,0)))))))) -> 36.94528049 | AG58: =(17-T58)*POWER(EXP(1),2*(4-IF([1]!Cell_Color(T58)=[1]!Cell_Color($A$4),1,IF([1]!Cell_Color(T58)=[1]!Cell_Color($A$5),2,IF([1]!Cell_Color(T58)=[1]!Cell_Color($A$6),3,IF([1]!Cell_Color(T58)=[1]!Cell_Color($A$7),3,IF([1]!Cell_Color(T58)=[1]!Cell_Color($A$8),4,IF([1]!Cell_Color(T58)=[1]!Cell_Color($A$9),4,0)))))))) -> 29.5562244 | AH58: =(17-U58)*POWER(EXP(1),2*(4-IF([1]!Cell_Color(U58)=[1]!Cell_Color($A$4),1,IF([1]!Cell_Color(U58)=[1]!Cell_Color($A$5),2,IF([1]!Cell_Color(U58)=[1]!Cell_Color($A$6),3,IF([1]!Cell_Color(U58)=[1]!Cell_Color($A$7),3,IF([1]!Cell_Color(U58)=[1]!Cell_Color($A$8),4,IF([1]!Cell_Color(U58)=[1]!Cell_Color($A$9),4,0)))))))) -> 15 | AI58: =(17-V58)*POWER(EXP(1),2*(4-IF([1]!Cell_Color(V58)=[1]!Cell_Color($A$4),1,IF([1]!Cell_Color(V58)=[1]!Cell_Color($A$5),2,IF([1]!Cell_Color(V58)=[1]!Cell_Color($A$6),3,IF([1]!Cell_Color(V58)=[1]!Cell_Color($A$7),3,IF([1]!Cell_Color(V58)=[1]!Cell_Color($A$8),4,IF([1]!Cell_Color(V58)=[1]!Cell_Color($A$9),4,0)))))))) -> 66.50150489 | AJ58: =(17-W58)*POWER(EXP(1),2*(4-IF([1]!Cell_Color(W58)=[1]!Cell_Color($A$4),1,IF([1]!Cell_Color(W58)=[1]!Cell_Color($A$5),2,IF([1]!Cell_Color(W58)=[1]!Cell_Color($A$6),3,IF([1]!Cell_Color(W58)=[1]!Cell_Color($A$7),3,IF([1]!Cell_Color(W58)=[1]!Cell_Color($A$8),4,IF([1]!Cell_Color(W58)=[1]!Cell_Color($A$9),4,0)))))))) -> 81.27961709
C59: 56 | D59: 46 | E59: -10 | F59: 50 | G59: -6 | H59: 56 | I59: ФК Шопрон | J59: 16 | K59: 10 | L59: 7 | M59: 5 | N59: 9 | O59: 6 | P59: 10 | Q59: 7 | R59: 9 | S59: 6 | T59: 10 | U59: 10 | V59: 15 | W59: 1 | X59: =SUM(AC59:AG59) -> 317.7294123 | Y59: =SUM(AE59:AI59) -> 258.6169635 | Z59: =SUM(AF59:AJ59) -> 215.5045147 | AB59: =(17-O59)*POWER(EXP(1),2*(4-IF([1]!Cell_Color(O59)=[1]!Cell_Color($A$4),1,IF([1]!Cell_Color(O59)=[1]!Cell_Color($A$5),2,IF([1]!Cell_Color(O59)=[1]!Cell_Color($A$6),3,IF([1]!Cell_Color(O59)=[1]!Cell_Color($A$7),3,IF([1]!Cell_Color(O59)=[1]!Cell_Color($A$8),4,IF([1]!Cell_Color(O59)=[1]!Cell_Color($A$9),4,0)))))))) -> 81.27961709 | AC59: =(17-P59)*POWER(EXP(1),2*(4-IF([1]!Cell_Color(P59)=[1]!Cell_Color($A$4),1,IF([1]!Cell_Color(P59)=[1]!Cell_Color($A$5),2,IF([1]!Cell_Color(P59)=[1]!Cell_Color($A$6),3,IF([1]!Cell_Color(P59)=[1]!Cell_Color($A$7),3,IF([1]!Cell_Color(P59)=[1]!Cell_Color($A$8),4,IF([1]!Cell_Color(P59)=[1]!Cell_Color($A$9),4,0)))))))) -> 51.72339269 | AD59: =(17-Q59)*POWER(EXP(1),2*(4-IF([1]!Cell_Color(Q59)=[1]!Cell_Color($A$4),1,IF([1]!Cell_Color(Q59)=[1]!Cell_Color($A$5),2,IF([1]!Cell_Color(Q59)=[1]!Cell_Color($A$6),3,IF([1]!Cell_Color(Q59)=[1]!Cell_Color($A$7),3,IF([1]!Cell_Color(Q59)=[1]!Cell_Color($A$8),4,IF([1]!Cell_Color(Q59)=[1]!Cell_Color($A$9),4,0)))))))) -> 73.89056099 | AE59: =(17-R59)*POWER(EXP(1),2*(4-IF([1]!Cell_Color(R59)=[1]!Cell_Color($A$4),1,IF([1]!Cell_Color(R59)=[1]!Cell_Color($A$5),2,IF([1]!Cell_Color(R59)=[1]!Cell_Color($A$6),3,IF([1]!Cell_Color(R59)=[1]!Cell_Color($A$7),3,IF([1]!Cell_Color(R59)=[1]!Cell_Color($A$8),4,IF([1]!Cell_Color(R59)=[1]!Cell_Color($A$9),4,0)))))))) -> 59.11244879 | AF59: =(17-S59)*POWER(EXP(1),2*(4-IF([1]!Cell_Color(S59)=[1]!Cell_Color($A$4),1,IF([1]!Cell_Color(S59)=[1]!Cell_Color($A$5),2,IF([1]!Cell_Color(S59)=[1]!Cell_Color($A$6),3,IF([1]!Cell_Color(S59)=[1]!Cell_Color($A$7),3,IF([1]!Cell_Color(S59)=[1]!Cell_Color($A$8),4,IF([1]!Cell_Color(S59)=[1]!Cell_Color($A$9),4,0)))))))) -> 81.27961709 | AG59: =(17-T59)*POWER(EXP(1),2*(4-IF([1]!Cell_Color(T59)=[1]!Cell_Color($A$4),1,IF([1]!Cell_Color(T59)=[1]!Cell_Color($A$5),2,IF([1]!Cell_Color(T59)=[1]!Cell_Color($A$6),3,IF([1]!Cell_Color(T59)=[1]!Cell_Color($A$7),3,IF([1]!Cell_Color(T59)=[1]!Cell_Color($A$8),4,IF([1]!Cell_Color(T59)=[1]!Cell_Color($A$9),4,0)))))))) -> 51.72339269 | AH59: =(17-U59)*POWER(EXP(1),2*(4-IF([1]!Cell_Color(U59)=[1]!Cell_Color($A$4),1,IF([1]!Cell_Color(U59)=[1]!Cell_Color($A$5),2,IF([1]!Cell_Color(U59)=[1]!Cell_Color($A$6),3,IF([1]!Cell_Color(U59)=[1]!Cell_Color($A$7),3,IF([1]!Cell_Color(U59)=[1]!Cell_Color($A$8),4,IF([1]!Cell_Color(U59)=[1]!Cell_Color($A$9),4,0)))))))) -> 51.72339269 | AI59: =(17-V59)*POWER(EXP(1),2*(4-IF([1]!Cell_Color(V59)=[1]!Cell_Color($A$4),1,IF([1]!Cell_Color(V59)=[1]!Cell_Color($A$5),2,IF([1]!Cell_Color(V59)=[1]!Cell_Color($A$6),3,IF([1]!Cell_Color(V59)=[1]!Cell_Color($A$7),3,IF([1]!Cell_Color(V59)=[1]!Cell_Color($A$8),4,IF([1]!Cell_Color(V59)=[1]!Cell_Color($A$9),4,0)))))))) -> 14.7781122 | AJ59: =(17-W59)*POWER(EXP(1),2*(4-IF([1]!Cell_Color(W59)=[1]!Cell_Color($A$4),1,IF([1]!Cell_Color(W59)=[1]!Cell_Color($A$5),2,IF([1]!Cell_Color(W59)=[1]!Cell_Color($A$6),3,IF([1]!Cell_Color(W59)=[1]!Cell_Color($A$7),3,IF([1]!Cell_Color(W59)=[1]!Cell_Color($A$8),4,IF([1]!Cell_Color(W59)=[1]!Cell_Color($A$9),4,0)))))))) -> 16
C60: 57 | D60: 79 | E60: 22 | F60: 69 | G60: 12 | H60: 57 | I60: Тужер СЕ | L60: 7 | M60: 6 | N60: 6 | O60: 9 | P60: 9 | Q60: 11 | R60: 8 | S60: 8 | T60: 1 | U60: 11 | V60: 11 | W60: 4 | X60: =SUM(AC60:AG60) -> 48 | Y60: =SUM(AE60:AI60) -> 122.6686732 | Z60: =SUM(AF60:AJ60) -> 209.7264025 | AB60: =(17-O60)*POWER(EXP(1),2*(4-IF([1]!Cell_Color(O60)=[1]!Cell_Color($A$4),1,IF([1]!Cell_Color(O60)=[1]!Cell_Color($A$5),2,IF([1]!Cell_Color(O60)=[1]!Cell_Color($A$6),3,IF([1]!Cell_Color(O60)=[1]!Cell_Color($A$7),3,IF([1]!Cell_Color(O60)=[1]!Cell_Color($A$8),4,IF([1]!Cell_Color(O60)=[1]!Cell_Color($A$9),4,0)))))))) -> 8 | AC60: =(17-P60)*POWER(EXP(1),2*(4-IF([1]!Cell_Color(P60)=[1]!Cell_Color($A$4),1,IF([1]!Cell_Color(P60)=[1]!Cell_Color($A$5),2,IF([1]!Cell_Color(P60)=[1]!Cell_Color($A$6),3,IF([1]!Cell_Color(P60)=[1]!Cell_Color($A$7),3,IF([1]!Cell_Color(P60)=[1]!Cell_Color($A$8),4,IF([1]!Cell_Color(P60)=[1]!Cell_Color($A$9),4,0)))))))) -> 8 | AD60: =(17-Q60)*POWER(EXP(1),2*(4-IF([1]!Cell_Color(Q60)=[1]!Cell_Color($A$4),1,IF([1]!Cell_Color(Q60)=[1]!Cell_Color($A$5),2,IF([1]!Cell_Color(Q60)=[1]!Cell_Color($A$6),3,IF([1]!Cell_Color(Q60)=[1]!Cell_Color($A$7),3,IF([1]!Cell_Color(Q60)=[1]!Cell_Color($A$8),4,IF([1]!Cell_Color(Q60)=[1]!Cell_Color($A$9),4,0)))))))) -> 6 | AE60: =(17-R60)*POWER(EXP(1),2*(4-IF([1]!Cell_Color(R60)=[1]!Cell_Color($A$4),1,IF([1]!Cell_Color(R60)=[1]!Cell_Color($A$5),2,IF([1]!Cell_Color(R60)=[1]!Cell_Color($A$6),3,IF([1]!Cell_Color(R60)=[1]!Cell_Color($A$7),3,IF([1]!Cell_Color(R60)=[1]!Cell_Color($A$8),4,IF([1]!Cell_Color(R60)=[1]!Cell_Color($A$9),4,0)))))))) -> 9 | AF60: =(17-S60)*POWER(EXP(1),2*(4-IF([1]!Cell_Color(S60)=[1]!Cell_Color($A$4),1,IF([1]!Cell_Color(S60)=[1]!Cell_Color($A$5),2,IF([1]!Cell_Color(S60)=[1]!Cell_Color($A$6),3,IF([1]!Cell_Color(S60)=[1]!Cell_Color($A$7),3,IF([1]!Cell_Color(S60)=[1]!Cell_Color($A$8),4,IF([1]!Cell_Color(S60)=[1]!Cell_Color($A$9),4,0)))))))) -> 9 | AG60: =(17-T60)*POWER(EXP(1),2*(4-IF([1]!Cell_Color(T60)=[1]!Cell_Color($A$4),1,IF([1]!Cell_Color(T60)=[1]!Cell_Color($A$5),2,IF([1]!Cell_Color(T60)=[1]!Cell_Color($A$6),3,IF([1]!Cell_Color(T60)=[1]!Cell_Color($A$7),3,IF([1]!Cell_Color(T60)=[1]!Cell_Color($A$8),4,IF([1]!Cell_Color(T60)=[1]!Cell_Color($A$9),4,0)))))))) -> 16 | AH60: =(17-U60)*POWER(EXP(1),2*(4-IF([1]!Cell_Color(U60)=[1]!Cell_Color($A$4),1,IF([1]!Cell_Color(U60)=[1]!Cell_Color($A$5),2,IF([1]!Cell_Color(U60)=[1]!Cell_Color($A$6),3,IF([1]!Cell_Color(U60)=[1]!Cell_Color($A$7),3,IF([1]!Cell_Color(U60)=[1]!Cell_Color($A$8),4,IF([1]!Cell_Color(U60)=[1]!Cell_Color($A$9),4,0)))))))) -> 44.33433659 | AI60: =(17-V60)*POWER(EXP(1),2*(4-IF([1]!Cell_Color(V60)=[1]!Cell_Color($A$4),1,IF([1]!Cell_Color(V60)=[1]!Cell_Color($A$5),2,IF([1]!Cell_Color(V60)=[1]!Cell_Color($A$6),3,IF([1]!Cell_Color(V60)=[1]!Cell_Color($A$7),3,IF([1]!Cell_Color(V60)=[1]!Cell_Color($A$8),4,IF([1]!Cell_Color(V60)=[1]!Cell_Color($A$9),4,0)))))))) -> 44.33433659 | AJ60: =(17-W60)*POWER(EXP(1),2*(4-IF([1]!Cell_Color(W60)=[1]!Cell_Color($A$4),1,IF([1]!Cell_Color(W60)=[1]!Cell_Color($A$5),2,IF([1]!Cell_Color(W60)=[1]!Cell_Color($A$6),3,IF([1]!Cell_Color(W60)=[1]!Cell_Color($A$7),3,IF([1]!Cell_Color(W60)=[1]!Cell_Color($A$8),4,IF([1]!Cell_Color(W60)=[1]!Cell_Color($A$9),4,0)))))))) -> 96.05772929
C61: 58 | D61: 53 | E61: -5 | F61: 60 | G61: 2 | H61: 58 | I61: Халадаш | J61: 8 | K61: 9 | L61: 16 | M61: 4 | N61: 7 | O61: 13 | P61: 16 | Q61: 9 | R61: 16 | S61: 2 | T61: 2 | U61: 14 | V61: 3 | W61: 11 | X61: =SUM(AC61:AG61) -> 246.9354964 | Y61: =SUM(AE61:AI61) -> 169.3920659 | Z61: =SUM(AF61:AJ61) -> 206.3373464 | AB61: =(17-O61)*POWER(EXP(1),2*(4-IF([1]!Cell_Color(O61)=[1]!Cell_Color($A$4),1,IF([1]!Cell_Color(O61)=[1]!Cell_Color($A$5),2,IF([1]!Cell_Color(O61)=[1]!Cell_Color($A$6),3,IF([1]!Cell_Color(O61)=[1]!Cell_Color($A$7),3,IF([1]!Cell_Color(O61)=[1]!Cell_Color($A$8),4,IF([1]!Cell_Color(O61)=[1]!Cell_Color($A$9),4,0)))))))) -> 218.3926001 | AC61: =(17-P61)*POWER(EXP(1),2*(4-IF([1]!Cell_Color(P61)=[1]!Cell_Color($A$4),1,IF([1]!Cell_Color(P61)=[1]!Cell_Color($A$5),2,IF([1]!Cell_Color(P61)=[1]!Cell_Color($A$6),3,IF([1]!Cell_Color(P61)=[1]!Cell_Color($A$7),3,IF([1]!Cell_Color(P61)=[1]!Cell_Color($A$8),4,IF([1]!Cell_Color(P61)=[1]!Cell_Color($A$9),4,0)))))))) -> 54.59815003 | AD61: =(17-Q61)*POWER(EXP(1),2*(4-IF([1]!Cell_Color(Q61)=[1]!Cell_Color($A$4),1,IF([1]!Cell_Color(Q61)=[1]!Cell_Color($A$5),2,IF([1]!Cell_Color(Q61)=[1]!Cell_Color($A$6),3,IF([1]!Cell_Color(Q61)=[1]!Cell_Color($A$7),3,IF([1]!Cell_Color(Q61)=[1]!Cell_Color($A$8),4,IF([1]!Cell_Color(Q61)=[1]!Cell_Color($A$9),4,0)))))))) -> 59.11244879 | AE61: =(17-R61)*POWER(EXP(1),2*(4-IF([1]!Cell_Color(R61)=[1]!Cell_Color($A$4),1,IF([1]!Cell_Color(R61)=[1]!Cell_Color($A$5),2,IF([1]!Cell_Color(R61)=[1]!Cell_Color($A$6),3,IF([1]!Cell_Color(R61)=[1]!Cell_Color($A$7),3,IF([1]!Cell_Color(R61)=[1]!Cell_Color($A$8),4,IF([1]!Cell_Color(R61)=[1]!Cell_Color($A$9),4,0)))))))) -> 7.389056099 | AF61: =(17-S61)*POWER(EXP(1),2*(4-IF([1]!Cell_Color(S61)=[1]!Cell_Color($A$4),1,IF([1]!Cell_Color(S61)=[1]!Cell_Color($A$5),2,IF([1]!Cell_Color(S61)=[1]!Cell_Color($A$6),3,IF([1]!Cell_Color(S61)=[1]!Cell_Color($A$7),3,IF([1]!Cell_Color(S61)=[1]!Cell_Color($A$8),4,IF([1]!Cell_Color(S61)=[1]!Cell_Color($A$9),4,0)))))))) -> 15 | AG61: =(17-T61)*POWER(EXP(1),2*(4-IF([1]!Cell_Color(T61)=[1]!Cell_Color($A$4),1,IF([1]!Cell_Color(T61)=[1]!Cell_Color($A$5),2,IF([1]!Cell_Color(T61)=[1]!Cell_Color($A$6),3,IF([1]!Cell_Color(T61)=[1]!Cell_Color($A$7),3,IF([1]!Cell_Color(T61)=[1]!Cell_Color($A$8),4,IF([1]!Cell_Color(T61)=[1]!Cell_Color($A$9),4,0)))))))) -> 110.8358415 | AH61: =(17-U61)*POWER(EXP(1),2*(4-IF([1]!Cell_Color(U61)=[1]!Cell_Color($A$4),1,IF([1]!Cell_Color(U61)=[1]!Cell_Color($A$5),2,IF([1]!Cell_Color(U61)=[1]!Cell_Color($A$6),3,IF([1]!Cell_Color(U61)=[1]!Cell_Color($A$7),3,IF([1]!Cell_Color(U61)=[1]!Cell_Color($A$8),4,IF([1]!Cell_Color(U61)=[1]!Cell_Color($A$9),4,0)))))))) -> 22.1671683 | AI61: =(17-V61)*POWER(EXP(1),2*(4-IF([1]!Cell_Color(V61)=[1]!Cell_Color($A$4),1,IF([1]!Cell_Color(V61)=[1]!Cell_Color($A$5),2,IF([1]!Cell_Color(V61)=[1]!Cell_Color($A$6),3,IF([1]!Cell_Color(V61)=[1]!Cell_Color($A$7),3,IF([1]!Cell_Color(V61)=[1]!Cell_Color($A$8),4,IF([1]!Cell_Color(V61)=[1]!Cell_Color($A$9),4,0)))))))) -> 14 | AJ61: =(17-W61)*POWER(EXP(1),2*(4-IF([1]!Cell_Color(W61)=[1]!Cell_Color($A$4),1,IF([1]!Cell_Color(W61)=[1]!Cell_Color($A$5),2,IF([1]!Cell_Color(W61)=[1]!Cell_Color($A$6),3,IF([1]!Cell_Color(W61)=[1]!Cell_Color($A$7),3,IF([1]!Cell_Color(W61)=[1]!Cell_Color($A$8),4,IF([1]!Cell_Color(W61)=[1]!Cell_Color($A$9),4,0)))))))) -> 44.33433659
C62: 59 | D62: 41 | E62: -18 | F62: 53 | G62: -6 | H62: 59 | I62: Сентеш | J62: 15 | K62: 15 | L62: 11 | M62: 15 | N62: 1 | O62: 8 | P62: 7 | Q62: 11 | R62: 10 | S62: 3 | T62: 7 | U62: 15 | V62: 15 | W62: 16 | X62: =SUM(AC62:AG62) -> 347.2856366 | Y62: =SUM(AE62:AI62) -> 245.8388513 | Z62: =SUM(AF62:AJ62) -> 195.1154586 | AB62: =(17-O62)*POWER(EXP(1),2*(4-IF([1]!Cell_Color(O62)=[1]!Cell_Color($A$4),1,IF([1]!Cell_Color(O62)=[1]!Cell_Color($A$5),2,IF([1]!Cell_Color(O62)=[1]!Cell_Color($A$6),3,IF([1]!Cell_Color(O62)=[1]!Cell_Color($A$7),3,IF([1]!Cell_Color(O62)=[1]!Cell_Color($A$8),4,IF([1]!Cell_Color(O62)=[1]!Cell_Color($A$9),4,0)))))))) -> 66.50150489 | AC62: =(17-P62)*POWER(EXP(1),2*(4-IF([1]!Cell_Color(P62)=[1]!Cell_Color($A$4),1,IF([1]!Cell_Color(P62)=[1]!Cell_Color($A$5),2,IF([1]!Cell_Color(P62)=[1]!Cell_Color($A$6),3,IF([1]!Cell_Color(P62)=[1]!Cell_Color($A$7),3,IF([1]!Cell_Color(P62)=[1]!Cell_Color($A$8),4,IF([1]!Cell_Color(P62)=[1]!Cell_Color($A$9),4,0)))))))) -> 73.89056099 | AD62: =(17-Q62)*POWER(EXP(1),2*(4-IF([1]!Cell_Color(Q62)=[1]!Cell_Color($A$4),1,IF([1]!Cell_Color(Q62)=[1]!Cell_Color($A$5),2,IF([1]!Cell_Color(Q62)=[1]!Cell_Color($A$6),3,IF([1]!Cell_Color(Q62)=[1]!Cell_Color($A$7),3,IF([1]!Cell_Color(Q62)=[1]!Cell_Color($A$8),4,IF([1]!Cell_Color(Q62)=[1]!Cell_Color($A$9),4,0)))))))) -> 44.33433659 | AE62: =(17-R62)*POWER(EXP(1),2*(4-IF([1]!Cell_Color(R62)=[1]!Cell_Color($A$4),1,IF([1]!Cell_Color(R62)=[1]!Cell_Color($A$5),2,IF([1]!Cell_Color(R62)=[1]!Cell_Color($A$6),3,IF([1]!Cell_Color(R62)=[1]!Cell_Color($A$7),3,IF([1]!Cell_Color(R62)=[1]!Cell_Color($A$8),4,IF([1]!Cell_Color(R62)=[1]!Cell_Color($A$9),4,0)))))))) -> 51.72339269 | AF62: =(17-S62)*POWER(EXP(1),2*(4-IF([1]!Cell_Color(S62)=[1]!Cell_Color($A$4),1,IF([1]!Cell_Color(S62)=[1]!Cell_Color($A$5),2,IF([1]!Cell_Color(S62)=[1]!Cell_Color($A$6),3,IF([1]!Cell_Color(S62)=[1]!Cell_Color($A$7),3,IF([1]!Cell_Color(S62)=[1]!Cell_Color($A$8),4,IF([1]!Cell_Color(S62)=[1]!Cell_Color($A$9),4,0)))))))) -> 103.4467854 | AG62: =(17-T62)*POWER(EXP(1),2*(4-IF([1]!Cell_Color(T62)=[1]!Cell_Color($A$4),1,IF([1]!Cell_Color(T62)=[1]!Cell_Color($A$5),2,IF([1]!Cell_Color(T62)=[1]!Cell_Color($A$6),3,IF([1]!Cell_Color(T62)=[1]!Cell_Color($A$7),3,IF([1]!Cell_Color(T62)=[1]!Cell_Color($A$8),4,IF([1]!Cell_Color(T62)=[1]!Cell_Color($A$9),4,0)))))))) -> 73.89056099 | AH62: =(17-U62)*POWER(EXP(1),2*(4-IF([1]!Cell_Color(U62)=[1]!Cell_Color($A$4),1,IF([1]!Cell_Color(U62)=[1]!Cell_Color($A$5),2,IF([1]!Cell_Color(U62)=[1]!Cell_Color($A$6),3,IF([1]!Cell_Color(U62)=[1]!Cell_Color($A$7),3,IF([1]!Cell_Color(U62)=[1]!Cell_Color($A$8),4,IF([1]!Cell_Color(U62)=[1]!Cell_Color($A$9),4,0)))))))) -> 14.7781122 | AI62: =(17-V62)*POWER(EXP(1),2*(4-IF([1]!Cell_Color(V62)=[1]!Cell_Color($A$4),1,IF([1]!Cell_Color(V62)=[1]!Cell_Color($A$5),2,IF([1]!Cell_Color(V62)=[1]!Cell_Color($A$6),3,IF([1]!Cell_Color(V62)=[1]!Cell_Color($A$7),3,IF([1]!Cell_Color(V62)=[1]!Cell_Color($A$8),4,IF([1]!Cell_Color(V62)=[1]!Cell_Color($A$9),4,0)))))))) -> 2 | AJ62: =(17-W62)*POWER(EXP(1),2*(4-IF([1]!Cell_Color(W62)=[1]!Cell_Color($A$4),1,IF([1]!Cell_Color(W62)=[1]!Cell_Color($A$5),2,IF([1]!Cell_Color(W62)=[1]!Cell_Color($A$6),3,IF([1]!Cell_Color(W62)=[1]!Cell_Color($A$7),3,IF([1]!Cell_Color(W62)=[1]!Cell_Color($A$8),4,IF([1]!Cell_Color(W62)=[1]!Cell_Color($A$9),4,0)))))))) -> 1
C63: 60 | D63: 36 | E63: -24 | F63: 55 | G63: -5 | H63: 60 | I63: Будакалас Мункас | J63: 8 | K63: 1 | L63: 8 | M63: 16 | N63: 6 | O63: 5 | P63: 1 | Q63: 11 | R63: 16 | S63: 11 | T63: 8 | U63: 14 | V63: 1 | W63: 11 | X63: =SUM(AC63:AG63) -> 611.2477893 | Y63: =SUM(AE63:AI63) -> 203.6011598 | Z63: =SUM(AF63:AJ63) -> 193.3373464 | AB63: =(17-O63)*POWER(EXP(1),2*(4-IF([1]!Cell_Color(O63)=[1]!Cell_Color($A$4),1,IF([1]!Cell_Color(O63)=[1]!Cell_Color($A$5),2,IF([1]!Cell_Color(O63)=[1]!Cell_Color($A$6),3,IF([1]!Cell_Color(O63)=[1]!Cell_Color($A$7),3,IF([1]!Cell_Color(O63)=[1]!Cell_Color($A$8),4,IF([1]!Cell_Color(O63)=[1]!Cell_Color($A$9),4,0)))))))) -> 88.66867319 | AC63: =(17-P63)*POWER(EXP(1),2*(4-IF([1]!Cell_Color(P63)=[1]!Cell_Color($A$4),1,IF([1]!Cell_Color(P63)=[1]!Cell_Color($A$5),2,IF([1]!Cell_Color(P63)=[1]!Cell_Color($A$6),3,IF([1]!Cell_Color(P63)=[1]!Cell_Color($A$7),3,IF([1]!Cell_Color(P63)=[1]!Cell_Color($A$8),4,IF([1]!Cell_Color(P63)=[1]!Cell_Color($A$9),4,0)))))))) -> 118.2248976 | AD63: =(17-Q63)*POWER(EXP(1),2*(4-IF([1]!Cell_Color(Q63)=[1]!Cell_Color($A$4),1,IF([1]!Cell_Color(Q63)=[1]!Cell_Color($A$5),2,IF([1]!Cell_Color(Q63)=[1]!Cell_Color($A$6),3,IF([1]!Cell_Color(Q63)=[1]!Cell_Color($A$7),3,IF([1]!Cell_Color(Q63)=[1]!Cell_Color($A$8),4,IF([1]!Cell_Color(Q63)=[1]!Cell_Color($A$9),4,0)))))))) -> 327.5889002 | AE63: =(17-R63)*POWER(EXP(1),2*(4-IF([1]!Cell_Color(R63)=[1]!Cell_Color($A$4),1,IF([1]!Cell_Color(R63)=[1]!Cell_Color($A$5),2,IF([1]!Cell_Color(R63)=[1]!Cell_Color($A$6),3,IF([1]!Cell_Color(R63)=[1]!Cell_Color($A$7),3,IF([1]!Cell_Color(R63)=[1]!Cell_Color($A$8),4,IF([1]!Cell_Color(R63)=[1]!Cell_Color($A$9),4,0)))))))) -> 54.59815003 | AF63: =(17-S63)*POWER(EXP(1),2*(4-IF([1]!Cell_Color(S63)=[1]!Cell_Color($A$4),1,IF([1]!Cell_Color(S63)=[1]!Cell_Color($A$5),2,IF([1]!Cell_Color(S63)=[1]!Cell_Color($A$6),3,IF([1]!Cell_Color(S63)=[1]!Cell_Color($A$7),3,IF([1]!Cell_Color(S63)=[1]!Cell_Color($A$8),4,IF([1]!Cell_Color(S63)=[1]!Cell_Color($A$9),4,0)))))))) -> 44.33433659 | AG63: =(17-T63)*POWER(EXP(1),2*(4-IF([1]!Cell_Color(T63)=[1]!Cell_Color($A$4),1,IF([1]!Cell_Color(T63)=[1]!Cell_Color($A$5),2,IF([1]!Cell_Color(T63)=[1]!Cell_Color($A$6),3,IF([1]!Cell_Color(T63)=[1]!Cell_Color($A$7),3,IF([1]!Cell_Color(T63)=[1]!Cell_Color($A$8),4,IF([1]!Cell_Color(T63)=[1]!Cell_Color($A$9),4,0)))))))) -> 66.50150489 | AH63: =(17-U63)*POWER(EXP(1),2*(4-IF([1]!Cell_Color(U63)=[1]!Cell_Color($A$4),1,IF([1]!Cell_Color(U63)=[1]!Cell_Color($A$5),2,IF([1]!Cell_Color(U63)=[1]!Cell_Color($A$6),3,IF([1]!Cell_Color(U63)=[1]!Cell_Color($A$7),3,IF([1]!Cell_Color(U63)=[1]!Cell_Color($A$8),4,IF([1]!Cell_Color(U63)=[1]!Cell_Color($A$9),4,0)))))))) -> 22.1671683 | AI63: =(17-V63)*POWER(EXP(1),2*(4-IF([1]!Cell_Color(V63)=[1]!Cell_Color($A$4),1,IF([1]!Cell_Color(V63)=[1]!Cell_Color($A$5),2,IF([1]!Cell_Color(V63)=[1]!Cell_Color($A$6),3,IF([1]!Cell_Color(V63)=[1]!Cell_Color($A$7),3,IF([1]!Cell_Color(V63)=[1]!Cell_Color($A$8),4,IF([1]!Cell_Color(V63)=[1]!Cell_Color($A$9),4,0)))))))) -> 16 | AJ63: =(17-W63)*POWER(EXP(1),2*(4-IF([1]!Cell_Color(W63)=[1]!Cell_Color($A$4),1,IF([1]!Cell_Color(W63)=[1]!Cell_Color($A$5),2,IF([1]!Cell_Color(W63)=[1]!Cell_Color($A$6),3,IF([1]!Cell_Color(W63)=[1]!Cell_Color($A$7),3,IF([1]!Cell_Color(W63)=[1]!Cell_Color($A$8),4,IF([1]!Cell_Color(W63)=[1]!Cell_Color($A$9),4,0)))))))) -> 44.33433659
C64: 61 | D64: 86 | E64: 25 | F64: 71 | G64: 10 | H64: 61 | I64: Бударши СК | L64: 2 | M64: 11 | N64: 16 | O64: 16 | P64: 16 | Q64: 13 | R64: 9 | S64: 8 | T64: 3 | U64: 9 | V64: 13 | W64: 6 | X64: =SUM(AC64:AG64) -> 36 | Y64: =SUM(AE64:AI64) -> 119.6686732 | Z64: =SUM(AF64:AJ64) -> 192.9482903 | AB64: =(17-O64)*POWER(EXP(1),2*(4-IF([1]!Cell_Color(O64)=[1]!Cell_Color($A$4),1,IF([1]!Cell_Color(O64)=[1]!Cell_Color($A$5),2,IF([1]!Cell_Color(O64)=[1]!Cell_Color($A$6),3,IF([1]!Cell_Color(O64)=[1]!Cell_Color($A$7),3,IF([1]!Cell_Color(O64)=[1]!Cell_Color($A$8),4,IF([1]!Cell_Color(O64)=[1]!Cell_Color($A$9),4,0)))))))) -> 1 | AC64: =(17-P64)*POWER(EXP(1),2*(4-IF([1]!Cell_Color(P64)=[1]!Cell_Color($A$4),1,IF([1]!Cell_Color(P64)=[1]!Cell_Color($A$5),2,IF([1]!Cell_Color(P64)=[1]!Cell_Color($A$6),3,IF([1]!Cell_Color(P64)=[1]!Cell_Color($A$7),3,IF([1]!Cell_Color(P64)=[1]!Cell_Color($A$8),4,IF([1]!Cell_Color(P64)=[1]!Cell_Color($A$9),4,0)))))))) -> 1 | AD64: =(17-Q64)*POWER(EXP(1),2*(4-IF([1]!Cell_Color(Q64)=[1]!Cell_Color($A$4),1,IF([1]!Cell_Color(Q64)=[1]!Cell_Color($A$5),2,IF([1]!Cell_Color(Q64)=[1]!Cell_Color($A$6),3,IF([1]!Cell_Color(Q64)=[1]!Cell_Color($A$7),3,IF([1]!Cell_Color(Q64)=[1]!Cell_Color($A$8),4,IF([1]!Cell_Color(Q64)=[1]!Cell_Color($A$9),4,0)))))))) -> 4 | AE64: =(17-R64)*POWER(EXP(1),2*(4-IF([1]!Cell_Color(R64)=[1]!Cell_Color($A$4),1,IF([1]!Cell_Color(R64)=[1]!Cell_Color($A$5),2,IF([1]!Cell_Color(R64)=[1]!Cell_Color($A$6),3,IF([1]!Cell_Color(R64)=[1]!Cell_Color($A$7),3,IF([1]!Cell_Color(R64)=[1]!Cell_Color($A$8),4,IF([1]!Cell_Color(R64)=[1]!Cell_Color($A$9),4,0)))))))) -> 8 | AF64: =(17-S64)*POWER(EXP(1),2*(4-IF([1]!Cell_Color(S64)=[1]!Cell_Color($A$4),1,IF([1]!Cell_Color(S64)=[1]!Cell_Color($A$5),2,IF([1]!Cell_Color(S64)=[1]!Cell_Color($A$6),3,IF([1]!Cell_Color(S64)=[1]!Cell_Color($A$7),3,IF([1]!Cell_Color(S64)=[1]!Cell_Color($A$8),4,IF([1]!Cell_Color(S64)=[1]!Cell_Color($A$9),4,0)))))))) -> 9 | AG64: =(17-T64)*POWER(EXP(1),2*(4-IF([1]!Cell_Color(T64)=[1]!Cell_Color($A$4),1,IF([1]!Cell_Color(T64)=[1]!Cell_Color($A$5),2,IF([1]!Cell_Color(T64)=[1]!Cell_Color($A$6),3,IF([1]!Cell_Color(T64)=[1]!Cell_Color($A$7),3,IF([1]!Cell_Color(T64)=[1]!Cell_Color($A$8),4,IF([1]!Cell_Color(T64)=[1]!Cell_Color($A$9),4,0)))))))) -> 14 | AH64: =(17-U64)*POWER(EXP(1),2*(4-IF([1]!Cell_Color(U64)=[1]!Cell_Color($A$4),1,IF([1]!Cell_Color(U64)=[1]!Cell_Color($A$5),2,IF([1]!Cell_Color(U64)=[1]!Cell_Color($A$6),3,IF([1]!Cell_Color(U64)=[1]!Cell_Color($A$7),3,IF([1]!Cell_Color(U64)=[1]!Cell_Color($A$8),4,IF([1]!Cell_Color(U64)=[1]!Cell_Color($A$9),4,0)))))))) -> 59.11244879 | AI64: =(17-V64)*POWER(EXP(1),2*(4-IF([1]!Cell_Color(V64)=[1]!Cell_Color($A$4),1,IF([1]!Cell_Color(V64)=[1]!Cell_Color($A$5),2,IF([1]!Cell_Color(V64)=[1]!Cell_Color($A$6),3,IF([1]!Cell_Color(V64)=[1]!Cell_Color($A$7),3,IF([1]!Cell_Color(V64)=[1]!Cell_Color($A$8),4,IF([1]!Cell_Color(V64)=[1]!Cell_Color($A$9),4,0)))))))) -> 29.5562244 | AJ64: =(17-W64)*POWER(EXP(1),2*(4-IF([1]!Cell_Color(W64)=[1]!Cell_Color($A$4),1,IF([1]!Cell_Color(W64)=[1]!Cell_Color($A$5),2,IF([1]!Cell_Color(W64)=[1]!Cell_Color($A$6),3,IF([1]!Cell_Color(W64)=[1]!Cell_Color($A$7),3,IF([1]!Cell_Color(W64)=[1]!Cell_Color($A$8),4,IF([1]!Cell_Color(W64)=[1]!Cell_Color($A$9),4,0)))))))) -> 81.27961709
C65: 62 | D65: 84 | E65: 22 | F65: 73 | G65: 11 | H65: 62 | I65: Цельдёмёльк | J65: 4 | K65: 11 | L65: 6 | M65: 7 | N65: 7 | O65: 7 | P65: 16 | Q65: 12 | R65: 9 | S65: 9 | T65: 6 | U65: 2 | V65: 9 | W65: 7 | X65: =SUM(AC65:AG65) -> 39.3890561 | Y65: =SUM(AE65:AI65) -> 101.1124488 | Z65: =SUM(AF65:AJ65) -> 167.0030098 | AB65: =(17-O65)*POWER(EXP(1),2*(4-IF([1]!Cell_Color(O65)=[1]!Cell_Color($A$4),1,IF([1]!Cell_Color(O65)=[1]!Cell_Color($A$5),2,IF([1]!Cell_Color(O65)=[1]!Cell_Color($A$6),3,IF([1]!Cell_Color(O65)=[1]!Cell_Color($A$7),3,IF([1]!Cell_Color(O65)=[1]!Cell_Color($A$8),4,IF([1]!Cell_Color(O65)=[1]!Cell_Color($A$9),4,0)))))))) -> 73.89056099 | AC65: =(17-P65)*POWER(EXP(1),2*(4-IF([1]!Cell_Color(P65)=[1]!Cell_Color($A$4),1,IF([1]!Cell_Color(P65)=[1]!Cell_Color($A$5),2,IF([1]!Cell_Color(P65)=[1]!Cell_Color($A$6),3,IF([1]!Cell_Color(P65)=[1]!Cell_Color($A$7),3,IF([1]!Cell_Color(P65)=[1]!Cell_Color($A$8),4,IF([1]!Cell_Color(P65)=[1]!Cell_Color($A$9),4,0)))))))) -> 7.389056099 | AD65: =(17-Q65)*POWER(EXP(1),2*(4-IF([1]!Cell_Color(Q65)=[1]!Cell_Color($A$4),1,IF([1]!Cell_Color(Q65)=[1]!Cell_Color($A$5),2,IF([1]!Cell_Color(Q65)=[1]!Cell_Color($A$6),3,IF([1]!Cell_Color(Q65)=[1]!Cell_Color($A$7),3,IF([1]!Cell_Color(Q65)=[1]!Cell_Color($A$8),4,IF([1]!Cell_Color(Q65)=[1]!Cell_Color($A$9),4,0)))))))) -> 5 | AE65: =(17-R65)*POWER(EXP(1),2*(4-IF([1]!Cell_Color(R65)=[1]!Cell_Color($A$4),1,IF([1]!Cell_Color(R65)=[1]!Cell_Color($A$5),2,IF([1]!Cell_Color(R65)=[1]!Cell_Color($A$6),3,IF([1]!Cell_Color(R65)=[1]!Cell_Color($A$7),3,IF([1]!Cell_Color(R65)=[1]!Cell_Color($A$8),4,IF([1]!Cell_Color(R65)=[1]!Cell_Color($A$9),4,0)))))))) -> 8 | AF65: =(17-S65)*POWER(EXP(1),2*(4-IF([1]!Cell_Color(S65)=[1]!Cell_Color($A$4),1,IF([1]!Cell_Color(S65)=[1]!Cell_Color($A$5),2,IF([1]!Cell_Color(S65)=[1]!Cell_Color($A$6),3,IF([1]!Cell_Color(S65)=[1]!Cell_Color($A$7),3,IF([1]!Cell_Color(S65)=[1]!Cell_Color($A$8),4,IF([1]!Cell_Color(S65)=[1]!Cell_Color($A$9),4,0)))))))) -> 8 | AG65: =(17-T65)*POWER(EXP(1),2*(4-IF([1]!Cell_Color(T65)=[1]!Cell_Color($A$4),1,IF([1]!Cell_Color(T65)=[1]!Cell_Color($A$5),2,IF([1]!Cell_Color(T65)=[1]!Cell_Color($A$6),3,IF([1]!Cell_Color(T65)=[1]!Cell_Color($A$7),3,IF([1]!Cell_Color(T65)=[1]!Cell_Color($A$8),4,IF([1]!Cell_Color(T65)=[1]!Cell_Color($A$9),4,0)))))))) -> 11 | AH65: =(17-U65)*POWER(EXP(1),2*(4-IF([1]!Cell_Color(U65)=[1]!Cell_Color($A$4),1,IF([1]!Cell_Color(U65)=[1]!Cell_Color($A$5),2,IF([1]!Cell_Color(U65)=[1]!Cell_Color($A$6),3,IF([1]!Cell_Color(U65)=[1]!Cell_Color($A$7),3,IF([1]!Cell_Color(U65)=[1]!Cell_Color($A$8),4,IF([1]!Cell_Color(U65)=[1]!Cell_Color($A$9),4,0)))))))) -> 15 | AI65: =(17-V65)*POWER(EXP(1),2*(4-IF([1]!Cell_Color(V65)=[1]!Cell_Color($A$4),1,IF([1]!Cell_Color(V65)=[1]!Cell_Color($A$5),2,IF([1]!Cell_Color(V65)=[1]!Cell_Color($A$6),3,IF([1]!Cell_Color(V65)=[1]!Cell_Color($A$7),3,IF([1]!Cell_Color(V65)=[1]!Cell_Color($A$8),4,IF([1]!Cell_Color(V65)=[1]!Cell_Color($A$9),4,0)))))))) -> 59.11244879 | AJ65: =(17-W65)*POWER(EXP(1),2*(4-IF([1]!Cell_Color(W65)=[1]!Cell_Color($A$4),1,IF([1]!Cell_Color(W65)=[1]!Cell_Color($A$5),2,IF([1]!Cell_Color(W65)=[1]!Cell_Color($A$6),3,IF([1]!Cell_Color(W65)=[1]!Cell_Color($A$7),3,IF([1]!Cell_Color(W65)=[1]!Cell_Color($A$8),4,IF([1]!Cell_Color(W65)=[1]!Cell_Color($A$9),4,0)))))))) -> 73.89056099
C66: 63 | D66: 58 | E66: -5 | F66: 61 | G66: -2 | H66: 63 | I66: Ибрань Вароши СЕ | L66: 14 | M66: 11 | N66: 2 | O66: 9 | P66: 12 | Q66: 15 | R66: 3 | S66: 5 | T66: 11 | U66: 16 | V66: 7 | W66: 1 | X66: =SUM(AC66:AG66) -> 198.7264025 | Y66: =SUM(AE66:AI66) -> 164.3920659 | Z66: =SUM(AF66:AJ66) -> 166.3920659 | AB66: =(17-O66)*POWER(EXP(1),2*(4-IF([1]!Cell_Color(O66)=[1]!Cell_Color($A$4),1,IF([1]!Cell_Color(O66)=[1]!Cell_Color($A$5),2,IF([1]!Cell_Color(O66)=[1]!Cell_Color($A$6),3,IF([1]!Cell_Color(O66)=[1]!Cell_Color($A$7),3,IF([1]!Cell_Color(O66)=[1]!Cell_Color($A$8),4,IF([1]!Cell_Color(O66)=[1]!Cell_Color($A$9),4,0)))))))) -> 59.11244879 | AC66: =(17-P66)*POWER(EXP(1),2*(4-IF([1]!Cell_Color(P66)=[1]!Cell_Color($A$4),1,IF([1]!Cell_Color(P66)=[1]!Cell_Color($A$5),2,IF([1]!Cell_Color(P66)=[1]!Cell_Color($A$6),3,IF([1]!Cell_Color(P66)=[1]!Cell_Color($A$7),3,IF([1]!Cell_Color(P66)=[1]!Cell_Color($A$8),4,IF([1]!Cell_Color(P66)=[1]!Cell_Color($A$9),4,0)))))))) -> 36.94528049 | AD66: =(17-Q66)*POWER(EXP(1),2*(4-IF([1]!Cell_Color(Q66)=[1]!Cell_Color($A$4),1,IF([1]!Cell_Color(Q66)=[1]!Cell_Color($A$5),2,IF([1]!Cell_Color(Q66)=[1]!Cell_Color($A$6),3,IF([1]!Cell_Color(Q66)=[1]!Cell_Color($A$7),3,IF([1]!Cell_Color(Q66)=[1]!Cell_Color($A$8),4,IF([1]!Cell_Color(Q66)=[1]!Cell_Color($A$9),4,0)))))))) -> 14.7781122 | AE66: =(17-R66)*POWER(EXP(1),2*(4-IF([1]!Cell_Color(R66)=[1]!Cell_Color($A$4),1,IF([1]!Cell_Color(R66)=[1]!Cell_Color($A$5),2,IF([1]!Cell_Color(R66)=[1]!Cell_Color($A$6),3,IF([1]!Cell_Color(R66)=[1]!Cell_Color($A$7),3,IF([1]!Cell_Color(R66)=[1]!Cell_Color($A$8),4,IF([1]!Cell_Color(R66)=[1]!Cell_Color($A$9),4,0)))))))) -> 14 | AF66: =(17-S66)*POWER(EXP(1),2*(4-IF([1]!Cell_Color(S66)=[1]!Cell_Color($A$4),1,IF([1]!Cell_Color(S66)=[1]!Cell_Color($A$5),2,IF([1]!Cell_Color(S66)=[1]!Cell_Color($A$6),3,IF([1]!Cell_Color(S66)=[1]!Cell_Color($A$7),3,IF([1]!Cell_Color(S66)=[1]!Cell_Color($A$8),4,IF([1]!Cell_Color(S66)=[1]!Cell_Color($A$9),4,0)))))))) -> 88.66867319 | AG66: =(17-T66)*POWER(EXP(1),2*(4-IF([1]!Cell_Color(T66)=[1]!Cell_Color($A$4),1,IF([1]!Cell_Color(T66)=[1]!Cell_Color($A$5),2,IF([1]!Cell_Color(T66)=[1]!Cell_Color($A$6),3,IF([1]!Cell_Color(T66)=[1]!Cell_Color($A$7),3,IF([1]!Cell_Color(T66)=[1]!Cell_Color($A$8),4,IF([1]!Cell_Color(T66)=[1]!Cell_Color($A$9),4,0)))))))) -> 44.33433659 | AH66: =(17-U66)*POWER(EXP(1),2*(4-IF([1]!Cell_Color(U66)=[1]!Cell_Color($A$4),1,IF([1]!Cell_Color(U66)=[1]!Cell_Color($A$5),2,IF([1]!Cell_Color(U66)=[1]!Cell_Color($A$6),3,IF([1]!Cell_Color(U66)=[1]!Cell_Color($A$7),3,IF([1]!Cell_Color(U66)=[1]!Cell_Color($A$8),4,IF([1]!Cell_Color(U66)=[1]!Cell_Color($A$9),4,0)))))))) -> 7.389056099 | AI66: =(17-V66)*POWER(EXP(1),2*(4-IF([1]!Cell_Color(V66)=[1]!Cell_Color($A$4),1,IF([1]!Cell_Color(V66)=[1]!Cell_Color($A$5),2,IF([1]!Cell_Color(V66)=[1]!Cell_Color($A$6),3,IF([1]!Cell_Color(V66)=[1]!Cell_Color($A$7),3,IF([1]!Cell_Color(V66)=[1]!Cell_Color($A$8),4,IF([1]!Cell_Color(V66)=[1]!Cell_Color($A$9),4,0)))))))) -> 10 | AJ66: =(17-W66)*POWER(EXP(1),2*(4-IF([1]!Cell_Color(W66)=[1]!Cell_Color($A$4),1,IF([1]!Cell_Color(W66)=[1]!Cell_Color($A$5),2,IF([1]!Cell_Color(W66)=[1]!Cell_Color($A$6),3,IF([1]!Cell_Color(W66)=[1]!Cell_Color($A$7),3,IF([1]!Cell_Color(W66)=[1]!Cell_Color($A$8),4,IF([1]!Cell_Color(W66)=[1]!Cell_Color($A$9),4,0)))))))) -> 16
C67: 64 | D67: 73 | E67: 9 | F67: 75 | G67: 11 | H67: 64 | I67: Межофальва | J67: 10 | K67: 15 | L67: 16 | M67: 10 | N67: 3 | O67: 2 | P67: 12 | Q67: 14 | R67: 16 | S67: 14 | T67: 9 | U67: 1 | V67: 9 | W67: 7 | X67: =SUM(AC67:AG67) -> 77.50150489 | Y67: =SUM(AE67:AI67) -> 93.50150489 | Z67: =SUM(AF67:AJ67) -> 160.0030098 | AB67: =(17-O67)*POWER(EXP(1),2*(4-IF([1]!Cell_Color(O67)=[1]!Cell_Color($A$4),1,IF([1]!Cell_Color(O67)=[1]!Cell_Color($A$5),2,IF([1]!Cell_Color(O67)=[1]!Cell_Color($A$6),3,IF([1]!Cell_Color(O67)=[1]!Cell_Color($A$7),3,IF([1]!Cell_Color(O67)=[1]!Cell_Color($A$8),4,IF([1]!Cell_Color(O67)=[1]!Cell_Color($A$9),4,0)))))))) -> 15 | AC67: =(17-P67)*POWER(EXP(1),2*(4-IF([1]!Cell_Color(P67)=[1]!Cell_Color($A$4),1,IF([1]!Cell_Color(P67)=[1]!Cell_Color($A$5),2,IF([1]!Cell_Color(P67)=[1]!Cell_Color($A$6),3,IF([1]!Cell_Color(P67)=[1]!Cell_Color($A$7),3,IF([1]!Cell_Color(P67)=[1]!Cell_Color($A$8),4,IF([1]!Cell_Color(P67)=[1]!Cell_Color($A$9),4,0)))))))) -> 36.94528049 | AD67: =(17-Q67)*POWER(EXP(1),2*(4-IF([1]!Cell_Color(Q67)=[1]!Cell_Color($A$4),1,IF([1]!Cell_Color(Q67)=[1]!Cell_Color($A$5),2,IF([1]!Cell_Color(Q67)=[1]!Cell_Color($A$6),3,IF([1]!Cell_Color(Q67)=[1]!Cell_Color($A$7),3,IF([1]!Cell_Color(Q67)=[1]!Cell_Color($A$8),4,IF([1]!Cell_Color(Q67)=[1]!Cell_Color($A$9),4,0)))))))) -> 22.1671683 | AE67: =(17-R67)*POWER(EXP(1),2*(4-IF([1]!Cell_Color(R67)=[1]!Cell_Color($A$4),1,IF([1]!Cell_Color(R67)=[1]!Cell_Color($A$5),2,IF([1]!Cell_Color(R67)=[1]!Cell_Color($A$6),3,IF([1]!Cell_Color(R67)=[1]!Cell_Color($A$7),3,IF([1]!Cell_Color(R67)=[1]!Cell_Color($A$8),4,IF([1]!Cell_Color(R67)=[1]!Cell_Color($A$9),4,0)))))))) -> 7.389056099 | AF67: =(17-S67)*POWER(EXP(1),2*(4-IF([1]!Cell_Color(S67)=[1]!Cell_Color($A$4),1,IF([1]!Cell_Color(S67)=[1]!Cell_Color($A$5),2,IF([1]!Cell_Color(S67)=[1]!Cell_Color($A$6),3,IF([1]!Cell_Color(S67)=[1]!Cell_Color($A$7),3,IF([1]!Cell_Color(S67)=[1]!Cell_Color($A$8),4,IF([1]!Cell_Color(S67)=[1]!Cell_Color($A$9),4,0)))))))) -> 3 | AG67: =(17-T67)*POWER(EXP(1),2*(4-IF([1]!Cell_Color(T67)=[1]!Cell_Color($A$4),1,IF([1]!Cell_Color(T67)=[1]!Cell_Color($A$5),2,IF([1]!Cell_Color(T67)=[1]!Cell_Color($A$6),3,IF([1]!Cell_Color(T67)=[1]!Cell_Color($A$7),3,IF([1]!Cell_Color(T67)=[1]!Cell_Color($A$8),4,IF([1]!Cell_Color(T67)=[1]!Cell_Color($A$9),4,0)))))))) -> 8 | AH67: =(17-U67)*POWER(EXP(1),2*(4-IF([1]!Cell_Color(U67)=[1]!Cell_Color($A$4),1,IF([1]!Cell_Color(U67)=[1]!Cell_Color($A$5),2,IF([1]!Cell_Color(U67)=[1]!Cell_Color($A$6),3,IF([1]!Cell_Color(U67)=[1]!Cell_Color($A$7),3,IF([1]!Cell_Color(U67)=[1]!Cell_Color($A$8),4,IF([1]!Cell_Color(U67)=[1]!Cell_Color($A$9),4,0)))))))) -> 16 | AI67: =(17-V67)*POWER(EXP(1),2*(4-IF([1]!Cell_Color(V67)=[1]!Cell_Color($A$4),1,IF([1]!Cell_Color(V67)=[1]!Cell_Color($A$5),2,IF([1]!Cell_Color(V67)=[1]!Cell_Color($A$6),3,IF([1]!Cell_Color(V67)=[1]!Cell_Color($A$7),3,IF([1]!Cell_Color(V67)=[1]!Cell_Color($A$8),4,IF([1]!Cell_Color(V67)=[1]!Cell_Color($A$9),4,0)))))))) -> 59.11244879 | AJ67: =(17-W67)*POWER(EXP(1),2*(4-IF([1]!Cell_Color(W67)=[1]!Cell_Color($A$4),1,IF([1]!Cell_Color(W67)=[1]!Cell_Color($A$5),2,IF([1]!Cell_Color(W67)=[1]!Cell_Color($A$6),3,IF([1]!Cell_Color(W67)=[1]!Cell_Color($A$7),3,IF([1]!Cell_Color(W67)=[1]!Cell_Color($A$8),4,IF([1]!Cell_Color(W67)=[1]!Cell_Color($A$9),4,0)))))))) -> 73.89056099
C68: 65 | D68: 40 | E68: -25 | F68: 52 | G68: -13 | H68: 65 | I68: Ракошпалотай ЭАК | J68: 16 | K68: 14 | L68: 7 | M68: 4 | N68: 3 | O68: 2 | P68: 6 | Q68: 4 | R68: 2 | S68: 3 | T68: 15 | U68: 5 | V68: 4 | W68: 6 | X68: =SUM(AC68:AG68) -> 406.3980854 | Y68: =SUM(AE68:AI68) -> 254.0607391 | Z68: =SUM(AF68:AJ68) -> 154.2248976 | AB68: =(17-O68)*POWER(EXP(1),2*(4-IF([1]!Cell_Color(O68)=[1]!Cell_Color($A$4),1,IF([1]!Cell_Color(O68)=[1]!Cell_Color($A$5),2,IF([1]!Cell_Color(O68)=[1]!Cell_Color($A$6),3,IF([1]!Cell_Color(O68)=[1]!Cell_Color($A$7),3,IF([1]!Cell_Color(O68)=[1]!Cell_Color($A$8),4,IF([1]!Cell_Color(O68)=[1]!Cell_Color($A$9),4,0)))))))) -> 110.8358415 | AC68: =(17-P68)*POWER(EXP(1),2*(4-IF([1]!Cell_Color(P68)=[1]!Cell_Color($A$4),1,IF([1]!Cell_Color(P68)=[1]!Cell_Color($A$5),2,IF([1]!Cell_Color(P68)=[1]!Cell_Color($A$6),3,IF([1]!Cell_Color(P68)=[1]!Cell_Color($A$7),3,IF([1]!Cell_Color(P68)=[1]!Cell_Color($A$8),4,IF([1]!Cell_Color(P68)=[1]!Cell_Color($A$9),4,0)))))))) -> 81.27961709 | AD68: =(17-Q68)*POWER(EXP(1),2*(4-IF([1]!Cell_Color(Q68)=[1]!Cell_Color($A$4),1,IF([1]!Cell_Color(Q68)=[1]!Cell_Color($A$5),2,IF([1]!Cell_Color(Q68)=[1]!Cell_Color($A$6),3,IF([1]!Cell_Color(Q68)=[1]!Cell_Color($A$7),3,IF([1]!Cell_Color(Q68)=[1]!Cell_Color($A$8),4,IF([1]!Cell_Color(Q68)=[1]!Cell_Color($A$9),4,0)))))))) -> 96.05772929 | AE68: =(17-R68)*POWER(EXP(1),2*(4-IF([1]!Cell_Color(R68)=[1]!Cell_Color($A$4),1,IF([1]!Cell_Color(R68)=[1]!Cell_Color($A$5),2,IF([1]!Cell_Color(R68)=[1]!Cell_Color($A$6),3,IF([1]!Cell_Color(R68)=[1]!Cell_Color($A$7),3,IF([1]!Cell_Color(R68)=[1]!Cell_Color($A$8),4,IF([1]!Cell_Color(R68)=[1]!Cell_Color($A$9),4,0)))))))) -> 110.8358415 | AF68: =(17-S68)*POWER(EXP(1),2*(4-IF([1]!Cell_Color(S68)=[1]!Cell_Color($A$4),1,IF([1]!Cell_Color(S68)=[1]!Cell_Color($A$5),2,IF([1]!Cell_Color(S68)=[1]!Cell_Color($A$6),3,IF([1]!Cell_Color(S68)=[1]!Cell_Color($A$7),3,IF([1]!Cell_Color(S68)=[1]!Cell_Color($A$8),4,IF([1]!Cell_Color(S68)=[1]!Cell_Color($A$9),4,0)))))))) -> 103.4467854 | AG68: =(17-T68)*POWER(EXP(1),2*(4-IF([1]!Cell_Color(T68)=[1]!Cell_Color($A$4),1,IF([1]!Cell_Color(T68)=[1]!Cell_Color($A$5),2,IF([1]!Cell_Color(T68)=[1]!Cell_Color($A$6),3,IF([1]!Cell_Color(T68)=[1]!Cell_Color($A$7),3,IF([1]!Cell_Color(T68)=[1]!Cell_Color($A$8),4,IF([1]!Cell_Color(T68)=[1]!Cell_Color($A$9),4,0)))))))) -> 14.7781122 | AH68: =(17-U68)*POWER(EXP(1),2*(4-IF([1]!Cell_Color(U68)=[1]!Cell_Color($A$4),1,IF([1]!Cell_Color(U68)=[1]!Cell_Color($A$5),2,IF([1]!Cell_Color(U68)=[1]!Cell_Color($A$6),3,IF([1]!Cell_Color(U68)=[1]!Cell_Color($A$7),3,IF([1]!Cell_Color(U68)=[1]!Cell_Color($A$8),4,IF([1]!Cell_Color(U68)=[1]!Cell_Color($A$9),4,0)))))))) -> 12 | AI68: =(17-V68)*POWER(EXP(1),2*(4-IF([1]!Cell_Color(V68)=[1]!Cell_Color($A$4),1,IF([1]!Cell_Color(V68)=[1]!Cell_Color($A$5),2,IF([1]!Cell_Color(V68)=[1]!Cell_Color($A$6),3,IF([1]!Cell_Color(V68)=[1]!Cell_Color($A$7),3,IF([1]!Cell_Color(V68)=[1]!Cell_Color($A$8),4,IF([1]!Cell_Color(V68)=[1]!Cell_Color($A$9),4,0)))))))) -> 13 | AJ68: =(17-W68)*POWER(EXP(1),2*(4-IF([1]!Cell_Color(W68)=[1]!Cell_Color($A$4),1,IF([1]!Cell_Color(W68)=[1]!Cell_Color($A$5),2,IF([1]!Cell_Color(W68)=[1]!Cell_Color($A$6),3,IF([1]!Cell_Color(W68)=[1]!Cell_Color($A$7),3,IF([1]!Cell_Color(W68)=[1]!Cell_Color($A$8),4,IF([1]!Cell_Color(W68)=[1]!Cell_Color($A$9),4,0)))))))) -> 11
C69: 66 | D69: 57 | E69: -9 | F69: 64 | G69: -2 | H69: 66 | I69: Монор СЭ | J69: 8 | K69: 11 | L69: 11 | M69: 13 | N69: 14 | O69: 4 | P69: 2 | Q69: 10 | R69: 11 | S69: 8 | T69: 13 | U69: 9 | V69: 6 | W69: 7 | X69: =SUM(AC69:AG69) -> 207.1154586 | Y69: =SUM(AE69:AI69) -> 159.3920659 | Z69: =SUM(AF69:AJ69) -> 125.0577293 | AB69: =(17-O69)*POWER(EXP(1),2*(4-IF([1]!Cell_Color(O69)=[1]!Cell_Color($A$4),1,IF([1]!Cell_Color(O69)=[1]!Cell_Color($A$5),2,IF([1]!Cell_Color(O69)=[1]!Cell_Color($A$6),3,IF([1]!Cell_Color(O69)=[1]!Cell_Color($A$7),3,IF([1]!Cell_Color(O69)=[1]!Cell_Color($A$8),4,IF([1]!Cell_Color(O69)=[1]!Cell_Color($A$9),4,0)))))))) -> 13 | AC69: =(17-P69)*POWER(EXP(1),2*(4-IF([1]!Cell_Color(P69)=[1]!Cell_Color($A$4),1,IF([1]!Cell_Color(P69)=[1]!Cell_Color($A$5),2,IF([1]!Cell_Color(P69)=[1]!Cell_Color($A$6),3,IF([1]!Cell_Color(P69)=[1]!Cell_Color($A$7),3,IF([1]!Cell_Color(P69)=[1]!Cell_Color($A$8),4,IF([1]!Cell_Color(P69)=[1]!Cell_Color($A$9),4,0)))))))) -> 15 | AD69: =(17-Q69)*POWER(EXP(1),2*(4-IF([1]!Cell_Color(Q69)=[1]!Cell_Color($A$4),1,IF([1]!Cell_Color(Q69)=[1]!Cell_Color($A$5),2,IF([1]!Cell_Color(Q69)=[1]!Cell_Color($A$6),3,IF([1]!Cell_Color(Q69)=[1]!Cell_Color($A$7),3,IF([1]!Cell_Color(Q69)=[1]!Cell_Color($A$8),4,IF([1]!Cell_Color(Q69)=[1]!Cell_Color($A$9),4,0)))))))) -> 51.72339269 | AE69: =(17-R69)*POWER(EXP(1),2*(4-IF([1]!Cell_Color(R69)=[1]!Cell_Color($A$4),1,IF([1]!Cell_Color(R69)=[1]!Cell_Color($A$5),2,IF([1]!Cell_Color(R69)=[1]!Cell_Color($A$6),3,IF([1]!Cell_Color(R69)=[1]!Cell_Color($A$7),3,IF([1]!Cell_Color(R69)=[1]!Cell_Color($A$8),4,IF([1]!Cell_Color(R69)=[1]!Cell_Color($A$9),4,0)))))))) -> 44.33433659 | AF69: =(17-S69)*POWER(EXP(1),2*(4-IF([1]!Cell_Color(S69)=[1]!Cell_Color($A$4),1,IF([1]!Cell_Color(S69)=[1]!Cell_Color($A$5),2,IF([1]!Cell_Color(S69)=[1]!Cell_Color($A$6),3,IF([1]!Cell_Color(S69)=[1]!Cell_Color($A$7),3,IF([1]!Cell_Color(S69)=[1]!Cell_Color($A$8),4,IF([1]!Cell_Color(S69)=[1]!Cell_Color($A$9),4,0)))))))) -> 66.50150489 | AG69: =(17-T69)*POWER(EXP(1),2*(4-IF([1]!Cell_Color(T69)=[1]!Cell_Color($A$4),1,IF([1]!Cell_Color(T69)=[1]!Cell_Color($A$5),2,IF([1]!Cell_Color(T69)=[1]!Cell_Color($A$6),3,IF([1]!Cell_Color(T69)=[1]!Cell_Color($A$7),3,IF([1]!Cell_Color(T69)=[1]!Cell_Color($A$8),4,IF([1]!Cell_Color(T69)=[1]!Cell_Color($A$9),4,0)))))))) -> 29.5562244 | AH69: =(17-U69)*POWER(EXP(1),2*(4-IF([1]!Cell_Color(U69)=[1]!Cell_Color($A$4),1,IF([1]!Cell_Color(U69)=[1]!Cell_Color($A$5),2,IF([1]!Cell_Color(U69)=[1]!Cell_Color($A$6),3,IF([1]!Cell_Color(U69)=[1]!Cell_Color($A$7),3,IF([1]!Cell_Color(U69)=[1]!Cell_Color($A$8),4,IF([1]!Cell_Color(U69)=[1]!Cell_Color($A$9),4,0)))))))) -> 8 | AI69: =(17-V69)*POWER(EXP(1),2*(4-IF([1]!Cell_Color(V69)=[1]!Cell_Color($A$4),1,IF([1]!Cell_Color(V69)=[1]!Cell_Color($A$5),2,IF([1]!Cell_Color(V69)=[1]!Cell_Color($A$6),3,IF([1]!Cell_Color(V69)=[1]!Cell_Color($A$7),3,IF([1]!Cell_Color(V69)=[1]!Cell_Color($A$8),4,IF([1]!Cell_Color(V69)=[1]!Cell_Color($A$9),4,0)))))))) -> 11 | AJ69: =(17-W69)*POWER(EXP(1),2*(4-IF([1]!Cell_Color(W69)=[1]!Cell_Color($A$4),1,IF([1]!Cell_Color(W69)=[1]!Cell_Color($A$5),2,IF([1]!Cell_Color(W69)=[1]!Cell_Color($A$6),3,IF([1]!Cell_Color(W69)=[1]!Cell_Color($A$7),3,IF([1]!Cell_Color(W69)=[1]!Cell_Color($A$8),4,IF([1]!Cell_Color(W69)=[1]!Cell_Color($A$9),4,0)))))))) -> 10
C70: =C69+1 -> 67 | D70: 48 | E70: -19 | F70: 59 | G70: -8 | H70: =H69+1 -> 67 | I70: Оркень СЕ | L70: 10 | M70: 12 | N70: 7 | O70: 2 | P70: 9 | Q70: 8 | R70: 8 | S70: 9 | T70: 12 | U70: 16 | V70: 11 | W70: 5 | X70: =SUM(AC70:AG70) -> 288.1731879 | Y70: =SUM(AE70:AI70) -> 175.9482903 | Z70: =SUM(AF70:AJ70) -> 121.4467854 | AB70: =(17-O70)*POWER(EXP(1),2*(4-IF([1]!Cell_Color(O70)=[1]!Cell_Color($A$4),1,IF([1]!Cell_Color(O70)=[1]!Cell_Color($A$5),2,IF([1]!Cell_Color(O70)=[1]!Cell_Color($A$6),3,IF([1]!Cell_Color(O70)=[1]!Cell_Color($A$7),3,IF([1]!Cell_Color(O70)=[1]!Cell_Color($A$8),4,IF([1]!Cell_Color(O70)=[1]!Cell_Color($A$9),4,0)))))))) -> 15 | AC70: =(17-P70)*POWER(EXP(1),2*(4-IF([1]!Cell_Color(P70)=[1]!Cell_Color($A$4),1,IF([1]!Cell_Color(P70)=[1]!Cell_Color($A$5),2,IF([1]!Cell_Color(P70)=[1]!Cell_Color($A$6),3,IF([1]!Cell_Color(P70)=[1]!Cell_Color($A$7),3,IF([1]!Cell_Color(P70)=[1]!Cell_Color($A$8),4,IF([1]!Cell_Color(P70)=[1]!Cell_Color($A$9),4,0)))))))) -> 59.11244879 | AD70: =(17-Q70)*POWER(EXP(1),2*(4-IF([1]!Cell_Color(Q70)=[1]!Cell_Color($A$4),1,IF([1]!Cell_Color(Q70)=[1]!Cell_Color($A$5),2,IF([1]!Cell_Color(Q70)=[1]!Cell_Color($A$6),3,IF([1]!Cell_Color(Q70)=[1]!Cell_Color($A$7),3,IF([1]!Cell_Color(Q70)=[1]!Cell_Color($A$8),4,IF([1]!Cell_Color(Q70)=[1]!Cell_Color($A$9),4,0)))))))) -> 66.50150489 | AE70: =(17-R70)*POWER(EXP(1),2*(4-IF([1]!Cell_Color(R70)=[1]!Cell_Color($A$4),1,IF([1]!Cell_Color(R70)=[1]!Cell_Color($A$5),2,IF([1]!Cell_Color(R70)=[1]!Cell_Color($A$6),3,IF([1]!Cell_Color(R70)=[1]!Cell_Color($A$7),3,IF([1]!Cell_Color(R70)=[1]!Cell_Color($A$8),4,IF([1]!Cell_Color(R70)=[1]!Cell_Color($A$9),4,0)))))))) -> 66.50150489 | AF70: =(17-S70)*POWER(EXP(1),2*(4-IF([1]!Cell_Color(S70)=[1]!Cell_Color($A$4),1,IF([1]!Cell_Color(S70)=[1]!Cell_Color($A$5),2,IF([1]!Cell_Color(S70)=[1]!Cell_Color($A$6),3,IF([1]!Cell_Color(S70)=[1]!Cell_Color($A$7),3,IF([1]!Cell_Color(S70)=[1]!Cell_Color($A$8),4,IF([1]!Cell_Color(S70)=[1]!Cell_Color($A$9),4,0)))))))) -> 59.11244879 | AG70: =(17-T70)*POWER(EXP(1),2*(4-IF([1]!Cell_Color(T70)=[1]!Cell_Color($A$4),1,IF([1]!Cell_Color(T70)=[1]!Cell_Color($A$5),2,IF([1]!Cell_Color(T70)=[1]!Cell_Color($A$6),3,IF([1]!Cell_Color(T70)=[1]!Cell_Color($A$7),3,IF([1]!Cell_Color(T70)=[1]!Cell_Color($A$8),4,IF([1]!Cell_Color(T70)=[1]!Cell_Color($A$9),4,0)))))))) -> 36.94528049 | AH70: =(17-U70)*POWER(EXP(1),2*(4-IF([1]!Cell_Color(U70)=[1]!Cell_Color($A$4),1,IF([1]!Cell_Color(U70)=[1]!Cell_Color($A$5),2,IF([1]!Cell_Color(U70)=[1]!Cell_Color($A$6),3,IF([1]!Cell_Color(U70)=[1]!Cell_Color($A$7),3,IF([1]!Cell_Color(U70)=[1]!Cell_Color($A$8),4,IF([1]!Cell_Color(U70)=[1]!Cell_Color($A$9),4,0)))))))) -> 7.389056099 | AI70: =(17-V70)*POWER(EXP(1),2*(4-IF([1]!Cell_Color(V70)=[1]!Cell_Color($A$4),1,IF([1]!Cell_Color(V70)=[1]!Cell_Color($A$5),2,IF([1]!Cell_Color(V70)=[1]!Cell_Color($A$6),3,IF([1]!Cell_Color(V70)=[1]!Cell_Color($A$7),3,IF([1]!Cell_Color(V70)=[1]!Cell_Color($A$8),4,IF([1]!Cell_Color(V70)=[1]!Cell_Color($A$9),4,0)))))))) -> 6 | AJ70: =(17-W70)*POWER(EXP(1),2*(4-IF([1]!Cell_Color(W70)=[1]!Cell_Color($A$4),1,IF([1]!Cell_Color(W70)=[1]!Cell_Color($A$5),2,IF([1]!Cell_Color(W70)=[1]!Cell_Color($A$6),3,IF([1]!Cell_Color(W70)=[1]!Cell_Color($A$7),3,IF([1]!Cell_Color(W70)=[1]!Cell_Color($A$8),4,IF([1]!Cell_Color(W70)=[1]!Cell_Color($A$9),4,0)))))))) -> 12
C71: 68 | D71: 85 | E71: 17 | F71: 72 | G71: 4 | H71: 68 | I71: Матесалка ФК | J71: 13 | K71: 13 | L71: 15 | M71: 15 | N71: 13 | O71: 8 | P71: 11 | Q71: 16 | R71: 12 | S71: 5 | T71: 4 | U71: 11 | V71: 12 | W71: 15 | X71: =SUM(AC71:AG71) -> 37 | Y71: =SUM(AE71:AI71) -> 111.2796171 | Z71: =SUM(AF71:AJ71) -> 121.0577293 | AB71: =(17-O71)*POWER(EXP(1),2*(4-IF([1]!Cell_Color(O71)=[1]!Cell_Color($A$4),1,IF([1]!Cell_Color(O71)=[1]!Cell_Color($A$5),2,IF([1]!Cell_Color(O71)=[1]!Cell_Color($A$6),3,IF([1]!Cell_Color(O71)=[1]!Cell_Color($A$7),3,IF([1]!Cell_Color(O71)=[1]!Cell_Color($A$8),4,IF([1]!Cell_Color(O71)=[1]!Cell_Color($A$9),4,0)))))))) -> 9 | AC71: =(17-P71)*POWER(EXP(1),2*(4-IF([1]!Cell_Color(P71)=[1]!Cell_Color($A$4),1,IF([1]!Cell_Color(P71)=[1]!Cell_Color($A$5),2,IF([1]!Cell_Color(P71)=[1]!Cell_Color($A$6),3,IF([1]!Cell_Color(P71)=[1]!Cell_Color($A$7),3,IF([1]!Cell_Color(P71)=[1]!Cell_Color($A$8),4,IF([1]!Cell_Color(P71)=[1]!Cell_Color($A$9),4,0)))))))) -> 6 | AD71: =(17-Q71)*POWER(EXP(1),2*(4-IF([1]!Cell_Color(Q71)=[1]!Cell_Color($A$4),1,IF([1]!Cell_Color(Q71)=[1]!Cell_Color($A$5),2,IF([1]!Cell_Color(Q71)=[1]!Cell_Color($A$6),3,IF([1]!Cell_Color(Q71)=[1]!Cell_Color($A$7),3,IF([1]!Cell_Color(Q71)=[1]!Cell_Color($A$8),4,IF([1]!Cell_Color(Q71)=[1]!Cell_Color($A$9),4,0)))))))) -> 1 | AE71: =(17-R71)*POWER(EXP(1),2*(4-IF([1]!Cell_Color(R71)=[1]!Cell_Color($A$4),1,IF([1]!Cell_Color(R71)=[1]!Cell_Color($A$5),2,IF([1]!Cell_Color(R71)=[1]!Cell_Color($A$6),3,IF([1]!Cell_Color(R71)=[1]!Cell_Color($A$7),3,IF([1]!Cell_Color(R71)=[1]!Cell_Color($A$8),4,IF([1]!Cell_Color(R71)=[1]!Cell_Color($A$9),4,0)))))))) -> 5 | AF71: =(17-S71)*POWER(EXP(1),2*(4-IF([1]!Cell_Color(S71)=[1]!Cell_Color($A$4),1,IF([1]!Cell_Color(S71)=[1]!Cell_Color($A$5),2,IF([1]!Cell_Color(S71)=[1]!Cell_Color($A$6),3,IF([1]!Cell_Color(S71)=[1]!Cell_Color($A$7),3,IF([1]!Cell_Color(S71)=[1]!Cell_Color($A$8),4,IF([1]!Cell_Color(S71)=[1]!Cell_Color($A$9),4,0)))))))) -> 12 | AG71: =(17-T71)*POWER(EXP(1),2*(4-IF([1]!Cell_Color(T71)=[1]!Cell_Color($A$4),1,IF([1]!Cell_Color(T71)=[1]!Cell_Color($A$5),2,IF([1]!Cell_Color(T71)=[1]!Cell_Color($A$6),3,IF([1]!Cell_Color(T71)=[1]!Cell_Color($A$7),3,IF([1]!Cell_Color(T71)=[1]!Cell_Color($A$8),4,IF([1]!Cell_Color(T71)=[1]!Cell_Color($A$9),4,0)))))))) -> 13 | AH71: =(17-U71)*POWER(EXP(1),2*(4-IF([1]!Cell_Color(U71)=[1]!Cell_Color($A$4),1,IF([1]!Cell_Color(U71)=[1]!Cell_Color($A$5),2,IF([1]!Cell_Color(U71)=[1]!Cell_Color($A$6),3,IF([1]!Cell_Color(U71)=[1]!Cell_Color($A$7),3,IF([1]!Cell_Color(U71)=[1]!Cell_Color($A$8),4,IF([1]!Cell_Color(U71)=[1]!Cell_Color($A$9),4,0)))))))) -> 44.33433659 | AI71: =(17-V71)*POWER(EXP(1),2*(4-IF([1]!Cell_Color(V71)=[1]!Cell_Color($A$4),1,IF([1]!Cell_Color(V71)=[1]!Cell_Color($A$5),2,IF([1]!Cell_Color(V71)=[1]!Cell_Color($A$6),3,IF([1]!Cell_Color(V71)=[1]!Cell_Color($A$7),3,IF([1]!Cell_Color(V71)=[1]!Cell_Color($A$8),4,IF([1]!Cell_Color(V71)=[1]!Cell_Color($A$9),4,0)))))))) -> 36.94528049 | AJ71: =(17-W71)*POWER(EXP(1),2*(4-IF([1]!Cell_Color(W71)=[1]!Cell_Color($A$4),1,IF([1]!Cell_Color(W71)=[1]!Cell_Color($A$5),2,IF([1]!Cell_Color(W71)=[1]!Cell_Color($A$6),3,IF([1]!Cell_Color(W71)=[1]!Cell_Color($A$7),3,IF([1]!Cell_Color(W71)=[1]!Cell_Color($A$8),4,IF([1]!Cell_Color(W71)=[1]!Cell_Color($A$9),4,0)))))))) -> 14.7781122
C72: 69 | D72: 66 | E72: -3 | F72: 68 | G72: -1 | H72: 69 | I72: Ясапать Вароши | L72: 15 | M72: 13 | N72: 5 | O72: 10 | P72: 8 | Q72: 4 | R72: 1 | S72: 8 | T72: 14 | U72: 6 | V72: 8 | W72: 12 | X72: =SUM(AC72:AG72) -> 126.6686732 | Y72: =SUM(AE72:AI72) -> 124.6686732 | Z72: =SUM(AF72:AJ72) -> 113.6686732 | AB72: =(17-O72)*POWER(EXP(1),2*(4-IF([1]!Cell_Color(O72)=[1]!Cell_Color($A$4),1,IF([1]!Cell_Color(O72)=[1]!Cell_Color($A$5),2,IF([1]!Cell_Color(O72)=[1]!Cell_Color($A$6),3,IF([1]!Cell_Color(O72)=[1]!Cell_Color($A$7),3,IF([1]!Cell_Color(O72)=[1]!Cell_Color($A$8),4,IF([1]!Cell_Color(O72)=[1]!Cell_Color($A$9),4,0)))))))) -> 7 | AC72: =(17-P72)*POWER(EXP(1),2*(4-IF([1]!Cell_Color(P72)=[1]!Cell_Color($A$4),1,IF([1]!Cell_Color(P72)=[1]!Cell_Color($A$5),2,IF([1]!Cell_Color(P72)=[1]!Cell_Color($A$6),3,IF([1]!Cell_Color(P72)=[1]!Cell_Color($A$7),3,IF([1]!Cell_Color(P72)=[1]!Cell_Color($A$8),4,IF([1]!Cell_Color(P72)=[1]!Cell_Color($A$9),4,0)))))))) -> 9 | AD72: =(17-Q72)*POWER(EXP(1),2*(4-IF([1]!Cell_Color(Q72)=[1]!Cell_Color($A$4),1,IF([1]!Cell_Color(Q72)=[1]!Cell_Color($A$5),2,IF([1]!Cell_Color(Q72)=[1]!Cell_Color($A$6),3,IF([1]!Cell_Color(Q72)=[1]!Cell_Color($A$7),3,IF([1]!Cell_Color(Q72)=[1]!Cell_Color($A$8),4,IF([1]!Cell_Color(Q72)=[1]!Cell_Color($A$9),4,0)))))))) -> 13 | AE72: =(17-R72)*POWER(EXP(1),2*(4-IF([1]!Cell_Color(R72)=[1]!Cell_Color($A$4),1,IF([1]!Cell_Color(R72)=[1]!Cell_Color($A$5),2,IF([1]!Cell_Color(R72)=[1]!Cell_Color($A$6),3,IF([1]!Cell_Color(R72)=[1]!Cell_Color($A$7),3,IF([1]!Cell_Color(R72)=[1]!Cell_Color($A$8),4,IF([1]!Cell_Color(R72)=[1]!Cell_Color($A$9),4,0)))))))) -> 16 | AF72: =(17-S72)*POWER(EXP(1),2*(4-IF([1]!Cell_Color(S72)=[1]!Cell_Color($A$4),1,IF([1]!Cell_Color(S72)=[1]!Cell_Color($A$5),2,IF([1]!Cell_Color(S72)=[1]!Cell_Color($A$6),3,IF([1]!Cell_Color(S72)=[1]!Cell_Color($A$7),3,IF([1]!Cell_Color(S72)=[1]!Cell_Color($A$8),4,IF([1]!Cell_Color(S72)=[1]!Cell_Color($A$9),4,0)))))))) -> 66.50150489 | AG72: =(17-T72)*POWER(EXP(1),2*(4-IF([1]!Cell_Color(T72)=[1]!Cell_Color($A$4),1,IF([1]!Cell_Color(T72)=[1]!Cell_Color($A$5),2,IF([1]!Cell_Color(T72)=[1]!Cell_Color($A$6),3,IF([1]!Cell_Color(T72)=[1]!Cell_Color($A$7),3,IF([1]!Cell_Color(T72)=[1]!Cell_Color($A$8),4,IF([1]!Cell_Color(T72)=[1]!Cell_Color($A$9),4,0)))))))) -> 22.1671683 | AH72: =(17-U72)*POWER(EXP(1),2*(4-IF([1]!Cell_Color(U72)=[1]!Cell_Color($A$4),1,IF([1]!Cell_Color(U72)=[1]!Cell_Color($A$5),2,IF([1]!Cell_Color(U72)=[1]!Cell_Color($A$6),3,IF([1]!Cell_Color(U72)=[1]!Cell_Color($A$7),3,IF([1]!Cell_Color(U72)=[1]!Cell_Color($A$8),4,IF([1]!Cell_Color(U72)=[1]!Cell_Color($A$9),4,0)))))))) -> 11 | AI72: =(17-V72)*POWER(EXP(1),2*(4-IF([1]!Cell_Color(V72)=[1]!Cell_Color($A$4),1,IF([1]!Cell_Color(V72)=[1]!Cell_Color($A$5),2,IF([1]!Cell_Color(V72)=[1]!Cell_Color($A$6),3,IF([1]!Cell_Color(V72)=[1]!Cell_Color($A$7),3,IF([1]!Cell_Color(V72)=[1]!Cell_Color($A$8),4,IF([1]!Cell_Color(V72)=[1]!Cell_Color($A$9),4,0)))))))) -> 9 | AJ72: =(17-W72)*POWER(EXP(1),2*(4-IF([1]!Cell_Color(W72)=[1]!Cell_Color($A$4),1,IF([1]!Cell_Color(W72)=[1]!Cell_Color($A$5),2,IF([1]!Cell_Color(W72)=[1]!Cell_Color($A$6),3,IF([1]!Cell_Color(W72)=[1]!Cell_Color($A$7),3,IF([1]!Cell_Color(W72)=[1]!Cell_Color($A$8),4,IF([1]!Cell_Color(W72)=[1]!Cell_Color($A$9),4,0)))))))) -> 5
C73: 70 | D73: 44 | E73: =D73-H73 -> -26 | F73: 63 | G73: -7 | H73: 70 | I73: Ференцварош | J73: 8 | K73: 9 | L73: 16 | M73: 3 | N73: 5 | O73: 8 | P73: 4 | Q73: 4 | R73: 8 | S73: 10 | T73: 15 | U73: 3 | V73: 15 | W73: 5 | X73: =SUM(AC73:AG73) -> 325.1184684 | Y73: =SUM(AE73:AI73) -> 161.781122 | Z73: =SUM(AF73:AJ73) -> 107.2796171 | AB73: =(17-O73)*POWER(EXP(1),2*(4-IF([1]!Cell_Color(O73)=[1]!Cell_Color($A$4),1,IF([1]!Cell_Color(O73)=[1]!Cell_Color($A$5),2,IF([1]!Cell_Color(O73)=[1]!Cell_Color($A$6),3,IF([1]!Cell_Color(O73)=[1]!Cell_Color($A$7),3,IF([1]!Cell_Color(O73)=[1]!Cell_Color($A$8),4,IF([1]!Cell_Color(O73)=[1]!Cell_Color($A$9),4,0)))))))) -> 66.50150489 | AC73: =(17-P73)*POWER(EXP(1),2*(4-IF([1]!Cell_Color(P73)=[1]!Cell_Color($A$4),1,IF([1]!Cell_Color(P73)=[1]!Cell_Color($A$5),2,IF([1]!Cell_Color(P73)=[1]!Cell_Color($A$6),3,IF([1]!Cell_Color(P73)=[1]!Cell_Color($A$7),3,IF([1]!Cell_Color(P73)=[1]!Cell_Color($A$8),4,IF([1]!Cell_Color(P73)=[1]!Cell_Color($A$9),4,0)))))))) -> 96.05772929 | AD73: =(17-Q73)*POWER(EXP(1),2*(4-IF([1]!Cell_Color(Q73)=[1]!Cell_Color($A$4),1,IF([1]!Cell_Color(Q73)=[1]!Cell_Color($A$5),2,IF([1]!Cell_Color(Q73)=[1]!Cell_Color($A$6),3,IF([1]!Cell_Color(Q73)=[1]!Cell_Color($A$7),3,IF([1]!Cell_Color(Q73)=[1]!Cell_Color($A$8),4,IF([1]!Cell_Color(Q73)=[1]!Cell_Color($A$9),4,0)))))))) -> 96.05772929 | AE73: =(17-R73)*POWER(EXP(1),2*(4-IF([1]!Cell_Color(R73)=[1]!Cell_Color($A$4),1,IF([1]!Cell_Color(R73)=[1]!Cell_Color($A$5),2,IF([1]!Cell_Color(R73)=[1]!Cell_Color($A$6),3,IF([1]!Cell_Color(R73)=[1]!Cell_Color($A$7),3,IF([1]!Cell_Color(R73)=[1]!Cell_Color($A$8),4,IF([1]!Cell_Color(R73)=[1]!Cell_Color($A$9),4,0)))))))) -> 66.50150489 | AF73: =(17-S73)*POWER(EXP(1),2*(4-IF([1]!Cell_Color(S73)=[1]!Cell_Color($A$4),1,IF([1]!Cell_Color(S73)=[1]!Cell_Color($A$5),2,IF([1]!Cell_Color(S73)=[1]!Cell_Color($A$6),3,IF([1]!Cell_Color(S73)=[1]!Cell_Color($A$7),3,IF([1]!Cell_Color(S73)=[1]!Cell_Color($A$8),4,IF([1]!Cell_Color(S73)=[1]!Cell_Color($A$9),4,0)))))))) -> 51.72339269 | AG73: =(17-T73)*POWER(EXP(1),2*(4-IF([1]!Cell_Color(T73)=[1]!Cell_Color($A$4),1,IF([1]!Cell_Color(T73)=[1]!Cell_Color($A$5),2,IF([1]!Cell_Color(T73)=[1]!Cell_Color($A$6),3,IF([1]!Cell_Color(T73)=[1]!Cell_Color($A$7),3,IF([1]!Cell_Color(T73)=[1]!Cell_Color($A$8),4,IF([1]!Cell_Color(T73)=[1]!Cell_Color($A$9),4,0)))))))) -> 14.7781122 | AH73: =(17-U73)*POWER(EXP(1),2*(4-IF([1]!Cell_Color(U73)=[1]!Cell_Color($A$4),1,IF([1]!Cell_Color(U73)=[1]!Cell_Color($A$5),2,IF([1]!Cell_Color(U73)=[1]!Cell_Color($A$6),3,IF([1]!Cell_Color(U73)=[1]!Cell_Color($A$7),3,IF([1]!Cell_Color(U73)=[1]!Cell_Color($A$8),4,IF([1]!Cell_Color(U73)=[1]!Cell_Color($A$9),4,0)))))))) -> 14 | AI73: =(17-V73)*POWER(EXP(1),2*(4-IF([1]!Cell_Color(V73)=[1]!Cell_Color($A$4),1,IF([1]!Cell_Color(V73)=[1]!Cell_Color($A$5),2,IF([1]!Cell_Color(V73)=[1]!Cell_Color($A$6),3,IF([1]!Cell_Color(V73)=[1]!Cell_Color($A$7),3,IF([1]!Cell_Color(V73)=[1]!Cell_Color($A$8),4,IF([1]!Cell_Color(V73)=[1]!Cell_Color($A$9),4,0)))))))) -> 14.7781122 | AJ73: =(17-W73)*POWER(EXP(1),2*(4-IF([1]!Cell_Color(W73)=[1]!Cell_Color($A$4),1,IF([1]!Cell_Color(W73)=[1]!Cell_Color($A$5),2,IF([1]!Cell_Color(W73)=[1]!Cell_Color($A$6),3,IF([1]!Cell_Color(W73)=[1]!Cell_Color($A$7),3,IF([1]!Cell_Color(W73)=[1]!Cell_Color($A$8),4,IF([1]!Cell_Color(W73)=[1]!Cell_Color($A$9),4,0)))))))) -> 12
C74: 71 | D74: 78 | E74: 7 | F74: 74 | G74: 3 | H74: 71 | I74: Халастелек ФК | L74: 11 | M74: 1 | N74: 14 | O74: 15 | P74: 13 | Q74: 8 | R74: 7 | S74: 4 | T74: 3 | U74: 13 | V74: 13 | W74: 15 | X74: =SUM(AC74:AG74) -> 50 | Y74: =SUM(AE74:AI74) -> 96.11244879 | Z74: =SUM(AF74:AJ74) -> 100.890561 | AB74: =(17-O74)*POWER(EXP(1),2*(4-IF([1]!Cell_Color(O74)=[1]!Cell_Color($A$4),1,IF([1]!Cell_Color(O74)=[1]!Cell_Color($A$5),2,IF([1]!Cell_Color(O74)=[1]!Cell_Color($A$6),3,IF([1]!Cell_Color(O74)=[1]!Cell_Color($A$7),3,IF([1]!Cell_Color(O74)=[1]!Cell_Color($A$8),4,IF([1]!Cell_Color(O74)=[1]!Cell_Color($A$9),4,0)))))))) -> 14.7781122 | AC74: =(17-P74)*POWER(EXP(1),2*(4-IF([1]!Cell_Color(P74)=[1]!Cell_Color($A$4),1,IF([1]!Cell_Color(P74)=[1]!Cell_Color($A$5),2,IF([1]!Cell_Color(P74)=[1]!Cell_Color($A$6),3,IF([1]!Cell_Color(P74)=[1]!Cell_Color($A$7),3,IF([1]!Cell_Color(P74)=[1]!Cell_Color($A$8),4,IF([1]!Cell_Color(P74)=[1]!Cell_Color($A$9),4,0)))))))) -> 4 | AD74: =(17-Q74)*POWER(EXP(1),2*(4-IF([1]!Cell_Color(Q74)=[1]!Cell_Color($A$4),1,IF([1]!Cell_Color(Q74)=[1]!Cell_Color($A$5),2,IF([1]!Cell_Color(Q74)=[1]!Cell_Color($A$6),3,IF([1]!Cell_Color(Q74)=[1]!Cell_Color($A$7),3,IF([1]!Cell_Color(Q74)=[1]!Cell_Color($A$8),4,IF([1]!Cell_Color(Q74)=[1]!Cell_Color($A$9),4,0)))))))) -> 9 | AE74: =(17-R74)*POWER(EXP(1),2*(4-IF([1]!Cell_Color(R74)=[1]!Cell_Color($A$4),1,IF([1]!Cell_Color(R74)=[1]!Cell_Color($A$5),2,IF([1]!Cell_Color(R74)=[1]!Cell_Color($A$6),3,IF([1]!Cell_Color(R74)=[1]!Cell_Color($A$7),3,IF([1]!Cell_Color(R74)=[1]!Cell_Color($A$8),4,IF([1]!Cell_Color(R74)=[1]!Cell_Color($A$9),4,0)))))))) -> 10 | AF74: =(17-S74)*POWER(EXP(1),2*(4-IF([1]!Cell_Color(S74)=[1]!Cell_Color($A$4),1,IF([1]!Cell_Color(S74)=[1]!Cell_Color($A$5),2,IF([1]!Cell_Color(S74)=[1]!Cell_Color($A$6),3,IF([1]!Cell_Color(S74)=[1]!Cell_Color($A$7),3,IF([1]!Cell_Color(S74)=[1]!Cell_Color($A$8),4,IF([1]!Cell_Color(S74)=[1]!Cell_Color($A$9),4,0)))))))) -> 13 | AG74: =(17-T74)*POWER(EXP(1),2*(4-IF([1]!Cell_Color(T74)=[1]!Cell_Color($A$4),1,IF([1]!Cell_Color(T74)=[1]!Cell_Color($A$5),2,IF([1]!Cell_Color(T74)=[1]!Cell_Color($A$6),3,IF([1]!Cell_Color(T74)=[1]!Cell_Color($A$7),3,IF([1]!Cell_Color(T74)=[1]!Cell_Color($A$8),4,IF([1]!Cell_Color(T74)=[1]!Cell_Color($A$9),4,0)))))))) -> 14 | AH74: =(17-U74)*POWER(EXP(1),2*(4-IF([1]!Cell_Color(U74)=[1]!Cell_Color($A$4),1,IF([1]!Cell_Color(U74)=[1]!Cell_Color($A$5),2,IF([1]!Cell_Color(U74)=[1]!Cell_Color($A$6),3,IF([1]!Cell_Color(U74)=[1]!Cell_Color($A$7),3,IF([1]!Cell_Color(U74)=[1]!Cell_Color($A$8),4,IF([1]!Cell_Color(U74)=[1]!Cell_Color($A$9),4,0)))))))) -> 29.5562244 | AI74: =(17-V74)*POWER(EXP(1),2*(4-IF([1]!Cell_Color(V74)=[1]!Cell_Color($A$4),1,IF([1]!Cell_Color(V74)=[1]!Cell_Color($A$5),2,IF([1]!Cell_Color(V74)=[1]!Cell_Color($A$6),3,IF([1]!Cell_Color(V74)=[1]!Cell_Color($A$7),3,IF([1]!Cell_Color(V74)=[1]!Cell_Color($A$8),4,IF([1]!Cell_Color(V74)=[1]!Cell_Color($A$9),4,0)))))))) -> 29.5562244 | AJ74: =(17-W74)*POWER(EXP(1),2*(4-IF([1]!Cell_Color(W74)=[1]!Cell_Color($A$4),1,IF([1]!Cell_Color(W74)=[1]!Cell_Color($A$5),2,IF([1]!Cell_Color(W74)=[1]!Cell_Color($A$6),3,IF([1]!Cell_Color(W74)=[1]!Cell_Color($A$7),3,IF([1]!Cell_Color(W74)=[1]!Cell_Color($A$8),4,IF([1]!Cell_Color(W74)=[1]!Cell_Color($A$9),4,0)))))))) -> 14.7781122
C75: 72 | D75: 92 | E75: 20 | F75: 82 | G75: 10 | H75: 72 | I75: Сентлёринц СЕ | L75: 16 | M75: 16 | N75: 16 | O75: 13 | P75: 15 | Q75: 15 | R75: 10 | S75: 10 | T75: 11 | U75: 7 | V75: 1 | W75: 12 | X75: =SUM(AC75:AG75) -> 24 | Y75: =SUM(AE75:AI75) -> 46 | Z75: =SUM(AF75:AJ75) -> 75.94528049 | AB75: =(17-O75)*POWER(EXP(1),2*(4-IF([1]!Cell_Color(O75)=[1]!Cell_Color($A$4),1,IF([1]!Cell_Color(O75)=[1]!Cell_Color($A$5),2,IF([1]!Cell_Color(O75)=[1]!Cell_Color($A$6),3,IF([1]!Cell_Color(O75)=[1]!Cell_Color($A$7),3,IF([1]!Cell_Color(O75)=[1]!Cell_Color($A$8),4,IF([1]!Cell_Color(O75)=[1]!Cell_Color($A$9),4,0)))))))) -> 4 | AC75: =(17-P75)*POWER(EXP(1),2*(4-IF([1]!Cell_Color(P75)=[1]!Cell_Color($A$4),1,IF([1]!Cell_Color(P75)=[1]!Cell_Color($A$5),2,IF([1]!Cell_Color(P75)=[1]!Cell_Color($A$6),3,IF([1]!Cell_Color(P75)=[1]!Cell_Color($A$7),3,IF([1]!Cell_Color(P75)=[1]!Cell_Color($A$8),4,IF([1]!Cell_Color(P75)=[1]!Cell_Color($A$9),4,0)))))))) -> 2 | AD75: =(17-Q75)*POWER(EXP(1),2*(4-IF([1]!Cell_Color(Q75)=[1]!Cell_Color($A$4),1,IF([1]!Cell_Color(Q75)=[1]!Cell_Color($A$5),2,IF([1]!Cell_Color(Q75)=[1]!Cell_Color($A$6),3,IF([1]!Cell_Color(Q75)=[1]!Cell_Color($A$7),3,IF([1]!Cell_Color(Q75)=[1]!Cell_Color($A$8),4,IF([1]!Cell_Color(Q75)=[1]!Cell_Color($A$9),4,0)))))))) -> 2 | AE75: =(17-R75)*POWER(EXP(1),2*(4-IF([1]!Cell_Color(R75)=[1]!Cell_Color($A$4),1,IF([1]!Cell_Color(R75)=[1]!Cell_Color($A$5),2,IF([1]!Cell_Color(R75)=[1]!Cell_Color($A$6),3,IF([1]!Cell_Color(R75)=[1]!Cell_Color($A$7),3,IF([1]!Cell_Color(R75)=[1]!Cell_Color($A$8),4,IF([1]!Cell_Color(R75)=[1]!Cell_Color($A$9),4,0)))))))) -> 7 | AF75: =(17-S75)*POWER(EXP(1),2*(4-IF([1]!Cell_Color(S75)=[1]!Cell_Color($A$4),1,IF([1]!Cell_Color(S75)=[1]!Cell_Color($A$5),2,IF([1]!Cell_Color(S75)=[1]!Cell_Color($A$6),3,IF([1]!Cell_Color(S75)=[1]!Cell_Color($A$7),3,IF([1]!Cell_Color(S75)=[1]!Cell_Color($A$8),4,IF([1]!Cell_Color(S75)=[1]!Cell_Color($A$9),4,0)))))))) -> 7 | AG75: =(17-T75)*POWER(EXP(1),2*(4-IF([1]!Cell_Color(T75)=[1]!Cell_Color($A$4),1,IF([1]!Cell_Color(T75)=[1]!Cell_Color($A$5),2,IF([1]!Cell_Color(T75)=[1]!Cell_Color($A$6),3,IF([1]!Cell_Color(T75)=[1]!Cell_Color($A$7),3,IF([1]!Cell_Color(T75)=[1]!Cell_Color($A$8),4,IF([1]!Cell_Color(T75)=[1]!Cell_Color($A$9),4,0)))))))) -> 6 | AH75: =(17-U75)*POWER(EXP(1),2*(4-IF([1]!Cell_Color(U75)=[1]!Cell_Color($A$4),1,IF([1]!Cell_Color(U75)=[1]!Cell_Color($A$5),2,IF([1]!Cell_Color(U75)=[1]!Cell_Color($A$6),3,IF([1]!Cell_Color(U75)=[1]!Cell_Color($A$7),3,IF([1]!Cell_Color(U75)=[1]!Cell_Color($A$8),4,IF([1]!Cell_Color(U75)=[1]!Cell_Color($A$9),4,0)))))))) -> 10 | AI75: =(17-V75)*POWER(EXP(1),2*(4-IF([1]!Cell_Color(V75)=[1]!Cell_Color($A$4),1,IF([1]!Cell_Color(V75)=[1]!Cell_Color($A$5),2,IF([1]!Cell_Color(V75)=[1]!Cell_Color($A$6),3,IF([1]!Cell_Color(V75)=[1]!Cell_Color($A$7),3,IF([1]!Cell_Color(V75)=[1]!Cell_Color($A$8),4,IF([1]!Cell_Color(V75)=[1]!Cell_Color($A$9),4,0)))))))) -> 16 | AJ75: =(17-W75)*POWER(EXP(1),2*(4-IF([1]!Cell_Color(W75)=[1]!Cell_Color($A$4),1,IF([1]!Cell_Color(W75)=[1]!Cell_Color($A$5),2,IF([1]!Cell_Color(W75)=[1]!Cell_Color($A$6),3,IF([1]!Cell_Color(W75)=[1]!Cell_Color($A$7),3,IF([1]!Cell_Color(W75)=[1]!Cell_Color($A$8),4,IF([1]!Cell_Color(W75)=[1]!Cell_Color($A$9),4,0)))))))) -> 36.94528049
C76: 73 | D76: 82 | E76: 9 | F76: 81 | G76: 8 | H76: 73 | I76: Икарус БСЕ | L76: 16 | M76: 9 | N76: 13 | O76: 14 | P76: 6 | Q76: 9 | R76: 7 | S76: 9 | T76: 11 | U76: 4 | V76: 3 | W76: 14 | X76: =SUM(AC76:AG76) -> 43 | Y76: =SUM(AE76:AI76) -> 51 | Z76: =SUM(AF76:AJ76) -> 63.1671683 | AB76: =(17-O76)*POWER(EXP(1),2*(4-IF([1]!Cell_Color(O76)=[1]!Cell_Color($A$4),1,IF([1]!Cell_Color(O76)=[1]!Cell_Color($A$5),2,IF([1]!Cell_Color(O76)=[1]!Cell_Color($A$6),3,IF([1]!Cell_Color(O76)=[1]!Cell_Color($A$7),3,IF([1]!Cell_Color(O76)=[1]!Cell_Color($A$8),4,IF([1]!Cell_Color(O76)=[1]!Cell_Color($A$9),4,0)))))))) -> 3 | AC76: =(17-P76)*POWER(EXP(1),2*(4-IF([1]!Cell_Color(P76)=[1]!Cell_Color($A$4),1,IF([1]!Cell_Color(P76)=[1]!Cell_Color($A$5),2,IF([1]!Cell_Color(P76)=[1]!Cell_Color($A$6),3,IF([1]!Cell_Color(P76)=[1]!Cell_Color($A$7),3,IF([1]!Cell_Color(P76)=[1]!Cell_Color($A$8),4,IF([1]!Cell_Color(P76)=[1]!Cell_Color($A$9),4,0)))))))) -> 11 | AD76: =(17-Q76)*POWER(EXP(1),2*(4-IF([1]!Cell_Color(Q76)=[1]!Cell_Color($A$4),1,IF([1]!Cell_Color(Q76)=[1]!Cell_Color($A$5),2,IF([1]!Cell_Color(Q76)=[1]!Cell_Color($A$6),3,IF([1]!Cell_Color(Q76)=[1]!Cell_Color($A$7),3,IF([1]!Cell_Color(Q76)=[1]!Cell_Color($A$8),4,IF([1]!Cell_Color(Q76)=[1]!Cell_Color($A$9),4,0)))))))) -> 8 | AE76: =(17-R76)*POWER(EXP(1),2*(4-IF([1]!Cell_Color(R76)=[1]!Cell_Color($A$4),1,IF([1]!Cell_Color(R76)=[1]!Cell_Color($A$5),2,IF([1]!Cell_Color(R76)=[1]!Cell_Color($A$6),3,IF([1]!Cell_Color(R76)=[1]!Cell_Color($A$7),3,IF([1]!Cell_Color(R76)=[1]!Cell_Color($A$8),4,IF([1]!Cell_Color(R76)=[1]!Cell_Color($A$9),4,0)))))))) -> 10 | AF76: =(17-S76)*POWER(EXP(1),2*(4-IF([1]!Cell_Color(S76)=[1]!Cell_Color($A$4),1,IF([1]!Cell_Color(S76)=[1]!Cell_Color($A$5),2,IF([1]!Cell_Color(S76)=[1]!Cell_Color($A$6),3,IF([1]!Cell_Color(S76)=[1]!Cell_Color($A$7),3,IF([1]!Cell_Color(S76)=[1]!Cell_Color($A$8),4,IF([1]!Cell_Color(S76)=[1]!Cell_Color($A$9),4,0)))))))) -> 8 | AG76: =(17-T76)*POWER(EXP(1),2*(4-IF([1]!Cell_Color(T76)=[1]!Cell_Color($A$4),1,IF([1]!Cell_Color(T76)=[1]!Cell_Color($A$5),2,IF([1]!Cell_Color(T76)=[1]!Cell_Color($A$6),3,IF([1]!Cell_Color(T76)=[1]!Cell_Color($A$7),3,IF([1]!Cell_Color(T76)=[1]!Cell_Color($A$8),4,IF([1]!Cell_Color(T76)=[1]!Cell_Color($A$9),4,0)))))))) -> 6 | AH76: =(17-U76)*POWER(EXP(1),2*(4-IF([1]!Cell_Color(U76)=[1]!Cell_Color($A$4),1,IF([1]!Cell_Color(U76)=[1]!Cell_Color($A$5),2,IF([1]!Cell_Color(U76)=[1]!Cell_Color($A$6),3,IF([1]!Cell_Color(U76)=[1]!Cell_Color($A$7),3,IF([1]!Cell_Color(U76)=[1]!Cell_Color($A$8),4,IF([1]!Cell_Color(U76)=[1]!Cell_Color($A$9),4,0)))))))) -> 13 | AI76: =(17-V76)*POWER(EXP(1),2*(4-IF([1]!Cell_Color(V76)=[1]!Cell_Color($A$4),1,IF([1]!Cell_Color(V76)=[1]!Cell_Color($A$5),2,IF([1]!Cell_Color(V76)=[1]!Cell_Color($A$6),3,IF([1]!Cell_Color(V76)=[1]!Cell_Color($A$7),3,IF([1]!Cell_Color(V76)=[1]!Cell_Color($A$8),4,IF([1]!Cell_Color(V76)=[1]!Cell_Color($A$9),4,0)))))))) -> 14 | AJ76: =(17-W76)*POWER(EXP(1),2*(4-IF([1]!Cell_Color(W76)=[1]!Cell_Color($A$4),1,IF([1]!Cell_Color(W76)=[1]!Cell_Color($A$5),2,IF([1]!Cell_Color(W76)=[1]!Cell_Color($A$6),3,IF([1]!Cell_Color(W76)=[1]!Cell_Color($A$7),3,IF([1]!Cell_Color(W76)=[1]!Cell_Color($A$8),4,IF([1]!Cell_Color(W76)=[1]!Cell_Color($A$9),4,0)))))))) -> 22.1671683
C77: 74 | D77: 54 | E77: -20 | F77: 67 | G77: -7 | H77: 74 | I77: Татабанья | J77: 11 | K77: 10 | L77: 8 | M77: 8 | N77: 7 | O77: 6 | P77: 5 | Q77: 13 | R77: 6 | S77: 12 | T77: 16 | U77: 14 | V77: 12 | W77: 10 | X77: =SUM(AC77:AG77) -> 243.8388513 | Y77: =SUM(AE77:AI77) -> 133.6139537 | Z77: =SUM(AF77:AJ77) -> 59.33433659 | AB77: =(17-O77)*POWER(EXP(1),2*(4-IF([1]!Cell_Color(O77)=[1]!Cell_Color($A$4),1,IF([1]!Cell_Color(O77)=[1]!Cell_Color($A$5),2,IF([1]!Cell_Color(O77)=[1]!Cell_Color($A$6),3,IF([1]!Cell_Color(O77)=[1]!Cell_Color($A$7),3,IF([1]!Cell_Color(O77)=[1]!Cell_Color($A$8),4,IF([1]!Cell_Color(O77)=[1]!Cell_Color($A$9),4,0)))))))) -> 81.27961709 | AC77: =(17-P77)*POWER(EXP(1),2*(4-IF([1]!Cell_Color(P77)=[1]!Cell_Color($A$4),1,IF([1]!Cell_Color(P77)=[1]!Cell_Color($A$5),2,IF([1]!Cell_Color(P77)=[1]!Cell_Color($A$6),3,IF([1]!Cell_Color(P77)=[1]!Cell_Color($A$7),3,IF([1]!Cell_Color(P77)=[1]!Cell_Color($A$8),4,IF([1]!Cell_Color(P77)=[1]!Cell_Color($A$9),4,0)))))))) -> 88.66867319 | AD77: =(17-Q77)*POWER(EXP(1),2*(4-IF([1]!Cell_Color(Q77)=[1]!Cell_Color($A$4),1,IF([1]!Cell_Color(Q77)=[1]!Cell_Color($A$5),2,IF([1]!Cell_Color(Q77)=[1]!Cell_Color($A$6),3,IF([1]!Cell_Color(Q77)=[1]!Cell_Color($A$7),3,IF([1]!Cell_Color(Q77)=[1]!Cell_Color($A$8),4,IF([1]!Cell_Color(Q77)=[1]!Cell_Color($A$9),4,0)))))))) -> 29.5562244 | AE77: =(17-R77)*POWER(EXP(1),2*(4-IF([1]!Cell_Color(R77)=[1]!Cell_Color($A$4),1,IF([1]!Cell_Color(R77)=[1]!Cell_Color($A$5),2,IF([1]!Cell_Color(R77)=[1]!Cell_Color($A$6),3,IF([1]!Cell_Color(R77)=[1]!Cell_Color($A$7),3,IF([1]!Cell_Color(R77)=[1]!Cell_Color($A$8),4,IF([1]!Cell_Color(R77)=[1]!Cell_Color($A$9),4,0)))))))) -> 81.27961709 | AF77: =(17-S77)*POWER(EXP(1),2*(4-IF([1]!Cell_Color(S77)=[1]!Cell_Color($A$4),1,IF([1]!Cell_Color(S77)=[1]!Cell_Color($A$5),2,IF([1]!Cell_Color(S77)=[1]!Cell_Color($A$6),3,IF([1]!Cell_Color(S77)=[1]!Cell_Color($A$7),3,IF([1]!Cell_Color(S77)=[1]!Cell_Color($A$8),4,IF([1]!Cell_Color(S77)=[1]!Cell_Color($A$9),4,0)))))))) -> 36.94528049 | AG77: =(17-T77)*POWER(EXP(1),2*(4-IF([1]!Cell_Color(T77)=[1]!Cell_Color($A$4),1,IF([1]!Cell_Color(T77)=[1]!Cell_Color($A$5),2,IF([1]!Cell_Color(T77)=[1]!Cell_Color($A$6),3,IF([1]!Cell_Color(T77)=[1]!Cell_Color($A$7),3,IF([1]!Cell_Color(T77)=[1]!Cell_Color($A$8),4,IF([1]!Cell_Color(T77)=[1]!Cell_Color($A$9),4,0)))))))) -> 7.389056099 | AH77: =(17-U77)*POWER(EXP(1),2*(4-IF([1]!Cell_Color(U77)=[1]!Cell_Color($A$4),1,IF([1]!Cell_Color(U77)=[1]!Cell_Color($A$5),2,IF([1]!Cell_Color(U77)=[1]!Cell_Color($A$6),3,IF([1]!Cell_Color(U77)=[1]!Cell_Color($A$7),3,IF([1]!Cell_Color(U77)=[1]!Cell_Color($A$8),4,IF([1]!Cell_Color(U77)=[1]!Cell_Color($A$9),4,0)))))))) -> 3 | AI77: =(17-V77)*POWER(EXP(1),2*(4-IF([1]!Cell_Color(V77)=[1]!Cell_Color($A$4),1,IF([1]!Cell_Color(V77)=[1]!Cell_Color($A$5),2,IF([1]!Cell_Color(V77)=[1]!Cell_Color($A$6),3,IF([1]!Cell_Color(V77)=[1]!Cell_Color($A$7),3,IF([1]!Cell_Color(V77)=[1]!Cell_Color($A$8),4,IF([1]!Cell_Color(V77)=[1]!Cell_Color($A$9),4,0)))))))) -> 5 | AJ77: =(17-W77)*POWER(EXP(1),2*(4-IF([1]!Cell_Color(W77)=[1]!Cell_Color($A$4),1,IF([1]!Cell_Color(W77)=[1]!Cell_Color($A$5),2,IF([1]!Cell_Color(W77)=[1]!Cell_Color($A$6),3,IF([1]!Cell_Color(W77)=[1]!Cell_Color($A$7),3,IF([1]!Cell_Color(W77)=[1]!Cell_Color($A$8),4,IF([1]!Cell_Color(W77)=[1]!Cell_Color($A$9),4,0)))))))) -> 7
C78: 75 | D78: 74 | E78: -1 | F78: 79 | G78: =F78-H78 -> 4 | H78: 75 | I78: Бакталорантаза Вароши | J78: 15 | K78: 9 | L78: 5 | M78: 7 | N78: 9 | O78: 7 | P78: 14 | Q78: 4 | R78: 11 | S78: 5 | T78: 5 | U78: 7 | V78: 2 | W78: 16 | X78: =SUM(AC78:AG78) -> 65.1671683 | Y78: =SUM(AE78:AI78) -> 55 | Z78: =SUM(AF78:AJ78) -> 56.3890561 | AB78: =(17-O78)*POWER(EXP(1),2*(4-IF([1]!Cell_Color(O78)=[1]!Cell_Color($A$4),1,IF([1]!Cell_Color(O78)=[1]!Cell_Color($A$5),2,IF([1]!Cell_Color(O78)=[1]!Cell_Color($A$6),3,IF([1]!Cell_Color(O78)=[1]!Cell_Color($A$7),3,IF([1]!Cell_Color(O78)=[1]!Cell_Color($A$8),4,IF([1]!Cell_Color(O78)=[1]!Cell_Color($A$9),4,0)))))))) -> 73.89056099 | AC78: =(17-P78)*POWER(EXP(1),2*(4-IF([1]!Cell_Color(P78)=[1]!Cell_Color($A$4),1,IF([1]!Cell_Color(P78)=[1]!Cell_Color($A$5),2,IF([1]!Cell_Color(P78)=[1]!Cell_Color($A$6),3,IF([1]!Cell_Color(P78)=[1]!Cell_Color($A$7),3,IF([1]!Cell_Color(P78)=[1]!Cell_Color($A$8),4,IF([1]!Cell_Color(P78)=[1]!Cell_Color($A$9),4,0)))))))) -> 22.1671683 | AD78: =(17-Q78)*POWER(EXP(1),2*(4-IF([1]!Cell_Color(Q78)=[1]!Cell_Color($A$4),1,IF([1]!Cell_Color(Q78)=[1]!Cell_Color($A$5),2,IF([1]!Cell_Color(Q78)=[1]!Cell_Color($A$6),3,IF([1]!Cell_Color(Q78)=[1]!Cell_Color($A$7),3,IF([1]!Cell_Color(Q78)=[1]!Cell_Color($A$8),4,IF([1]!Cell_Color(Q78)=[1]!Cell_Color($A$9),4,0)))))))) -> 13 | AE78: =(17-R78)*POWER(EXP(1),2*(4-IF([1]!Cell_Color(R78)=[1]!Cell_Color($A$4),1,IF([1]!Cell_Color(R78)=[1]!Cell_Color($A$5),2,IF([1]!Cell_Color(R78)=[1]!Cell_Color($A$6),3,IF([1]!Cell_Color(R78)=[1]!Cell_Color($A$7),3,IF([1]!Cell_Color(R78)=[1]!Cell_Color($A$8),4,IF([1]!Cell_Color(R78)=[1]!Cell_Color($A$9),4,0)))))))) -> 6 | AF78: =(17-S78)*POWER(EXP(1),2*(4-IF([1]!Cell_Color(S78)=[1]!Cell_Color($A$4),1,IF([1]!Cell_Color(S78)=[1]!Cell_Color($A$5),2,IF([1]!Cell_Color(S78)=[1]!Cell_Color($A$6),3,IF([1]!Cell_Color(S78)=[1]!Cell_Color($A$7),3,IF([1]!Cell_Color(S78)=[1]!Cell_Color($A$8),4,IF([1]!Cell_Color(S78)=[1]!Cell_Color($A$9),4,0)))))))) -> 12 | AG78: =(17-T78)*POWER(EXP(1),2*(4-IF([1]!Cell_Color(T78)=[1]!Cell_Color($A$4),1,IF([1]!Cell_Color(T78)=[1]!Cell_Color($A$5),2,IF([1]!Cell_Color(T78)=[1]!Cell_Color($A$6),3,IF([1]!Cell_Color(T78)=[1]!Cell_Color($A$7),3,IF([1]!Cell_Color(T78)=[1]!Cell_Color($A$8),4,IF([1]!Cell_Color(T78)=[1]!Cell_Color($A$9),4,0)))))))) -> 12 | AH78: =(17-U78)*POWER(EXP(1),2*(4-IF([1]!Cell_Color(U78)=[1]!Cell_Color($A$4),1,IF([1]!Cell_Color(U78)=[1]!Cell_Color($A$5),2,IF([1]!Cell_Color(U78)=[1]!Cell_Color($A$6),3,IF([1]!Cell_Color(U78)=[1]!Cell_Color($A$7),3,IF([1]!Cell_Color(U78)=[1]!Cell_Color($A$8),4,IF([1]!Cell_Color(U78)=[1]!Cell_Color($A$9),4,0)))))))) -> 10 | AI78: =(17-V78)*POWER(EXP(1),2*(4-IF([1]!Cell_Color(V78)=[1]!Cell_Color($A$4),1,IF([1]!Cell_Color(V78)=[1]!Cell_Color($A$5),2,IF([1]!Cell_Color(V78)=[1]!Cell_Color($A$6),3,IF([1]!Cell_Color(V78)=[1]!Cell_Color($A$7),3,IF([1]!Cell_Color(V78)=[1]!Cell_Color($A$8),4,IF([1]!Cell_Color(V78)=[1]!Cell_Color($A$9),4,0)))))))) -> 15 | AJ78: =(17-W78)*POWER(EXP(1),2*(4-IF([1]!Cell_Color(W78)=[1]!Cell_Color($A$4),1,IF([1]!Cell_Color(W78)=[1]!Cell_Color($A$5),2,IF([1]!Cell_Color(W78)=[1]!Cell_Color($A$6),3,IF([1]!Cell_Color(W78)=[1]!Cell_Color($A$7),3,IF([1]!Cell_Color(W78)=[1]!Cell_Color($A$8),4,IF([1]!Cell_Color(W78)=[1]!Cell_Color($A$9),4,0)))))))) -> 7.389056099
C79: 76 | D79: 75 | E79: -1 | F79: 78 | G79: 2 | H79: 76 | I79: Чиллахедь МТЕ | L79: 12 | M79: 13 | N79: 14 | O79: 7 | P79: 8 | Q79: 3 | R79: 14 | S79: 15 | T79: 12 | U79: 3 | V79: 16 | W79: 3 | X79: =SUM(AC79:AG79) -> 64.94528049 | Y79: =SUM(AE79:AI79) -> 63.33433659 | Z79: =SUM(AF79:AJ79) -> 55.1671683 | AB79: =(17-O79)*POWER(EXP(1),2*(4-IF([1]!Cell_Color(O79)=[1]!Cell_Color($A$4),1,IF([1]!Cell_Color(O79)=[1]!Cell_Color($A$5),2,IF([1]!Cell_Color(O79)=[1]!Cell_Color($A$6),3,IF([1]!Cell_Color(O79)=[1]!Cell_Color($A$7),3,IF([1]!Cell_Color(O79)=[1]!Cell_Color($A$8),4,IF([1]!Cell_Color(O79)=[1]!Cell_Color($A$9),4,0)))))))) -> 10 | AC79: =(17-P79)*POWER(EXP(1),2*(4-IF([1]!Cell_Color(P79)=[1]!Cell_Color($A$4),1,IF([1]!Cell_Color(P79)=[1]!Cell_Color($A$5),2,IF([1]!Cell_Color(P79)=[1]!Cell_Color($A$6),3,IF([1]!Cell_Color(P79)=[1]!Cell_Color($A$7),3,IF([1]!Cell_Color(P79)=[1]!Cell_Color($A$8),4,IF([1]!Cell_Color(P79)=[1]!Cell_Color($A$9),4,0)))))))) -> 9 | AD79: =(17-Q79)*POWER(EXP(1),2*(4-IF([1]!Cell_Color(Q79)=[1]!Cell_Color($A$4),1,IF([1]!Cell_Color(Q79)=[1]!Cell_Color($A$5),2,IF([1]!Cell_Color(Q79)=[1]!Cell_Color($A$6),3,IF([1]!Cell_Color(Q79)=[1]!Cell_Color($A$7),3,IF([1]!Cell_Color(Q79)=[1]!Cell_Color($A$8),4,IF([1]!Cell_Color(Q79)=[1]!Cell_Color($A$9),4,0)))))))) -> 14 | AE79: =(17-R79)*POWER(EXP(1),2*(4-IF([1]!Cell_Color(R79)=[1]!Cell_Color($A$4),1,IF([1]!Cell_Color(R79)=[1]!Cell_Color($A$5),2,IF([1]!Cell_Color(R79)=[1]!Cell_Color($A$6),3,IF([1]!Cell_Color(R79)=[1]!Cell_Color($A$7),3,IF([1]!Cell_Color(R79)=[1]!Cell_Color($A$8),4,IF([1]!Cell_Color(R79)=[1]!Cell_Color($A$9),4,0)))))))) -> 22.1671683 | AF79: =(17-S79)*POWER(EXP(1),2*(4-IF([1]!Cell_Color(S79)=[1]!Cell_Color($A$4),1,IF([1]!Cell_Color(S79)=[1]!Cell_Color($A$5),2,IF([1]!Cell_Color(S79)=[1]!Cell_Color($A$6),3,IF([1]!Cell_Color(S79)=[1]!Cell_Color($A$7),3,IF([1]!Cell_Color(S79)=[1]!Cell_Color($A$8),4,IF([1]!Cell_Color(S79)=[1]!Cell_Color($A$9),4,0)))))))) -> 14.7781122 | AG79: =(17-T79)*POWER(EXP(1),2*(4-IF([1]!Cell_Color(T79)=[1]!Cell_Color($A$4),1,IF([1]!Cell_Color(T79)=[1]!Cell_Color($A$5),2,IF([1]!Cell_Color(T79)=[1]!Cell_Color($A$6),3,IF([1]!Cell_Color(T79)=[1]!Cell_Color($A$7),3,IF([1]!Cell_Color(T79)=[1]!Cell_Color($A$8),4,IF([1]!Cell_Color(T79)=[1]!Cell_Color($A$9),4,0)))))))) -> 5 | AH79: =(17-U79)*POWER(EXP(1),2*(4-IF([1]!Cell_Color(U79)=[1]!Cell_Color($A$4),1,IF([1]!Cell_Color(U79)=[1]!Cell_Color($A$5),2,IF([1]!Cell_Color(U79)=[1]!Cell_Color($A$6),3,IF([1]!Cell_Color(U79)=[1]!Cell_Color($A$7),3,IF([1]!Cell_Color(U79)=[1]!Cell_Color($A$8),4,IF([1]!Cell_Color(U79)=[1]!Cell_Color($A$9),4,0)))))))) -> 14 | AI79: =(17-V79)*POWER(EXP(1),2*(4-IF([1]!Cell_Color(V79)=[1]!Cell_Color($A$4),1,IF([1]!Cell_Color(V79)=[1]!Cell_Color($A$5),2,IF([1]!Cell_Color(V79)=[1]!Cell_Color($A$6),3,IF([1]!Cell_Color(V79)=[1]!Cell_Color($A$7),3,IF([1]!Cell_Color(V79)=[1]!Cell_Color($A$8),4,IF([1]!Cell_Color(V79)=[1]!Cell_Color($A$9),4,0)))))))) -> 7.389056099 | AJ79: =(17-W79)*POWER(EXP(1),2*(4-IF([1]!Cell_Color(W79)=[1]!Cell_Color($A$4),1,IF([1]!Cell_Color(W79)=[1]!Cell_Color($A$5),2,IF([1]!Cell_Color(W79)=[1]!Cell_Color($A$6),3,IF([1]!Cell_Color(W79)=[1]!Cell_Color($A$7),3,IF([1]!Cell_Color(W79)=[1]!Cell_Color($A$8),4,IF([1]!Cell_Color(W79)=[1]!Cell_Color($A$9),4,0)))))))) -> 14
C80: 77 | D80: 59 | E80: -18 | F80: 76 | G80: -1 | H80: 77 | I80: Будафок ЛК | J80: 14 | K80: 16 | L80: 12 | M80: 10 | N80: 11 | O80: 10 | P80: 9 | Q80: 8 | R80: 12 | S80: 16 | T80: 2 | U80: 15 | V80: 9 | W80: 10 | X80: =SUM(AC80:AG80) -> 184.9482903 | Y80: =SUM(AE80:AI80) -> 82.11244879 | Z80: =SUM(AF80:AJ80) -> 52.1671683 | AB80: =(17-O80)*POWER(EXP(1),2*(4-IF([1]!Cell_Color(O80)=[1]!Cell_Color($A$4),1,IF([1]!Cell_Color(O80)=[1]!Cell_Color($A$5),2,IF([1]!Cell_Color(O80)=[1]!Cell_Color($A$6),3,IF([1]!Cell_Color(O80)=[1]!Cell_Color($A$7),3,IF([1]!Cell_Color(O80)=[1]!Cell_Color($A$8),4,IF([1]!Cell_Color(O80)=[1]!Cell_Color($A$9),4,0)))))))) -> 51.72339269 | AC80: =(17-P80)*POWER(EXP(1),2*(4-IF([1]!Cell_Color(P80)=[1]!Cell_Color($A$4),1,IF([1]!Cell_Color(P80)=[1]!Cell_Color($A$5),2,IF([1]!Cell_Color(P80)=[1]!Cell_Color($A$6),3,IF([1]!Cell_Color(P80)=[1]!Cell_Color($A$7),3,IF([1]!Cell_Color(P80)=[1]!Cell_Color($A$8),4,IF([1]!Cell_Color(P80)=[1]!Cell_Color($A$9),4,0)))))))) -> 59.11244879 | AD80: =(17-Q80)*POWER(EXP(1),2*(4-IF([1]!Cell_Color(Q80)=[1]!Cell_Color($A$4),1,IF([1]!Cell_Color(Q80)=[1]!Cell_Color($A$5),2,IF([1]!Cell_Color(Q80)=[1]!Cell_Color($A$6),3,IF([1]!Cell_Color(Q80)=[1]!Cell_Color($A$7),3,IF([1]!Cell_Color(Q80)=[1]!Cell_Color($A$8),4,IF([1]!Cell_Color(Q80)=[1]!Cell_Color($A$9),4,0)))))))) -> 66.50150489 | AE80: =(17-R80)*POWER(EXP(1),2*(4-IF([1]!Cell_Color(R80)=[1]!Cell_Color($A$4),1,IF([1]!Cell_Color(R80)=[1]!Cell_Color($A$5),2,IF([1]!Cell_Color(R80)=[1]!Cell_Color($A$6),3,IF([1]!Cell_Color(R80)=[1]!Cell_Color($A$7),3,IF([1]!Cell_Color(R80)=[1]!Cell_Color($A$8),4,IF([1]!Cell_Color(R80)=[1]!Cell_Color($A$9),4,0)))))))) -> 36.94528049 | AF80: =(17-S80)*POWER(EXP(1),2*(4-IF([1]!Cell_Color(S80)=[1]!Cell_Color($A$4),1,IF([1]!Cell_Color(S80)=[1]!Cell_Color($A$5),2,IF([1]!Cell_Color(S80)=[1]!Cell_Color($A$6),3,IF([1]!Cell_Color(S80)=[1]!Cell_Color($A$7),3,IF([1]!Cell_Color(S80)=[1]!Cell_Color($A$8),4,IF([1]!Cell_Color(S80)=[1]!Cell_Color($A$9),4,0)))))))) -> 7.389056099 | AG80: =(17-T80)*POWER(EXP(1),2*(4-IF([1]!Cell_Color(T80)=[1]!Cell_Color($A$4),1,IF([1]!Cell_Color(T80)=[1]!Cell_Color($A$5),2,IF([1]!Cell_Color(T80)=[1]!Cell_Color($A$6),3,IF([1]!Cell_Color(T80)=[1]!Cell_Color($A$7),3,IF([1]!Cell_Color(T80)=[1]!Cell_Color($A$8),4,IF([1]!Cell_Color(T80)=[1]!Cell_Color($A$9),4,0)))))))) -> 15 | AH80: =(17-U80)*POWER(EXP(1),2*(4-IF([1]!Cell_Color(U80)=[1]!Cell_Color($A$4),1,IF([1]!Cell_Color(U80)=[1]!Cell_Color($A$5),2,IF([1]!Cell_Color(U80)=[1]!Cell_Color($A$6),3,IF([1]!Cell_Color(U80)=[1]!Cell_Color($A$7),3,IF([1]!Cell_Color(U80)=[1]!Cell_Color($A$8),4,IF([1]!Cell_Color(U80)=[1]!Cell_Color($A$9),4,0)))))))) -> 14.7781122 | AI80: =(17-V80)*POWER(EXP(1),2*(4-IF([1]!Cell_Color(V80)=[1]!Cell_Color($A$4),1,IF([1]!Cell_Color(V80)=[1]!Cell_Color($A$5),2,IF([1]!Cell_Color(V80)=[1]!Cell_Color($A$6),3,IF([1]!Cell_Color(V80)=[1]!Cell_Color($A$7),3,IF([1]!Cell_Color(V80)=[1]!Cell_Color($A$8),4,IF([1]!Cell_Color(V80)=[1]!Cell_Color($A$9),4,0)))))))) -> 8 | AJ80: =(17-W80)*POWER(EXP(1),2*(4-IF([1]!Cell_Color(W80)=[1]!Cell_Color($A$4),1,IF([1]!Cell_Color(W80)=[1]!Cell_Color($A$5),2,IF([1]!Cell_Color(W80)=[1]!Cell_Color($A$6),3,IF([1]!Cell_Color(W80)=[1]!Cell_Color($A$7),3,IF([1]!Cell_Color(W80)=[1]!Cell_Color($A$8),4,IF([1]!Cell_Color(W80)=[1]!Cell_Color($A$9),4,0)))))))) -> 7
C81: 78 | D81: 56 | E81: -22 | F81: 66 | G81: -12 | H81: 78 | I81: Интеграл-ДАЦ СЕ | L81: 13 | M81: 11 | N81: 5 | O81: 9 | P81: 2 | Q81: 6 | R81: 5 | S81: 15 | T81: 9 | U81: 6 | V81: 4 | W81: 14 | X81: =SUM(AC81:AG81) -> 207.7264025 | Y81: =SUM(AE81:AI81) -> 135.4467854 | Z81: =SUM(AF81:AJ81) -> 49.7781122 | AB81: =(17-O81)*POWER(EXP(1),2*(4-IF([1]!Cell_Color(O81)=[1]!Cell_Color($A$4),1,IF([1]!Cell_Color(O81)=[1]!Cell_Color($A$5),2,IF([1]!Cell_Color(O81)=[1]!Cell_Color($A$6),3,IF([1]!Cell_Color(O81)=[1]!Cell_Color($A$7),3,IF([1]!Cell_Color(O81)=[1]!Cell_Color($A$8),4,IF([1]!Cell_Color(O81)=[1]!Cell_Color($A$9),4,0)))))))) -> 8 | AC81: =(17-P81)*POWER(EXP(1),2*(4-IF([1]!Cell_Color(P81)=[1]!Cell_Color($A$4),1,IF([1]!Cell_Color(P81)=[1]!Cell_Color($A$5),2,IF([1]!Cell_Color(P81)=[1]!Cell_Color($A$6),3,IF([1]!Cell_Color(P81)=[1]!Cell_Color($A$7),3,IF([1]!Cell_Color(P81)=[1]!Cell_Color($A$8),4,IF([1]!Cell_Color(P81)=[1]!Cell_Color($A$9),4,0)))))))) -> 15 | AD81: =(17-Q81)*POWER(EXP(1),2*(4-IF([1]!Cell_Color(Q81)=[1]!Cell_Color($A$4),1,IF([1]!Cell_Color(Q81)=[1]!Cell_Color($A$5),2,IF([1]!Cell_Color(Q81)=[1]!Cell_Color($A$6),3,IF([1]!Cell_Color(Q81)=[1]!Cell_Color($A$7),3,IF([1]!Cell_Color(Q81)=[1]!Cell_Color($A$8),4,IF([1]!Cell_Color(Q81)=[1]!Cell_Color($A$9),4,0)))))))) -> 81.27961709 | AE81: =(17-R81)*POWER(EXP(1),2*(4-IF([1]!Cell_Color(R81)=[1]!Cell_Color($A$4),1,IF([1]!Cell_Color(R81)=[1]!Cell_Color($A$5),2,IF([1]!Cell_Color(R81)=[1]!Cell_Color($A$6),3,IF([1]!Cell_Color(R81)=[1]!Cell_Color($A$7),3,IF([1]!Cell_Color(R81)=[1]!Cell_Color($A$8),4,IF([1]!Cell_Color(R81)=[1]!Cell_Color($A$9),4,0)))))))) -> 88.66867319 | AF81: =(17-S81)*POWER(EXP(1),2*(4-IF([1]!Cell_Color(S81)=[1]!Cell_Color($A$4),1,IF([1]!Cell_Color(S81)=[1]!Cell_Color($A$5),2,IF([1]!Cell_Color(S81)=[1]!Cell_Color($A$6),3,IF([1]!Cell_Color(S81)=[1]!Cell_Color($A$7),3,IF([1]!Cell_Color(S81)=[1]!Cell_Color($A$8),4,IF([1]!Cell_Color(S81)=[1]!Cell_Color($A$9),4,0)))))))) -> 14.7781122 | AG81: =(17-T81)*POWER(EXP(1),2*(4-IF([1]!Cell_Color(T81)=[1]!Cell_Color($A$4),1,IF([1]!Cell_Color(T81)=[1]!Cell_Color($A$5),2,IF([1]!Cell_Color(T81)=[1]!Cell_Color($A$6),3,IF([1]!Cell_Color(T81)=[1]!Cell_Color($A$7),3,IF([1]!Cell_Color(T81)=[1]!Cell_Color($A$8),4,IF([1]!Cell_Color(T81)=[1]!Cell_Color($A$9),4,0)))))))) -> 8 | AH81: =(17-U81)*POWER(EXP(1),2*(4-IF([1]!Cell_Color(U81)=[1]!Cell_Color($A$4),1,IF([1]!Cell_Color(U81)=[1]!Cell_Color($A$5),2,IF([1]!Cell_Color(U81)=[1]!Cell_Color($A$6),3,IF([1]!Cell_Color(U81)=[1]!Cell_Color($A$7),3,IF([1]!Cell_Color(U81)=[1]!Cell_Color($A$8),4,IF([1]!Cell_Color(U81)=[1]!Cell_Color($A$9),4,0)))))))) -> 11 | AI81: =(17-V81)*POWER(EXP(1),2*(4-IF([1]!Cell_Color(V81)=[1]!Cell_Color($A$4),1,IF([1]!Cell_Color(V81)=[1]!Cell_Color($A$5),2,IF([1]!Cell_Color(V81)=[1]!Cell_Color($A$6),3,IF([1]!Cell_Color(V81)=[1]!Cell_Color($A$7),3,IF([1]!Cell_Color(V81)=[1]!Cell_Color($A$8),4,IF([1]!Cell_Color(V81)=[1]!Cell_Color($A$9),4,0)))))))) -> 13 | AJ81: =(17-W81)*POWER(EXP(1),2*(4-IF([1]!Cell_Color(W81)=[1]!Cell_Color($A$4),1,IF([1]!Cell_Color(W81)=[1]!Cell_Color($A$5),2,IF([1]!Cell_Color(W81)=[1]!Cell_Color($A$6),3,IF([1]!Cell_Color(W81)=[1]!Cell_Color($A$7),3,IF([1]!Cell_Color(W81)=[1]!Cell_Color($A$8),4,IF([1]!Cell_Color(W81)=[1]!Cell_Color($A$9),4,0)))))))) -> 3
C82: 79 | D82: 72 | E82: -7 | F82: 77 | G82: -2 | H82: 79 | I82: Кечкемет | J82: 11 | K82: 15 | L82: 10 | M82: 8 | N82: 13 | O82: 4 | P82: 15 | Q82: 1 | R82: 13 | S82: 3 | T82: 8 | U82: 8 | V82: 10 | W82: 8 | X82: =SUM(AC82:AG82) -> 83.33433659 | Y82: =SUM(AE82:AI82) -> 68.5562244 | Z82: =SUM(AF82:AJ82) -> 48 | AB82: =(17-O82)*POWER(EXP(1),2*(4-IF([1]!Cell_Color(O82)=[1]!Cell_Color($A$4),1,IF([1]!Cell_Color(O82)=[1]!Cell_Color($A$5),2,IF([1]!Cell_Color(O82)=[1]!Cell_Color($A$6),3,IF([1]!Cell_Color(O82)=[1]!Cell_Color($A$7),3,IF([1]!Cell_Color(O82)=[1]!Cell_Color($A$8),4,IF([1]!Cell_Color(O82)=[1]!Cell_Color($A$9),4,0)))))))) -> 13 | AC82: =(17-P82)*POWER(EXP(1),2*(4-IF([1]!Cell_Color(P82)=[1]!Cell_Color($A$4),1,IF([1]!Cell_Color(P82)=[1]!Cell_Color($A$5),2,IF([1]!Cell_Color(P82)=[1]!Cell_Color($A$6),3,IF([1]!Cell_Color(P82)=[1]!Cell_Color($A$7),3,IF([1]!Cell_Color(P82)=[1]!Cell_Color($A$8),4,IF([1]!Cell_Color(P82)=[1]!Cell_Color($A$9),4,0)))))))) -> 14.7781122 | AD82: =(17-Q82)*POWER(EXP(1),2*(4-IF([1]!Cell_Color(Q82)=[1]!Cell_Color($A$4),1,IF([1]!Cell_Color(Q82)=[1]!Cell_Color($A$5),2,IF([1]!Cell_Color(Q82)=[1]!Cell_Color($A$6),3,IF([1]!Cell_Color(Q82)=[1]!Cell_Color($A$7),3,IF([1]!Cell_Color(Q82)=[1]!Cell_Color($A$8),4,IF([1]!Cell_Color(Q82)=[1]!Cell_Color($A$9),4,0)))))))) -> 16 | AE82: =(17-R82)*POWER(EXP(1),2*(4-IF([1]!Cell_Color(R82)=[1]!Cell_Color($A$4),1,IF([1]!Cell_Color(R82)=[1]!Cell_Color($A$5),2,IF([1]!Cell_Color(R82)=[1]!Cell_Color($A$6),3,IF([1]!Cell_Color(R82)=[1]!Cell_Color($A$7),3,IF([1]!Cell_Color(R82)=[1]!Cell_Color($A$8),4,IF([1]!Cell_Color(R82)=[1]!Cell_Color($A$9),4,0)))))))) -> 29.5562244 | AF82: =(17-S82)*POWER(EXP(1),2*(4-IF([1]!Cell_Color(S82)=[1]!Cell_Color($A$4),1,IF([1]!Cell_Color(S82)=[1]!Cell_Color($A$5),2,IF([1]!Cell_Color(S82)=[1]!Cell_Color($A$6),3,IF([1]!Cell_Color(S82)=[1]!Cell_Color($A$7),3,IF([1]!Cell_Color(S82)=[1]!Cell_Color($A$8),4,IF([1]!Cell_Color(S82)=[1]!Cell_Color($A$9),4,0)))))))) -> 14 | AG82: =(17-T82)*POWER(EXP(1),2*(4-IF([1]!Cell_Color(T82)=[1]!Cell_Color($A$4),1,IF([1]!Cell_Color(T82)=[1]!Cell_Color($A$5),2,IF([1]!Cell_Color(T82)=[1]!Cell_Color($A$6),3,IF([1]!Cell_Color(T82)=[1]!Cell_Color($A$7),3,IF([1]!Cell_Color(T82)=[1]!Cell_Color($A$8),4,IF([1]!Cell_Color(T82)=[1]!Cell_Color($A$9),4,0)))))))) -> 9 | AH82: =(17-U82)*POWER(EXP(1),2*(4-IF([1]!Cell_Color(U82)=[1]!Cell_Color($A$4),1,IF([1]!Cell_Color(U82)=[1]!Cell_Color($A$5),2,IF([1]!Cell_Color(U82)=[1]!Cell_Color($A$6),3,IF([1]!Cell_Color(U82)=[1]!Cell_Color($A$7),3,IF([1]!Cell_Color(U82)=[1]!Cell_Color($A$8),4,IF([1]!Cell_Color(U82)=[1]!Cell_Color($A$9),4,0)))))))) -> 9 | AI82: =(17-V82)*POWER(EXP(1),2*(4-IF([1]!Cell_Color(V82)=[1]!Cell_Color($A$4),1,IF([1]!Cell_Color(V82)=[1]!Cell_Color($A$5),2,IF([1]!Cell_Color(V82)=[1]!Cell_Color($A$6),3,IF([1]!Cell_Color(V82)=[1]!Cell_Color($A$7),3,IF([1]!Cell_Color(V82)=[1]!Cell_Color($A$8),4,IF([1]!Cell_Color(V82)=[1]!Cell_Color($A$9),4,0)))))))) -> 7 | AJ82: =(17-W82)*POWER(EXP(1),2*(4-IF([1]!Cell_Color(W82)=[1]!Cell_Color($A$4),1,IF([1]!Cell_Color(W82)=[1]!Cell_Color($A$5),2,IF([1]!Cell_Color(W82)=[1]!Cell_Color($A$6),3,IF([1]!Cell_Color(W82)=[1]!Cell_Color($A$7),3,IF([1]!Cell_Color(W82)=[1]!Cell_Color($A$8),4,IF([1]!Cell_Color(W82)=[1]!Cell_Color($A$9),4,0)))))))) -> 9
C83: 80 | D83: 76 | E83: -4 | F83: 80 | H83: 80 | I83: Печи Вашуташ СК | L83: 11 | M83: 3 | N83: 16 | O83: 14 | P83: 5 | Q83: 5 | R83: 6 | S83: 6 | T83: 5 | U83: 12 | V83: 5 | W83: 9 | X83: =SUM(AC83:AG83) -> 58 | Y83: =SUM(AE83:AI83) -> 51 | Z83: =SUM(AF83:AJ83) -> 48 | AB83: =(17-O83)*POWER(EXP(1),2*(4-IF([1]!Cell_Color(O83)=[1]!Cell_Color($A$4),1,IF([1]!Cell_Color(O83)=[1]!Cell_Color($A$5),2,IF([1]!Cell_Color(O83)=[1]!Cell_Color($A$6),3,IF([1]!Cell_Color(O83)=[1]!Cell_Color($A$7),3,IF([1]!Cell_Color(O83)=[1]!Cell_Color($A$8),4,IF([1]!Cell_Color(O83)=[1]!Cell_Color($A$9),4,0)))))))) -> 3 | AC83: =(17-P83)*POWER(EXP(1),2*(4-IF([1]!Cell_Color(P83)=[1]!Cell_Color($A$4),1,IF([1]!Cell_Color(P83)=[1]!Cell_Color($A$5),2,IF([1]!Cell_Color(P83)=[1]!Cell_Color($A$6),3,IF([1]!Cell_Color(P83)=[1]!Cell_Color($A$7),3,IF([1]!Cell_Color(P83)=[1]!Cell_Color($A$8),4,IF([1]!Cell_Color(P83)=[1]!Cell_Color($A$9),4,0)))))))) -> 12 | AD83: =(17-Q83)*POWER(EXP(1),2*(4-IF([1]!Cell_Color(Q83)=[1]!Cell_Color($A$4),1,IF([1]!Cell_Color(Q83)=[1]!Cell_Color($A$5),2,IF([1]!Cell_Color(Q83)=[1]!Cell_Color($A$6),3,IF([1]!Cell_Color(Q83)=[1]!Cell_Color($A$7),3,IF([1]!Cell_Color(Q83)=[1]!Cell_Color($A$8),4,IF([1]!Cell_Color(Q83)=[1]!Cell_Color($A$9),4,0)))))))) -> 12 | AE83: =(17-R83)*POWER(EXP(1),2*(4-IF([1]!Cell_Color(R83)=[1]!Cell_Color($A$4),1,IF([1]!Cell_Color(R83)=[1]!Cell_Color($A$5),2,IF([1]!Cell_Color(R83)=[1]!Cell_Color($A$6),3,IF([1]!Cell_Color(R83)=[1]!Cell_Color($A$7),3,IF([1]!Cell_Color(R83)=[1]!Cell_Color($A$8),4,IF([1]!Cell_Color(R83)=[1]!Cell_Color($A$9),4,0)))))))) -> 11 | AF83: =(17-S83)*POWER(EXP(1),2*(4-IF([1]!Cell_Color(S83)=[1]!Cell_Color($A$4),1,IF([1]!Cell_Color(S83)=[1]!Cell_Color($A$5),2,IF([1]!Cell_Color(S83)=[1]!Cell_Color($A$6),3,IF([1]!Cell_Color(S83)=[1]!Cell_Color($A$7),3,IF([1]!Cell_Color(S83)=[1]!Cell_Color($A$8),4,IF([1]!Cell_Color(S83)=[1]!Cell_Color($A$9),4,0)))))))) -> 11 | AG83: =(17-T83)*POWER(EXP(1),2*(4-IF([1]!Cell_Color(T83)=[1]!Cell_Color($A$4),1,IF([1]!Cell_Color(T83)=[1]!Cell_Color($A$5),2,IF([1]!Cell_Color(T83)=[1]!Cell_Color($A$6),3,IF([1]!Cell_Color(T83)=[1]!Cell_Color($A$7),3,IF([1]!Cell_Color(T83)=[1]!Cell_Color($A$8),4,IF([1]!Cell_Color(T83)=[1]!Cell_Color($A$9),4,0)))))))) -> 12 | AH83: =(17-U83)*POWER(EXP(1),2*(4-IF([1]!Cell_Color(U83)=[1]!Cell_Color($A$4),1,IF([1]!Cell_Color(U83)=[1]!Cell_Color($A$5),2,IF([1]!Cell_Color(U83)=[1]!Cell_Color($A$6),3,IF([1]!Cell_Color(U83)=[1]!Cell_Color($A$7),3,IF([1]!Cell_Color(U83)=[1]!Cell_Color($A$8),4,IF([1]!Cell_Color(U83)=[1]!Cell_Color($A$9),4,0)))))))) -> 5 | AI83: =(17-V83)*POWER(EXP(1),2*(4-IF([1]!Cell_Color(V83)=[1]!Cell_Color($A$4),1,IF([1]!Cell_Color(V83)=[1]!Cell_Color($A$5),2,IF([1]!Cell_Color(V83)=[1]!Cell_Color($A$6),3,IF([1]!Cell_Color(V83)=[1]!Cell_Color($A$7),3,IF([1]!Cell_Color(V83)=[1]!Cell_Color($A$8),4,IF([1]!Cell_Color(V83)=[1]!Cell_Color($A$9),4,0)))))))) -> 12 | AJ83: =(17-W83)*POWER(EXP(1),2*(4-IF([1]!Cell_Color(W83)=[1]!Cell_Color($A$4),1,IF([1]!Cell_Color(W83)=[1]!Cell_Color($A$5),2,IF([1]!Cell_Color(W83)=[1]!Cell_Color($A$6),3,IF([1]!Cell_Color(W83)=[1]!Cell_Color($A$7),3,IF([1]!Cell_Color(W83)=[1]!Cell_Color($A$8),4,IF([1]!Cell_Color(W83)=[1]!Cell_Color($A$9),4,0)))))))) -> 8
C84: 81 | D84: 80 | E84: -1 | F84: 85 | G84: 4 | H84: 81 | I84: Барчи СК | J84: 14 | K84: 16 | L84: 14 | M84: 4 | N84: 4 | O84: 12 | P84: 14 | Q84: 14 | R84: 11 | S84: 12 | T84: 7 | U84: 4 | V84: 16 | W84: 8 | X84: =SUM(AC84:AG84) -> 46.1671683 | Y84: =SUM(AE84:AI84) -> 41.3890561 | Z84: =SUM(AF84:AJ84) -> 44.3890561 | AB84: =(17-O84)*POWER(EXP(1),2*(4-IF([1]!Cell_Color(O84)=[1]!Cell_Color($A$4),1,IF([1]!Cell_Color(O84)=[1]!Cell_Color($A$5),2,IF([1]!Cell_Color(O84)=[1]!Cell_Color($A$6),3,IF([1]!Cell_Color(O84)=[1]!Cell_Color($A$7),3,IF([1]!Cell_Color(O84)=[1]!Cell_Color($A$8),4,IF([1]!Cell_Color(O84)=[1]!Cell_Color($A$9),4,0)))))))) -> 36.94528049 | AC84: =(17-P84)*POWER(EXP(1),2*(4-IF([1]!Cell_Color(P84)=[1]!Cell_Color($A$4),1,IF([1]!Cell_Color(P84)=[1]!Cell_Color($A$5),2,IF([1]!Cell_Color(P84)=[1]!Cell_Color($A$6),3,IF([1]!Cell_Color(P84)=[1]!Cell_Color($A$7),3,IF([1]!Cell_Color(P84)=[1]!Cell_Color($A$8),4,IF([1]!Cell_Color(P84)=[1]!Cell_Color($A$9),4,0)))))))) -> 22.1671683 | AD84: =(17-Q84)*POWER(EXP(1),2*(4-IF([1]!Cell_Color(Q84)=[1]!Cell_Color($A$4),1,IF([1]!Cell_Color(Q84)=[1]!Cell_Color($A$5),2,IF([1]!Cell_Color(Q84)=[1]!Cell_Color($A$6),3,IF([1]!Cell_Color(Q84)=[1]!Cell_Color($A$7),3,IF([1]!Cell_Color(Q84)=[1]!Cell_Color($A$8),4,IF([1]!Cell_Color(Q84)=[1]!Cell_Color($A$9),4,0)))))))) -> 3 | AE84: =(17-R84)*POWER(EXP(1),2*(4-IF([1]!Cell_Color(R84)=[1]!Cell_Color($A$4),1,IF([1]!Cell_Color(R84)=[1]!Cell_Color($A$5),2,IF([1]!Cell_Color(R84)=[1]!Cell_Color($A$6),3,IF([1]!Cell_Color(R84)=[1]!Cell_Color($A$7),3,IF([1]!Cell_Color(R84)=[1]!Cell_Color($A$8),4,IF([1]!Cell_Color(R84)=[1]!Cell_Color($A$9),4,0)))))))) -> 6 | AF84: =(17-S84)*POWER(EXP(1),2*(4-IF([1]!Cell_Color(S84)=[1]!Cell_Color($A$4),1,IF([1]!Cell_Color(S84)=[1]!Cell_Color($A$5),2,IF([1]!Cell_Color(S84)=[1]!Cell_Color($A$6),3,IF([1]!Cell_Color(S84)=[1]!Cell_Color($A$7),3,IF([1]!Cell_Color(S84)=[1]!Cell_Color($A$8),4,IF([1]!Cell_Color(S84)=[1]!Cell_Color($A$9),4,0)))))))) -> 5 | AG84: =(17-T84)*POWER(EXP(1),2*(4-IF([1]!Cell_Color(T84)=[1]!Cell_Color($A$4),1,IF([1]!Cell_Color(T84)=[1]!Cell_Color($A$5),2,IF([1]!Cell_Color(T84)=[1]!Cell_Color($A$6),3,IF([1]!Cell_Color(T84)=[1]!Cell_Color($A$7),3,IF([1]!Cell_Color(T84)=[1]!Cell_Color($A$8),4,IF([1]!Cell_Color(T84)=[1]!Cell_Color($A$9),4,0)))))))) -> 10 | AH84: =(17-U84)*POWER(EXP(1),2*(4-IF([1]!Cell_Color(U84)=[1]!Cell_Color($A$4),1,IF([1]!Cell_Color(U84)=[1]!Cell_Color($A$5),2,IF([1]!Cell_Color(U84)=[1]!Cell_Color($A$6),3,IF([1]!Cell_Color(U84)=[1]!Cell_Color($A$7),3,IF([1]!Cell_Color(U84)=[1]!Cell_Color($A$8),4,IF([1]!Cell_Color(U84)=[1]!Cell_Color($A$9),4,0)))))))) -> 13 | AI84: =(17-V84)*POWER(EXP(1),2*(4-IF([1]!Cell_Color(V84)=[1]!Cell_Color($A$4),1,IF([1]!Cell_Color(V84)=[1]!Cell_Color($A$5),2,IF([1]!Cell_Color(V84)=[1]!Cell_Color($A$6),3,IF([1]!Cell_Color(V84)=[1]!Cell_Color($A$7),3,IF([1]!Cell_Color(V84)=[1]!Cell_Color($A$8),4,IF([1]!Cell_Color(V84)=[1]!Cell_Color($A$9),4,0)))))))) -> 7.389056099 | AJ84: =(17-W84)*POWER(EXP(1),2*(4-IF([1]!Cell_Color(W84)=[1]!Cell_Color($A$4),1,IF([1]!Cell_Color(W84)=[1]!Cell_Color($A$5),2,IF([1]!Cell_Color(W84)=[1]!Cell_Color($A$6),3,IF([1]!Cell_Color(W84)=[1]!Cell_Color($A$7),3,IF([1]!Cell_Color(W84)=[1]!Cell_Color($A$8),4,IF([1]!Cell_Color(W84)=[1]!Cell_Color($A$9),4,0)))))))) -> 9
C85: 82 | D85: 81 | E85: -1 | F85: 84 | G85: 2 | H85: 82 | I85: Чепел ФК | L85: 7 | M85: 3 | N85: 13 | O85: 16 | P85: 10 | Q85: 8 | R85: 5 | S85: 6 | T85: 12 | U85: 8 | V85: 10 | W85: 6 | X85: =SUM(AC85:AG85) -> 44 | Y85: =SUM(AE85:AI85) -> 44 | Z85: =SUM(AF85:AJ85) -> 43 | AB85: =(17-O85)*POWER(EXP(1),2*(4-IF([1]!Cell_Color(O85)=[1]!Cell_Color($A$4),1,IF([1]!Cell_Color(O85)=[1]!Cell_Color($A$5),2,IF([1]!Cell_Color(O85)=[1]!Cell_Color($A$6),3,IF([1]!Cell_Color(O85)=[1]!Cell_Color($A$7),3,IF([1]!Cell_Color(O85)=[1]!Cell_Color($A$8),4,IF([1]!Cell_Color(O85)=[1]!Cell_Color($A$9),4,0)))))))) -> 7.389056099 | AC85: =(17-P85)*POWER(EXP(1),2*(4-IF([1]!Cell_Color(P85)=[1]!Cell_Color($A$4),1,IF([1]!Cell_Color(P85)=[1]!Cell_Color($A$5),2,IF([1]!Cell_Color(P85)=[1]!Cell_Color($A$6),3,IF([1]!Cell_Color(P85)=[1]!Cell_Color($A$7),3,IF([1]!Cell_Color(P85)=[1]!Cell_Color($A$8),4,IF([1]!Cell_Color(P85)=[1]!Cell_Color($A$9),4,0)))))))) -> 7 | AD85: =(17-Q85)*POWER(EXP(1),2*(4-IF([1]!Cell_Color(Q85)=[1]!Cell_Color($A$4),1,IF([1]!Cell_Color(Q85)=[1]!Cell_Color($A$5),2,IF([1]!Cell_Color(Q85)=[1]!Cell_Color($A$6),3,IF([1]!Cell_Color(Q85)=[1]!Cell_Color($A$7),3,IF([1]!Cell_Color(Q85)=[1]!Cell_Color($A$8),4,IF([1]!Cell_Color(Q85)=[1]!Cell_Color($A$9),4,0)))))))) -> 9 | AE85: =(17-R85)*POWER(EXP(1),2*(4-IF([1]!Cell_Color(R85)=[1]!Cell_Color($A$4),1,IF([1]!Cell_Color(R85)=[1]!Cell_Color($A$5),2,IF([1]!Cell_Color(R85)=[1]!Cell_Color($A$6),3,IF([1]!Cell_Color(R85)=[1]!Cell_Color($A$7),3,IF([1]!Cell_Color(R85)=[1]!Cell_Color($A$8),4,IF([1]!Cell_Color(R85)=[1]!Cell_Color($A$9),4,0)))))))) -> 12 | AF85: =(17-S85)*POWER(EXP(1),2*(4-IF([1]!Cell_Color(S85)=[1]!Cell_Color($A$4),1,IF([1]!Cell_Color(S85)=[1]!Cell_Color($A$5),2,IF([1]!Cell_Color(S85)=[1]!Cell_Color($A$6),3,IF([1]!Cell_Color(S85)=[1]!Cell_Color($A$7),3,IF([1]!Cell_Color(S85)=[1]!Cell_Color($A$8),4,IF([1]!Cell_Color(S85)=[1]!Cell_Color($A$9),4,0)))))))) -> 11 | AG85: =(17-T85)*POWER(EXP(1),2*(4-IF([1]!Cell_Color(T85)=[1]!Cell_Color($A$4),1,IF([1]!Cell_Color(T85)=[1]!Cell_Color($A$5),2,IF([1]!Cell_Color(T85)=[1]!Cell_Color($A$6),3,IF([1]!Cell_Color(T85)=[1]!Cell_Color($A$7),3,IF([1]!Cell_Color(T85)=[1]!Cell_Color($A$8),4,IF([1]!Cell_Color(T85)=[1]!Cell_Color($A$9),4,0)))))))) -> 5 | AH85: =(17-U85)*POWER(EXP(1),2*(4-IF([1]!Cell_Color(U85)=[1]!Cell_Color($A$4),1,IF([1]!Cell_Color(U85)=[1]!Cell_Color($A$5),2,IF([1]!Cell_Color(U85)=[1]!Cell_Color($A$6),3,IF([1]!Cell_Color(U85)=[1]!Cell_Color($A$7),3,IF([1]!Cell_Color(U85)=[1]!Cell_Color($A$8),4,IF([1]!Cell_Color(U85)=[1]!Cell_Color($A$9),4,0)))))))) -> 9 | AI85: =(17-V85)*POWER(EXP(1),2*(4-IF([1]!Cell_Color(V85)=[1]!Cell_Color($A$4),1,IF([1]!Cell_Color(V85)=[1]!Cell_Color($A$5),2,IF([1]!Cell_Color(V85)=[1]!Cell_Color($A$6),3,IF([1]!Cell_Color(V85)=[1]!Cell_Color($A$7),3,IF([1]!Cell_Color(V85)=[1]!Cell_Color($A$8),4,IF([1]!Cell_Color(V85)=[1]!Cell_Color($A$9),4,0)))))))) -> 7 | AJ85: =(17-W85)*POWER(EXP(1),2*(4-IF([1]!Cell_Color(W85)=[1]!Cell_Color($A$4),1,IF([1]!Cell_Color(W85)=[1]!Cell_Color($A$5),2,IF([1]!Cell_Color(W85)=[1]!Cell_Color($A$6),3,IF([1]!Cell_Color(W85)=[1]!Cell_Color($A$7),3,IF([1]!Cell_Color(W85)=[1]!Cell_Color($A$8),4,IF([1]!Cell_Color(W85)=[1]!Cell_Color($A$9),4,0)))))))) -> 11
C86: 83 | D86: 91 | E86: 8 | F86: 88 | G86: 5 | H86: 83 | I86: В.Н.С.К. | L86: 10 | M86: 7 | N86: 11 | O86: 5 | P86: 12 | Q86: 14 | R86: 13 | S86: 14 | T86: 7 | U86: 9 | V86: 9 | W86: 3 | X86: =SUM(AC86:AG86) -> 25 | Y86: =SUM(AE86:AI86) -> 33 | Z86: =SUM(AF86:AJ86) -> 43 | AB86: =(17-O86)*POWER(EXP(1),2*(4-IF([1]!Cell_Color(O86)=[1]!Cell_Color($A$4),1,IF([1]!Cell_Color(O86)=[1]!Cell_Color($A$5),2,IF([1]!Cell_Color(O86)=[1]!Cell_Color($A$6),3,IF([1]!Cell_Color(O86)=[1]!Cell_Color($A$7),3,IF([1]!Cell_Color(O86)=[1]!Cell_Color($A$8),4,IF([1]!Cell_Color(O86)=[1]!Cell_Color($A$9),4,0)))))))) -> 12 | AC86: =(17-P86)*POWER(EXP(1),2*(4-IF([1]!Cell_Color(P86)=[1]!Cell_Color($A$4),1,IF([1]!Cell_Color(P86)=[1]!Cell_Color($A$5),2,IF([1]!Cell_Color(P86)=[1]!Cell_Color($A$6),3,IF([1]!Cell_Color(P86)=[1]!Cell_Color($A$7),3,IF([1]!Cell_Color(P86)=[1]!Cell_Color($A$8),4,IF([1]!Cell_Color(P86)=[1]!Cell_Color($A$9),4,0)))))))) -> 5 | AD86: =(17-Q86)*POWER(EXP(1),2*(4-IF([1]!Cell_Color(Q86)=[1]!Cell_Color($A$4),1,IF([1]!Cell_Color(Q86)=[1]!Cell_Color($A$5),2,IF([1]!Cell_Color(Q86)=[1]!Cell_Color($A$6),3,IF([1]!Cell_Color(Q86)=[1]!Cell_Color($A$7),3,IF([1]!Cell_Color(Q86)=[1]!Cell_Color($A$8),4,IF([1]!Cell_Color(Q86)=[1]!Cell_Color($A$9),4,0)))))))) -> 3 | AE86: =(17-R86)*POWER(EXP(1),2*(4-IF([1]!Cell_Color(R86)=[1]!Cell_Color($A$4),1,IF([1]!Cell_Color(R86)=[1]!Cell_Color($A$5),2,IF([1]!Cell_Color(R86)=[1]!Cell_Color($A$6),3,IF([1]!Cell_Color(R86)=[1]!Cell_Color($A$7),3,IF([1]!Cell_Color(R86)=[1]!Cell_Color($A$8),4,IF([1]!Cell_Color(R86)=[1]!Cell_Color($A$9),4,0)))))))) -> 4 | AF86: =(17-S86)*POWER(EXP(1),2*(4-IF([1]!Cell_Color(S86)=[1]!Cell_Color($A$4),1,IF([1]!Cell_Color(S86)=[1]!Cell_Color($A$5),2,IF([1]!Cell_Color(S86)=[1]!Cell_Color($A$6),3,IF([1]!Cell_Color(S86)=[1]!Cell_Color($A$7),3,IF([1]!Cell_Color(S86)=[1]!Cell_Color($A$8),4,IF([1]!Cell_Color(S86)=[1]!Cell_Color($A$9),4,0)))))))) -> 3 | AG86: =(17-T86)*POWER(EXP(1),2*(4-IF([1]!Cell_Color(T86)=[1]!Cell_Color($A$4),1,IF([1]!Cell_Color(T86)=[1]!Cell_Color($A$5),2,IF([1]!Cell_Color(T86)=[1]!Cell_Color($A$6),3,IF([1]!Cell_Color(T86)=[1]!Cell_Color($A$7),3,IF([1]!Cell_Color(T86)=[1]!Cell_Color($A$8),4,IF([1]!Cell_Color(T86)=[1]!Cell_Color($A$9),4,0)))))))) -> 10 | AH86: =(17-U86)*POWER(EXP(1),2*(4-IF([1]!Cell_Color(U86)=[1]!Cell_Color($A$4),1,IF([1]!Cell_Color(U86)=[1]!Cell_Color($A$5),2,IF([1]!Cell_Color(U86)=[1]!Cell_Color($A$6),3,IF([1]!Cell_Color(U86)=[1]!Cell_Color($A$7),3,IF([1]!Cell_Color(U86)=[1]!Cell_Color($A$8),4,IF([1]!Cell_Color(U86)=[1]!Cell_Color($A$9),4,0)))))))) -> 8 | AI86: =(17-V86)*POWER(EXP(1),2*(4-IF([1]!Cell_Color(V86)=[1]!Cell_Color($A$4),1,IF([1]!Cell_Color(V86)=[1]!Cell_Color($A$5),2,IF([1]!Cell_Color(V86)=[1]!Cell_Color($A$6),3,IF([1]!Cell_Color(V86)=[1]!Cell_Color($A$7),3,IF([1]!Cell_Color(V86)=[1]!Cell_Color($A$8),4,IF([1]!Cell_Color(V86)=[1]!Cell_Color($A$9),4,0)))))))) -> 8 | AJ86: =(17-W86)*POWER(EXP(1),2*(4-IF([1]!Cell_Color(W86)=[1]!Cell_Color($A$4),1,IF([1]!Cell_Color(W86)=[1]!Cell_Color($A$5),2,IF([1]!Cell_Color(W86)=[1]!Cell_Color($A$6),3,IF([1]!Cell_Color(W86)=[1]!Cell_Color($A$7),3,IF([1]!Cell_Color(W86)=[1]!Cell_Color($A$8),4,IF([1]!Cell_Color(W86)=[1]!Cell_Color($A$9),4,0)))))))) -> 14
C87: 84 | D87: 87 | E87: 3 | F87: 86 | G87: 2 | H87: 84 | I87: Картель Секьюрити ФК | L87: 6 | M87: 14 | N87: 16 | O87: 13 | P87: 7 | Q87: 10 | R87: 10 | S87: 12 | T87: 10 | U87: 5 | V87: 8 | W87: 9 | X87: =SUM(AC87:AG87) -> 36 | Y87: =SUM(AE87:AI87) -> 40 | Z87: =SUM(AF87:AJ87) -> 41 | AB87: =(17-O87)*POWER(EXP(1),2*(4-IF([1]!Cell_Color(O87)=[1]!Cell_Color($A$4),1,IF([1]!Cell_Color(O87)=[1]!Cell_Color($A$5),2,IF([1]!Cell_Color(O87)=[1]!Cell_Color($A$6),3,IF([1]!Cell_Color(O87)=[1]!Cell_Color($A$7),3,IF([1]!Cell_Color(O87)=[1]!Cell_Color($A$8),4,IF([1]!Cell_Color(O87)=[1]!Cell_Color($A$9),4,0)))))))) -> 4 | AC87: =(17-P87)*POWER(EXP(1),2*(4-IF([1]!Cell_Color(P87)=[1]!Cell_Color($A$4),1,IF([1]!Cell_Color(P87)=[1]!Cell_Color($A$5),2,IF([1]!Cell_Color(P87)=[1]!Cell_Color($A$6),3,IF([1]!Cell_Color(P87)=[1]!Cell_Color($A$7),3,IF([1]!Cell_Color(P87)=[1]!Cell_Color($A$8),4,IF([1]!Cell_Color(P87)=[1]!Cell_Color($A$9),4,0)))))))) -> 10 | AD87: =(17-Q87)*POWER(EXP(1),2*(4-IF([1]!Cell_Color(Q87)=[1]!Cell_Color($A$4),1,IF([1]!Cell_Color(Q87)=[1]!Cell_Color($A$5),2,IF([1]!Cell_Color(Q87)=[1]!Cell_Color($A$6),3,IF([1]!Cell_Color(Q87)=[1]!Cell_Color($A$7),3,IF([1]!Cell_Color(Q87)=[1]!Cell_Color($A$8),4,IF([1]!Cell_Color(Q87)=[1]!Cell_Color($A$9),4,0)))))))) -> 7 | AE87: =(17-R87)*POWER(EXP(1),2*(4-IF([1]!Cell_Color(R87)=[1]!Cell_Color($A$4),1,IF([1]!Cell_Color(R87)=[1]!Cell_Color($A$5),2,IF([1]!Cell_Color(R87)=[1]!Cell_Color($A$6),3,IF([1]!Cell_Color(R87)=[1]!Cell_Color($A$7),3,IF([1]!Cell_Color(R87)=[1]!Cell_Color($A$8),4,IF([1]!Cell_Color(R87)=[1]!Cell_Color($A$9),4,0)))))))) -> 7 | AF87: =(17-S87)*POWER(EXP(1),2*(4-IF([1]!Cell_Color(S87)=[1]!Cell_Color($A$4),1,IF([1]!Cell_Color(S87)=[1]!Cell_Color($A$5),2,IF([1]!Cell_Color(S87)=[1]!Cell_Color($A$6),3,IF([1]!Cell_Color(S87)=[1]!Cell_Color($A$7),3,IF([1]!Cell_Color(S87)=[1]!Cell_Color($A$8),4,IF([1]!Cell_Color(S87)=[1]!Cell_Color($A$9),4,0)))))))) -> 5 | AG87: =(17-T87)*POWER(EXP(1),2*(4-IF([1]!Cell_Color(T87)=[1]!Cell_Color($A$4),1,IF([1]!Cell_Color(T87)=[1]!Cell_Color($A$5),2,IF([1]!Cell_Color(T87)=[1]!Cell_Color($A$6),3,IF([1]!Cell_Color(T87)=[1]!Cell_Color($A$7),3,IF([1]!Cell_Color(T87)=[1]!Cell_Color($A$8),4,IF([1]!Cell_Color(T87)=[1]!Cell_Color($A$9),4,0)))))))) -> 7 | AH87: =(17-U87)*POWER(EXP(1),2*(4-IF([1]!Cell_Color(U87)=[1]!Cell_Color($A$4),1,IF([1]!Cell_Color(U87)=[1]!Cell_Color($A$5),2,IF([1]!Cell_Color(U87)=[1]!Cell_Color($A$6),3,IF([1]!Cell_Color(U87)=[1]!Cell_Color($A$7),3,IF([1]!Cell_Color(U87)=[1]!Cell_Color($A$8),4,IF([1]!Cell_Color(U87)=[1]!Cell_Color($A$9),4,0)))))))) -> 12 | AI87: =(17-V87)*POWER(EXP(1),2*(4-IF([1]!Cell_Color(V87)=[1]!Cell_Color($A$4),1,IF([1]!Cell_Color(V87)=[1]!Cell_Color($A$5),2,IF([1]!Cell_Color(V87)=[1]!Cell_Color($A$6),3,IF([1]!Cell_Color(V87)=[1]!Cell_Color($A$7),3,IF([1]!Cell_Color(V87)=[1]!Cell_Color($A$8),4,IF([1]!Cell_Color(V87)=[1]!Cell_Color($A$9),4,0)))))))) -> 9 | AJ87: =(17-W87)*POWER(EXP(1),2*(4-IF([1]!Cell_Color(W87)=[1]!Cell_Color($A$4),1,IF([1]!Cell_Color(W87)=[1]!Cell_Color($A$5),2,IF([1]!Cell_Color(W87)=[1]!Cell_Color($A$6),3,IF([1]!Cell_Color(W87)=[1]!Cell_Color($A$7),3,IF([1]!Cell_Color(W87)=[1]!Cell_Color($A$8),4,IF([1]!Cell_Color(W87)=[1]!Cell_Color($A$9),4,0)))))))) -> 8
C88: 85 | D88: 96 | E88: 11 | F88: 92 | G88: 7 | H88: 85 | I88: Фельчут ФК | L88: 3 | M88: 13 | N88: 14 | O88: 15 | P88: 15 | Q88: 16 | R88: 15 | S88: 16 | T88: 14 | U88: 12 | V88: 5 | W88: 2 | X88: =SUM(AC88:AG88) -> 9 | Y88: =SUM(AE88:AI88) -> 23 | Z88: =SUM(AF88:AJ88) -> 36 | AB88: =(17-O88)*POWER(EXP(1),2*(4-IF([1]!Cell_Color(O88)=[1]!Cell_Color($A$4),1,IF([1]!Cell_Color(O88)=[1]!Cell_Color($A$5),2,IF([1]!Cell_Color(O88)=[1]!Cell_Color($A$6),3,IF([1]!Cell_Color(O88)=[1]!Cell_Color($A$7),3,IF([1]!Cell_Color(O88)=[1]!Cell_Color($A$8),4,IF([1]!Cell_Color(O88)=[1]!Cell_Color($A$9),4,0)))))))) -> 14.7781122 | AC88: =(17-P88)*POWER(EXP(1),2*(4-IF([1]!Cell_Color(P88)=[1]!Cell_Color($A$4),1,IF([1]!Cell_Color(P88)=[1]!Cell_Color($A$5),2,IF([1]!Cell_Color(P88)=[1]!Cell_Color($A$6),3,IF([1]!Cell_Color(P88)=[1]!Cell_Color($A$7),3,IF([1]!Cell_Color(P88)=[1]!Cell_Color($A$8),4,IF([1]!Cell_Color(P88)=[1]!Cell_Color($A$9),4,0)))))))) -> 2 | AD88: =(17-Q88)*POWER(EXP(1),2*(4-IF([1]!Cell_Color(Q88)=[1]!Cell_Color($A$4),1,IF([1]!Cell_Color(Q88)=[1]!Cell_Color($A$5),2,IF([1]!Cell_Color(Q88)=[1]!Cell_Color($A$6),3,IF([1]!Cell_Color(Q88)=[1]!Cell_Color($A$7),3,IF([1]!Cell_Color(Q88)=[1]!Cell_Color($A$8),4,IF([1]!Cell_Color(Q88)=[1]!Cell_Color($A$9),4,0)))))))) -> 1 | AE88: =(17-R88)*POWER(EXP(1),2*(4-IF([1]!Cell_Color(R88)=[1]!Cell_Color($A$4),1,IF([1]!Cell_Color(R88)=[1]!Cell_Color($A$5),2,IF([1]!Cell_Color(R88)=[1]!Cell_Color($A$6),3,IF([1]!Cell_Color(R88)=[1]!Cell_Color($A$7),3,IF([1]!Cell_Color(R88)=[1]!Cell_Color($A$8),4,IF([1]!Cell_Color(R88)=[1]!Cell_Color($A$9),4,0)))))))) -> 2 | AF88: =(17-S88)*POWER(EXP(1),2*(4-IF([1]!Cell_Color(S88)=[1]!Cell_Color($A$4),1,IF([1]!Cell_Color(S88)=[1]!Cell_Color($A$5),2,IF([1]!Cell_Color(S88)=[1]!Cell_Color($A$6),3,IF([1]!Cell_Color(S88)=[1]!Cell_Color($A$7),3,IF([1]!Cell_Color(S88)=[1]!Cell_Color($A$8),4,IF([1]!Cell_Color(S88)=[1]!Cell_Color($A$9),4,0)))))))) -> 1 | AG88: =(17-T88)*POWER(EXP(1),2*(4-IF([1]!Cell_Color(T88)=[1]!Cell_Color($A$4),1,IF([1]!Cell_Color(T88)=[1]!Cell_Color($A$5),2,IF([1]!Cell_Color(T88)=[1]!Cell_Color($A$6),3,IF([1]!Cell_Color(T88)=[1]!Cell_Color($A$7),3,IF([1]!Cell_Color(T88)=[1]!Cell_Color($A$8),4,IF([1]!Cell_Color(T88)=[1]!Cell_Color($A$9),4,0)))))))) -> 3 | AH88: =(17-U88)*POWER(EXP(1),2*(4-IF([1]!Cell_Color(U88)=[1]!Cell_Color($A$4),1,IF([1]!Cell_Color(U88)=[1]!Cell_Color($A$5),2,IF([1]!Cell_Color(U88)=[1]!Cell_Color($A$6),3,IF([1]!Cell_Color(U88)=[1]!Cell_Color($A$7),3,IF([1]!Cell_Color(U88)=[1]!Cell_Color($A$8),4,IF([1]!Cell_Color(U88)=[1]!Cell_Color($A$9),4,0)))))))) -> 5 | AI88: =(17-V88)*POWER(EXP(1),2*(4-IF([1]!Cell_Color(V88)=[1]!Cell_Color($A$4),1,IF([1]!Cell_Color(V88)=[1]!Cell_Color($A$5),2,IF([1]!Cell_Color(V88)=[1]!Cell_Color($A$6),3,IF([1]!Cell_Color(V88)=[1]!Cell_Color($A$7),3,IF([1]!Cell_Color(V88)=[1]!Cell_Color($A$8),4,IF([1]!Cell_Color(V88)=[1]!Cell_Color($A$9),4,0)))))))) -> 12 | AJ88: =(17-W88)*POWER(EXP(1),2*(4-IF([1]!Cell_Color(W88)=[1]!Cell_Color($A$4),1,IF([1]!Cell_Color(W88)=[1]!Cell_Color($A$5),2,IF([1]!Cell_Color(W88)=[1]!Cell_Color($A$6),3,IF([1]!Cell_Color(W88)=[1]!Cell_Color($A$7),3,IF([1]!Cell_Color(W88)=[1]!Cell_Color($A$8),4,IF([1]!Cell_Color(W88)=[1]!Cell_Color($A$9),4,0)))))))) -> 15
C89: 86 | D89: 94 | E89: 8 | F89: 90 | G89: 4 | H89: 86 | I89: Эржебети СМТК | J89: 12 | K89: 14 | L89: 15 | M89: 15 | N89: 15 | O89: 15 | P89: 14 | Q89: 7 | R89: 16 | S89: 11 | T89: 13 | U89: 11 | V89: 6 | W89: 11 | X89: =SUM(AC89:AG89) -> 24 | Y89: =SUM(AE89:AI89) -> 28 | Z89: =SUM(AF89:AJ89) -> 33 | AB89: =(17-O89)*POWER(EXP(1),2*(4-IF([1]!Cell_Color(O89)=[1]!Cell_Color($A$4),1,IF([1]!Cell_Color(O89)=[1]!Cell_Color($A$5),2,IF([1]!Cell_Color(O89)=[1]!Cell_Color($A$6),3,IF([1]!Cell_Color(O89)=[1]!Cell_Color($A$7),3,IF([1]!Cell_Color(O89)=[1]!Cell_Color($A$8),4,IF([1]!Cell_Color(O89)=[1]!Cell_Color($A$9),4,0)))))))) -> 2 | AC89: =(17-P89)*POWER(EXP(1),2*(4-IF([1]!Cell_Color(P89)=[1]!Cell_Color($A$4),1,IF([1]!Cell_Color(P89)=[1]!Cell_Color($A$5),2,IF([1]!Cell_Color(P89)=[1]!Cell_Color($A$6),3,IF([1]!Cell_Color(P89)=[1]!Cell_Color($A$7),3,IF([1]!Cell_Color(P89)=[1]!Cell_Color($A$8),4,IF([1]!Cell_Color(P89)=[1]!Cell_Color($A$9),4,0)))))))) -> 3 | AD89: =(17-Q89)*POWER(EXP(1),2*(4-IF([1]!Cell_Color(Q89)=[1]!Cell_Color($A$4),1,IF([1]!Cell_Color(Q89)=[1]!Cell_Color($A$5),2,IF([1]!Cell_Color(Q89)=[1]!Cell_Color($A$6),3,IF([1]!Cell_Color(Q89)=[1]!Cell_Color($A$7),3,IF([1]!Cell_Color(Q89)=[1]!Cell_Color($A$8),4,IF([1]!Cell_Color(Q89)=[1]!Cell_Color($A$9),4,0)))))))) -> 10 | AE89: =(17-R89)*POWER(EXP(1),2*(4-IF([1]!Cell_Color(R89)=[1]!Cell_Color($A$4),1,IF([1]!Cell_Color(R89)=[1]!Cell_Color($A$5),2,IF([1]!Cell_Color(R89)=[1]!Cell_Color($A$6),3,IF([1]!Cell_Color(R89)=[1]!Cell_Color($A$7),3,IF([1]!Cell_Color(R89)=[1]!Cell_Color($A$8),4,IF([1]!Cell_Color(R89)=[1]!Cell_Color($A$9),4,0)))))))) -> 1 | AF89: =(17-S89)*POWER(EXP(1),2*(4-IF([1]!Cell_Color(S89)=[1]!Cell_Color($A$4),1,IF([1]!Cell_Color(S89)=[1]!Cell_Color($A$5),2,IF([1]!Cell_Color(S89)=[1]!Cell_Color($A$6),3,IF([1]!Cell_Color(S89)=[1]!Cell_Color($A$7),3,IF([1]!Cell_Color(S89)=[1]!Cell_Color($A$8),4,IF([1]!Cell_Color(S89)=[1]!Cell_Color($A$9),4,0)))))))) -> 6 | AG89: =(17-T89)*POWER(EXP(1),2*(4-IF([1]!Cell_Color(T89)=[1]!Cell_Color($A$4),1,IF([1]!Cell_Color(T89)=[1]!Cell_Color($A$5),2,IF([1]!Cell_Color(T89)=[1]!Cell_Color($A$6),3,IF([1]!Cell_Color(T89)=[1]!Cell_Color($A$7),3,IF([1]!Cell_Color(T89)=[1]!Cell_Color($A$8),4,IF([1]!Cell_Color(T89)=[1]!Cell_Color($A$9),4,0)))))))) -> 4 | AH89: =(17-U89)*POWER(EXP(1),2*(4-IF([1]!Cell_Color(U89)=[1]!Cell_Color($A$4),1,IF([1]!Cell_Color(U89)=[1]!Cell_Color($A$5),2,IF([1]!Cell_Color(U89)=[1]!Cell_Color($A$6),3,IF([1]!Cell_Color(U89)=[1]!Cell_Color($A$7),3,IF([1]!Cell_Color(U89)=[1]!Cell_Color($A$8),4,IF([1]!Cell_Color(U89)=[1]!Cell_Color($A$9),4,0)))))))) -> 6 | AI89: =(17-V89)*POWER(EXP(1),2*(4-IF([1]!Cell_Color(V89)=[1]!Cell_Color($A$4),1,IF([1]!Cell_Color(V89)=[1]!Cell_Color($A$5),2,IF([1]!Cell_Color(V89)=[1]!Cell_Color($A$6),3,IF([1]!Cell_Color(V89)=[1]!Cell_Color($A$7),3,IF([1]!Cell_Color(V89)=[1]!Cell_Color($A$8),4,IF([1]!Cell_Color(V89)=[1]!Cell_Color($A$9),4,0)))))))) -> 11 | AJ89: =(17-W89)*POWER(EXP(1),2*(4-IF([1]!Cell_Color(W89)=[1]!Cell_Color($A$4),1,IF([1]!Cell_Color(W89)=[1]!Cell_Color($A$5),2,IF([1]!Cell_Color(W89)=[1]!Cell_Color($A$6),3,IF([1]!Cell_Color(W89)=[1]!Cell_Color($A$7),3,IF([1]!Cell_Color(W89)=[1]!Cell_Color($A$8),4,IF([1]!Cell_Color(W89)=[1]!Cell_Color($A$9),4,0)))))))) -> 6
C90: 87 | D90: 42 | E90: -45 | F90: 65 | G90: -22 | H90: 87 | I90: ДВТК | J90: 13 | K90: 8 | L90: 14 | M90: 1 | N90: 12 | O90: 9 | P90: 3 | Q90: 3 | R90: 15 | S90: 14 | T90: 16 | U90: 16 | V90: 16 | W90: 16 | X90: =SUM(AC90:AG90) -> 345.6460952 | Y90: =SUM(AE90:AI90) -> 140.7525245 | Z90: =SUM(AF90:AJ90) -> 32.5562244 | AB90: =(17-O90)*POWER(EXP(1),2*(4-IF([1]!Cell_Color(O90)=[1]!Cell_Color($A$4),1,IF([1]!Cell_Color(O90)=[1]!Cell_Color($A$5),2,IF([1]!Cell_Color(O90)=[1]!Cell_Color($A$6),3,IF([1]!Cell_Color(O90)=[1]!Cell_Color($A$7),3,IF([1]!Cell_Color(O90)=[1]!Cell_Color($A$8),4,IF([1]!Cell_Color(O90)=[1]!Cell_Color($A$9),4,0)))))))) -> 59.11244879 | AC90: =(17-P90)*POWER(EXP(1),2*(4-IF([1]!Cell_Color(P90)=[1]!Cell_Color($A$4),1,IF([1]!Cell_Color(P90)=[1]!Cell_Color($A$5),2,IF([1]!Cell_Color(P90)=[1]!Cell_Color($A$6),3,IF([1]!Cell_Color(P90)=[1]!Cell_Color($A$7),3,IF([1]!Cell_Color(P90)=[1]!Cell_Color($A$8),4,IF([1]!Cell_Color(P90)=[1]!Cell_Color($A$9),4,0)))))))) -> 103.4467854 | AD90: =(17-Q90)*POWER(EXP(1),2*(4-IF([1]!Cell_Color(Q90)=[1]!Cell_Color($A$4),1,IF([1]!Cell_Color(Q90)=[1]!Cell_Color($A$5),2,IF([1]!Cell_Color(Q90)=[1]!Cell_Color($A$6),3,IF([1]!Cell_Color(Q90)=[1]!Cell_Color($A$7),3,IF([1]!Cell_Color(Q90)=[1]!Cell_Color($A$8),4,IF([1]!Cell_Color(Q90)=[1]!Cell_Color($A$9),4,0)))))))) -> 103.4467854 | AE90: =(17-R90)*POWER(EXP(1),2*(4-IF([1]!Cell_Color(R90)=[1]!Cell_Color($A$4),1,IF([1]!Cell_Color(R90)=[1]!Cell_Color($A$5),2,IF([1]!Cell_Color(R90)=[1]!Cell_Color($A$6),3,IF([1]!Cell_Color(R90)=[1]!Cell_Color($A$7),3,IF([1]!Cell_Color(R90)=[1]!Cell_Color($A$8),4,IF([1]!Cell_Color(R90)=[1]!Cell_Color($A$9),4,0)))))))) -> 109.1963001 | AF90: =(17-S90)*POWER(EXP(1),2*(4-IF([1]!Cell_Color(S90)=[1]!Cell_Color($A$4),1,IF([1]!Cell_Color(S90)=[1]!Cell_Color($A$5),2,IF([1]!Cell_Color(S90)=[1]!Cell_Color($A$6),3,IF([1]!Cell_Color(S90)=[1]!Cell_Color($A$7),3,IF([1]!Cell_Color(S90)=[1]!Cell_Color($A$8),4,IF([1]!Cell_Color(S90)=[1]!Cell_Color($A$9),4,0)))))))) -> 22.1671683 | AG90: =(17-T90)*POWER(EXP(1),2*(4-IF([1]!Cell_Color(T90)=[1]!Cell_Color($A$4),1,IF([1]!Cell_Color(T90)=[1]!Cell_Color($A$5),2,IF([1]!Cell_Color(T90)=[1]!Cell_Color($A$6),3,IF([1]!Cell_Color(T90)=[1]!Cell_Color($A$7),3,IF([1]!Cell_Color(T90)=[1]!Cell_Color($A$8),4,IF([1]!Cell_Color(T90)=[1]!Cell_Color($A$9),4,0)))))))) -> 7.389056099 | AH90: =(17-U90)*POWER(EXP(1),2*(4-IF([1]!Cell_Color(U90)=[1]!Cell_Color($A$4),1,IF([1]!Cell_Color(U90)=[1]!Cell_Color($A$5),2,IF([1]!Cell_Color(U90)=[1]!Cell_Color($A$6),3,IF([1]!Cell_Color(U90)=[1]!Cell_Color($A$7),3,IF([1]!Cell_Color(U90)=[1]!Cell_Color($A$8),4,IF([1]!Cell_Color(U90)=[1]!Cell_Color($A$9),4,0)))))))) -> 1 | AI90: =(17-V90)*POWER(EXP(1),2*(4-IF([1]!Cell_Color(V90)=[1]!Cell_Color($A$4),1,IF([1]!Cell_Color(V90)=[1]!Cell_Color($A$5),2,IF([1]!Cell_Color(V90)=[1]!Cell_Color($A$6),3,IF([1]!Cell_Color(V90)=[1]!Cell_Color($A$7),3,IF([1]!Cell_Color(V90)=[1]!Cell_Color($A$8),4,IF([1]!Cell_Color(V90)=[1]!Cell_Color($A$9),4,0)))))))) -> 1 | AJ90: =(17-W90)*POWER(EXP(1),2*(4-IF([1]!Cell_Color(W90)=[1]!Cell_Color($A$4),1,IF([1]!Cell_Color(W90)=[1]!Cell_Color($A$5),2,IF([1]!Cell_Color(W90)=[1]!Cell_Color($A$6),3,IF([1]!Cell_Color(W90)=[1]!Cell_Color($A$7),3,IF([1]!Cell_Color(W90)=[1]!Cell_Color($A$8),4,IF([1]!Cell_Color(W90)=[1]!Cell_Color($A$9),4,0)))))))) -> 1
C91: 88 | D91: 93 | E91: 5 | F91: 89 | G91: 1 | H91: 88 | I91: ХСЕ | L91: 15 | M91: 12 | N91: 8 | O91: 8 | P91: 13 | Q91: 15 | R91: 12 | S91: 13 | T91: 8 | U91: 13 | V91: 7 | W91: 12 | X91: =SUM(AC91:AG91) -> 24 | Y91: =SUM(AE91:AI91) -> 32 | Z91: =SUM(AF91:AJ91) -> 32 | AB91: =(17-O91)*POWER(EXP(1),2*(4-IF([1]!Cell_Color(O91)=[1]!Cell_Color($A$4),1,IF([1]!Cell_Color(O91)=[1]!Cell_Color($A$5),2,IF([1]!Cell_Color(O91)=[1]!Cell_Color($A$6),3,IF([1]!Cell_Color(O91)=[1]!Cell_Color($A$7),3,IF([1]!Cell_Color(O91)=[1]!Cell_Color($A$8),4,IF([1]!Cell_Color(O91)=[1]!Cell_Color($A$9),4,0)))))))) -> 9 | AC91: =(17-P91)*POWER(EXP(1),2*(4-IF([1]!Cell_Color(P91)=[1]!Cell_Color($A$4),1,IF([1]!Cell_Color(P91)=[1]!Cell_Color($A$5),2,IF([1]!Cell_Color(P91)=[1]!Cell_Color($A$6),3,IF([1]!Cell_Color(P91)=[1]!Cell_Color($A$7),3,IF([1]!Cell_Color(P91)=[1]!Cell_Color($A$8),4,IF([1]!Cell_Color(P91)=[1]!Cell_Color($A$9),4,0)))))))) -> 4 | AD91: =(17-Q91)*POWER(EXP(1),2*(4-IF([1]!Cell_Color(Q91)=[1]!Cell_Color($A$4),1,IF([1]!Cell_Color(Q91)=[1]!Cell_Color($A$5),2,IF([1]!Cell_Color(Q91)=[1]!Cell_Color($A$6),3,IF([1]!Cell_Color(Q91)=[1]!Cell_Color($A$7),3,IF([1]!Cell_Color(Q91)=[1]!Cell_Color($A$8),4,IF([1]!Cell_Color(Q91)=[1]!Cell_Color($A$9),4,0)))))))) -> 2 | AE91: =(17-R91)*POWER(EXP(1),2*(4-IF([1]!Cell_Color(R91)=[1]!Cell_Color($A$4),1,IF([1]!Cell_Color(R91)=[1]!Cell_Color($A$5),2,IF([1]!Cell_Color(R91)=[1]!Cell_Color($A$6),3,IF([1]!Cell_Color(R91)=[1]!Cell_Color($A$7),3,IF([1]!Cell_Color(R91)=[1]!Cell_Color($A$8),4,IF([1]!Cell_Color(R91)=[1]!Cell_Color($A$9),4,0)))))))) -> 5 | AF91: =(17-S91)*POWER(EXP(1),2*(4-IF([1]!Cell_Color(S91)=[1]!Cell_Color($A$4),1,IF([1]!Cell_Color(S91)=[1]!Cell_Color($A$5),2,IF([1]!Cell_Color(S91)=[1]!Cell_Color($A$6),3,IF([1]!Cell_Color(S91)=[1]!Cell_Color($A$7),3,IF([1]!Cell_Color(S91)=[1]!Cell_Color($A$8),4,IF([1]!Cell_Color(S91)=[1]!Cell_Color($A$9),4,0)))))))) -> 4 | AG91: =(17-T91)*POWER(EXP(1),2*(4-IF([1]!Cell_Color(T91)=[1]!Cell_Color($A$4),1,IF([1]!Cell_Color(T91)=[1]!Cell_Color($A$5),2,IF([1]!Cell_Color(T91)=[1]!Cell_Color($A$6),3,IF([1]!Cell_Color(T91)=[1]!Cell_Color($A$7),3,IF([1]!Cell_Color(T91)=[1]!Cell_Color($A$8),4,IF([1]!Cell_Color(T91)=[1]!Cell_Color($A$9),4,0)))))))) -> 9 | AH91: =(17-U91)*POWER(EXP(1),2*(4-IF([1]!Cell_Color(U91)=[1]!Cell_Color($A$4),1,IF([1]!Cell_Color(U91)=[1]!Cell_Color($A$5),2,IF([1]!Cell_Color(U91)=[1]!Cell_Color($A$6),3,IF([1]!Cell_Color(U91)=[1]!Cell_Color($A$7),3,IF([1]!Cell_Color(U91)=[1]!Cell_Color($A$8),4,IF([1]!Cell_Color(U91)=[1]!Cell_Color($A$9),4,0)))))))) -> 4 | AI91: =(17-V91)*POWER(EXP(1),2*(4-IF([1]!Cell_Color(V91)=[1]!Cell_Color($A$4),1,IF([1]!Cell_Color(V91)=[1]!Cell_Color($A$5),2,IF([1]!Cell_Color(V91)=[1]!Cell_Color($A$6),3,IF([1]!Cell_Color(V91)=[1]!Cell_Color($A$7),3,IF([1]!Cell_Color(V91)=[1]!Cell_Color($A$8),4,IF([1]!Cell_Color(V91)=[1]!Cell_Color($A$9),4,0)))))))) -> 10 | AJ91: =(17-W91)*POWER(EXP(1),2*(4-IF([1]!Cell_Color(W91)=[1]!Cell_Color($A$4),1,IF([1]!Cell_Color(W91)=[1]!Cell_Color($A$5),2,IF([1]!Cell_Color(W91)=[1]!Cell_Color($A$6),3,IF([1]!Cell_Color(W91)=[1]!Cell_Color($A$7),3,IF([1]!Cell_Color(W91)=[1]!Cell_Color($A$8),4,IF([1]!Cell_Color(W91)=[1]!Cell_Color($A$9),4,0)))))))) -> 5
C92: 89 | D92: 90 | E92: 1 | F92: 91 | G92: 2 | H92: 89 | I92: Бичке СК | L92: 5 | M92: 5 | N92: 2 | O92: 14 | P92: 14 | Q92: 10 | R92: 14 | S92: 11 | T92: 10 | U92: 10 | V92: 13 | W92: 11 | X92: =SUM(AC92:AG92) -> 26 | Y92: =SUM(AE92:AI92) -> 27 | Z92: =SUM(AF92:AJ92) -> 30 | AB92: =(17-O92)*POWER(EXP(1),2*(4-IF([1]!Cell_Color(O92)=[1]!Cell_Color($A$4),1,IF([1]!Cell_Color(O92)=[1]!Cell_Color($A$5),2,IF([1]!Cell_Color(O92)=[1]!Cell_Color($A$6),3,IF([1]!Cell_Color(O92)=[1]!Cell_Color($A$7),3,IF([1]!Cell_Color(O92)=[1]!Cell_Color($A$8),4,IF([1]!Cell_Color(O92)=[1]!Cell_Color($A$9),4,0)))))))) -> 22.1671683 | AC92: =(17-P92)*POWER(EXP(1),2*(4-IF([1]!Cell_Color(P92)=[1]!Cell_Color($A$4),1,IF([1]!Cell_Color(P92)=[1]!Cell_Color($A$5),2,IF([1]!Cell_Color(P92)=[1]!Cell_Color($A$6),3,IF([1]!Cell_Color(P92)=[1]!Cell_Color($A$7),3,IF([1]!Cell_Color(P92)=[1]!Cell_Color($A$8),4,IF([1]!Cell_Color(P92)=[1]!Cell_Color($A$9),4,0)))))))) -> 3 | AD92: =(17-Q92)*POWER(EXP(1),2*(4-IF([1]!Cell_Color(Q92)=[1]!Cell_Color($A$4),1,IF([1]!Cell_Color(Q92)=[1]!Cell_Color($A$5),2,IF([1]!Cell_Color(Q92)=[1]!Cell_Color($A$6),3,IF([1]!Cell_Color(Q92)=[1]!Cell_Color($A$7),3,IF([1]!Cell_Color(Q92)=[1]!Cell_Color($A$8),4,IF([1]!Cell_Color(Q92)=[1]!Cell_Color($A$9),4,0)))))))) -> 7 | AE92: =(17-R92)*POWER(EXP(1),2*(4-IF([1]!Cell_Color(R92)=[1]!Cell_Color($A$4),1,IF([1]!Cell_Color(R92)=[1]!Cell_Color($A$5),2,IF([1]!Cell_Color(R92)=[1]!Cell_Color($A$6),3,IF([1]!Cell_Color(R92)=[1]!Cell_Color($A$7),3,IF([1]!Cell_Color(R92)=[1]!Cell_Color($A$8),4,IF([1]!Cell_Color(R92)=[1]!Cell_Color($A$9),4,0)))))))) -> 3 | AF92: =(17-S92)*POWER(EXP(1),2*(4-IF([1]!Cell_Color(S92)=[1]!Cell_Color($A$4),1,IF([1]!Cell_Color(S92)=[1]!Cell_Color($A$5),2,IF([1]!Cell_Color(S92)=[1]!Cell_Color($A$6),3,IF([1]!Cell_Color(S92)=[1]!Cell_Color($A$7),3,IF([1]!Cell_Color(S92)=[1]!Cell_Color($A$8),4,IF([1]!Cell_Color(S92)=[1]!Cell_Color($A$9),4,0)))))))) -> 6 | AG92: =(17-T92)*POWER(EXP(1),2*(4-IF([1]!Cell_Color(T92)=[1]!Cell_Color($A$4),1,IF([1]!Cell_Color(T92)=[1]!Cell_Color($A$5),2,IF([1]!Cell_Color(T92)=[1]!Cell_Color($A$6),3,IF([1]!Cell_Color(T92)=[1]!Cell_Color($A$7),3,IF([1]!Cell_Color(T92)=[1]!Cell_Color($A$8),4,IF([1]!Cell_Color(T92)=[1]!Cell_Color($A$9),4,0)))))))) -> 7 | AH92: =(17-U92)*POWER(EXP(1),2*(4-IF([1]!Cell_Color(U92)=[1]!Cell_Color($A$4),1,IF([1]!Cell_Color(U92)=[1]!Cell_Color($A$5),2,IF([1]!Cell_Color(U92)=[1]!Cell_Color($A$6),3,IF([1]!Cell_Color(U92)=[1]!Cell_Color($A$7),3,IF([1]!Cell_Color(U92)=[1]!Cell_Color($A$8),4,IF([1]!Cell_Color(U92)=[1]!Cell_Color($A$9),4,0)))))))) -> 7 | AI92: =(17-V92)*POWER(EXP(1),2*(4-IF([1]!Cell_Color(V92)=[1]!Cell_Color($A$4),1,IF([1]!Cell_Color(V92)=[1]!Cell_Color($A$5),2,IF([1]!Cell_Color(V92)=[1]!Cell_Color($A$6),3,IF([1]!Cell_Color(V92)=[1]!Cell_Color($A$7),3,IF([1]!Cell_Color(V92)=[1]!Cell_Color($A$8),4,IF([1]!Cell_Color(V92)=[1]!Cell_Color($A$9),4,0)))))))) -> 4 | AJ92: =(17-W92)*POWER(EXP(1),2*(4-IF([1]!Cell_Color(W92)=[1]!Cell_Color($A$4),1,IF([1]!Cell_Color(W92)=[1]!Cell_Color($A$5),2,IF([1]!Cell_Color(W92)=[1]!Cell_Color($A$6),3,IF([1]!Cell_Color(W92)=[1]!Cell_Color($A$7),3,IF([1]!Cell_Color(W92)=[1]!Cell_Color($A$8),4,IF([1]!Cell_Color(W92)=[1]!Cell_Color($A$9),4,0)))))))) -> 6
C93: 90 | D93: 71 | E93: -19 | F93: 87 | G93: -3 | H93: 90 | I93: Карцаг | J93: 7 | K93: 8 | L93: 10 | M93: 15 | N93: 11 | O93: 3 | P93: 11 | Q93: 15 | R93: 1 | S93: 16 | T93: 16 | U93: 10 | V93: 13 | W93: 7 | X93: =SUM(AC93:AG93) -> 83.50150489 | Y93: =SUM(AE93:AI93) -> 35.3890561 | Z93: =SUM(AF93:AJ93) -> 29.3890561 | AB93: =(17-O93)*POWER(EXP(1),2*(4-IF([1]!Cell_Color(O93)=[1]!Cell_Color($A$4),1,IF([1]!Cell_Color(O93)=[1]!Cell_Color($A$5),2,IF([1]!Cell_Color(O93)=[1]!Cell_Color($A$6),3,IF([1]!Cell_Color(O93)=[1]!Cell_Color($A$7),3,IF([1]!Cell_Color(O93)=[1]!Cell_Color($A$8),4,IF([1]!Cell_Color(O93)=[1]!Cell_Color($A$9),4,0)))))))) -> 14 | AC93: =(17-P93)*POWER(EXP(1),2*(4-IF([1]!Cell_Color(P93)=[1]!Cell_Color($A$4),1,IF([1]!Cell_Color(P93)=[1]!Cell_Color($A$5),2,IF([1]!Cell_Color(P93)=[1]!Cell_Color($A$6),3,IF([1]!Cell_Color(P93)=[1]!Cell_Color($A$7),3,IF([1]!Cell_Color(P93)=[1]!Cell_Color($A$8),4,IF([1]!Cell_Color(P93)=[1]!Cell_Color($A$9),4,0)))))))) -> 44.33433659 | AD93: =(17-Q93)*POWER(EXP(1),2*(4-IF([1]!Cell_Color(Q93)=[1]!Cell_Color($A$4),1,IF([1]!Cell_Color(Q93)=[1]!Cell_Color($A$5),2,IF([1]!Cell_Color(Q93)=[1]!Cell_Color($A$6),3,IF([1]!Cell_Color(Q93)=[1]!Cell_Color($A$7),3,IF([1]!Cell_Color(Q93)=[1]!Cell_Color($A$8),4,IF([1]!Cell_Color(Q93)=[1]!Cell_Color($A$9),4,0)))))))) -> 14.7781122 | AE93: =(17-R93)*POWER(EXP(1),2*(4-IF([1]!Cell_Color(R93)=[1]!Cell_Color($A$4),1,IF([1]!Cell_Color(R93)=[1]!Cell_Color($A$5),2,IF([1]!Cell_Color(R93)=[1]!Cell_Color($A$6),3,IF([1]!Cell_Color(R93)=[1]!Cell_Color($A$7),3,IF([1]!Cell_Color(R93)=[1]!Cell_Color($A$8),4,IF([1]!Cell_Color(R93)=[1]!Cell_Color($A$9),4,0)))))))) -> 16 | AF93: =(17-S93)*POWER(EXP(1),2*(4-IF([1]!Cell_Color(S93)=[1]!Cell_Color($A$4),1,IF([1]!Cell_Color(S93)=[1]!Cell_Color($A$5),2,IF([1]!Cell_Color(S93)=[1]!Cell_Color($A$6),3,IF([1]!Cell_Color(S93)=[1]!Cell_Color($A$7),3,IF([1]!Cell_Color(S93)=[1]!Cell_Color($A$8),4,IF([1]!Cell_Color(S93)=[1]!Cell_Color($A$9),4,0)))))))) -> 7.389056099 | AG93: =(17-T93)*POWER(EXP(1),2*(4-IF([1]!Cell_Color(T93)=[1]!Cell_Color($A$4),1,IF([1]!Cell_Color(T93)=[1]!Cell_Color($A$5),2,IF([1]!Cell_Color(T93)=[1]!Cell_Color($A$6),3,IF([1]!Cell_Color(T93)=[1]!Cell_Color($A$7),3,IF([1]!Cell_Color(T93)=[1]!Cell_Color($A$8),4,IF([1]!Cell_Color(T93)=[1]!Cell_Color($A$9),4,0)))))))) -> 1 | AH93: =(17-U93)*POWER(EXP(1),2*(4-IF([1]!Cell_Color(U93)=[1]!Cell_Color($A$4),1,IF([1]!Cell_Color(U93)=[1]!Cell_Color($A$5),2,IF([1]!Cell_Color(U93)=[1]!Cell_Color($A$6),3,IF([1]!Cell_Color(U93)=[1]!Cell_Color($A$7),3,IF([1]!Cell_Color(U93)=[1]!Cell_Color($A$8),4,IF([1]!Cell_Color(U93)=[1]!Cell_Color($A$9),4,0)))))))) -> 7 | AI93: =(17-V93)*POWER(EXP(1),2*(4-IF([1]!Cell_Color(V93)=[1]!Cell_Color($A$4),1,IF([1]!Cell_Color(V93)=[1]!Cell_Color($A$5),2,IF([1]!Cell_Color(V93)=[1]!Cell_Color($A$6),3,IF([1]!Cell_Color(V93)=[1]!Cell_Color($A$7),3,IF([1]!Cell_Color(V93)=[1]!Cell_Color($A$8),4,IF([1]!Cell_Color(V93)=[1]!Cell_Color($A$9),4,0)))))))) -> 4 | AJ93: =(17-W93)*POWER(EXP(1),2*(4-IF([1]!Cell_Color(W93)=[1]!Cell_Color($A$4),1,IF([1]!Cell_Color(W93)=[1]!Cell_Color($A$5),2,IF([1]!Cell_Color(W93)=[1]!Cell_Color($A$6),3,IF([1]!Cell_Color(W93)=[1]!Cell_Color($A$7),3,IF([1]!Cell_Color(W93)=[1]!Cell_Color($A$8),4,IF([1]!Cell_Color(W93)=[1]!Cell_Color($A$9),4,0)))))))) -> 10
